Workbook

Sheet lesurenberekening
A1: 1 | B1: Deze planner werkt alleen met ingeschakelde macro's. Klik op het icoontje voor meer informatie over het inschakelen --> | Q1: Verberg of vertoon het grijze lint hierboven door op Ctrl + F1 te drukken.
B2: LESURENBEREKENING SCHOOL | M2: © taakberekeningPO.nl | Q2: toelichting lesurenberekening
I3: =DATE(E5,8,1) -> 2023-08-01 | Q3: Bewerk deze planner niet online in een browser, maar altijd in
I4: =DATE(G5,9,30) -> 2024-09-30 | Q4: in de desktop(bureaublad)modus.
C5: schooljaar: | E5: 2023 | F5: / | G5: =E5+1 -> 2024 | Q5: Kies met de zoomknop (rechtsonder het scherm) de gewenste
C6: onderwijstijd hele school: | E6: =E89 -> 0 | Q6: afbeeldingsgrootte.
C7: onderwijstijd per bouw A - (B + C + D): | E7: =E72 -> 0 | I7: =E77 -> 0 | M7: =E82 -> 0 | Q7: Alleen in cellen met deze kleuren kunnen gegevens worden ingevoerd:
B8: A jaartotaal lesuren | E8: lestijd 1 | I8: lestijd 2 | M8: lestijd 3 | Q8: lesuren (format: u:m)
B9: groepen | F9: t/m | J9: t/m | N9: t/m | Q9: arbeidsuren (format: u:m)
E10: ochtend | G10: middag | I10: ochtend | K10: middag | M10: ochtend | O10: middag | Q10: datums (format: d-m-j), gewone getallen en tekst
C11: maandag | Q11: Alle invoer is zwartgekleurd en cursief
C12: dinsdag
C13: woensdag | Q13: A lesuren per week
C14: donderdag | Q14: Voer alle tijden in met uren en minuten gescheiden door een dub-
C15: vrijdag | Q15: bele punt. Dus bijv. 2 1/2 uur = 2:30
Q16: Er kunnen drie verschillende lestijden voor 3 bouwen worden ingevoerd.
C17: lestijd per week | G17: =SUM(E11,G11,E12,G12,E13,G13,E14,G14,E15,G15,) -> 0 | K17: =SUM(I11,K11,I12,K12,I13,K13,I14,K14,I15,K15,) -> 0 | O17: =SUM(M11,O11,M12,O12,M13,O13,M14,O14,M15,O15,) -> 0 | Q17: Vul bij één lestijd in groep 1 t/m 8 alleen de kolom van lestijden 1 in.
C18: x 52 | G18: =G17*52 -> 0 | K18: =K17*52 -> 0 | O18: =O17*52 -> 0 | Q18: Bij een lestijd in één groep het groepsnummer tweemaal invullen!
B19: =WEEKDAY(CONCATENATE(C19,G5)) -> 1900-01-01 | C19: 29 september | D19: =IF(MOD(G5,4)=0,WEEKDAY(CONCATENATE(C19,G5),2),0) -> 7 | G19: =IF(D19=1,E11+G11,IF(D19=2,E12+G12,IF(D19=3,E13+G13,IF(D19=4,E14+G14,IF(D19=5,E15+G15,0))))) -> 0 | K19: =IF(D19=1,I11+K11,IF(D19=2,I12+K12,IF(D19=3,I13+K13,IF(D19=4,I14+K14,IF(D19=5,I15+K15,0))))) -> 0 | O19: =IF(D19=1,M11+O11,IF(D19=2,M12+O12,IF(D19=3,M13+O13,IF(D19=4,M14+O14,IF(D19=5,M15+O15,0))))) -> 0
B20: =WEEKDAY(CONCATENATE(C20,G5)) -> 1900-01-02 | C20: 30 september | D20: =WEEKDAY(CONCATENATE(C20,G5),2) -> 1 | G20: =IF(D20=1,E11+G11,IF(D20=2,E12+G12,IF(D20=3,E13+G13,IF(D20=4,E14+G14,IF(D20=5,E15+G15,0))))) -> 0 | K20: =IF(D20=1,I11+K11,IF(D20=2,I12+K12,IF(D20=3,I13+K13,IF(D20=4,I14+K14,IF(D20=5,I15+K15,0))))) -> 0 | O20: =IF(D20=1,M11+O11,IF(D20=2,M12+O12,IF(D20=3,M13+O13,IF(D20=4,M14+O14,IF(D20=5,M15+O15,0))))) -> 0 | Q20: B lesuren héle vakantieweken
C21: jaartotaal A: | G21: =SUM(G18:G20) -> 0 | K21: =SUM(K18:K20) -> 0 | O21: =SUM(O18:O20) -> 0 | Q21: Klik op de regio en kies je regio. Het aantal hele vakantieweken en de 1e
Q22: maandag kunnen handmatig aangepast worden.
B23: B héle vakantieweken | D23: vakantieregio | G23: lestijd 1 | K23: lestijd 2 | O23: lestijd 3 | Q23: Als een vakantie 1 of meer dagen langer duurt: de héle weken in B
C24: Kies vakantieregio: | D24: Midden | Q24: invullen en de resterende dag(en) per dag in C.
C25: herfstvakantie | D25: 1 | E25: 2023-10-16 | G25: =D25*G17 -> 0 | K25: =D25*K17 -> 0 | O25: =D25*O17 -> 0
C26: kerstvakantie | D26: 2 | E26: 2023-12-25 | G26: =D26*G17 -> 0 | K26: =D26*K17 -> 0 | O26: =D26*O17 -> 0 | Q26: Voer een datum in deze vorm in: d-m-j
C27: voorjaarsvakantie | D27: 1 | E27: 2024-02-19 | G27: =D27*G17 -> 0 | K27: =D27*K17 -> 0 | O27: =D27*O17 -> 0
C28: meivakantie | D28: 2 | E28: 2024-04-29 | G28: =D28*G17 -> 0 | K28: =D28*K17 -> 0 | O28: =D28*O17 -> 0 | Q28: C lesuren overige héle vakantie- en studiedagen
G29: =D29*G17 -> 0 | K29: =D29*K17 -> 0 | O29: =D29*O17 -> 0 | Q29: Vul hier per regel alle overige héle feest- en vakantiedagen in
C30: zomervakantie | D30: 6 | E30: 2024-07-15 | G30: =D30*G17 -> 0 | K30: =D30*K17 -> 0 | O30: =D30*O17 -> 0 | Q30: waarop ook het OP en OOP vrij heeft. Verander bij studiedagen de v
C31: totaal uit te roosteren B: | G31: =SUM(G25:G30) -> 0 | K31: =SUM(K25:K30) -> 0 | O31: =SUM(O25:O30) -> 0 | Q31: in een s, zodat bij de berekening op de teamlidbladen OP alleen de
B32: C overige héle vakantie- en studiedagen | G32: lestijd 1 | K32: lestijd 2 | O32: lestijd 3 | Q32: lesuren van deze studiedagen niet worden meegeteld.
B33: dag | C33: omschrijving | E33: datum
B34: =IF(E34="","",E34) ->  | D34: v | F34: =WEEKDAY(E34,2) -> 6 | G34: =IF(F34=1,E11+G11,IF(F34=2,E12+G12,IF(F34=3,E13+G13,IF(F34=4,E14+G14,IF(F34=5,E15+G15,""))))) ->  | K34: =IF(F34=1,I$11+K$11,IF(F34=2,I$12+K$12,IF(F34=3,I$13+K$13,IF(F34=4,I$14+K$14,IF(F34=5,I$15+K$15,""))))) ->  | O34: =IF(F34=1,M$11+O$11,IF(F34=2,M$12+O$12,IF(F34=3,M$13+O$13,IF(F34=4,M$14+O$14,IF(F34=5,M$15+O$15,""))))) ->  | Q34: Opm. Wanneer er in C te weinig regels zijn voor alle losse hele dagen,
D35: v | F35: 6 | G35: =IF(F35=1,E11+G11,IF(F35=2,E12+G12,IF(F35=3,E13+G13,IF(F35=4,E14+G14,IF(F35=5,E15+G15,""))))) ->  | Q35: kunnen deze ook in D worden geplaatst.
D36: v | F36: 6 | G36: =IF(F36=1,E11+G11,IF(F36=2,E12+G12,IF(F36=3,E13+G13,IF(F36=4,E14+G14,IF(F36=5,E15+G15,""))))) -> 
D37: v | F37: 6 | G37: =IF(F37=1,E11+G11,IF(F37=2,E12+G12,IF(F37=3,E13+G13,IF(F37=4,E14+G14,IF(F37=5,E15+G15,""))))) ->  | Q37: D overige uit te roosteren dagen, dagdelen en uren
D38: v | F38: 6 | G38: =IF(F38=1,E11+G11,IF(F38=2,E12+G12,IF(F38=3,E13+G13,IF(F38=4,E14+G14,IF(F38=5,E15+G15,""))))) ->  | Q38: Vul hier zelf per bouw de les- én arbeidsuren in van de dagdelen of
D39: v | F39: 6 | G39: =IF(F39=1,E11+G11,IF(F39=2,E12+G12,IF(F39=3,E13+G13,IF(F39=4,E14+G14,IF(F39=5,E15+G15,""))))) ->  | Q39: losse uren waarop geen les wordt gegeven.
D40: v | F40: 6 | G40: =IF(F40=1,E11+G11,IF(F40=2,E12+G12,IF(F40=3,E13+G13,IF(F40=4,E14+G14,IF(F40=5,E15+G15,""))))) -> 
D41: v | F41: 6 | G41: =IF(F41=1,E11+G11,IF(F41=2,E12+G12,IF(F41=3,E13+G13,IF(F41=4,E14+G14,IF(F41=5,E15+G15,""))))) ->  | Q41: E netto lestijd
D42: v | F42: 6 | G42: =IF(F42=1,E11+G11,IF(F42=2,E12+G12,IF(F42=3,E13+G13,IF(F42=4,E14+G14,IF(F42=5,E15+G15,""))))) ->  | Q42: In deze rubriek is de netto lestijd voor de leerlingen berekend.
D43: v | F43: 6 | G43: =IF(F43=1,E11+G11,IF(F43=2,E12+G12,IF(F43=3,E13+G13,IF(F43=4,E14+G14,IF(F43=5,E15+G15,""))))) ->  | Q43: Onderaan deze rubriek is de lestijd over 8 jaar geëxtrapoleerd op basis
D44: v | F44: 6 | G44: =IF(F44=1,E11+G11,IF(F44=2,E12+G12,IF(F44=3,E13+G13,IF(F44=4,E14+G14,IF(F44=5,E15+G15,""))))) ->  | Q44: van de lesurenberekening van dit berekeningsjaar. Deze lestijd dient
C45: totaal uit te roosteren C: | G45: =SUM(G34:G44) -> 0 | K45: =SUM(K34:K44) -> 0 | O45: =SUM(O34:O44) -> 0 | Q45: minimaal 7520 uur te zijn.
B46: D overige uit te roosteren dagdelen en uren
B47: dag | C47: omschrijving | E47: datum | G47: lestijd 1 | I47: lestijd 2 | K47: lestijd 3 | O47: arbeidsuren | Q47: G instellingen jaartaakberekening
B48: =IF(E48="","",E48) ->  | F48: =WEEKDAY(E48,2) -> 6
F49: 6 | Q49: standaardverdeling arbeidsuren
F50: 6 | Q50: Vul hier de afgesproken standaardverdeling in van de arbeidsuren over
F51: 6 | Q51: de weekdagen. Klik op het icoon voor meer informatie.
F52: 6
F53: 6 | Q53: instellingen jaartaakberekening
F54: 6 | Q54: De max. lestaak volgens de CAO-PO is 940 uur, maar indien afgespro-
F55: 6 | Q55: ken kan hier een hoger maximum worden ingevuld.
F56: 6 | Q56: De opslagfactor varieert doorgaans tussen de 35 en 45%.
F57: 6 | Q57: Klik op het icoon voor informatie over het inroosteringspercentage.
C58: totaal uit te roosteren D: | G58: =SUM(G48:G57) -> 0 | I58: =SUM(I48:I57) -> 0 | K58: =SUM(K48:K57) -> 0 | Q58: Klik op het icoon voor informatie over de weergave van het inrooster-
Q59: verschil en inroosterpercentage bij de les- en arbeidsuren op de team-
B60: opmerkingen | Q60: lidbladen.
B61: Dubbelklik op dit vak om het geheel te tonen. Vul in A (bij verschillende lestijden per bouw) de betreffende groepen en lestijden op jouw school in. Kies in B je vakantieregio en controleer het aantal vakantieweken en de datum van de eerste maandag. Pas eventueel aan. Vul in C de losse hele vakantie- en studiedagen in (verander bij studiedagen of andere dagen waarbij de llerlingen niet, maar het team wél op school is, de v in een s!), en in D de vrije lesuren of lesdagdelen (en als het team op die dag ook vrij is, ook de arbeidsuren invullen). Omdat op 6 december het team wél op de normale tijd aanwezig is, zijn daar de arbeidsuren niet ingevuld. de netto lestijd is 945:30 uur; er is bij dit les- en vakantierooster dus een marge van iets meer dan één lesdag. Vul in G de zelfgekozen verdeling van de 40 arbeidsuren over de dagdelen in (liefst in verhouding tot de lestijden) en de gekozen opslagfactor - in dit voorbeeld 40%. Na volledige invulling van deze lesurenberekening en de volledige inroostering van een voltijder, kan hier (bij toepassing van de verhoudingsgewijze inroostering - klik in G op de icoon voor meer informatie hierover - ook het inroosterpercentage van de volledig ingeroosterde voltijder worden ingevuld. In dit voorbeeld 95,7% (zie voltijder nr. 1) Dit percentage kan per school en schooljaar verschillen. Klik op dit vak en druk op de Delete-toets om deze opmerkingen te wissen.
Q62: weergave inroosterverschil en inroosteringspercentage
Q63: Klik op het icoon voor meer informatie.
Q65: H activeren planner
Q66: Klik op de icoon voor meer informatie over bestellen en activeren.
G67: pagina 2 | Q67: Na het downloaden kunnen maximaal drie teamleden worden ingeroos-
Q68: terd via het invoerformulier op het tweede werkblad Formatieoverzicht.
B69: E netto lestijd per bouw en totaal | I69: F feestdagen | M69: 2023 | N69: / | O69: =M69+1 -> 2024 | Q69: Na het activeren kunnen maximaal 120 teamleden worden ingeroosterd.
C70: lestijd 1 basistotaal A | E70: =G21 -> 0
C71: B + C + D | E71: =G31+G45+G58 -> 0 | F71: _ | I71: 1e kerstdag | L71: =DATE(M69,12,25) -> 2023-12-25 | Q71: opmerkingenvak
C72: ="netto lestijd groep "&E9&" t/m "&G9 -> netto lestijd groep t/m | E72: =IF(E70-E71<0,0,E70-E71) -> 0 | I72: 2e kerstdag | L72: =DATE(M69,12,26) -> 2023-12-26 | Q72: Druk op Alt-Enter voor een nieuwe regel. Alleen de zichtbare regels
C73: berekend aantal lesweken | E73: =IF(E72>0,E72/G17,0) -> 0 | I73: carnaval | L73: =L75-49 -> 2024-02-11 | Q73: worden afgedrukt. Dubbelklik op het opmerkingenvak om het gehele vak
I74: goede vrijdag | L74: =L75-2 -> 2024-03-29 | Q74: zichtbaar te maken in het geval de tekst langer is dan het zichtbare deel.
C75: lestijd 2 basistotaal A | E75: =K21 -> 0 | I75: 1e paasdag | L75: =FIXED(("4/"&(M69+1))/7+MOD(MOD((M69+1),19)*19-7,30)*14%,0)*7-6 -> 2024-03-31
C76: B + C + D | E76: =K31+K45+I58 -> 0 | F76: _ | I76: 2e paasdag | L76: =L75+1 -> 2024-04-01 | Q76: macrobeveiliging
C77: ="netto lestijd groep "&I9&" t/m "&K9 -> netto lestijd groep t/m | E77: =IF(E75-E76<0,0,E75-E76) -> 0 | I77: koningsdag | L77: =DATE(M69+1,4,27) -> 2024-04-27 | Q77: De planner bevat macro's (programma's) voor de besturing en de bere-
C78: berekend aantal lesweken | E78: =IF(E77>0,E77/K17,0) -> 0 | I78: hemelvaartsdag | L78: =L75+39 -> 2024-05-09 | Q78: keningen. Bij het opstarten van de werkmap moeten deze ingeschakeld
I79: 1e pinksterdag | L79: =L75+49 -> 2024-05-19 | Q79: worden. Klik op de icoon voor meer informatie.
C80: lestijd 3 basistotaal A | E80: =O21 -> 0 | I80: 2e pinksterdag | L80: =L79+1 -> 2024-05-20
C81: B + C + D | E81: =O31+O45+K58 -> 0 | F81: _ | I81: ramadan (30 dgn) | L81: =TRUNC(((M69+1)-1900)*354.3667+1421.44+IF((M69+1)<1997,-366,IF((M69+1)>2030,365,0))) -> 2024-03-11 | Q81: systeemeisen
C82: ="netto lestijd groep "&M9&" t/m "&O9 -> netto lestijd groep t/m | E82: =IF(E80-E81<0,0,E80-E81) -> 0 | I82: suikerfeest (3 d.) | L82: =L81+30 -> 2024-04-10 | Q82: Deze planner werkt alleen in Excel MS Office of Microsoft 365 op een
C83: berekend aantal lesweken | E83: =IF(E82>0,E82/O17,0) -> 0 | Q83: pc of laptop onder Windows. (Dus niet op een Mac of Chromebook)
Q84: Omdat macro's online niet werken, moet de planner altijd in de bureau-
C85: Lestijd in 8 leerjaren | Q85: bladmodus bewerkt worden.
C86: ="groep "&E9&" t/m "&G9 -> groep t/m | E86: =((G9-E9)+1)*E72 -> 0
C87: ="groep "&I9&" t/m "&K9 -> groep t/m | E87: =((K9-I9)+1)*E77 -> 0 | K87: netto lestijd | Q87: Excel reageert niet...
C88: ="groep "&M9&" t/m "&O9 -> groep t/m | E88: =((O9-M9)+1)*E82 -> 0 | K88: =E89 -> 0 | Q88: Bij sommige bewerkingen die langer duren, zoals Opslaan of het maken
C89: netto lestijd per jaar hele school | E89: =E90/8 -> 0 | Q89: van een activiteitenoverzicht, kan bovenaan het scherm de mededeling
C90: netto lestijd in 8 leerjaren | E90: =SUM(E86:E88) -> 0 | Q90: verschijnen dat Excel niet reageert. Dit kan genegeerd worden en ver-
C91: resterende marge over 8 jaar | E91: =(E90*24)-7520 -> -7520 | Q91: dwijnt vanzelf als de bewerking klaar is.
C92: marge dit schooljaar | E92: =E91/8 -> -940
Q93: PDF-knop
B94: G Instellingen | Q94: Linksboven elk werkblad is een PDF-knop waarmee je één of meerdere
Q95: werkbladen als PDF kunt afdrukken.
C96: standaardverdeling arbeidsuren over de weekdagen
E97: ochtend | G97: middag | I97: totaal | Q97: importeren gegevens uit vorige planner
C98: maandag | E98: 0.2083333333 | G98: 0.1458333333 | I98: =E98+G98 -> 0.3541666667 | Q98: De teamgegevens en de drie activiteitenlijsten kunnen geïmporteerd
C99: dinsdag | E99: 0.2083333333 | G99: 0.1458333333 | I99: =E99+G99 -> 0.3541666667 | Q99: worden uit de planner van het vorig schooljaar. De knoppen daarvoor
C100: woensdag | E100: 0.25 | I100: =E100+G100 -> 0.25 | Q100: bevinden zich op het Formatieoverzicht en de drie lijsten.
C101: donderdag | E101: 0.2083333333 | G101: 0.1458333333 | I101: =E101+G101 -> 0.3541666667
C102: vrijdag | E102: 0.2083333333 | G102: 0.1458333333 | I102: =E102+G102 -> 0.3541666667 | J102: + | Q102: optimalisering weergave werkbladen
I103: =SUM(I98:I102) -> 1.666666667 | Q103: Klik op onderstaande knop voor een optimale weergave van de werk-
Q104: bladen. Kies rechtsonder in het scherm met de zoomknop een pret-
C105: instellingen jaartaakberekening | Q105: afbeeldingsgrootte waarbij alles goed zichtbaar is - doorgaans rond de
Q106: 150% - en tenminste de breedte geheel wordt afgebeeld.
C107: arbeidsduur volgens CAO-PO | E107: 1659 | Q107: Selecteer meerdere tabs om in één keer voor meerdere werkbladen
C108: maximale lestaak | E108: 940 | Q108: met de zoomknop eenzelfde afbeeldingsgrootte in te stellen.
C109: professionalisering CAO-PO | E109: 83
C110: voor- en nawerk (%)
C112: inroosterpercentage voltijders | Q112: een snelkoppeling op je bureaublad maken
M113: 0
C115: weergave inroosterverschil en inroosterpercentage op de teamlidbladen in rubriek I en H
Q116: Klik op de afbeelding hierboven om een snelkoppeling op je bureau-
C117: tonen bij arbeidsuren in rubriek H ? | E117: ja | Q117: blad te maken (gebruik deze knop niet als je het bestand in de cloud
C118: tonen bij lesuren in rubriek I ? | E118: ja | Q118: hebt geplaatst; maak dan handmatig een snelkoppeling).
B120: H Activeren en info versie
Q121: activeercode bestellen
Q122: Bestel een activeercode via de website (klik op de sleutel hierboven)
C123: Klik op de activeerknop om de activeercode in te voeren.
Q124: planner activeren
Q125: Klik op de knop 'planner activeren' en voer de ontvangen activeercode
Q126: in. Neem hoofdletters en spaties in school- of bestuursnaam en code
Q127: precies zo over.
B130: 2324 vs 3.4.6

Sheet formatieoverzicht
B1: =IFERROR(VLOOKUP(C1,C5:AQ104,41,FALSE),"") ->  | AJ1: Toelichting Formatieoverzicht
B2: FORMATIEOVERZICHT - OP en OOP | D2: =lesurenberekening!E5 -> 2023 | E2: =D2+1 -> 2024 | F2: budget duurzame inzetbaarheid | V2: vaste werkdagdelen | AF2: lesuren | AJ2: arbeidsuren | AM2: activiteiten | AQ2: naar teamlidblad | AS2: toelichting formatieoverzicht | AU2: rekenmodule 1 | AX2: rekenmodule 2
B3: =lesurenberekening!I5 -> 0 | D3: urenaanstelling | E3: wtf | F3: categorie | J3: opbouw budget | N3: beschikbaar | O3: opname | Q3: verdeling verlof | T3: (rest) d.i. budget | U3: spaarsaldo d.i. | V3: ma | X3: di | Z3: wo | AB3: do | AD3: vr | AF3: lestijden 1 - 2 - 3 | AG3: correctie lesuren | AH3: meer of minder inge-roosterde lesuren | AI3: % | AJ3: correctie arb.uren | AK3: meer of minder inge-roosterde arb.uren | AL3: % | AM3: % ingevuld | AP3: nog beschikbaar voor overige taken (C) | AS3: Importeren teamgegevens uit vorige planner Klik op bovenstaande knop om de teamgegevens uit de vorige planner te importeren en volg de instructies in de blauwe balk bovenaan het dialoogscherm. De vorige planner mag niet geopend zijn! Let op: Bij het OOP (101 t/m 120) worden de dagelijkse arbeidsuren niet geïmporteerd! Voer deze dus opnieuw in. OP en OOP Vul in het bovenste deel (1 t/m 100) de teamleden in met lesgevende taken, evenals de OOP-teamleden met lesondersteunende taken zoals een klassen- of onderwijsassistent. OOP-teamleden zonder lestaken, zoals een conciërge, logopedist of administratieve medewerker, komen op regel 101 t/m 120. Klik links in de blauwe nummerrij om het invoerformulier op te roepen. Zichtbaarheid teamlidbladen De tab (onderaan het scherm) van een teamlidblad OP en OOP is pas zichtbaar en toegankelijk wanneer het teamlidblad is ingevuld en opgeslagen. Sorteren en zoekvak Klik op de sorteerknop boven de namenlijst OP om deze te sorteren. Bij grotere teams kan ook het zoekvak linksboven gebruikt worden om snel het regelnummer van een teamlid te vinden. De beginletters van de naam zijn al voldoende om de naam te vinden. Voer de namen daarom steeds op dezelfde wijze in; dus bijv. altijd beginnen met de voornaam, of altijd met de achternaam. Druk als de juiste naam is verschenen op de Entertoets. Klik vervolgens op de blauwe of groene knop ernaast om resp. het invoerformulier op te roepen of naar het teamlidblad te gaan. Meer of minder ingeroosterde les- en arbeidsuren In de kolommen rechts van de vaste les- en werkdagdelen wordt vanuit de teamlidbladen teruggekoppeld hoeveel uren meer of minder zijn ingeroosterd dan de maximale lestaak en netto arbeidsduur en wordt de mate van inroostering van de les- en arbeidsuren weergegeven in een percentage van de netto les- en arbeidsduur van het betreffende teamlid. Hieraan is snel te zien hoeveel iedereen verhoudingsgewijs meer of minder is ingeroosterd dan zijn/haar netto arbeidsduur. Op het eerste werkblad kan het tonen hiervan op de afdrukken van de teamlidbladen aan of uit worden gezet. Activiteiten De hier vermelde getallen betreffen de percentages van de beschikbare uren die zijn ingevuld met activiteiten. Naarmate meer uren zijn ingevuld kleurt de cel van wit naar geel tot donkergroen. Modules Rechtsboven staan twee rekenmodules waarmee bij een gegeven werkomvang in arbeidsuren per week de Wtf kan worden berekend, of bij een gegeven Wtf de jaarlijkse arbeidsduur. Navigatie Klik op de nummerrij rechts om naar het betreffende teamlidblad te gaan. Klik op het teamlidblad bovenaan op de pijl om weer terug te gaan naar dit formatieoverzicht. Invoerformulier De basisgegevens van de teamleden kunnen alleen via het invoerformulier worden ingevoerd. Het invoerformulier roep je op door in de linker blauwe nummerrij op het betreffende nummer te klikken. Kies voor het OP én het OOP met lesondersteunende taken (zoals bijv. een onderwijsassistent) nummer 1 t/m 100. Bij het OOP zonder lesondersteunende taken zoals bijv. een conciërge of administratieve medewerker kies je nummer 101 t/m 120. Bij deze laatstgenoemde OOP'ers worden de vaste werktijden op het teamlidblad ingevuld! Met het invoerformulier kun je de volgende dingen doen: a. Een nieuw teamlid invoeren en inroosteren; b. De gegevens en de inroostering van een bestaand teamlid wijzigen; c. Een regel en teamblad wissen; Invulvolgorde formulier Het formulier wordt in de volgorde van de genummerde 4 vakken ingevuld: kies na het invullen van de naam en de Wtf, eerst één van de vier opties bij de Duurzame inzetbaarheid en vul daarna, indien nodig, de te sparen of als verlof op te nemen uren in. Klik na elke invoer in vak 1 t/m 3 op de knop onderaan rubriek 3 om de invoer te herberekenen. Vul hier ook het eventuele spaarsaldo van de duurzame inzetbaarheid in. Klik tenslotte in vak 4 op de betreffende lestijden (1 of 2) en de vaste les- en/of ambulante werkdagdelen van het betreffende teamlid. Vaste les- of ambulante dagdelen Vul bij het OP de twee linkerkolommen met lesdagdelen in en bij het OOP de middelste. Gebruik de kolommen rechts voor de ambulante dagdelen. Een dagdeel mag slechts in één kolom worden aangeklikt. Correctie les- en arbeidsuren (nr 1 t/m 100) Wanneer bij het OP of OOP wekelijks minder les- en/of arbeidsuren moeten worden ingeroosterd dan volgens de aangeklikte dagdelen zou worden berekend, kan dit onder de aangeklikte dagdelen worden gecorrigeerd. Dus als wekelijks bijv. een half uur minder lesuren en/of arbeidsuren moeten worden ingeroosterd vul je hier 00:30 in. Dit is bijv. het geval wanneer twee duopartners de woendsg om en om lesgeven. In dat geval worden de lesuren gecorrigeerd met een halve woensdaglestijd en de arbeidsduur met een halve woensdagarbeidsduur. Na het opslaan is in de grijze vakken rechts op het invoerformulier onmiddellijk de ingeroosterde jaartaak te zien. De vermelde nog in of uit te roosteren uren en het percentage van inroostering zijn pas correct wanneer de Lesurenberekening op het eerste werkblad volledig is ingevuld. | AU3: uren per week --> wtf | AX3: wtf --> uren per jaar
B4: 2 | C4: Klik op een nummer voor het invoerformulier OP | F4: sal.nr. 1 t/m 3 | G4: < 57 jaar | H4: 57 jr of ouder | I4: overg.regeling | J4: basisbudget | K4: bijz. budget | L4: overg. budget | M4: uit spaarsaldo | O4: verlofopname | P4: sparen | Q4: basisbudget | R4: bijz. budget | S4: overg. budget | V4: o | W4: m | X4: o | Y4: m | Z4: o | AA4: m | AB4: o | AC4: m | AD4: o | AE4: m | AI4: inroostering | AL4: percentage van inroostering | AM4: A: d.i. | AN4: B: professionalis. | AO4: C: overige taken | AT4: Het extra | AU4: 40 | AV4: =ROUND(ROUND(AU4,1)/40,4) -> 1 | AX4: 1 | AY4: =ROUND(ROUND(AX4,4)*1659,0) -> 1659
B5: 1 | C5: naam voltijder | D5: =ROUND((E5*40/24)*1440,0)/1440 -> 1.666666667 | E5: 1 | G5: X | J5: 40 | K5: 0 | L5: 0 | M5: 0 | N5: 40 | O5: 0 | P5: 0 | Q5: 0 | R5: 0 | S5: 0 | T5: 40 | V5: 1 | W5: 1 | X5: 1 | Y5: 1 | Z5: 1 | AB5: 1 | AC5: 1 | AD5: 1 | AE5: 1 | AF5: 1 | AG5: 0 | AH5: =INDIRECT("'"&ROW()-4&"'!M39") -> -940 | AI5: =INDIRECT("'"&ROW()-4&"'!M40") -> 0 | AJ5: 0 | AK5: =INDIRECT("'"&ROW()-4&"'!M30") -> -25 | AL5: =INDIRECT("'"&ROW()-4&"'!M31") -> 98.5 | AM5: =INDIRECT("'"&ROW()-4&"'!N59") -> 0 | AN5: =INDIRECT("'"&ROW()-4&"'!N64") -> 0 | AO5: =INDIRECT("'"&ROW()-4&"'!N69") -> 0 | AP5: =INDIRECT("'"&ROW()-4&"'!N158") -> 1536 | AQ5: 1 | AU5: uren | AV5: wtf | AX5: wtf | AY5: uren
B6: 2 | D6: 0 | AH6: 0 | AI6: 0 | AK6: 0 | AL6: 0 | AM6: 0 | AN6: 0 | AO6: 0 | AP6: 0 | AQ6: 2
B7: 3 | D7: 0 | AH7: 0 | AI7: 0 | AK7: 0 | AL7: 0 | AM7: 0 | AN7: 0 | AO7: 0 | AP7: 0 | AQ7: 3
B8: 4 | D8: 0 | AH8: 0 | AI8: 0 | AK8: 0 | AL8: 0 | AM8: 0 | AN8: 0 | AO8: 0 | AP8: 0 | AQ8: 4
B9: 5 | D9: 0 | AH9: 0 | AI9: 0 | AK9: 0 | AL9: 0 | AM9: 0 | AN9: 0 | AO9: 0 | AP9: 0 | AQ9: 5
B10: 6 | D10: 0 | AH10: 0 | AI10: 0 | AK10: 0 | AL10: 0 | AM10: 0 | AN10: 0 | AO10: 0 | AP10: 0 | AQ10: 6
B11: 7 | D11: 0 | AH11: 0 | AI11: 0 | AK11: 0 | AL11: 0 | AM11: 0 | AN11: 0 | AO11: 0 | AP11: 0 | AQ11: 7
B12: 8 | D12: 0 | AH12: 0 | AI12: 0 | AK12: 0 | AL12: 0 | AM12: 0 | AN12: 0 | AO12: 0 | AP12: 0 | AQ12: 8
B13: 9 | D13: 0 | AH13: 0 | AI13: 0 | AK13: 0 | AL13: 0 | AM13: 0 | AN13: 0 | AO13: 0 | AP13: 0 | AQ13: 9
B14: 10 | D14: 0 | AH14: 0 | AI14: 0 | AK14: 0 | AL14: 0 | AM14: 0 | AN14: 0 | AO14: 0 | AP14: 0 | AQ14: 10
B15: 11 | D15: 0 | AH15: 0 | AI15: 0 | AK15: 0 | AL15: 0 | AM15: 0 | AN15: 0 | AO15: 0 | AP15: 0 | AQ15: 11
B16: 12 | D16: 0 | AH16: 0 | AI16: 0 | AK16: 0 | AL16: 0 | AM16: 0 | AN16: 0 | AO16: 0 | AP16: 0 | AQ16: 12
B17: 13 | D17: 0 | AH17: 0 | AI17: 0 | AK17: 0 | AL17: 0 | AM17: 0 | AN17: 0 | AO17: 0 | AP17: 0 | AQ17: 13
B18: 14 | D18: 0 | AH18: 0 | AI18: 0 | AK18: 0 | AL18: 0 | AM18: 0 | AN18: 0 | AO18: 0 | AP18: 0 | AQ18: 14
B19: 15 | D19: 0 | AH19: 0 | AI19: 0 | AK19: 0 | AL19: 0 | AM19: 0 | AN19: 0 | AO19: 0 | AP19: 0 | AQ19: 15
B20: 16 | D20: 0 | AH20: 0 | AI20: 0 | AK20: 0 | AL20: 0 | AM20: 0 | AN20: 0 | AO20: 0 | AP20: 0 | AQ20: 16
B21: 17 | D21: 0 | AH21: 0 | AI21: 0 | AK21: 0 | AL21: 0 | AM21: 0 | AN21: 0 | AO21: 0 | AP21: 0 | AQ21: 17
B22: 18 | D22: 0 | AH22: 0 | AI22: 0 | AK22: 0 | AL22: 0 | AM22: 0 | AN22: 0 | AO22: 0 | AP22: 0 | AQ22: 18
B23: 19 | D23: 0 | AH23: 0 | AI23: 0 | AK23: 0 | AL23: 0 | AM23: 0 | AN23: 0 | AO23: 0 | AP23: 0 | AQ23: 19
B24: 20 | D24: 0 | AH24: 0 | AI24: 0 | AK24: 0 | AL24: 0 | AM24: 0 | AN24: 0 | AO24: 0 | AP24: 0 | AQ24: 20
B25: 21 | D25: 0 | AH25: 0 | AI25: 0 | AK25: 0 | AL25: 0 | AM25: 0 | AN25: 0 | AO25: 0 | AP25: 0 | AQ25: 21
B26: 22 | D26: 0 | AH26: 0 | AI26: 0 | AJ26: 0 | AK26: 0 | AL26: 0 | AM26: 0 | AN26: 0 | AO26: 0 | AP26: 0 | AQ26: 22
B27: 23 | D27: 0 | AH27: 0 | AI27: 0 | AJ27: 0 | AK27: 0 | AL27: 0 | AM27: 0 | AN27: 0 | AO27: 0 | AP27: 0 | AQ27: 23
B28: 24 | D28: 0 | AH28: 0 | AI28: 0 | AJ28: 0 | AK28: 0 | AL28: 0 | AM28: 0 | AN28: 0 | AO28: 0 | AP28: 0 | AQ28: 24
B29: 25 | D29: 0 | AH29: 0 | AI29: 0 | AJ29: 0 | AK29: 0 | AL29: 0 | AM29: 0 | AN29: 0 | AO29: 0 | AP29: 0 | AQ29: 25
B30: 26 | D30: 0 | AH30: 0 | AI30: 0 | AJ30: 0 | AK30: 0 | AL30: 0 | AM30: 0 | AN30: 0 | AO30: 0 | AP30: 0 | AQ30: 26
B31: 27 | D31: 0 | AH31: 0 | AI31: 0 | AJ31: 0 | AK31: 0 | AL31: 0 | AM31: 0 | AN31: 0 | AO31: 0 | AP31: 0 | AQ31: 27
B32: 28 | D32: 0 | AH32: 0 | AI32: 0 | AJ32: 0 | AK32: 0 | AL32: 0 | AM32: 0 | AN32: 0 | AO32: 0 | AP32: 0 | AQ32: 28
B33: 29 | D33: 0 | AH33: 0 | AI33: 0 | AJ33: 0 | AK33: 0 | AL33: 0 | AM33: 0 | AN33: 0 | AO33: 0 | AP33: 0 | AQ33: 29
B34: 30 | D34: 0 | AH34: 0 | AI34: 0 | AJ34: 0 | AK34: 0 | AL34: 0 | AM34: 0 | AN34: 0 | AO34: 0 | AP34: 0 | AQ34: 30
B35: 31 | D35: 0 | AH35: 0 | AI35: 0 | AJ35: 0 | AK35: 0 | AL35: 0 | AM35: 0 | AN35: 0 | AO35: 0 | AP35: 0 | AQ35: 31
B36: 32 | D36: 0 | AH36: 0 | AI36: 0 | AJ36: 0 | AK36: 0 | AL36: 0 | AM36: 0 | AN36: 0 | AO36: 0 | AP36: 0 | AQ36: 32
B37: 33 | D37: =ROUND((E37*40/24)*1440,0)/1440 -> 0 | AH37: =INDIRECT("'"&ROW()-4&"'!M39") -> 0 | AI37: =INDIRECT("'"&ROW()-4&"'!M40") -> 0 | AJ37: 0 | AK37: =INDIRECT("'"&ROW()-4&"'!M30") -> 0 | AL37: =INDIRECT("'"&ROW()-4&"'!M31") -> 0 | AM37: =INDIRECT("'"&ROW()-4&"'!N59") -> 0 | AN37: =INDIRECT("'"&ROW()-4&"'!N64") -> 0 | AO37: =INDIRECT("'"&ROW()-4&"'!N69") -> 0 | AP37: =INDIRECT("'"&ROW()-4&"'!N158") -> 0 | AQ37: 33
B38: 34 | D38: 0 | AH38: 0 | AI38: 0 | AJ38: 0 | AK38: 0 | AL38: 0 | AM38: 0 | AN38: 0 | AO38: 0 | AP38: 0 | AQ38: 34
B39: 35 | D39: 0 | AH39: 0 | AI39: 0 | AJ39: 0 | AK39: 0 | AL39: 0 | AM39: 0 | AN39: 0 | AO39: 0 | AP39: 0 | AQ39: 35
B40: 36 | D40: 0 | AH40: 0 | AI40: 0 | AJ40: 0 | AK40: 0 | AL40: 0 | AM40: 0 | AN40: 0 | AO40: 0 | AP40: 0 | AQ40: 36
B41: 37 | D41: 0 | AH41: 0 | AI41: 0 | AJ41: 0 | AK41: 0 | AL41: 0 | AM41: 0 | AN41: 0 | AO41: 0 | AP41: 0 | AQ41: 37
B42: 38 | D42: 0 | AH42: 0 | AI42: 0 | AJ42: 0 | AK42: 0 | AL42: 0 | AM42: 0 | AN42: 0 | AO42: 0 | AP42: 0 | AQ42: 38
B43: 39 | D43: 0 | AH43: 0 | AI43: 0 | AJ43: 0 | AK43: 0 | AL43: 0 | AM43: 0 | AN43: 0 | AO43: 0 | AP43: 0 | AQ43: 39
B44: 40 | D44: 0 | AH44: 0 | AI44: 0 | AJ44: 0 | AK44: 0 | AL44: 0 | AM44: 0 | AN44: 0 | AO44: 0 | AP44: 0 | AQ44: 40
B45: 41 | D45: 0 | AH45: 0 | AI45: 0 | AJ45: 0 | AK45: 0 | AL45: 0 | AM45: 0 | AN45: 0 | AO45: 0 | AP45: 0 | AQ45: 41
B46: 42 | D46: 0 | AH46: 0 | AI46: 0 | AJ46: 0 | AK46: 0 | AL46: 0 | AM46: 0 | AN46: 0 | AO46: 0 | AP46: 0 | AQ46: 42
B47: 43 | D47: 0 | AH47: 0 | AI47: 0 | AJ47: 0 | AK47: 0 | AL47: 0 | AM47: 0 | AN47: 0 | AO47: 0 | AP47: 0 | AQ47: 43
B48: 44 | D48: 0 | AH48: 0 | AI48: 0 | AJ48: 0 | AK48: 0 | AL48: 0 | AM48: 0 | AN48: 0 | AO48: 0 | AP48: 0 | AQ48: 44
B49: 45 | D49: 0 | AH49: 0 | AI49: 0 | AJ49: 0 | AK49: 0 | AL49: 0 | AM49: 0 | AN49: 0 | AO49: 0 | AP49: 0 | AQ49: 45
B50: 46 | D50: 0 | AH50: 0 | AI50: 0 | AJ50: 0 | AK50: 0 | AL50: 0 | AM50: 0 | AN50: 0 | AO50: 0 | AP50: 0 | AQ50: 46
B51: 47 | D51: 0 | AH51: 0 | AI51: 0 | AJ51: 0 | AK51: 0 | AL51: 0 | AM51: 0 | AN51: 0 | AO51: 0 | AP51: 0 | AQ51: 47
B52: 48 | D52: 0 | AH52: 0 | AI52: 0 | AJ52: 0 | AK52: 0 | AL52: 0 | AM52: 0 | AN52: 0 | AO52: 0 | AP52: 0 | AQ52: 48
B53: 49 | D53: 0 | AH53: 0 | AI53: 0 | AJ53: 0 | AK53: 0 | AL53: 0 | AM53: 0 | AN53: 0 | AO53: 0 | AP53: 0 | AQ53: 49
B54: 50 | D54: 0 | AH54: 0 | AI54: 0 | AJ54: 0 | AK54: 0 | AL54: 0 | AM54: 0 | AN54: 0 | AO54: 0 | AP54: 0 | AQ54: 50
B55: 51 | D55: 0 | AH55: 0 | AI55: 0 | AJ55: 0 | AK55: 0 | AL55: 0 | AM55: 0 | AN55: 0 | AO55: 0 | AP55: 0 | AQ55: 51
B56: 52 | D56: 0 | AH56: 0 | AI56: 0 | AJ56: 0 | AK56: 0 | AL56: 0 | AM56: 0 | AN56: 0 | AO56: 0 | AP56: 0 | AQ56: 52
B57: 53 | D57: 0 | AH57: 0 | AI57: 0 | AJ57: 0 | AK57: 0 | AL57: 0 | AM57: 0 | AN57: 0 | AO57: 0 | AP57: 0 | AQ57: 53
B58: 54 | D58: 0 | AH58: 0 | AI58: 0 | AJ58: 0 | AK58: 0 | AL58: 0 | AM58: 0 | AN58: 0 | AO58: 0 | AP58: 0 | AQ58: 54
B59: 55 | D59: 0 | AH59: 0 | AI59: 0 | AJ59: 0 | AK59: 0 | AL59: 0 | AM59: 0 | AN59: 0 | AO59: 0 | AP59: 0 | AQ59: 55
B60: 56 | D60: 0 | AH60: 0 | AI60: 0 | AJ60: 0 | AK60: 0 | AL60: 0 | AM60: 0 | AN60: 0 | AO60: 0 | AP60: 0 | AQ60: 56
B61: 57 | D61: 0 | AH61: 0 | AI61: 0 | AJ61: 0 | AK61: 0 | AL61: 0 | AM61: 0 | AN61: 0 | AO61: 0 | AP61: 0 | AQ61: 57
B62: 58 | D62: 0 | AH62: 0 | AI62: 0 | AJ62: 0 | AK62: 0 | AL62: 0 | AM62: 0 | AN62: 0 | AO62: 0 | AP62: 0 | AQ62: 58
B63: 59 | D63: 0 | AH63: 0 | AI63: 0 | AJ63: 0 | AK63: 0 | AL63: 0 | AM63: 0 | AN63: 0 | AO63: 0 | AP63: 0 | AQ63: 59
B64: 60 | D64: 0 | AH64: 0 | AI64: 0 | AJ64: 0 | AK64: 0 | AL64: 0 | AM64: 0 | AN64: 0 | AO64: 0 | AP64: 0 | AQ64: 60
B65: 61 | D65: 0 | AH65: 0 | AI65: 0 | AJ65: 0 | AK65: 0 | AL65: 0 | AM65: 0 | AN65: 0 | AO65: 0 | AP65: 0 | AQ65: 61
B66: 62 | D66: 0 | AH66: 0 | AI66: 0 | AJ66: 0 | AK66: 0 | AL66: 0 | AM66: 0 | AN66: 0 | AO66: 0 | AP66: 0 | AQ66: 62
B67: 63 | D67: 0 | AH67: 0 | AI67: 0 | AJ67: 0 | AK67: 0 | AL67: 0 | AM67: 0 | AN67: 0 | AO67: 0 | AP67: 0 | AQ67: 63
B68: 64 | D68: 0 | AH68: 0 | AI68: 0 | AJ68: 0 | AK68: 0 | AL68: 0 | AM68: 0 | AN68: 0 | AO68: 0 | AP68: 0 | AQ68: 64
B69: 65 | D69: =ROUND((E69*40/24)*1440,0)/1440 -> 0 | AH69: =INDIRECT("'"&ROW()-4&"'!M39") -> 0 | AI69: =INDIRECT("'"&ROW()-4&"'!M40") -> 0 | AJ69: 0 | AK69: =INDIRECT("'"&ROW()-4&"'!M30") -> 0 | AL69: =INDIRECT("'"&ROW()-4&"'!M31") -> 0 | AM69: =INDIRECT("'"&ROW()-4&"'!N59") -> 0 | AN69: =INDIRECT("'"&ROW()-4&"'!N64") -> 0 | AO69: =INDIRECT("'"&ROW()-4&"'!N69") -> 0 | AP69: =INDIRECT("'"&ROW()-4&"'!N158") -> 0 | AQ69: 65
B70: 66 | D70: 0 | AH70: 0 | AI70: 0 | AJ70: 0 | AK70: 0 | AL70: 0 | AM70: 0 | AN70: 0 | AO70: 0 | AP70: 0 | AQ70: 66
B71: 67 | D71: 0 | AH71: 0 | AI71: 0 | AJ71: 0 | AK71: 0 | AL71: 0 | AM71: 0 | AN71: 0 | AO71: 0 | AP71: 0 | AQ71: 67
B72: 68 | D72: 0 | AH72: 0 | AI72: 0 | AJ72: 0 | AK72: 0 | AL72: 0 | AM72: 0 | AN72: 0 | AO72: 0 | AP72: 0 | AQ72: 68
B73: 69 | D73: 0 | AH73: 0 | AI73: 0 | AJ73: 0 | AK73: 0 | AL73: 0 | AM73: 0 | AN73: 0 | AO73: 0 | AP73: 0 | AQ73: 69
B74: 70 | D74: 0 | AH74: 0 | AI74: 0 | AJ74: 0 | AK74: 0 | AL74: 0 | AM74: 0 | AN74: 0 | AO74: 0 | AP74: 0 | AQ74: 70
B75: 71 | D75: 0 | AH75: 0 | AI75: 0 | AJ75: 0 | AK75: 0 | AL75: 0 | AM75: 0 | AN75: 0 | AO75: 0 | AP75: 0 | AQ75: 71
B76: 72 | D76: 0 | AH76: 0 | AI76: 0 | AJ76: 0 | AK76: 0 | AL76: 0 | AM76: 0 | AN76: 0 | AO76: 0 | AP76: 0 | AQ76: 72
B77: 73 | D77: 0 | AH77: 0 | AI77: 0 | AJ77: 0 | AK77: 0 | AL77: 0 | AM77: 0 | AN77: 0 | AO77: 0 | AP77: 0 | AQ77: 73
B78: 74 | D78: 0 | AH78: 0 | AI78: 0 | AJ78: 0 | AK78: 0 | AL78: 0 | AM78: 0 | AN78: 0 | AO78: 0 | AP78: 0 | AQ78: 74
B79: 75 | D79: 0 | AH79: 0 | AI79: 0 | AJ79: 0 | AK79: 0 | AL79: 0 | AM79: 0 | AN79: 0 | AO79: 0 | AP79: 0 | AQ79: 75
B80: 76 | D80: 0 | AH80: 0 | AI80: 0 | AJ80: 0 | AK80: 0 | AL80: 0 | AM80: 0 | AN80: 0 | AO80: 0 | AP80: 0 | AQ80: 76
B81: 77 | D81: 0 | AH81: 0 | AI81: 0 | AJ81: 0 | AK81: 0 | AL81: 0 | AM81: 0 | AN81: 0 | AO81: 0 | AP81: 0 | AQ81: 77
B82: 78 | D82: 0 | AH82: 0 | AI82: 0 | AJ82: 0 | AK82: 0 | AL82: 0 | AM82: 0 | AN82: 0 | AO82: 0 | AP82: 0 | AQ82: 78
B83: 79 | D83: 0 | AH83: 0 | AI83: 0 | AJ83: 0 | AK83: 0 | AL83: 0 | AM83: 0 | AN83: 0 | AO83: 0 | AP83: 0 | AQ83: 79
B84: 80 | D84: 0 | AH84: 0 | AI84: 0 | AJ84: 0 | AK84: 0 | AL84: 0 | AM84: 0 | AN84: 0 | AO84: 0 | AP84: 0 | AQ84: 80
B85: 81 | D85: 0 | AH85: 0 | AI85: 0 | AJ85: 0 | AK85: 0 | AL85: 0 | AM85: 0 | AN85: 0 | AO85: 0 | AP85: 0 | AQ85: 81
B86: 82 | D86: 0 | AH86: 0 | AI86: 0 | AJ86: 0 | AK86: 0 | AL86: 0 | AM86: 0 | AN86: 0 | AO86: 0 | AP86: 0 | AQ86: 82
B87: 83 | D87: 0 | AH87: 0 | AI87: 0 | AJ87: 0 | AK87: 0 | AL87: 0 | AM87: 0 | AN87: 0 | AO87: 0 | AP87: 0 | AQ87: 83
B88: 84 | D88: 0 | AH88: 0 | AI88: 0 | AJ88: 0 | AK88: 0 | AL88: 0 | AM88: 0 | AN88: 0 | AO88: 0 | AP88: 0 | AQ88: 84
B89: 85 | D89: 0 | AH89: 0 | AI89: 0 | AJ89: 0 | AK89: 0 | AL89: 0 | AM89: 0 | AN89: 0 | AO89: 0 | AP89: 0 | AQ89: 85
B90: 86 | D90: 0 | AH90: 0 | AI90: 0 | AJ90: 0 | AK90: 0 | AL90: 0 | AM90: 0 | AN90: 0 | AO90: 0 | AP90: 0 | AQ90: 86
B91: 87 | D91: 0 | AH91: 0 | AI91: 0 | AJ91: 0 | AK91: 0 | AL91: 0 | AM91: 0 | AN91: 0 | AO91: 0 | AP91: 0 | AQ91: 87
B92: 88 | D92: 0 | AH92: 0 | AI92: 0 | AJ92: 0 | AK92: 0 | AL92: 0 | AM92: 0 | AN92: 0 | AO92: 0 | AP92: 0 | AQ92: 88
B93: 89 | D93: 0 | AH93: 0 | AI93: 0 | AJ93: 0 | AK93: 0 | AL93: 0 | AM93: 0 | AN93: 0 | AO93: 0 | AP93: 0 | AQ93: 89
B94: 90 | D94: 0 | AH94: 0 | AI94: 0 | AJ94: 0 | AK94: 0 | AL94: 0 | AM94: 0 | AN94: 0 | AO94: 0 | AP94: 0 | AQ94: 90
B95: 91 | D95: 0 | AH95: 0 | AI95: 0 | AJ95: 0 | AK95: 0 | AL95: 0 | AM95: 0 | AN95: 0 | AO95: 0 | AP95: 0 | AQ95: 91
B96: 92 | D96: 0 | AH96: 0 | AI96: 0 | AJ96: 0 | AK96: 0 | AL96: 0 | AM96: 0 | AN96: 0 | AO96: 0 | AP96: 0 | AQ96: 92
B97: 93 | D97: 0 | AH97: 0 | AI97: 0 | AJ97: 0 | AK97: 0 | AL97: 0 | AM97: 0 | AN97: 0 | AO97: 0 | AP97: 0 | AQ97: 93
B98: 94 | D98: 0 | AH98: 0 | AI98: 0 | AJ98: 0 | AK98: 0 | AL98: 0 | AM98: 0 | AN98: 0 | AO98: 0 | AP98: 0 | AQ98: 94
B99: 95 | D99: 0 | AH99: 0 | AI99: 0 | AJ99: 0 | AK99: 0 | AL99: 0 | AM99: 0 | AN99: 0 | AO99: 0 | AP99: 0 | AQ99: 95
B100: 96 | D100: 0 | AH100: 0 | AI100: 0 | AJ100: 0 | AK100: 0 | AL100: 0 | AM100: 0 | AN100: 0 | AO100: 0 | AP100: 0 | AQ100: 96
B101: 97 | D101: =ROUND((E101*40/24)*1440,0)/1440 -> 0 | AH101: 0 | AI101: 0 | AJ101: 0 | AK101: 0 | AL101: 0 | AM101: 0 | AN101: 0 | AO101: 0 | AP101: 0 | AQ101: 97
B102: 98 | D102: 0 | AH102: 0 | AI102: 0 | AJ102: 0 | AK102: 0 | AL102: 0 | AM102: 0 | AN102: 0 | AO102: 0 | AP102: 0 | AQ102: 98
B103: 99 | D103: 0 | AH103: 0 | AI103: 0 | AJ103: 0 | AK103: 0 | AL103: 0 | AM103: 0 | AN103: 0 | AO103: 0 | AP103: 0 | AQ103: 99
B104: 100 | D104: 0 | AH104: 0 | AI104: 0 | AK104: 0 | AL104: 0 | AM104: 0 | AN104: 0 | AO104: 0 | AP104: 0 | AQ104: 100
E105: =SUM(E5:E104) -> 1 | AP105: =SUM(AP5:AP104) -> 1536
B107: FORMATIEOVERZICHT - OOP zonder lesonderst. taken | G107: budget duurzame inzetbaarheid en overgangsregeling | V107: arbeidsuren op vaste werkdagen | AJ107: ingeroosterd | AM107: activit. | AP107: geboortejaar | AQ107: naar teamlidblad | AS107: OOP zonder lesondersteunende taken De regels 101 t/m 120 zijn bestemd voor de teamleden OOP zonder lesondersteunende taken, zoals een conciërge, logopedist of een administratief medewerker. Dit lijstje kan niet gesorteerd worden. Arbeidsuren De dagelijkse arbeidsuren bij dit OOP worden niet op het invoerformulier ingevuld, maar rechtstreeks op het teamlidblad. Twee inroosterwijzen OOP Het OOP zonder lesondersteunende taken kan op 2 manieren worden ingeroosterd. Klik op het icoon voor meer informatie hierover.
B108: =lesurenberekening!J4 -> 00:00:00 | D108: urenaanstelling | E108: wtf | F108: schaal 8 of hoger | G108: cat. | J108: opbouw budget | N108: tot. beschikbaar | O108: opname verlof | Q108: verdeling verlof | T108: (rest) d.i. budget | U108: spaarsaldo d.i. | V108: ma | X108: di | Z108: wo | AB108: do | AD108: vr | AJ108: urentotaal per week | AK108: meer of minder inger- arbeidsuren | AL108: % | AM108: % ingevuld
B109: Plaats hieronder alleen het OOP zonder lesondersteunende taken, zoals een concierge, administratief ondersteuner of logopedist. OOP mét lesgevende of behandeltaken, zoals een onderwijsassistent, moeten hierboven bij het OP worden geplaatst (nr. 1 t/m 100). Klik op een nummer voor het invoerformulier OOP | G109: < 57 jaar | H109: 57 jr of ouder | I109: overg.regeling | J109: basisbudget | K109: bijz. budget | L109: overg. budget | M109: uit spaarsaldo | O109: opname verlof | P109: sparen | Q109: basisbudget | R109: bijz. budget | S109: overg. budget | AL109: inroostering | AM109: A: d.i. | AN109: B: professional.
B110: 101 | C110: OOP zonder lesondersteunende taken | D110: =ROUND((E110*40/24)*1440,0)/1440 -> 1.666666667 | E110: 1 | G110: X | J110: 40 | K110: 0 | L110: 0 | M110: 0 | N110: 40 | O110: 0 | P110: 0 | Q110: 0 | R110: 0 | S110: 0 | T110: 40 | V110: =INDIRECT("'"&ROW()-9&"'!E9") -> 0 | X110: =INDIRECT("'"&ROW()-9&"'!E10") -> 0 | Z110: =INDIRECT("'"&ROW()-9&"'!E11") -> 0 | AB110: =INDIRECT("'"&ROW()-9&"'!E12") -> 0 | AD110: =INDIRECT("'"&ROW()-9&"'!E13") -> 0 | AJ110: =INDIRECT("'"&ROW()-9&"'!E15") -> 0 | AK110: =INDIRECT("'"&ROW()-9&"'!m46") -> -1643 | AL110: =INDIRECT("'"&ROW()-9&"'!M47") -> 0 | AM110: =INDIRECT("'"&ROW()-9&"'!N64") -> 0 | AN110: =INDIRECT("'"&ROW()-9&"'!N69") -> 0 | AP110: 1980 | AQ110: 101
B111: 102 | D111: 0 | V111: 0 | X111: =INDIRECT("'"&ROW()-9&"'!E10") -> 0 | Z111: 0 | AB111: 0 | AD111: 0 | AJ111: =INDIRECT("'"&ROW()-9&"'!E15") -> 0 | AK111: =INDIRECT("'"&ROW()-9&"'!m46") -> 0 | AL111: =INDIRECT("'"&ROW()-9&"'!M47") -> 0 | AM111: =INDIRECT("'"&ROW()-9&"'!N64") -> 0 | AN111: =INDIRECT("'"&ROW()-9&"'!N69") -> 0 | AP111: 0 | AQ111: 102
B112: 103 | D112: =ROUND((E112*40/24)*1440,0)/1440 -> 0 | V112: 0 | X112: =INDIRECT("'"&ROW()-9&"'!E10") -> 0 | Z112: 0 | AB112: 0 | AD112: 0 | AJ112: 0 | AK112: 0 | AL112: =INDIRECT("'"&ROW()-9&"'!M47") -> 0 | AM112: =INDIRECT("'"&ROW()-9&"'!N64") -> 0 | AN112: =INDIRECT("'"&ROW()-9&"'!N69") -> 0 | AP112: 0 | AQ112: 103
B113: 104 | D113: =ROUND((E113*40/24)*1440,0)/1440 -> 0 | V113: 0 | X113: =INDIRECT("'"&ROW()-9&"'!E10") -> 0 | Z113: 0 | AB113: 0 | AD113: 0 | AJ113: 0 | AK113: 0 | AL113: =INDIRECT("'"&ROW()-9&"'!M47") -> 0 | AM113: 0 | AN113: =INDIRECT("'"&ROW()-9&"'!N69") -> 0 | AP113: 0 | AQ113: 104
B114: 105 | D114: 0 | V114: 0 | X114: 0 | Z114: 0 | AB114: 0 | AD114: 0 | AJ114: 0 | AK114: 0 | AL114: 0 | AM114: 0 | AN114: 0 | AP114: 0 | AQ114: 105
B115: 106 | D115: 0 | V115: 0 | X115: 0 | Z115: 0 | AB115: 0 | AD115: 0 | AJ115: 0 | AK115: 0 | AL115: 0 | AM115: 0 | AN115: 0 | AP115: 0 | AQ115: 106
B116: 107 | D116: 0 | V116: 0 | X116: 0 | Z116: 0 | AB116: 0 | AD116: 0 | AJ116: 0 | AK116: 0 | AL116: 0 | AM116: 0 | AN116: 0 | AP116: 0 | AQ116: 107
B117: 108 | D117: 0 | V117: 0 | X117: 0 | Z117: 0 | AB117: 0 | AD117: 0 | AJ117: 0 | AK117: 0 | AL117: 0 | AM117: 0 | AN117: 0 | AP117: 0 | AQ117: 108
B118: 109 | D118: 0 | V118: 0 | X118: 0 | Z118: 0 | AB118: 0 | AD118: 0 | AJ118: 0 | AK118: 0 | AL118: 0 | AM118: 0 | AN118: 0 | AP118: 0 | AQ118: 109
B119: 110 | D119: 0 | V119: 0 | X119: 0 | Z119: 0 | AB119: 0 | AD119: 0 | AJ119: 0 | AK119: 0 | AL119: 0 | AM119: 0 | AN119: 0 | AP119: 0 | AQ119: 110
B120: 111 | D120: 0 | V120: 0 | X120: 0 | Z120: 0 | AB120: 0 | AD120: 0 | AJ120: 0 | AK120: 0 | AL120: 0 | AM120: 0 | AN120: 0 | AP120: 0 | AQ120: 111
B121: 112 | D121: 0 | V121: 0 | X121: 0 | Z121: 0 | AB121: 0 | AD121: 0 | AJ121: 0 | AK121: 0 | AL121: 0 | AM121: 0 | AN121: 0 | AP121: 0 | AQ121: 112
B122: 113 | D122: 0 | V122: 0 | X122: 0 | Z122: 0 | AB122: 0 | AD122: 0 | AJ122: 0 | AK122: 0 | AL122: 0 | AM122: 0 | AN122: 0 | AP122: 0 | AQ122: 113
B123: 114 | D123: 0 | V123: 0 | X123: 0 | Z123: 0 | AB123: 0 | AD123: 0 | AJ123: 0 | AK123: 0 | AL123: 0 | AM123: 0 | AN123: 0 | AP123: 0 | AQ123: 114
B124: 115 | D124: 0 | V124: 0 | X124: 0 | Z124: 0 | AB124: 0 | AD124: 0 | AJ124: 0 | AK124: 0 | AL124: 0 | AM124: 0 | AN124: 0 | AP124: 0 | AQ124: 115
B125: 116 | D125: 0 | V125: 0 | X125: 0 | Z125: 0 | AB125: 0 | AD125: 0 | AJ125: 0 | AK125: 0 | AL125: 0 | AM125: 0 | AN125: 0 | AP125: 0 | AQ125: 116
B126: 117 | D126: 0 | V126: 0 | X126: 0 | Z126: 0 | AB126: 0 | AD126: 0 | AJ126: 0 | AK126: 0 | AL126: 0 | AM126: 0 | AN126: 0 | AP126: 0 | AQ126: 117
B127: 118 | D127: 0 | V127: 0 | X127: 0 | Z127: 0 | AB127: 0 | AD127: 0 | AJ127: 0 | AK127: 0 | AL127: 0 | AM127: 0 | AN127: 0 | AP127: 0 | AQ127: 118
B128: 119 | D128: 0 | V128: 0 | X128: 0 | Z128: 0 | AB128: 0 | AD128: 0 | AJ128: 0 | AK128: 0 | AL128: 0 | AM128: 0 | AN128: 0 | AP128: 0 | AQ128: 119
B129: 120 | D129: 0 | V129: 0 | X129: 0 | Z129: 0 | AB129: 0 | AD129: 0 | AJ129: 0 | AK129: 0 | AL129: 0 | AM129: 0 | AN129: 0 | AP129: 0 | AQ129: 120
E130: =SUM(E110:E129) -> 1

Sheet groepsverdeling
B1: Sorteer (klik op de sorteerknop) steeds na elke nieuw ingevulde regel
B2: SCENARIO GROEPSVERDELING/WERKVERDELING 2024/2025 | G2: scenario nr. | M2: 1 | O2: © taakberekeningPO.nl | S2: toelichting groepsverdeling
B3: 1e groepsnummer | C3: 2e grpsnr. (combi) | D3: groepsletter/cat. | E3: rangschikking | F3: =lesurenberekening!I5 -> 0 | G3: ma | I3: di | K3: wo | M3: do | O3: vrij
G4: o | H4: m | I4: o | J4: m | K4: o | L4: m | M4: o | N4: m | O4: o | P4: m | Q4: opmerkingen | S4: Op dit werkblad kun je scenario's van de groepsindeling en groeps- en functiebezetting maken voor het werkverdelingsoverleg. Sorteer na elke ingevoerde regel steeds op groep en functie door op de sorteerpijl te klikken.
S9: invoegen formatiegegevens
S10: Voeg de namenlijst en de vaste les- en werkdagdelen van het formatieoverzicht in door op
S11: bovenstaande knop te klikken, of voer de namen van het team handmatig in.
S12: De eerste 4 kolommen zijn alleen goed zichtbaar wanneer een naam is ingevuld.
S14: actualiseren voor het nieuwe schooljaar
S15: Wis na het importeren de teamleden die na de zomervakantie niet terugkeren en vul
S16: bij vacatures in de namenlijst in als Vacature 1, Vacature 2 enz., met eventueel de beoogde
S17: werkdagdelen.
S21: sorteren
S22: Klik op bovenstaande knop om de floating sorteerknop te laden. De knop kan aan de
S23: bovenbalk met ingedrukte muisknop naar elke gewenste plek worden versleept.
S24: Sluit de knop weer door op het kruisje te klikken.
S26: Door op de sorteerknop te klikken wordt de lijst gesorteerd. De sortering gebeurt op
S27: basis van het ingevulde in de eerste 4 kolommen. De eerste twee kolommen zijn gereserveerd
S28: voor de groepnummers, de 3e voor de letteraanduiding van de groep of de afkorting
S29: van een categorie, zoals bijv. amb en oop. De 4e kolom kun je gebruiken om binnen een
S30: groep of categorie een rangschikking aan te geven - zie onder.
S32: Door steeds na elke regel die je hebt ingevuld te sorteren, behoud je het overzicht.
S34: Dagdelen wissen en invullen
S35: Dagdelen worden gewist door ze te selecteren en op de Deleteknop op je toetsenbord te
S36: drukken. Dagdelen worden toegevoegd door 1, 2 of 3 in te vullen: 1=lesdagdeel, 2=ambulant
S37: dagdeel en 3=OOP-dagdeel (met lesondersteunende taken).
S38: OOP'ers zonder lesondersteunnende taken kunnen onderaan de lijst worden geplaatst.
S39: Hun werkdagdelen kunnen met een 2 worden aangegeven.
S41: groepsaanduiding invullen
S42: Vul in de 1e kolom bij elke leerkracht het beoogde groepsnummer in
S43: en bij een combinatiegroep in de 2e kolom het andere groepsnummer.
S44: In de 3e kolom kun je een letteraanduiding invullen. Dus bijv. |1| | a| of |1|2|a|
S46: volgorde binnen meederere leerkrachten in één groep
S47: Leerkrachten die samen een groep hebben krijgen dezelfde bovenbeschreven groeps-
S48: aanduiding. Je kunt bij hen een volgorde aanbrengen door in de 4e kolom een 1 te zetten
S49: bij degene die de groep aan het begin van de week lesgeeft, en een 2 bij de andere
S50: leerkracht.
S52: OOP'ers
S53: OOP'ers die op vaste dagen in een groep assisteren krijgen dezelfde groepsaansaanduiding
S54: als de leerkrachten van die groep. Zij kunnen nader worden aangeduid door in de 4e kolom
S55: oop in te vullen. Zij komen dan boven (zonder nummering in kolom 4) de leerkrachten van die
S56: groep, of eronder (mét nummering in kolom 4)
S58: Leerkrachten en OOP'ers die in meerdere groepen werken
S59: Van OP'ers en OOP'ers die in meerdere groepen werken, worden de namen zo vaak als nodig is
S60: extra ingevuld op de namenlijst. Bij elke naam wordt de betreffende groepsaanduiding inge-
S61: vuld en op de betreffende werkdagdelen een 1 (bij leerkrachten) of een 3 (bij OOP'ers).
S62: Wanneer de naam geïmporteerd is, staan er op deze geïmporteerde regel alle werkdagdelen
S63: van deze leerkracht en moeten er dan een aantal worden gewist, zodat alleen de
S64: betreffende dagdelen overblijven die in de op die regel vermelde groep gewerkt worden.
S66: Nieuwe regel toevoegen
S67: Wanneer een naam op meerdere regels moet komen of wanneer een nieuwe naam moet
S68: worden toegevoegd, vul je dit op een willekeurige lege regel in. Na het sorteren komt deze
S69: op basis van het ingevulde in de eerste 4 kolommen vanzelf op de goede plaats.
S71: Groeperen in categorieën
S72: OP-teamleden die (deels) ambulant zijn, kunnen apart gegroepeerd worden door bij hen de
S73: eerste 2 kolommen leeg te laten en in de derde kolom amb in te vullen. Binnen de categorie
S74: kunnen zij eventueel gerangschikt worden met een nummer in de vierde kolom.
S75: OOP'ers die op bepaalde dagdelen geen vaste groep hebben kunnen op dezelfde wijze
S76: worden gegroepeerd door bij hen in de derde kolom oop in te vullen.
S77: Teamleden die deels ambulant zijn, staan in het overzicht dus zowel in het groepsoverzicht
S78: als in een categorie vermeld met hun respectievelijke les- en ambulante dagdelen.
S80: Lege regels toevoegen tussen groepen en categorieën
S81: Lege regels tussen de groepen verbeteren het overzicht. Een lege regel voeg je onder een
S82: groep toe, door op een willekeurige lege regel alleen de groepsaanduiding in te vullen. Deze
S83: verder lege regel komt dan na het sorteren onder de ingevulde regels van deze groep te staan.
S84: Die groepsaanduiding op de verder lege regel blijft licht zichtbaar. Wil je dit tijdens het
S85: invullen tijdelijk beter zichtbaar maken, dan zet je in de naamkolom even een punt of i.d..
S87: Categorieën rangschikken
S88: Categorieën kunnen gerangschikt en bij elkaar worden gehouden door in de eerste kolom een
S89: getal (categorienummer) te plaatsen. Elk getal groeter dan 8 is hiervoor bruikbaar.
S90: Een lege regel onder een categorie maak je door op een lege regel in de derde kolom alleen
S91: de categorieafkorting in te vullen (+ eventueel het categorienummer) en te sorteren.
S93: Het scenario geheel of gedeeltelijk wissen
S94: Je kunt het scenario geheel of gedeeltelijk wissen door de meest linksboven te wissen cel
S95: te selecteren en vervolgens met ingedrukte linkermuisknop naar de meest rechtsonder
S96: gelegen te wissen cel te gaan. Het geselecteerde gebied wis je vervolgens door op de
S97: delete-knop op het toetsenbord te drukken.
S99: Afdrukken meerdere scenario's voor het werkverdelingsoverleg
S100: Door wijzigingen in het scenario aan te brengen kunnen meerdere scenario's van de verdeling
S101: worden gemaakt. Geef op de bovenste regel elk af te drukken scenario een volgnummer.
S102: De standaard afdrukinstelling van dit werkblad is ingesteld op kleurenafdruk.
S104: Druk elk scenario af in kleur.
S106: (zie voorbeelden op de website en in de handleiding)
S108: Werkverdelingsplan
S109: Met een afdruk van de werkbladen Lesurenberekening, Formatieoverzicht, Groepsverdeling en
S110: Activiteitenoverzicht (overige taken), heb je een compleet werkverdelingsplan dat kan worden
S111: voorgelegd aan de PMR. Gebruik het werkblad Werkverdeling-voorblad als titelblad
S112: en ondertekeningsblad van het werkverdelingsplan. Klik op de icoon voor meer
S113: informatie hierover.

Sheet lijst d.i.
B2: LIJST DUURZAME INZETBAARHEID © taakberekeningPO.nl | I2: toelichting lijst
C3: =lesurenberekening!I5 -> 0
C6: omschrijving - gebruik één regel per onderwerp Let op: er mogen in de lijst geen tussenliggende lege regels zijn. | D6: uren
B7: 1
B8: 2 | I8: Op deze lijst kunnen vaakvoorkomende items worden
B9: 3 | I9: geplaatst waaruit bij het invullen van de lijsten op het
B10: 4 | I10: teamlidblad een keus kan worden gemaakt.
B11: 5
B12: 6 | I12: Per regel kan één item met bijbehorende uren worden
B13: 7 | I13: ingevuld.
B14: 8
B15: 9 | I15: Sorteren
B16: 10 | I16: Sorteer door boven de lijst op de pijlen te klikken.
B17: 11
B18: 12
B19: 13
B20: 14 | I20: Invoerformulier
B21: 15 | I21: Door op de nummerrij te klikken verschijnt het invoer-
B22: 16 | I22: formulier voor activiteiten.
B23: 17
B24: 18 | I24: Teamleden bij zelfde activiteit zoeken
B25: 19 | I25: Door op het invoerformulier op Teamoverzicht te
B26: 20 | I26: klikken kunnen teamleden worden gezocht die
B27: 21 | I27: eenzelfde activiteit hebben.
B28: 22
B29: 23 | I29: Importeren oude lijsten
B30: 24 | I30: Bij het in gebruik nemen van een nieuwe planner kun
B31: 25 | I31: je de lijsten uit een vorige planner importeren.
B32: 26
B33: 27 | I33: Na het klikken op onderstaande knop selecteer je de
B34: 28 | I34: planner waaruit je de lijsten wilt overnemen.
B35: 29
B36: 30
B37: 31
B38: 32
B39: 33
B40: 34
B41: 35 | I41: Let op: Voor het maken van overzichten, mogen er in
B42: 36 | I42: deze lijst geen tussenliggende lege regels zijn! Klik op
B43: 37 | I43: de pijlen om lege regels te verwijderen.
B44: 38
B45: 39
B46: 40
B47: 41
B48: 42
B49: 43
B50: 44
B51: 45
B52: 46
B53: 47
B54: 48
B55: 49
B56: 50
B57: 51
B58: 52
B59: 53
B60: 54
B61: 55
B62: 56
B63: 57
B64: 58
B65: 59
B66: 60
B67: 61
B68: 62
B69: 63
B70: 64
B71: 65
B72: 66
B73: 67
B74: 68
B75: 69
B76: 70
B77: 71
B78: 72
B79: 73
B80: 74
B81: 75
B82: 76
B83: 77
B84: 78
B85: 79
B86: 80
B87: 81
B88: 82
B89: 83
B90: 84
B91: 85
B92: 86
B93: 87
B94: 88
B95: 89
B96: 90
B97: 91
B98: 92
B99: 93
B100: 94
B101: 95
B102: 96
B103: 97
B104: 98
B105: 99
B106: 100
B107: 101
B108: 102
B109: 103
B110: 104
B111: 105
B112: 106
B113: 107
B114: 108
B115: 109
B116: 110
B117: 111
B118: 112
B119: 113
B120: 114
B121: 115
B122: 116
B123: 117
B124: 118
B125: 119
B126: 120
B131: teamoverzicht duurzame inzetbaarheid © taakberekening-po.nl | I131: toelichting teamoverzicht
I133: Via het invoerformulier kunnen teamleden met
I134: dezelfde activiteit gezocht worden.
B136: 1 | I136: 1. Klik op de nummerbalk links;
B137: 2 | I137: 2. Selecteer een lijst, klik op de pijl naast het
B138: 3 | I138: invoervak en selecteer een activiteit;
B139: 4 | I139: 3. Klik vervolgens op de knop 'Teamoverzicht';
B140: 5 | I140: 4. De gevonden teamleden verschijnen op de
B141: 6 | I141: lijst hiernaast.
B142: 7
B143: 8 | I143: De zoekfunctie is niet hoofdlettergevoelig en er kan
B144: 9 | I144: ook met steekwoorden worden gezocht, mits deze
B145: 10 | I145: uniek zijn.
B146: 11
B147: 12
B148: 13
B149: 14
B150: 15
B151: 16
B152: 17
B153: 18
B154: 19
B155: 20
B156: 21
B157: 22
B158: 23
B159: 24
B160: 25
B161: 26
B162: 27
B163: 28
B164: 29
B165: 30
B166: 31
B167: 32
B168: 33
B169: 34
B170: 35
B171: 36
B172: 37
B173: 38
B174: 39
B175: 40
B176: 41
B177: 42
B178: 43
B179: 44
B180: 45
B181: 46
B182: 47
B183: 48
B184: 49
B185: 50
B186: 51
B187: 52
B188: 53
B189: 54
B190: 55
B191: 56
B192: 57
B193: 58
B194: 59
B195: 60
B196: 61
B197: 62
B198: 63
B199: 64
B200: 65
B201: 66
B202: 67
B203: 68
B204: 69
B205: 70
B206: 71
B207: 72
B208: 73
B209: 74
... 47 more rows

Sheet lijst prof.
B2: LIJST PROFESSIONALISERING © taakberekeningPO.nl | I2: toelichting lijst
C3: =lesurenberekening!I5 -> 0
C6: omschrijving - gebruik één regel per onderwerp Let op: er mogen in de lijst geen tussenliggende lege regels zijn! | D6: uren
B7: 1
B8: 2 | I8: Op deze lijst kunnen vaakvoorkomende items worden
B9: 3 | I9: geplaatst waaruit bij het invullen van de lijsten op het
B10: 4 | I10: teamlidblad een keus kan worden gemaakt.
B11: 5
B12: 6 | I12: Per regel kan één item met bijbehorende uren worden
B13: 7 | I13: ingevuld.
B14: 8
B15: 9 | I15: Sorteren
B16: 10 | I16: Sorteer door boven de lijst op de pijlen te klikken.
B17: 11
B18: 12
B19: 13
B20: 14 | I20: Invoerformulier
B21: 15 | I21: Door op de nummerrij te klikken verschijnt het invoer-
B22: 16 | I22: formulier voor activiteiten.
B23: 17
B24: 18 | I24: Teamleden bij zelfde activiteit zoeken
B25: 19 | I25: Door op het invoerformulier op Teamoverzicht te
B26: 20 | I26: klikken kunnen teamleden worden gezocht die
B27: 21 | I27: eenzelfde activiteit hebben.
B28: 22
B29: 23 | I29: Importeren oude lijsten
B30: 24 | I30: Bij het in gebruik nemen van een nieuwe planner kun
B31: 25 | I31: je de lijsten uit een vorige planner importeren.
B32: 26
B33: 27 | I33: Na het klikken op onderstaande knop selecteer je de
B34: 28 | I34: planner waaruit je de lijsten wilt overnemen.
B35: 29
B36: 30
B37: 31
B38: 32
B39: 33
B40: 34
B41: 35 | I41: Let op: Er mogen in deze lijst geen tussenliggende
B42: 36 | I42: lege regels zijn. Klik op de pijlen om ze te
B43: 37 | I43: verwijderen.
B44: 38
B45: 39
B46: 40
B47: 41
B48: 42
B49: 43
B50: 44
B51: 45
B52: 46
B53: 47
B54: 48
B55: 49
B56: 50
B57: 51
B58: 52
B59: 53
B60: 54
B61: 55 | J61: =J59-J60 -> 0
B62: 56
B63: 57
B64: 58
B65: 59
B66: 60
B67: 61
B68: 62
B69: 63
B70: 64
B71: 65
B72: 66
B73: 67
B74: 68
B75: 69
B76: 70
B77: 71
B78: 72
B79: 73
B80: 74
B81: 75
B82: 76
B83: 77
B84: 78
B85: 79
B86: 80
B87: 81
B88: 82
B89: 83
B90: 84
B91: 85
B92: 86
B93: 87
B94: 88
B95: 89
B96: 90
B97: 91
B98: 92
B99: 93
B100: 94
B101: 95
B102: 96
B103: 97
B104: 98
B105: 99
B106: 100
B107: 101
B108: 102
B109: 103
B110: 104
B111: 105
B112: 106
B113: 107
B114: 108
B115: 109
B116: 110
B117: 111
B118: 112
B119: 113
B120: 114
B121: 115
B122: 116
B123: 117
B124: 118
B125: 119
B126: 120
B131: teamoverzicht professionalisering © taakberekening-po.nl | I131: toelichting teamoverzicht
I133: Via het invoerformulier kunnen teamleden met
I134: dezelfde activiteit gezocht worden.
B136: 1 | I136: 1. Klik op de nummerbalk links;
B137: 2 | I137: 2. Selecteer een lijst, klik op de pijl naast het
B138: 3 | I138: invoervak en selecteer een activiteit;
B139: 4 | I139: 3. Klik vervolgens op de knop 'Teamoverzicht';
B140: 5 | I140: 4. De gevonden teamleden verschijnen op de
B141: 6 | I141: lijst hiernaast.
B142: 7
B143: 8 | I143: De zoekfunctie is niet hoofdlettergevoelig en er kan
B144: 9 | I144: ook met steekwoorden worden gezocht, mits deze
B145: 10 | I145: uniek zijn.
B146: 11
B147: 12
B148: 13
B149: 14
B150: 15
B151: 16
B152: 17
B153: 18
B154: 19
B155: 20
B156: 21
B157: 22
B158: 23
B159: 24
B160: 25
B161: 26
B162: 27
B163: 28
B164: 29
B165: 30
B166: 31
B167: 32
B168: 33
B169: 34
B170: 35
B171: 36
B172: 37
B173: 38
B174: 39
B175: 40
B176: 41
B177: 42
B178: 43
B179: 44
B180: 45
B181: 46
B182: 47
B183: 48
B184: 49
B185: 50
B186: 51
B187: 52
B188: 53
B189: 54
B190: 55
B191: 56
B192: 57
B193: 58
B194: 59
B195: 60
B196: 61
B197: 62
B198: 63
B199: 64
B200: 65
B201: 66
B202: 67
B203: 68
B204: 69
B205: 70
B206: 71
B207: 72
B208: 73
B209: 74
... 47 more rows

Sheet lijst o.t.
B2: LIJST OVERIGE TAKEN © taakberekeningPO.nl | I2: toelichting lijst
C3: =lesurenberekening!I5 -> 0 | F3: totaal
C6: omschrijving - gebruik één regel per onderwerp Let op: er mogen in de lijst geen tussenliggende lege regels zijn! | D6: uren | E6: pers.
B7: 1 | F7: =PRODUCT(D7,E7) -> 0
B8: 2 | F8: =PRODUCT(D8,E8) -> 0 | I8: Op deze lijst kunnen vaakvoorkomende items worden
B9: 3 | F9: =PRODUCT(D9,E9) -> 0 | I9: geplaatst waaruit bij het invullen van de lijsten op het
B10: 4 | F10: 0 | I10: teamlidblad een keus kan worden gemaakt.
B11: 5 | F11: 0
B12: 6 | F12: 0 | I12: Per regel kan één item met bijbehorende uren worden
B13: 7 | F13: 0 | I13: ingevuld.
B14: 8 | F14: 0
B15: 9 | F15: 0 | I15: Sorteren
B16: 10 | F16: 0 | I16: Sorteer door boven de lijst op de pijlen te klikken.
B17: 11 | F17: 0
B18: 12 | F18: 0
B19: 13 | F19: 0
B20: 14 | F20: 0 | I20: Invoerformulier
B21: 15 | F21: 0 | I21: Door op de nummerrij te klikken verschijnt het invoer-
B22: 16 | F22: 0 | I22: formulier voor activiteiten.
B23: 17 | F23: 0
B24: 18 | F24: 0 | I24: Teamleden bij zelfde activiteit zoeken
B25: 19 | F25: 0 | I25: Door op het invoerformulier op Teamoverzicht te
B26: 20 | F26: 0 | I26: klikken kunnen teamleden worden gezocht die
B27: 21 | F27: 0 | I27: eenzelfde activiteit hebben.
B28: 22 | F28: 0
B29: 23 | F29: 0 | I29: Importeren oude lijsten
B30: 24 | F30: 0 | I30: Bij het in gebruik nemen van een nieuwe planner kun
B31: 25 | F31: 0 | I31: je de lijsten uit een vorige planner importeren.
B32: 26 | F32: 0
B33: 27 | F33: 0 | I33: Na het klikken op onderstaande knop selecteer je de
B34: 28 | F34: 0 | I34: planner waaruit je de lijsten wilt overnemen.
B35: 29 | F35: 0
B36: 30 | F36: 0
B37: 31 | F37: 0
B38: 32 | F38: 0
B39: 33 | F39: 0
B40: 34 | F40: 0
B41: 35 | F41: 0 | I41: Let op: Er mogen in deze lijst geen tussenliggende
B42: 36 | F42: 0 | I42: lege regels zijn. Klik op de pijlen om ze te
B43: 37 | F43: 0 | I43: verwijderen.
B44: 38 | F44: 0
B45: 39 | F45: 0
B46: 40 | F46: 0
B47: 41 | F47: 0
B48: 42 | F48: 0
B49: 43 | F49: 0
B50: 44 | F50: 0
B51: 45 | F51: 0
B52: 46 | F52: 0 | I52: beschikbare uren overige taken
B53: 47 | F53: 0 | I53: Door het benodigd aantal uren voor de activiteiten
B54: 48 | F54: 0 | I54: van de lijst te vergelijken met het binnen het team
B55: 49 | F55: 0 | I55: aantal nog in te vullen uren, kun je beoordelen of de
B56: 50 | F56: 0 | I56: geplande activiteiten daar in passen.
B57: 51 | F57: 0
B58: 52 | F58: 0
B59: 53 | F59: 0 | I59: beschikbaar binnen team (zie formatieoverzicht): | J59: =formatieoverzicht!AP105 -> 1536
B60: 54 | F60: 0 | I60: benodigd volgens lijst: | J60: =F127 -> 0
B61: 55 | F61: 0 | I61: verschil: | J61: =J59-F127 -> 1536
B62: 56 | F62: 0
B63: 57 | F63: 0 | I63: Let op:
B64: 58 | F64: 0 | I64: Omdat het aantal nog in te vullen uren wordt
B65: 59 | F65: 0 | I65: opgeteld, mogen op de teamlidbladen in de rubriek
B66: 60 | F66: 0 | I66: Overige taken op de tweede pagina nog geen uren
B67: 61 | F67: 0 | I67: zijn ingevuld. Tevens moeten bij de teamleden
B68: 62 | F68: 0 | I68: die geheel of gedeeltelijk ambulant zijn, in rubriek K
B69: 63 | F69: 0 | I69: éérst de uren zijn ingevuld die gereserveerd worden
B70: 64 | F70: 0 | I70: voor de ambulante functietaken.
B71: 65 | F71: 0
B72: 66 | F72: 0 | I72: deelnemers per activiteit
B73: 67 | F73: =PRODUCT(D73,E73) -> 0 | I73: Om te kunnen berekenen hoeveel uren alle activi-
B74: 68 | F74: 0 | I74: teiten samen tellen, kan op de lijst achter elke
B75: 69 | F75: 0 | I75: activiteit het aantal deelnemers worden ingevuld.
B76: 70 | F76: 0 | I76: Dit aantal wordt ook vermeld wanneer een intekenlijst
B77: 71 | F77: 0 | I77: wordt afgedrukt (zie volgende werkblad: act.overzicht)
B78: 72 | D78: 0 | F78: 0
B79: 73 | F79: 0
B80: 74 | F80: 0
B81: 75 | F81: 0
B82: 76 | F82: 0
B83: 77 | F83: 0
B84: 78 | F84: 0
B85: 79 | F85: 0
B86: 80 | F86: 0
B87: 81 | F87: 0
B88: 82 | F88: 0
B89: 83 | F89: =PRODUCT(D89,E89) -> 0
B90: 84 | F90: 0
B91: 85 | F91: 0
B92: 86 | F92: 0
B93: 87 | F93: 0
B94: 88 | F94: 0
B95: 89 | F95: 0
B96: 90 | F96: 0
B97: 91 | F97: 0
B98: 92 | F98: 0
B99: 93 | F99: 0
B100: 94 | F100: 0
B101: 95 | F101: 0
B102: 96 | F102: 0
B103: 97 | F103: 0
B104: 98 | F104: =PRODUCT(D104,E104) -> 0
B105: 99 | F105: =PRODUCT(D105,E105) -> 0
B106: 100 | F106: =PRODUCT(D106,E106) -> 0
B107: 101 | F107: =PRODUCT(D107,E107) -> 0
B108: 102 | F108: =PRODUCT(D108,E108) -> 0
B109: 103 | F109: 0
B110: 104 | F110: 0
B111: 105 | F111: 0
B112: 106 | F112: 0
B113: 107 | F113: 0
B114: 108 | F114: 0
B115: 109 | F115: 0
B116: 110 | F116: 0
B117: 111 | F117: 0
B118: 112 | F118: 0
B119: 113 | F119: 0
B120: 114 | F120: 0
B121: 115 | F121: 0
B122: 116 | F122: 0
B123: 117 | F123: =PRODUCT(D123,E123) -> 0
B124: 118 | F124: =PRODUCT(D124,E124) -> 0
B125: 119 | F125: =PRODUCT(D125,E125) -> 0
B126: 120 | F126: =PRODUCT(D126,E126) -> 0
E127: tot. | F127: =SUM(F7:F126) -> 0
B131: teamoverzicht overige taken © taakberekening-po.nl | I131: toelichting teamoverzicht
I133: Via het invoerformulier kunnen teamleden met
C134: Kerstviering | I134: dezelfde activiteit gezocht worden.
B136: 1 | C136: voltijder | D136: 3 | I136: 1. Klik op de nummerbalk links;
B137: 2 | C137: voltijder-verlof d.i. | D137: 3 | I137: 2. Selecteer een lijst, klik op de pijl naast het
B138: 3 | C138: voltijder-BAPO overgangsregeling | D138: 3 | I138: invoervak en selecteer een activiteit;
B139: 4 | C139: voltijder-deels ambulant | D139: 3 | I139: 3. Klik vervolgens op de knop 'Teamoverzicht';
B140: 5 | C140: voltijder-geheel ambulant | D140: 3 | I140: 4. De gevonden teamleden verschijnen op de
B141: 6 | C141: voltijder-OOP lesondersteunend | D141: 3 | I141: lijst hiernaast.
B142: 7 | C142: voltijder-spaart verlof | D142: 3
B143: 8 | C143: 0 | D143: 3 | I143: De zoekfunctie is niet hoofdlettergevoelig en er kan
B144: 9 | C144: deeltijder ma+di+wo | D144: 3 | I144: ook met steekwoorden worden gezocht, mits deze
B145: 10 | C145: deeltijder wo+do+vrij | D145: 3 | I145: uniek zijn.
B146: 11 | C146: 0 | D146: 3
B147: 12 | C147: duopartner 1 wo om en om | D147: 3
B148: 13 | C148: duopartner 2 wo om en om | D148: 3
B149: 14 | C149: 0 | D149: 3
B150: 15 | C150: deeltijder A - geen verlof d.i. | D150: 3
B151: 16 | C151: deeltijder A - wel verlof d.i. | D151: 3
B152: 17 | C152: 0 | D152: 3
B153: 18 | C153: voltijder-ouderschapsverlof | D153: 3
B154: 19 | C154: voltijder-ouderschapsverlof heel jaar | D154: 3
B155: 20
B156: 21
B157: 22
B158: 23
B159: 24
B160: 25
B161: 26
B162: 27
B163: 28
B164: 29
B165: 30
B166: 31
B167: 32
B168: 33
B169: 34
B170: 35
B171: 36
B172: 37
B173: 38
B174: 39
B175: 40
B176: 41
B177: 42
B178: 43
B179: 44
B180: 45
B181: 46
B182: 47
B183: 48
B184: 49
B185: 50
B186: 51
B187: 52
B188: 53
B189: 54
B190: 55
B191: 56
B192: 57
B193: 58
B194: 59
B195: 60
B196: 61
B197: 62
B198: 63
B199: 64
B200: 65
B201: 66
B202: 67
B203: 68
B204: 69
B205: 70
B206: 71
B207: 72
B208: 73
... 48 more rows

Sheet act.overzicht
B2: OVERZICHT ACTIVITEITENVERDELING 2024/2025 taakberekeningPO.nl | I2: activiteitenoverzicht
C3: =lesurenberekening!I5 -> 0
C4: ="overzicht teamleden per activiteit: "&I24 -> overzicht teamleden per activiteit: lijst o.t. | D4: uren | F4: pers. | I4: Op dit werkblad maak je een overzicht van alle
I5: activiteiten duurzame inzetbaarheid, professionali-
I6: sering en overige taken met de deelnemende team-
I7: leden per activiteit.
I9: intekenlijst
I10: Het overzicht kan ook gebruikt worden als intekenlijst.
I11: Kies daartoe het aantal lege regels dat je onder elke
I12: activiteit voor de intekening wilt gebruiken. Kies bij
I13: een gewoon overzicht 0 of 1 regel tussenruimte.
I15: afdrukken
I16: De lijst wordt standaard zwart-wit afgedrukt. Druk de
I17: lijst enkelzijdig af wanneer deze als intekenlijst wordt
I18: gebruikt.
I19: kies het aantal lege regels tussen
I20: elke activiteit
I21: 1
I23: kies de rubriek voor het totaaloverzicht
I24: lijst o.t.
I26: Klik op de knop om het overzicht te maken.
I27: Het samenstellen van de lijst kan afhankelijk van het
I28: aantal activiteiten en teamleden enige tijd in
I29: beslag nemen.
I34: Het overzicht wordt samengesteld op basis van de
I35: lijsten d.i., prof. en o.t.. Activiteiten die hierin niet
I36: zijn opgenomen, komen dus niet in het overzicht.
I37: Plaats alle ingeroosterde activiteiten dus zoveel
I38: mogelijk in de betreffende lijst.
I40: Let op: Wanneer het overzicht incompleet is, wordt
I41: dit veroorzaakt door een tussenliggende lege regel
I42: in de betreffende lijst, of in de betreffende rubriek
I43: van één of meerdere teamlidbladen.

Sheet overig verlof
B2: BEREKENING OUDERSCHAPSVERLOF EN OVERIG VERLOF OP EN OOP | H2: © taakberekeningPO.nl | L2: toelichting
E3: =lesurenberekening!I5 -> 0 | L3: Het vakantieverlof en een verlof duurzame inzetbaarheid is al verwerkt in de jaartaak-berekening op het teamlidblad. Op dit werkblad wordt het ouderschaps- en overig verlof apart berekend. Bij een berekening voor het overig verlof worden de rubrieken B en D leeg gelaten. Het aantal arbeidsuren van het opgenomen verlof vul je na berekening in op het betreffende teamlidblad in rubriek J; de uren voor de duurzame inzetbaarheid, professionalisering en overige taken worden dan opnieuw berekend op basis van de kleinere netto arbeidsduur. Aan de oorspronkelijke jaartaak-berekening verandert verder niets. Ouderschapsverlof Het ouderschapsverlof is bij wtf 1,0 maximaal 1040 uur (= 26 weken) per kind, waarvan maximaal 415 uur wordt doorbetaald (art. 8.20 en 8.21). De werknemer bepaalt in principe zelf hoe - hoeveel en in welke periode(s) (maximaal 6 periodes van minimaal 1 maand tot het kind 8 jaar wordt) - het verlof wordt opgenomen. Maak na de berekening een afdruk van dit werkblad voor het teamlid, het administratiekantoor en voor het dossier van het teamlid. De werkgever is verplicht het opgenomen verlof bij te houden. Invulling Alle uren worden als hele getallen ingevoerd, behalve de op te nemen arbeidsuren per dag in de weekkolom in vak C. Vul de tijden hier in met een dubbele punt tussen de uren en minuten. B (alleen invullen bij ouderschapsverlof) Vul hier de namen van de kinderen in waarvoor verlof wordt aangevraagd en kies bij aanvragen? "ja". C Vul hier de verlofperiode in en de arbeidsuren die per dag worden opgenomen (denk om de dubbele punt tussen de uren en minuten in de eerste kolom). Tel het aantal werkweken in de verlofperiode zonder de héle vakantieweken. Vul tenslotte de uren in van de losse vakantiedagen die in deze periode op de verlofdagen vallen. Wanneer een verlof het gehele schooljaar bestrijkt, kan het totaal ook worden berekend door de wekelijkse opname te vermenigvuldigen met het berekend aantal lesweken zoals vermeld in rubriek E op het werkblad lesurenberekening. D (alleen invullen bij ouderschapsverlof) Verdeel de opgenomen uren over het betaald en onbetaald verlof, en eventueel over de kinderen.
B4: A persoonsgegevens
B8: nummer teamlid: | D8: 1
B9: naam aanvrager : | D9: =IF(D8<>"",INDIRECT("formatieoverzicht!C"&D8+4),0) -> naam voltijder
C10: aanstelling : | D10: =IF(D8<>"",INDIRECT("formatieoverzicht!D"&D8+4),0) -> 1.666666667
C11: wtf : | D11: =IF(D8<>"",INDIRECT("formatieoverzicht!E"&D8+4),0) -> 1
B14: B gegevens kinderen en eerder opgenomen ouderschapsverlof
I17: al eerder opgenomen uren
C18: kinderen waarvoor verlof wordt aangevraagd | F18: aanvragen? | G18: geboortedatum | I18: totaal | J18: waarvan betaald
B19: kind 1
B20: kind 2
B21: kind 3
B22: kind 4
B23: kind 5
B27: C periode verlofopname
B29: periode verlofopname m.i.v.: | F29: t/m
E31: arbeidsuren verlof per dag | G31: totaal uren verlofopname:
C33: maandag | G33: verlof per week: | I33: =E38 -> 0
C34: dinsdag | F34: aantal lesweken in verlofperiode: | J34: x
C35: woensdag | G35: aantal uren verlofperiode: | I35: =ROUND((I33*I34)*24,0) -> 0
C36: donderdag | F36: arbeidsuren vakantiedagen in periode: | J36: -
C37: vrijdag | F37: netto uren opgenomen verlof: | I37: =I31+I35-I36 -> 0
C38: totaal: | E38: =SUM(E33:E37) -> 0 | G38: wtf verlofuren: | I38: =ROUND((I37/1659),4) -> 0
F39: resterende wtf na aftrek verlof: | I39: =D11-I38 -> 1
B41: D verdeling opname ouderschapsverlof
E44: nog beschikbaar | G44: verdeling uren per kind | I44: resteert
B45: kinderen waarvoor verlof wordt aangevraagd | E45: totaal | F45: waarvan betaald | G45: totaal | H45: waarvan betaald | I45: totaal | J45: waarvan betaald
B46: =C19 -> 0 | E46: =IF(F19="ja",ROUND((D11*1040)-I19,0),0) -> 0 | F46: =IF(F19="ja",ROUND((D11*415)-J19,0),0) -> 0 | I46: =E46-G46 -> 0 | J46: =IF((F46-H46)>I46,I46,F46-H46) -> 0
B47: =C20 -> 0 | E47: =IF(F20="ja",ROUND((D11*1040)-I20,0),0) -> 0 | F47: =IF(F20="ja",ROUND((D11*415)-J20,0),0) -> 0 | I47: =E47-G47 -> 0 | J47: =IF((F47-H47)>I47,I47,F47-H47) -> 0
B48: =C21 -> 0 | E48: =IF(F21="ja",ROUND((D11*1040)-I21,0),0) -> 0 | F48: =IF(F21="ja",ROUND((D11*415)-J21,0),0) -> 0 | I48: =E48-G48 -> 0 | J48: =IF((F48-H48)>I48,I48,F48-H48) -> 0
B49: =C22 -> 0 | E49: =IF(F22="ja",ROUND((D11*1040)-I22,0),0) -> 0 | F49: =IF(F22="ja",ROUND((D11*415)-J22,0),0) -> 0 | I49: =E49-G49 -> 0 | J49: =IF((F49-H49)>I49,I49,F49-H49) -> 0
B50: =C23 -> 0 | E50: =IF(F23="ja",ROUND((D11*1040)-I23,0),0) -> 0 | F50: =IF(F23="ja",ROUND((D11*415)-J23,0),0) -> 0 | I50: =E50-G50 -> 0 | J50: =IF((F50-H50)>I50,I50,F50-H50) -> 0
D51: + | E51: =SUM(E46:E50) -> 0 | F51: 0 | G51: 0 | H51: 0 | I51: 0 | J51: 0
C52: verschil met opgenomen verlof: | G52: =I37-G51 -> 0
B55: opmerkingen
B56: Een afdruk van deze verlofberekening wordt bewaard in het dossier, zodat bij een eventueel volgend ouderschapsverlof de al eerder opgenomen uren in rubriek B kunnen worden overgenomen. De laatste afdruk geeft dus alle informatie over de al eerder opgenomen uren. In de jaartaakberekening verkleint deze opname alleen de omvang van de taakonderdelen professionalisering, duurzame inzetbaarheid en overige taken. De als verlof opgenomen uren voor de lestaak en de bijbehorende uren voor het voor- en nawerk behoeven niet te worden berekend; zij vallen eenvoudigweg uit voor zover er lesuren waren ingeroosterd op de verlofdagen.

Sheet WVP
B2: WERKVERDELINGSPLAN © taakberekeningPO.nl | L2: toelichting
L3: Gebruik bij de afdruk op papier* de eerste twee pagina's als voorblad en ondertekeningsblad van het werkverdelingsplan. Voeg daarachter de afdrukken van de werkbladen Lesurenberekening, Formatieoverzicht, Groepsverdeling en Activiteitenoverzicht (verdeling overige taken) toe. Afbeelding wijzigen De afbeelding kan desgewenst worden vervangen door bijv. het eigen schoollogo: > Rechtsklik op de afbeelding; > Kies: Afbeelding wijzigen; > Kies (in Verkenner) de bron van de afbeelding; > Selecteer de afbeelding en klik op Invoegen: > Pas indien nodig het formaat en de positie aan. Op het laatste blad kunnen de punten worden vermeld die op de bovengenoemde werkbladen niet aan de orde komen. * WVP afdrukken als PDF Het WVP kan via de PDF-module in één pdf worden afgedrukt en bestaat uit de volgende tabbladen: 1. WVP 2. lesurenberekening 3. formatieoverzicht 4. groepsverdeling 5. act. overzicht
C17: schoolnaam
C21: 1. Lesurenberekening
C24: 2. Formatieoverzicht
C27: 3. Groepsindeling & pers. inzet
C30: 4. Activiteitenoverzicht
C33: 5. Overige afspraken
C40: Werkverdelingsplan
D42: =lesurenberekening!E5 -> 2023 | F42: - | G42: =lesurenberekening!G5 -> 2024
C53: ="Werkverdelingsplan "&lesurenberekening!E5&"/"&lesurenberekening!G5 -> Werkverdelingsplan 2023/2024
C56: =C17 -> schoolnaam
C59: namens:
C63: PMR
D65: ondertekening
D70: naam
C75: bestuur
D77: ondertekening
D82: naam
D87: plaats en datum
C103: Overige afspraken
B106: Pauzeregeling | L106: toelichting
B107: Hier kunnen de eigen afspraken worden vermeld. | L107: Druk in het tekstvak op Alt+Enter voor nieuwe regel of om een regel over te slaan. Vermeld hier alles puntsgewijs en verwijs eventueel naar (PDF-)bijlagen waarin deze onderwerpen uitgebreider beschreven worden.
B115: Aanwezigheidstijden team
B124: Besteding werkdrukmiddelen
B133: Vervangingsbeleid

Sheet 1
B2: TAAKBEREKENING OP/OOP met lesondersteunende taken | K2: © taakberekeningPO.nl | P2: toelichting teamlidblad OP en OOP met lesondersteunende taken
C3: =lesurenberekening!I5 -> 0 | H3: naam: | K3: =INDIRECT("formatieoverzicht!C"&(4+N3)) -> naam voltijder | N3: =MID(CELL("bestandsnaam",A1),SEARCH("]",CELL("bestandsnaam",A1),1)+1,99) -> 1
E4: =lesurenberekening!E5 -> 2023 | F4: / | G4: =lesurenberekening!G5 -> 2024 | H4: aanstelling: | K4: =INDIRECT("formatieoverzicht!D"&(4+N3)) -> 1.666666667
H5: wtf: | K5: =INDIRECT("formatieoverzicht!E"&(4+N3)) -> 1 | P5: Klik op dit icoon voor meer informatie
B6: OVERZICHT IN- EN UITGEROOSTERDE LES- EN ARBEIDSUREN | K6: OVERZICHT JAARTAAK
B7: A jaartotaal les- en arbeidsuren | E7: lestijd bouw: | G7: =INDIRECT("formatieoverzicht!"&"AF"&N3+4) -> 1 | I7: arbeidsuren | K7: G budget duurzame inzetbaarheid | P7: Dit teamlidblad is voor het OP en OOP met lesondersteunende taken, | S7: ='1'!S6 -> 0
E8: o | G8: m | P8: zoals een klassen- of onderwijsassistent.
C9: maandag | D9: =IF(INDIRECT("formatieoverzicht!V"&(N3+4))=2,"A","") ->  | E9: =IF(AND(INDIRECT("formatieoverzicht!V"&(N3+4))=1,INDIRECT("formatieoverzicht!AF"&(N3+4))=1),lesurenberekening!E11,IF(AND(INDIRECT("formatieoverzicht!V"&(N3+4))=1,INDIRECT("formatieoverzicht!AF"&(N3+4))=2),lesurenberekening!I11,IF(AND(INDIRECT("formatieoverzicht!V"&(N3+4))=1,INDIRECT("formatieoverzicht!AF"&(N3+4))=3),lesurenberekening!M11,IF(AND(INDIRECT("formatieoverzicht!V"&(N3+4))=3,INDIRECT("formatieoverzicht!AF"&(N3+4))=1),lesurenberekening!E11,IF(AND(INDIRECT("formatieoverzicht!V"&(N3+4))=3,INDIRECT("formatieoverzicht!AF"&(N3+4))=2),lesurenberekening!I11,IF(AND(INDIRECT("formatieoverzicht!V"&(N3+4))=3,INDIRECT("formatieoverzicht!AF"&(N3+4))=3),lesurenberekening!M11,0)))))) -> 0 | F9: =IF(INDIRECT("formatieoverzicht!W"&(N3+4))=2,"A","") ->  | G9: =IF(AND(INDIRECT("formatieoverzicht!W"&(N3+4))=1,INDIRECT("formatieoverzicht!AF"&(N3+4))=1),lesurenberekening!G11,IF(AND(INDIRECT("formatieoverzicht!W"&(N3+4))=1,INDIRECT("formatieoverzicht!AF"&(N3+4))=2),lesurenberekening!K11,IF(AND(INDIRECT("formatieoverzicht!W"&(N3+4))=1,INDIRECT("formatieoverzicht!AF"&(N3+4))=3),lesurenberekening!O11,IF(AND(INDIRECT("formatieoverzicht!W"&(N3+4))=3,INDIRECT("formatieoverzicht!AF"&(N3+4))=1),lesurenberekening!G11,IF(AND(INDIRECT("formatieoverzicht!W"&(N3+4))=3,INDIRECT("formatieoverzicht!AF"&(N3+4))=2),lesurenberekening!K11,IF(AND(INDIRECT("formatieoverzicht!W"&(N3+4))=3,INDIRECT("formatieoverzicht!AF"&(N3+4))=3),lesurenberekening!O11,0)))))) -> 0 | H9: =IF(INDIRECT("formatieoverzicht!V"&(N3+4))>0,lesurenberekening!E98,0) -> 0.2083333333 | I9: =H9+J9 -> 0.3541666667 | J9: =IF(INDIRECT("formatieoverzicht!W"&(N3+4))>0,lesurenberekening!G98,0) -> 0.1458333333 | M9: opbouw | N9: opname
C10: dinsdag | D10: =IF(INDIRECT("formatieoverzicht!X"&(N3+4))=2,"A","") ->  | E10: =IF(AND(INDIRECT("formatieoverzicht!X"&(N3+4))=1,INDIRECT("formatieoverzicht!AF"&(N3+4))=1),lesurenberekening!E12,IF(AND(INDIRECT("formatieoverzicht!X"&(N3+4))=1,INDIRECT("formatieoverzicht!AF"&(N3+4))=2),lesurenberekening!I12,IF(AND(INDIRECT("formatieoverzicht!X"&(N3+4))=1,INDIRECT("formatieoverzicht!AF"&(N3+4))=3),lesurenberekening!M12,IF(AND(INDIRECT("formatieoverzicht!X"&(N3+4))=3,INDIRECT("formatieoverzicht!AF"&(N3+4))=1),lesurenberekening!E12,IF(AND(INDIRECT("formatieoverzicht!X"&(N3+4))=3,INDIRECT("formatieoverzicht!AF"&(N3+4))=2),lesurenberekening!I12,IF(AND(INDIRECT("formatieoverzicht!X"&(N3+4))=3,INDIRECT("formatieoverzicht!AF"&(N3+4))=3),lesurenberekening!M12,0)))))) -> 0 | F10: =IF(INDIRECT("formatieoverzicht!Y"&(N3+4))=2,"A","") ->  | G10: =IF(AND(INDIRECT("formatieoverzicht!Y"&(N3+4))=1,INDIRECT("formatieoverzicht!AF"&(N3+4))=1),lesurenberekening!G12,IF(AND(INDIRECT("formatieoverzicht!Y"&(N3+4))=1,INDIRECT("formatieoverzicht!AF"&(N3+4))=2),lesurenberekening!K12,IF(AND(INDIRECT("formatieoverzicht!Y"&(N3+4))=1,INDIRECT("formatieoverzicht!AF"&(N3+4))=3),lesurenberekening!O12,IF(AND(INDIRECT("formatieoverzicht!Y"&(N3+4))=3,INDIRECT("formatieoverzicht!AF"&(N3+4))=1),lesurenberekening!G12,IF(AND(INDIRECT("formatieoverzicht!Y"&(N3+4))=3,INDIRECT("formatieoverzicht!AF"&(N3+4))=2),lesurenberekening!K12,IF(AND(INDIRECT("formatieoverzicht!Y"&(N3+4))=3,INDIRECT("formatieoverzicht!AF"&(N3+4))=3),lesurenberekening!O12,0)))))) -> 0 | H10: =IF(INDIRECT("formatieoverzicht!X"&(N3+4))>0,lesurenberekening!E99,0) -> 0.2083333333 | I10: =H10+J10 -> 0.3541666667 | J10: =IF(INDIRECT("formatieoverzicht!Y"&(N3+4))>0,lesurenberekening!G99,0) -> 0.1458333333 | K10: basisbudget | M10: =INDIRECT("formatieoverzicht!J"&(4+N3)) -> 40 | N10: =INDIRECT("formatieoverzicht!Q"&(4+N3)) -> 0 | P10: A tm D
C11: woensdag | D11: =IF(INDIRECT("formatieoverzicht!Z"&(N3+4))=2,"A","") ->  | E11: =IF(AND(INDIRECT("formatieoverzicht!Z"&(N3+4))=1,INDIRECT("formatieoverzicht!AF"&(N3+4))=1),lesurenberekening!E13,IF(AND(INDIRECT("formatieoverzicht!Z"&(N3+4))=1,INDIRECT("formatieoverzicht!AF"&(N3+4))=2),lesurenberekening!I13,IF(AND(INDIRECT("formatieoverzicht!Z"&(N3+4))=1,INDIRECT("formatieoverzicht!AF"&(N3+4))=3),lesurenberekening!M13,IF(AND(INDIRECT("formatieoverzicht!Z"&(N3+4))=3,INDIRECT("formatieoverzicht!AF"&(N3+4))=1),lesurenberekening!E13,IF(AND(INDIRECT("formatieoverzicht!Z"&(N3+4))=3,INDIRECT("formatieoverzicht!AF"&(N3+4))=2),lesurenberekening!I13,IF(AND(INDIRECT("formatieoverzicht!Z"&(N3+4))=3,INDIRECT("formatieoverzicht!AF"&(N3+4))=3),lesurenberekening!M13,0)))))) -> 0 | F11: =IF(INDIRECT("formatieoverzicht!AA"&(N3+4))=2,"A","") ->  | G11: =IF(AND(INDIRECT("formatieoverzicht!AA"&(N3+4))=1,INDIRECT("formatieoverzicht!AF"&(N3+4))=1),lesurenberekening!G13,IF(AND(INDIRECT("formatieoverzicht!AA"&(N3+4))=1,INDIRECT("formatieoverzicht!AF"&(N3+4))=2),lesurenberekening!K13,IF(AND(INDIRECT("formatieoverzicht!AA"&(N3+4))=1,INDIRECT("formatieoverzicht!AF"&(N3+4))=3),lesurenberekening!O13,IF(AND(INDIRECT("formatieoverzicht!AA"&(N3+4))=3,INDIRECT("formatieoverzicht!AF"&(N3+4))=1),lesurenberekening!G13,IF(AND(INDIRECT("formatieoverzicht!AA"&(N3+4))=3,INDIRECT("formatieoverzicht!AF"&(N3+4))=2),lesurenberekening!K13,IF(AND(INDIRECT("formatieoverzicht!AA"&(N3+4))=3,INDIRECT("formatieoverzicht!AF"&(N3+4))=3),lesurenberekening!O13,0)))))) -> 0 | H11: =IF(INDIRECT("formatieoverzicht!Z"&(N3+4))>0,lesurenberekening!E100,0) -> 0.25 | I11: =H11+J11 -> 0.25 | J11: =IF(INDIRECT("formatieoverzicht!AA"&(N3+4))>0,lesurenberekening!G100,0) -> 0 | K11: bijzonder budget | M11: =INDIRECT("formatieoverzicht!K"&(4+N3)) -> 0 | N11: =INDIRECT("formatieoverzicht!R"&(4+N3)) -> 0 | P11: In deze rubrieken is alles automatisch berekend.
C12: donderdag | D12: =IF(INDIRECT("formatieoverzicht!AB"&(N3+4))=2,"A","") ->  | E12: =IF(AND(INDIRECT("formatieoverzicht!AB"&(N3+4))=1,INDIRECT("formatieoverzicht!AF"&(N3+4))=1),lesurenberekening!E14,IF(AND(INDIRECT("formatieoverzicht!AB"&(N3+4))=1,INDIRECT("formatieoverzicht!AF"&(N3+4))=2),lesurenberekening!I14,IF(AND(INDIRECT("formatieoverzicht!AB"&(N3+4))=1,INDIRECT("formatieoverzicht!AF"&(N3+4))=3),lesurenberekening!M14,IF(AND(INDIRECT("formatieoverzicht!AB"&(N3+4))=3,INDIRECT("formatieoverzicht!AF"&(N3+4))=1),lesurenberekening!E14,IF(AND(INDIRECT("formatieoverzicht!AB"&(N3+4))=3,INDIRECT("formatieoverzicht!AF"&(N3+4))=2),lesurenberekening!I14,IF(AND(INDIRECT("formatieoverzicht!AB"&(N3+4))=3,INDIRECT("formatieoverzicht!AF"&(N3+4))=3),lesurenberekening!M14,0)))))) -> 0 | F12: =IF(INDIRECT("formatieoverzicht!AC"&(N3+4))=2,"A","") ->  | G12: =IF(AND(INDIRECT("formatieoverzicht!AC"&(N3+4))=1,INDIRECT("formatieoverzicht!AF"&(N3+4))=1),lesurenberekening!G14,IF(AND(INDIRECT("formatieoverzicht!AC"&(N3+4))=1,INDIRECT("formatieoverzicht!AF"&(N3+4))=2),lesurenberekening!K14,IF(AND(INDIRECT("formatieoverzicht!AC"&(N3+4))=1,INDIRECT("formatieoverzicht!AF"&(N3+4))=3),lesurenberekening!O14,IF(AND(INDIRECT("formatieoverzicht!AC"&(N3+4))=3,INDIRECT("formatieoverzicht!AF"&(N3+4))=1),lesurenberekening!G14,IF(AND(INDIRECT("formatieoverzicht!AC"&(N3+4))=3,INDIRECT("formatieoverzicht!AF"&(N3+4))=2),lesurenberekening!K14,IF(AND(INDIRECT("formatieoverzicht!AC"&(N3+4))=3,INDIRECT("formatieoverzicht!AF"&(N3+4))=3),lesurenberekening!O14,0)))))) -> 0 | H12: =IF(INDIRECT("formatieoverzicht!AB"&(N3+4))>0,lesurenberekening!E101,0) -> 0.2083333333 | I12: =H12+J12 -> 0.3541666667 | J12: =IF(INDIRECT("formatieoverzicht!AC"&(N3+4))>0,lesurenberekening!G101,0) -> 0.1458333333 | K12: overgangsbudget | M12: =INDIRECT("formatieoverzicht!L"&(4+N3)) -> 0 | N12: =INDIRECT("formatieoverzicht!S"&(4+N3)) -> 0
C13: vrijdag | D13: =IF(INDIRECT("formatieoverzicht!AD"&(N3+4))=2,"A","") ->  | E13: =IF(AND(INDIRECT("formatieoverzicht!AD"&(N3+4))=1,INDIRECT("formatieoverzicht!AF"&(N3+4))=1),lesurenberekening!E15,IF(AND(INDIRECT("formatieoverzicht!AD"&(N3+4))=1,INDIRECT("formatieoverzicht!AF"&(N3+4))=2),lesurenberekening!I15,IF(AND(INDIRECT("formatieoverzicht!AD"&(N3+4))=1,INDIRECT("formatieoverzicht!AF"&(N3+4))=3),lesurenberekening!M15,IF(AND(INDIRECT("formatieoverzicht!AD"&(N3+4))=3,INDIRECT("formatieoverzicht!AF"&(N3+4))=1),lesurenberekening!E15,IF(AND(INDIRECT("formatieoverzicht!AD"&(N3+4))=3,INDIRECT("formatieoverzicht!AF"&(N3+4))=2),lesurenberekening!I15,IF(AND(INDIRECT("formatieoverzicht!AD"&(N3+4))=3,INDIRECT("formatieoverzicht!AF"&(N3+4))=3),lesurenberekening!M15,0)))))) -> 0 | F13: =IF(INDIRECT("formatieoverzicht!AE"&(N3+4))=2,"A","") ->  | G13: =IF(AND(INDIRECT("formatieoverzicht!AE"&(N3+4))=1,INDIRECT("formatieoverzicht!AF"&(N3+4))=1),lesurenberekening!G15,IF(AND(INDIRECT("formatieoverzicht!AE"&(N3+4))=1,INDIRECT("formatieoverzicht!AF"&(N3+4))=2),lesurenberekening!K15,IF(AND(INDIRECT("formatieoverzicht!AE"&(N3+4))=1,INDIRECT("formatieoverzicht!AF"&(N3+4))=3),lesurenberekening!O15,IF(AND(INDIRECT("formatieoverzicht!AE"&(N3+4))=3,INDIRECT("formatieoverzicht!AF"&(N3+4))=1),lesurenberekening!G15,IF(AND(INDIRECT("formatieoverzicht!AE"&(N3+4))=3,INDIRECT("formatieoverzicht!AF"&(N3+4))=2),lesurenberekening!K15,IF(AND(INDIRECT("formatieoverzicht!AE"&(N3+4))=3,INDIRECT("formatieoverzicht!AF"&(N3+4))=3),lesurenberekening!O15,0)))))) -> 0 | H13: =IF(INDIRECT("formatieoverzicht!AD"&(N3+4))>0,lesurenberekening!E102,0) -> 0.2083333333 | I13: =H13+J13 -> 0.3541666667 | J13: =IF(INDIRECT("formatieoverzicht!AE"&(N3+4))>0,lesurenberekening!G102,0) -> 0.1458333333 | K13: ingezet uit spaarsaldo | L13: + | M13: =INDIRECT("formatieoverzicht!M"&(4+N3)) -> 0 | P13: In rubriek A staat voor ambulante dagdelen een A.
M14: =M10+M11+M12+M13 -> 40 | N14: =SUM(N10:N13) -> 0 | P14: Indien noodzakelijk, kunnen in rubriek A de les- en arbeidsuren hand-
C15: ingeroosterd per week | E15: =E9+G9+E10+G10+E11+G11+E12+G12+E13+G13 -> 0 | I15: =SUM(I9:I13) -> 1.666666667 | P15: matig worden aangepast.
C16: eventuele correctie (zie invoerformulier) | E16: =INDIRECT("formatieoverzicht!AG"&(N3+4)) -> 0 | F16: _ | H16: _ | I16: =INDIRECT("formatieoverzicht!AJ"&(N3+4)) -> 0 | K16: opgenomen verlof d.i. | M16: =INDIRECT("formatieoverzicht!O"&(4+N3)) -> 0
C17: netto ingeroosterd per week | E17: =E15-E16 -> 0 | I17: =I15-I16 -> 1.666666667 | K17: waarvan lesuren | N17: =ROUND(MaxLestaak/1576*M16,0) -> 0 | P17: E + F
C18: x 52 = | E18: =52*E17 -> 0 | I18: =52*I17 -> 86.66666667 | K18: sparen* | L18: _ | M18: =INDIRECT("formatieoverzicht!P"&(4+N3)) -> 0 | P18: Hier kunnen de dagen en uren worden ingevuld waarop het teamlid
B19: =WEEKDAY(CONCATENATE(C19,G4)) -> 1900-01-01 | C19: 29 september | D19: =IF(MOD(G4,4)=0,WEEKDAY(CONCATENATE(C19,G4),2),0) -> 7 | E19: =IF(D19=1,E9+G9,IF(D19=2,E10+G10,IF(D19=3,E11+G11,IF(D19=4,E12+G12,IF(D19=5,E13+G13,0))))) -> 0 | G19: (schrikkeljaar) | I19: =IF(D19=1,I9,IF(D19=2,I10,IF(D19=3,I11,IF(D19=4,I12,IF(D19=5,I13,0))))) -> 0 | K19: (resterend) inzetbaar | M19: =INDIRECT("formatieoverzicht!T"&(4+N3)) -> 40 | P19: individueel extra wordt uit- of ingeroosterd.
B20: =WEEKDAY(CONCATENATE(C20,G4)) -> 1900-01-02 | C20: 30 september | D20: =WEEKDAY(CONCATENATE(C20,G4),2) -> 1 | E20: =IF(D20=1,E9+G9,IF(D20=2,E10+G10,IF(D20=3,E11+G11,IF(D20=4,E12+G12,IF(D20=5,E13+G13,0))))) -> 0 | F20: + | H20: + | I20: =IF(D20=1,I9,IF(D20=2,I10,IF(D20=3,I11,IF(D20=4,I12,IF(D20=5,I13,0))))) -> 0.3541666667
C21: totaal A | E21: =E18+E19+E20 -> 0 | I21: =I18+I19+I20 -> 87.02083333 | K21: ="spaarsaldo eind "&lesurenberekening!E5-1&"/"&lesurenberekening!G5-1 -> spaarsaldo eind 2022/2023 | M21: =INDIRECT("formatieoverzicht!U"&(4+N3)) -> 0 | P21: Vul alle kolommen handmatig in. Denk om de dubbele punt achter de
B22: B hele vakantieweken | P22: uren. Wanneer is afgesproken een aantal dagen door te werken in één
G23: 1e maandag | K23: * Sparen tot 57 jr. : max. 3 jaar; vanaf 57 jr.: max. 5 jaar | P23: of meer vakantieweken, vul je in F het totaal van de arbeidsuren in.
C24: herfstvakantie | D24: =lesurenberekening!D25 -> 1 | E24: =E17*D24 -> 0 | G24: =lesurenberekening!E25 -> 2023-10-16 | I24: =I17*D24 -> 1.666666667 | K24: H ingeroosterde arbeidsuren | M24: wtf 1,0: | N24: =jaartaak -> 1659 | O24: in zelfde verhouding ingeroosterd als een voltijder
C25: kerstvakantie | D25: =lesurenberekening!D26 -> 2 | E25: =E17*D25 -> 0 | G25: =lesurenberekening!E26 -> 2023-12-25 | I25: =I17*D25 -> 3.333333333 | P25: Wanneer je hier bij meerdere teamleden hetzelfde moet invullen, kun je
C26: voorjaarsvakantie | D26: =lesurenberekening!D27 -> 1 | E26: =E17*D26 -> 0 | G26: =lesurenberekening!E27 -> 2024-02-19 | I26: =I17*D26 -> 1.666666667 | K26: bruto arbeidsduur (wtf x 1659) | M26: =ROUND(K5*jaartaak,0) -> 1659 | P26: dat op meerdere teamlidbladen tegelijk in één keer invullen.
C27: meivakantie | D27: =lesurenberekening!D28 -> 2 | E27: =E17*D27 -> 0 | G27: =lesurenberekening!E28 -> 2024-04-29 | I27: =I17*D27 -> 3.333333333 | K27: opgenomen verlof d.i. | L27: _ | M27: =M16 -> 0 | P27: Meer informatie op de website: Vragen-> handig invullen
C28: =lesurenberekening!C29 -> 0 | D28: =lesurenberekening!D29 -> 0 | E28: =E17*D28 -> 0 | G28: =lesurenberekening!E29 -> 00:00:00 | I28: =I17*D28 -> 0 | K28: netto arbeidsduur | M28: =M26-M27 -> 1659
C29: zomervakantie | D29: =lesurenberekening!D30 -> 6 | E29: =E17*D29 -> 0 | G29: =lesurenberekening!E30 -> 2024-07-15 | I29: =I17*D29 -> 10 | K29: ingeroosterd: (A + F) - (B t/m E) | M29: =ROUND(((I21+I73)-(I30+I43+I55+I64))*24,0) -> 1634 | O29: =ROUND(O31*M28,0) -> 0 | P29: G
C30: totaal B | E30: =SUM(E24:E29) -> 0 | I30: =SUM(I24:I29) -> 20 | K30: =IF(lesurenberekening!E117="ja","verschil","") -> verschil | M30: =IF(lesurenberekening!E117="ja",(M29-M28),0) -> -25 | N30: =IF(lesurenberekening!E117="ja",(O30-M30),0) -> 25 | O30: =IF(O29<>0,O29-M28,0) -> 0 | P30: Het aantal lesuren dat een verlof d.i. bevat is gebaseerd op artikel
B31: C hele vakantie- of studiedagen | K31: =IF(lesurenberekening!E117="ja","inroosteringspercentage", "") -> inroosteringspercentage | M31: =ROUND(IF(lesurenberekening!E117="ja",IF(M28>0,M29/M28*100,0),0),1) -> 98.5 | N31: =IF(lesurenberekening!E117="ja","%","") -> % | O31: =lesurenberekening!E112*100&" %" -> 0 % | P31: 8A.6 lid 6 (CAO-PO 2022). Het budget prof. blijft dus ongewijzigd.
B32: =lesurenberekening!B34 ->  | C32: =IF(lesurenberekening!C34="","",lesurenberekening!C34) ->  | D32: =lesurenberekening!D34 -> v | E32: =(INDIRECT("E"&8+F32)+INDIRECT("G"&8+F32)) -> 0 | F32: =WEEKDAY(G32,2) -> 6 | G32: =lesurenberekening!E34 -> 00:00:00 | I32: =IF(D32="v",INDIRECT("I"&8+F32),0) -> 0
B33: =lesurenberekening!B35 ->  | C33: =IF(lesurenberekening!C35="","",lesurenberekening!C35) ->  | D33: =lesurenberekening!D35 -> v | E33: =(INDIRECT("E"&8+F33)+INDIRECT("G"&8+F33)) -> 0 | F33: =WEEKDAY(G33,2) -> 6 | G33: =lesurenberekening!E35 -> 00:00:00 | I33: =IF(D33="v",INDIRECT("I"&8+F33),0) -> 0 | K33: I ingeroosterde lesuren | M33: wtf 1,0: | N33: =MaxLestaak -> 940 | P33: H + I
B34: =lesurenberekening!B36 ->  | C34: =IF(lesurenberekening!C36="","",lesurenberekening!C36) ->  | D34: =lesurenberekening!D36 -> v | E34: =(INDIRECT("E"&8+F34)+INDIRECT("G"&8+F34)) -> 0 | F34: 6 | G34: =lesurenberekening!E36 -> 00:00:00 | I34: =IF(D34="v",INDIRECT("I"&8+F34),0) -> 0 | P34: De weergave van het inroosterverschil en het inroosterpercentage kan
B35: =lesurenberekening!B37 ->  | C35: =IF(lesurenberekening!C37="","",lesurenberekening!C37) ->  | D35: =lesurenberekening!D37 -> v | E35: 0 | F35: 6 | G35: =lesurenberekening!E37 -> 00:00:00 | I35: 0 | K35: maximale lestaak vlg. wtf | M35: =ROUND(K5*MaxLestaak,0) -> 940 | P35: in rubriek G op het eerste werkblad Lesurenberekening aan of uit
B36: =lesurenberekening!B38 ->  | C36: =IF(lesurenberekening!C38="","",lesurenberekening!C38) ->  | D36: =lesurenberekening!D38 -> v | E36: 0 | F36: 6 | G36: =lesurenberekening!E38 -> 00:00:00 | I36: 0 | K36: lesuren opgenomen verlof d.i. | L36: _ | M36: =N17 -> 0 | P36: worden gezet.
B37: =lesurenberekening!B39 ->  | C37: =IF(lesurenberekening!C39="","",lesurenberekening!C39) ->  | D37: =lesurenberekening!D39 -> v | E37: 0 | F37: 6 | G37: =lesurenberekening!E39 -> 00:00:00 | I37: 0 | K37: netto lestaak | M37: =M35-M36 -> 940
B38: =lesurenberekening!B40 ->  | C38: =IF(lesurenberekening!C40="","",lesurenberekening!C40) ->  | D38: =lesurenberekening!D40 -> v | E38: 0 | F38: 6 | G38: =lesurenberekening!E40 -> 00:00:00 | I38: 0 | K38: ingeroosterd: (A + F) - (B t/m E) | L38: _ | M38: =ROUND(((E21+E73)-(E30+E43+E55+E64))*24,0) -> 0 | P38: Wanneer in rubriek G (instellingen) op het eerste werkblad Lesuren-
B39: =lesurenberekening!B41 ->  | C39: =IF(lesurenberekening!C41="","",lesurenberekening!C41) ->  | D39: =lesurenberekening!D41 -> v | E39: 0 | F39: 6 | G39: =lesurenberekening!E41 -> 00:00:00 | I39: 0 | K39: =IF(lesurenberekening!E117="ja","verschil","") -> verschil | M39: =IF(lesurenberekening!E118="ja",M38-M37,"") -> -940 | P39: berekening het plaats- en tijdgebonden inroosterpercentage van de
B40: =lesurenberekening!B42 ->  | C40: =IF(lesurenberekening!C42="","",lesurenberekening!C42) ->  | D40: =lesurenberekening!D42 -> v | E40: 0 | F40: 6 | G40: =lesurenberekening!E42 -> 00:00:00 | I40: 0 | K40: =IF(lesurenberekening!E118="ja"," inroosteringspercentage","") -> inroosteringspercentage | M40: =ROUND(IF(lesurenberekening!E118="ja",IF(M37>0,M38/M37*100,0),0),1) -> 0 | N40: =IF(lesurenberekening!E118="ja","%","") -> % | P40: voltijders is ingevuld, wordt naast rubriek H ter vergelijking het daaraan
B41: =lesurenberekening!B43 ->  | C41: =IF(lesurenberekening!C43="","",lesurenberekening!C43) ->  | D41: =lesurenberekening!D43 -> v | E41: 0 | F41: 6 | G41: =lesurenberekening!E43 -> 00:00:00 | I41: 0 | P41: evenredig aantal in te roosteren arbeidsuren getoond.
B42: =lesurenberekening!B44 ->  | C42: =IF(lesurenberekening!C44="","",lesurenberekening!C44) ->  | D42: =lesurenberekening!D44 -> v | E42: 0 | F42: 6 | G42: =lesurenberekening!E44 -> 00:00:00 | I42: 0 | K42: J opbouw ingeroosterde jaartaak
C43: totaal C | E43: =SUM(E32:E42) -> 0 | I43: =SUM(I32:I42) -> 0 | N43: =IF(M53>0,"na verlof-", "") ->  | P43: J
B44: D overige dagdelen en uren | N44: =IF(M53>0,"opname", "") ->  | P44: overige & ambulante (functie)taken
B45: =IF(G45="","",G45) -> 00:00:00 | C45: =lesurenberekening!C48 -> 0 | D45: =IF(G$7=1,lesurenberekening!G48,IF(G$7=2,lesurenberekening!I48,IF(G$7=3,lesurenberekening!K48,0))) -> 0 | E45: =IF((INDIRECT("E"&8+F45)+INDIRECT("G"&8+F45))<>0,D45,0) -> 0 | F45: =WEEKDAY(G45,2) -> 6 | G45: =lesurenberekening!E48 -> 00:00:00 | I45: =IF(AND(INDIRECT("I"&8+F45)<>0,E45<>0),lesurenberekening!O48,0) -> 0 | K45: budget duurzame inzetbaarheid | M45: =M19 -> 40 | N45: =IF(M53>0,ROUND((N51/M51)*M45,0),M45) -> 40 | O45: =N45 -> 40 | P45: Wanneer er sprake is van ambulante uren, zal het aantal uren dat over-
B46: =IF(G46="","",G46) -> 00:00:00 | C46: =lesurenberekening!C49 -> 0 | D46: =IF(G$7=1,lesurenberekening!G49,IF(G$7=2,lesurenberekening!I49,IF(G$7=3,lesurenberekening!K49,0))) -> 0 | E46: =IF((INDIRECT("E"&8+F46)+INDIRECT("G"&8+F46))<>0,D46,0) -> 0 | F46: =WEEKDAY(G46,2) -> 6 | G46: =lesurenberekening!E49 -> 00:00:00 | I46: =IF(AND(INDIRECT("I"&8+F46)<>0,E46<>0),lesurenberekening!O49,0) -> 0 | K46: budget professionalisering | M46: =ROUND(K5*professionalisering,0) -> 83 | N46: =IF(M53>0,ROUND((N51/M51)*M46,0),M46) -> 83 | O46: =N46 -> 83 | P46: blijft voor de overige taken groter zijn. Onderaan rubriek K kan
B47: =IF(G47="","",G47) -> 00:00:00 | C47: =lesurenberekening!C50 -> 0 | D47: =IF(G$7=1,lesurenberekening!G50,IF(G$7=2,lesurenberekening!I50,IF(G$7=3,lesurenberekening!K50,0))) -> 0 | E47: =IF((INDIRECT("E"&8+F47)+INDIRECT("G"&8+F47))<>0,D47,0) -> 0 | F47: 6 | G47: =lesurenberekening!E50 -> 00:00:00 | I47: =IF(AND(INDIRECT("I"&8+F47)<>0,E47<>0),lesurenberekening!O50,0) -> 0 | K47: ingeroosterde lestaak | M47: =M38 -> 0 | O47: =M47 -> 0 | P47: het aantal uren voor de ambulante taken worden ingevuld; de over-
B48: 00:00:00 | C48: =lesurenberekening!C51 -> 0 | D48: =IF(G$7=1,lesurenberekening!G51,IF(G$7=2,lesurenberekening!I51,IF(G$7=3,lesurenberekening!K51,0))) -> 0 | E48: 0 | F48: 6 | G48: =lesurenberekening!E51 -> 00:00:00 | I48: =IF(AND(INDIRECT("I"&8+F48)<>0,E48<>0),lesurenberekening!O51,0) -> 0 | K48: voor- en nawerk* | M48: =IF(N48=0,ROUND(nawerk*M47,0),ROUND(N48*M47,0)) -> 0 | O48: =M48 -> 0 | P48: blijvende uren gaan dan naar de overige taken (zie rubriek C, pag. 2.).
B49: 00:00:00 | C49: =lesurenberekening!C52 -> 0 | D49: =IF(G$7=1,lesurenberekening!G52,IF(G$7=2,lesurenberekening!I52,IF(G$7=3,lesurenberekening!K52,0))) -> 0 | E49: 0 | F49: 6 | G49: =lesurenberekening!E52 -> 00:00:00 | I49: =IF(AND(INDIRECT("I"&8+F49)<>0,E49<>0),lesurenberekening!O52,0) -> 0 | K49: =IF(COUNTIF(D9:F13,"A")>0,"overige/amb. taken","overige taken") -> overige taken | M49: =M51-(M45+M46+M47+M48) -> 1536 | N49: =IF(M53>0,ROUND((N51/M51)*M49,0),M49) -> 1536 | O49: 100
B50: =IF(G50="","",G50) -> 00:00:00 | C50: =lesurenberekening!C53 -> 0 | D50: =IF(G$7=1,lesurenberekening!G53,IF(G$7=2,lesurenberekening!I53,IF(G$7=3,lesurenberekening!K53,0))) -> 0 | E50: =IF((INDIRECT("E"&8+F50)+INDIRECT("G"&8+F50))<>0,D50,0) -> 0 | F50: 6 | G50: =lesurenberekening!E53 -> 00:00:00 | I50: =IF(AND(INDIRECT("I"&8+F50)<>0,E50<>0),lesurenberekening!O53,0) -> 0 | P50: verlofopname
B51: =IF(G51="","",G51) -> 00:00:00 | C51: =lesurenberekening!C54 -> 0 | D51: =IF(G$7=1,lesurenberekening!G54,IF(G$7=2,lesurenberekening!I54,IF(G$7=3,lesurenberekening!K54,0))) -> 0 | E51: 0 | F51: 6 | G51: =lesurenberekening!E54 -> 00:00:00 | I51: =IF(AND(INDIRECT("I"&8+F51)<>0,E51<>0),lesurenberekening!O54,0) -> 0 | K51: netto arbeidsduur | M51: =M28 -> 1659 | N51: =IF(M53>0,(M51-M53),0) -> 0 | P51: Dit vakje mag slechts in bepaalde gevallen worden ingevuld. Klik op de
B52: =IF(G52="","",G52) -> 00:00:00 | C52: =lesurenberekening!C55 -> 0 | D52: =IF(G$7=1,lesurenberekening!G55,IF(G$7=2,lesurenberekening!I55,IF(G$7=3,lesurenberekening!K55,0))) -> 0 | E52: 0 | F52: 6 | G52: =lesurenberekening!E55 -> 00:00:00 | I52: =IF(AND(INDIRECT("I"&8+F52)<>0,E52<>0),lesurenberekening!O55,0) -> 0 | P52: icoon of houd de muisaanwijzer boven de tooltip voor meer informatie.
B53: =IF(G53="","",G53) -> 00:00:00 | C53: =lesurenberekening!C56 -> 0 | D53: =IF(G$7=1,lesurenberekening!G56,IF(G$7=2,lesurenberekening!I56,IF(G$7=3,lesurenberekening!K56,0))) -> 0 | E53: 0 | F53: 6 | G53: =lesurenberekening!E56 -> 00:00:00 | I53: =IF(AND(INDIRECT("I"&8+F53)<>0,E53<>0),lesurenberekening!O56,0) -> 0 | K53: opname overig verlof dit schooljaar:
B54: 00:00:00 | C54: =lesurenberekening!C57 -> 0 | D54: =IF(G$7=1,lesurenberekening!G57,IF(G$7=2,lesurenberekening!I57,IF(G$7=3,lesurenberekening!K57,0))) -> 0 | E54: 0 | F54: 6 | G54: =lesurenberekening!E57 -> 00:00:00 | I54: =IF(AND(INDIRECT("I"&8+F54)<>0,E54<>0),lesurenberekening!O57,0) -> 0 | K54: *afgesproken reguliere opslagfactor: | M54: =nawerk -> 0 | P54: voor- en nawerk
C55: totaal D | E55: =SUM(E45:E54) -> 0 | I55: =SUM(I45:I54) -> 0 | K55: K d.i. + prof. + overige taken zie pagina 2 | P55: In dit vakje kan een afwijkende individuele opslagfactor worden inge-
B56: E uitgeroosterd | G56: datum | P56: vuld. Dit kan een grótere factor zijn bij beginnnende leerkrachten, of
K57: budget duurzame inzetbaarheid | N57: % | P57: juist een kleinere bij OOP'ers met lesondersteunende taken indien dat
K58: beschikbaar | M58: =N45 -> 40 | N58: ingevuld | P58: is afgesproken.
K59: ingevuld | L59: _ | M59: =M104 -> 0 | N59: =IF(M58>0,M59/M58*100,0) -> 0
K60: =IF(M60<0,"teveel ingepland","nog beschikbaar") -> nog beschikbaar | M60: =N105 -> 40 | P60: K
P61: Hier zie je in hoeverre de uren van deze drie taakonderdelen al met
K62: budget professionalisering | P62: activiteiten zijn gevuld op de tweede pagina van dit teamlidblad.
K63: beschikbaar | M63: =N46 -> 83 | P63: Dit is ook te zien geheel rechts op het Formatieoverzicht.
C64: totaal E | E64: =SUM(E57:E63) -> 0 | I64: =SUM(I57:I63) -> 0 | K64: ingevuld | L64: _ | M64: =M123 -> 0 | N64: =IF(M63>0,M64/M63*100,0) -> 0
B65: F ingeroosterd | G65: datum | K65: =IF(M65<0,"teveel ingepland","nog beschikbaar") -> nog beschikbaar | M65: =N124 -> 83 | P65: ambulante functietaken
C66: 3 dagen in zomervakantie | I66: 1.0625 | P66: Bij (deels) ambulante teamleden moeten de overblijvende uren verdeeld
K67: =K49 -> overige taken | P67: worden over de ambulante functietaken en de overige taken.
K68: beschikbaar | M68: =N49-M72 -> 1536 | P68: Vul, indien van toepassing, hier de uren voor de ambulante taken in, óf
K69: ingevuld | L69: _ | M69: =M157 -> 0 | N69: =IF(M68>0,M69/M68*100,0) -> 0 | P69: vul de verdeling op pag. 2 in rubriek C in (dus niet in beide tegelijk!).
K70: =IF(M70<0,"teveel ingepland","nog beschikbaar") -> nog beschikbaar | M70: =N158 -> 1536
K72: ambulante functietaken: | P72: opmerkingenvak
C73: totaal F | E73: =SUM(E66:E72) -> 0 | I73: =SUM(I66:I72) -> 1.0625 | P73: Druk op Alt+Enter voor een nieuwe regel.
B74: opmerkingen | P74: Dubbelklik op het vak wanneer niet de hele tekst zichtbaar is. Alleen het
P75: zichtbare deel wordt afgedrukt.
G81: 2e pagina | P81: Teamlidblad 2e pagina
B83: OVERZICHT GEPLANDE TAKEN EN ACTIVITEITEN DUURZAME INZETBAARHEID, PROFESSIONALISERING EN OVERIGE TAKEN | P83: Overzicht uren d.i., professionalisering en overige taken
P84: Op deze pagina worden de geplande activiteiten en uren ingevuld.
C85: schooljaar | E85: =E4 -> 2023 | F85: / | G85: =G4 -> 2024 | H85: naam: | K85: =K3 -> naam voltijder | P85: Een regel moet aan de linkerkant geselecteerd worden om in te vullen.
P86: De uren worden hier als gewone hele getallen ingevoerd zonder
P87: dubbele punt.
B88: A | C88: duurzame inzetbaarheid | K88: beschikbaar: | M88: uren | N88: =N45 -> 40
B89: 1 | P89: invoerformulier voor de activiteiten
B90: 2 | P90: Voor het maken van overzichten is het noodzakelijk dat activiteiten
B91: 3 | P91: uniform gespeld worden. Bovendien worden de overzichten gemaakt
B92: 4 | P92: op basis van de drie lijsten (zie de drie tabs onderaan het scherm).
B93: 5 | P93: Voer activiteiten daarom altijd zoveel mogelijk in via het activiteiten-
B94: 6 | P94: invoerformulier. Je roept dit formulier op door op een willekeurige plek
B95: 7 | P95: op de nummerrij te klikken.
B96: 8
B97: 9 | P97: HET ACTIVITEITEN INVOERFORMULIER
B98: 10
B99: 11 | P99: Onderstaande informatie vind je ook door op de informatie-icoontjes op
B100: 12 | P100: het invoerformulier te klikken.
B101: 13
B102: 14 | P102: Lijstitem aan teamblad toevoegen
B103: 15 | P103: > Roep het formulier op door op de nummerrij te klikken en selecteer in
K104: totaal : | M104: =SUM(M89:M103) -> 0 | P104: het vak Lijstkeuze de betreffende lijst.
K105: nog beschikbaar: | N105: =N88-M104 -> 40 | P105: > Klik op het pijltje aan het eind van de lege regel; de lijst verschijnt.
P106: > Selecteer een activiteit en klik in het vak Teamblad A, B of C de
B107: B | C107: professionalisering | K107: beschikbaar: | N107: =N46 -> 83 | P107: rubriek waaraan je de activiteit wilt toevoegen.
B108: 1 | P108: > Klik tenslotte op de knop Toevoegen aan teamlidblad.
B109: 2
B110: 3 | P110: Uren wijzigen
B111: 4 | P111: De eventueel vermelde uren kunnen voordat de activiteit aan het team-
B112: 5 | P112: lidblad wordt toegevoegd worden gewijzigd. Er moeten altijd uren zijn
B113: 6 | P113: ingevuld.
B114: 7
B115: 8 | P115: Nieuwe items aan een lijst én het teamlidblad toevoegen
B116: 9 | P116: Nieuwe activiteiten kunnen gelijktijdig aan een lijst én aan een rubriek
B117: 10 | P117: op het teamlidblad worden toegevoegd:
B118: 11 | P118: > Selecteer in het vak Lijstkeuze een lijst en vul op de lege regel een
B119: 12 | P119: activiteit in.
B120: 13 | P120: > Klik vervolgens op Toevoegen aan lijst.
B121: 14 | P121: > Selecteer daarna in het vak daaronder de betreffende rubriek en
B122: 15 | P122: tenslotte op Toevoegen aan teamlidblad.
K123: totaal : | M123: =SUM(M108:M122) -> 0
K124: nog beschikbaar: | N124: =N107-M123 -> 83 | P124: De lijsten kunnen ook direct op de lijst zelf worden ingevuld. Aangeleg-
P125: de lijsten kunnen bij het ingebruiknemen van een nieuwe planner uit de
B126: C | C126: =K49 -> overige taken | K126: beschikbaar: | N126: =M68 -> 1536 | P126: oude planner met enkele muisklikken geïmporteerd worden.
B127: 1
B128: 2 | P128: sortering
B129: 3 | P129: Bij gebruik van het invoerformulier worden de items automatisch
B130: 4 | P130: gesorteerd. Sorteer bij rechtstreeks invullen door op de sorteerpijlen
B131: 5 | P131: bovenaan de pagina te klikken.
B132: 6
B133: 7 | P133: overzicht per activiteit
B134: 8 | P134: Met het invoerformulier kan ook een overzicht worden gemaakt van de
B135: 9 | P135: teamleden die eenzelfde activiteit hebben:
B136: 10 | P136: > Kies een lijst en een activiteit.
B137: 11 | P137: > Klik nu op de knop Teamoverzicht.
B138: 12 | P138: > Het overzicht wordt onderaan de gekozen lijst getoond.
B139: 13
B140: 14 | P140: overzicht alle activiteiten en alle teamleden
B141: 15 | P141: Op het werkblad act.overzicht kun je een totaaloverzicht maken van alle
B142: 16 | P142: activiteiten en teamleden. Een lege lijst kun je aan het begin van het
B143: 17 | P143: werkverdelingstraject als intekenlijst voor de overige taken gebruiken.
B144: 18
B145: 19 | P145: Let op:
B146: 20 | P146: De op deze pagina vermelde activiteiten en uren zijn een specificatie
B147: 21 | P147: van de op de eerste pagina berekende uren voor deze drie taak-
B148: 22 | P148: onderdelen. Er mogen dus niet méér uren worden ingepland dan er
B149: 23 | P149: beschikbaar zijn. Het aantal teveel ingeplande uren wordt in het rood
B150: 24 | P150: afgedrukt.
B151: 25
B152: 26
B153: 27
B154: 28
B155: 29
B156: 30
K157: totaal : | M157: =SUM(M127:M156) -> 0
K158: nog beschikbaar: | N158: =N126-M157 -> 1536

Sheet 2 (hidden)
B2: TAAKBEREKENING OP/OOP met lesondersteunende taken | K2: © taakberekeningPO.nl | P2: toelichting teamlidblad OP en OOP met lesondersteunende taken
C3: =lesurenberekening!I5 -> 0 | H3: naam: | K3: =INDIRECT("formatieoverzicht!C"&(4+N3)) -> 0 | N3: =MID(CELL("bestandsnaam",A1),SEARCH("]",CELL("bestandsnaam",A1),1)+1,99) -> 2
E4: =lesurenberekening!E5 -> 2023 | F4: / | G4: =lesurenberekening!G5 -> 2024 | H4: aanstelling: | K4: =INDIRECT("formatieoverzicht!D"&(4+N3)) -> 0
H5: wtf: | K5: =INDIRECT("formatieoverzicht!E"&(4+N3)) -> 0 | P5: Klik op dit icoon voor meer informatie
B6: OVERZICHT IN- EN UITGEROOSTERDE LES- EN ARBEIDSUREN | K6: OVERZICHT JAARTAAK
B7: A jaartotaal les- en arbeidsuren | E7: lestijd bouw: | G7: =INDIRECT("formatieoverzicht!"&"AF"&N3+4) -> 0 | I7: arbeidsuren | K7: G budget duurzame inzetbaarheid | P7: Dit teamlidblad is voor het OP en OOP met lesondersteunende taken, | S7: ='2'!S6 -> 0
E8: o | G8: m | P8: zoals een klassen- of onderwijsassistent.
C9: maandag | D9: =IF(INDIRECT("formatieoverzicht!V"&(N3+4))=2,"A","") ->  | E9: =IF(AND(INDIRECT("formatieoverzicht!V"&(N3+4))=1,INDIRECT("formatieoverzicht!AF"&(N3+4))=1),lesurenberekening!E11,IF(AND(INDIRECT("formatieoverzicht!V"&(N3+4))=1,INDIRECT("formatieoverzicht!AF"&(N3+4))=2),lesurenberekening!I11,IF(AND(INDIRECT("formatieoverzicht!V"&(N3+4))=1,INDIRECT("formatieoverzicht!AF"&(N3+4))=3),lesurenberekening!M11,IF(AND(INDIRECT("formatieoverzicht!V"&(N3+4))=3,INDIRECT("formatieoverzicht!AF"&(N3+4))=1),lesurenberekening!E11,IF(AND(INDIRECT("formatieoverzicht!V"&(N3+4))=3,INDIRECT("formatieoverzicht!AF"&(N3+4))=2),lesurenberekening!I11,IF(AND(INDIRECT("formatieoverzicht!V"&(N3+4))=3,INDIRECT("formatieoverzicht!AF"&(N3+4))=3),lesurenberekening!M11,0)))))) -> 0 | F9: =IF(INDIRECT("formatieoverzicht!W"&(N3+4))=2,"A","") ->  | G9: =IF(AND(INDIRECT("formatieoverzicht!W"&(N3+4))=1,INDIRECT("formatieoverzicht!AF"&(N3+4))=1),lesurenberekening!G11,IF(AND(INDIRECT("formatieoverzicht!W"&(N3+4))=1,INDIRECT("formatieoverzicht!AF"&(N3+4))=2),lesurenberekening!K11,IF(AND(INDIRECT("formatieoverzicht!W"&(N3+4))=1,INDIRECT("formatieoverzicht!AF"&(N3+4))=3),lesurenberekening!O11,IF(AND(INDIRECT("formatieoverzicht!W"&(N3+4))=3,INDIRECT("formatieoverzicht!AF"&(N3+4))=1),lesurenberekening!G11,IF(AND(INDIRECT("formatieoverzicht!W"&(N3+4))=3,INDIRECT("formatieoverzicht!AF"&(N3+4))=2),lesurenberekening!K11,IF(AND(INDIRECT("formatieoverzicht!W"&(N3+4))=3,INDIRECT("formatieoverzicht!AF"&(N3+4))=3),lesurenberekening!O11,0)))))) -> 0 | H9: =IF(INDIRECT("formatieoverzicht!V"&(N3+4))>0,lesurenberekening!E98,0) -> 0 | I9: =H9+J9 -> 0 | J9: =IF(INDIRECT("formatieoverzicht!W"&(N3+4))>0,lesurenberekening!G98,0) -> 0 | M9: opbouw | N9: opname
C10: dinsdag | D10: =IF(INDIRECT("formatieoverzicht!X"&(N3+4))=2,"A","") ->  | E10: =IF(AND(INDIRECT("formatieoverzicht!X"&(N3+4))=1,INDIRECT("formatieoverzicht!AF"&(N3+4))=1),lesurenberekening!E12,IF(AND(INDIRECT("formatieoverzicht!X"&(N3+4))=1,INDIRECT("formatieoverzicht!AF"&(N3+4))=2),lesurenberekening!I12,IF(AND(INDIRECT("formatieoverzicht!X"&(N3+4))=1,INDIRECT("formatieoverzicht!AF"&(N3+4))=3),lesurenberekening!M12,IF(AND(INDIRECT("formatieoverzicht!X"&(N3+4))=3,INDIRECT("formatieoverzicht!AF"&(N3+4))=1),lesurenberekening!E12,IF(AND(INDIRECT("formatieoverzicht!X"&(N3+4))=3,INDIRECT("formatieoverzicht!AF"&(N3+4))=2),lesurenberekening!I12,IF(AND(INDIRECT("formatieoverzicht!X"&(N3+4))=3,INDIRECT("formatieoverzicht!AF"&(N3+4))=3),lesurenberekening!M12,0)))))) -> 0 | F10: =IF(INDIRECT("formatieoverzicht!Y"&(N3+4))=2,"A","") ->  | G10: =IF(AND(INDIRECT("formatieoverzicht!Y"&(N3+4))=1,INDIRECT("formatieoverzicht!AF"&(N3+4))=1),lesurenberekening!G12,IF(AND(INDIRECT("formatieoverzicht!Y"&(N3+4))=1,INDIRECT("formatieoverzicht!AF"&(N3+4))=2),lesurenberekening!K12,IF(AND(INDIRECT("formatieoverzicht!Y"&(N3+4))=1,INDIRECT("formatieoverzicht!AF"&(N3+4))=3),lesurenberekening!O12,IF(AND(INDIRECT("formatieoverzicht!Y"&(N3+4))=3,INDIRECT("formatieoverzicht!AF"&(N3+4))=1),lesurenberekening!G12,IF(AND(INDIRECT("formatieoverzicht!Y"&(N3+4))=3,INDIRECT("formatieoverzicht!AF"&(N3+4))=2),lesurenberekening!K12,IF(AND(INDIRECT("formatieoverzicht!Y"&(N3+4))=3,INDIRECT("formatieoverzicht!AF"&(N3+4))=3),lesurenberekening!O12,0)))))) -> 0 | H10: =IF(INDIRECT("formatieoverzicht!X"&(N3+4))>0,lesurenberekening!E99,0) -> 0 | I10: =H10+J10 -> 0 | J10: =IF(INDIRECT("formatieoverzicht!Y"&(N3+4))>0,lesurenberekening!G99,0) -> 0 | K10: basisbudget | M10: =INDIRECT("formatieoverzicht!J"&(4+N3)) -> 0 | N10: =INDIRECT("formatieoverzicht!Q"&(4+N3)) -> 0 | P10: A tm D
C11: woensdag | D11: =IF(INDIRECT("formatieoverzicht!Z"&(N3+4))=2,"A","") ->  | E11: =IF(AND(INDIRECT("formatieoverzicht!Z"&(N3+4))=1,INDIRECT("formatieoverzicht!AF"&(N3+4))=1),lesurenberekening!E13,IF(AND(INDIRECT("formatieoverzicht!Z"&(N3+4))=1,INDIRECT("formatieoverzicht!AF"&(N3+4))=2),lesurenberekening!I13,IF(AND(INDIRECT("formatieoverzicht!Z"&(N3+4))=1,INDIRECT("formatieoverzicht!AF"&(N3+4))=3),lesurenberekening!M13,IF(AND(INDIRECT("formatieoverzicht!Z"&(N3+4))=3,INDIRECT("formatieoverzicht!AF"&(N3+4))=1),lesurenberekening!E13,IF(AND(INDIRECT("formatieoverzicht!Z"&(N3+4))=3,INDIRECT("formatieoverzicht!AF"&(N3+4))=2),lesurenberekening!I13,IF(AND(INDIRECT("formatieoverzicht!Z"&(N3+4))=3,INDIRECT("formatieoverzicht!AF"&(N3+4))=3),lesurenberekening!M13,0)))))) -> 0 | F11: =IF(INDIRECT("formatieoverzicht!AA"&(N3+4))=2,"A","") ->  | G11: =IF(AND(INDIRECT("formatieoverzicht!AA"&(N3+4))=1,INDIRECT("formatieoverzicht!AF"&(N3+4))=1),lesurenberekening!G13,IF(AND(INDIRECT("formatieoverzicht!AA"&(N3+4))=1,INDIRECT("formatieoverzicht!AF"&(N3+4))=2),lesurenberekening!K13,IF(AND(INDIRECT("formatieoverzicht!AA"&(N3+4))=1,INDIRECT("formatieoverzicht!AF"&(N3+4))=3),lesurenberekening!O13,IF(AND(INDIRECT("formatieoverzicht!AA"&(N3+4))=3,INDIRECT("formatieoverzicht!AF"&(N3+4))=1),lesurenberekening!G13,IF(AND(INDIRECT("formatieoverzicht!AA"&(N3+4))=3,INDIRECT("formatieoverzicht!AF"&(N3+4))=2),lesurenberekening!K13,IF(AND(INDIRECT("formatieoverzicht!AA"&(N3+4))=3,INDIRECT("formatieoverzicht!AF"&(N3+4))=3),lesurenberekening!O13,0)))))) -> 0 | H11: =IF(INDIRECT("formatieoverzicht!Z"&(N3+4))>0,lesurenberekening!E100,0) -> 0 | I11: =H11+J11 -> 0 | J11: =IF(INDIRECT("formatieoverzicht!AA"&(N3+4))>0,lesurenberekening!G100,0) -> 0 | K11: bijzonder budget | M11: =INDIRECT("formatieoverzicht!K"&(4+N3)) -> 0 | N11: =INDIRECT("formatieoverzicht!R"&(4+N3)) -> 0 | P11: In deze rubrieken is alles automatisch berekend.
C12: donderdag | D12: =IF(INDIRECT("formatieoverzicht!AB"&(N3+4))=2,"A","") ->  | E12: =IF(AND(INDIRECT("formatieoverzicht!AB"&(N3+4))=1,INDIRECT("formatieoverzicht!AF"&(N3+4))=1),lesurenberekening!E14,IF(AND(INDIRECT("formatieoverzicht!AB"&(N3+4))=1,INDIRECT("formatieoverzicht!AF"&(N3+4))=2),lesurenberekening!I14,IF(AND(INDIRECT("formatieoverzicht!AB"&(N3+4))=1,INDIRECT("formatieoverzicht!AF"&(N3+4))=3),lesurenberekening!M14,IF(AND(INDIRECT("formatieoverzicht!AB"&(N3+4))=3,INDIRECT("formatieoverzicht!AF"&(N3+4))=1),lesurenberekening!E14,IF(AND(INDIRECT("formatieoverzicht!AB"&(N3+4))=3,INDIRECT("formatieoverzicht!AF"&(N3+4))=2),lesurenberekening!I14,IF(AND(INDIRECT("formatieoverzicht!AB"&(N3+4))=3,INDIRECT("formatieoverzicht!AF"&(N3+4))=3),lesurenberekening!M14,0)))))) -> 0 | F12: =IF(INDIRECT("formatieoverzicht!AC"&(N3+4))=2,"A","") ->  | G12: =IF(AND(INDIRECT("formatieoverzicht!AC"&(N3+4))=1,INDIRECT("formatieoverzicht!AF"&(N3+4))=1),lesurenberekening!G14,IF(AND(INDIRECT("formatieoverzicht!AC"&(N3+4))=1,INDIRECT("formatieoverzicht!AF"&(N3+4))=2),lesurenberekening!K14,IF(AND(INDIRECT("formatieoverzicht!AC"&(N3+4))=1,INDIRECT("formatieoverzicht!AF"&(N3+4))=3),lesurenberekening!O14,IF(AND(INDIRECT("formatieoverzicht!AC"&(N3+4))=3,INDIRECT("formatieoverzicht!AF"&(N3+4))=1),lesurenberekening!G14,IF(AND(INDIRECT("formatieoverzicht!AC"&(N3+4))=3,INDIRECT("formatieoverzicht!AF"&(N3+4))=2),lesurenberekening!K14,IF(AND(INDIRECT("formatieoverzicht!AC"&(N3+4))=3,INDIRECT("formatieoverzicht!AF"&(N3+4))=3),lesurenberekening!O14,0)))))) -> 0 | H12: =IF(INDIRECT("formatieoverzicht!AB"&(N3+4))>0,lesurenberekening!E101,0) -> 0 | I12: =H12+J12 -> 0 | J12: =IF(INDIRECT("formatieoverzicht!AC"&(N3+4))>0,lesurenberekening!G101,0) -> 0 | K12: overgangsbudget | M12: =INDIRECT("formatieoverzicht!L"&(4+N3)) -> 0 | N12: =INDIRECT("formatieoverzicht!S"&(4+N3)) -> 0
C13: vrijdag | D13: =IF(INDIRECT("formatieoverzicht!AD"&(N3+4))=2,"A","") ->  | E13: =IF(AND(INDIRECT("formatieoverzicht!AD"&(N3+4))=1,INDIRECT("formatieoverzicht!AF"&(N3+4))=1),lesurenberekening!E15,IF(AND(INDIRECT("formatieoverzicht!AD"&(N3+4))=1,INDIRECT("formatieoverzicht!AF"&(N3+4))=2),lesurenberekening!I15,IF(AND(INDIRECT("formatieoverzicht!AD"&(N3+4))=1,INDIRECT("formatieoverzicht!AF"&(N3+4))=3),lesurenberekening!M15,IF(AND(INDIRECT("formatieoverzicht!AD"&(N3+4))=3,INDIRECT("formatieoverzicht!AF"&(N3+4))=1),lesurenberekening!E15,IF(AND(INDIRECT("formatieoverzicht!AD"&(N3+4))=3,INDIRECT("formatieoverzicht!AF"&(N3+4))=2),lesurenberekening!I15,IF(AND(INDIRECT("formatieoverzicht!AD"&(N3+4))=3,INDIRECT("formatieoverzicht!AF"&(N3+4))=3),lesurenberekening!M15,0)))))) -> 0 | F13: =IF(INDIRECT("formatieoverzicht!AE"&(N3+4))=2,"A","") ->  | G13: =IF(AND(INDIRECT("formatieoverzicht!AE"&(N3+4))=1,INDIRECT("formatieoverzicht!AF"&(N3+4))=1),lesurenberekening!G15,IF(AND(INDIRECT("formatieoverzicht!AE"&(N3+4))=1,INDIRECT("formatieoverzicht!AF"&(N3+4))=2),lesurenberekening!K15,IF(AND(INDIRECT("formatieoverzicht!AE"&(N3+4))=1,INDIRECT("formatieoverzicht!AF"&(N3+4))=3),lesurenberekening!O15,IF(AND(INDIRECT("formatieoverzicht!AE"&(N3+4))=3,INDIRECT("formatieoverzicht!AF"&(N3+4))=1),lesurenberekening!G15,IF(AND(INDIRECT("formatieoverzicht!AE"&(N3+4))=3,INDIRECT("formatieoverzicht!AF"&(N3+4))=2),lesurenberekening!K15,IF(AND(INDIRECT("formatieoverzicht!AE"&(N3+4))=3,INDIRECT("formatieoverzicht!AF"&(N3+4))=3),lesurenberekening!O15,0)))))) -> 0 | H13: =IF(INDIRECT("formatieoverzicht!AD"&(N3+4))>0,lesurenberekening!E102,0) -> 0 | I13: =H13+J13 -> 0 | J13: =IF(INDIRECT("formatieoverzicht!AE"&(N3+4))>0,lesurenberekening!G102,0) -> 0 | K13: ingezet uit spaarsaldo | L13: + | M13: =INDIRECT("formatieoverzicht!M"&(4+N3)) -> 0 | P13: In rubriek A staat voor ambulante dagdelen een A.
M14: =M10+M11+M12+M13 -> 0 | N14: =SUM(N10:N13) -> 0 | P14: Indien noodzakelijk, kunnen in rubriek A de les- en arbeidsuren hand-
C15: ingeroosterd per week | E15: =E9+G9+E10+G10+E11+G11+E12+G12+E13+G13 -> 0 | I15: =SUM(I9:I13) -> 0 | P15: matig worden aangepast.
C16: eventuele correctie (zie invoerformulier) | E16: =INDIRECT("formatieoverzicht!AG"&(N3+4)) -> 0 | F16: _ | H16: _ | I16: =INDIRECT("formatieoverzicht!AJ"&(N3+4)) -> 0 | K16: opgenomen verlof d.i. | M16: =INDIRECT("formatieoverzicht!O"&(4+N3)) -> 0
C17: netto ingeroosterd per week | E17: =E15-E16 -> 0 | I17: =I15-I16 -> 0 | K17: waarvan lesuren | N17: =ROUND(MaxLestaak/1576*M16,0) -> 0 | P17: E + F
C18: x 52 = | E18: =52*E17 -> 0 | I18: =52*I17 -> 0 | K18: sparen* | L18: _ | M18: =INDIRECT("formatieoverzicht!P"&(4+N3)) -> 0 | P18: Hier kunnen de dagen en uren worden ingevuld waarop het teamlid
B19: =WEEKDAY(CONCATENATE(C19,G4)) -> 1900-01-01 | C19: 29 september | D19: =IF(MOD(G4,4)=0,WEEKDAY(CONCATENATE(C19,G4),2),0) -> 7 | E19: =IF(D19=1,E9+G9,IF(D19=2,E10+G10,IF(D19=3,E11+G11,IF(D19=4,E12+G12,IF(D19=5,E13+G13,0))))) -> 0 | G19: (schrikkeljaar) | I19: =IF(D19=1,I9,IF(D19=2,I10,IF(D19=3,I11,IF(D19=4,I12,IF(D19=5,I13,0))))) -> 0 | K19: (resterend) inzetbaar | M19: =INDIRECT("formatieoverzicht!T"&(4+N3)) -> 0 | P19: individueel extra wordt uit- of ingeroosterd.
B20: =WEEKDAY(CONCATENATE(C20,G4)) -> 1900-01-02 | C20: 30 september | D20: =WEEKDAY(CONCATENATE(C20,G4),2) -> 1 | E20: =IF(D20=1,E9+G9,IF(D20=2,E10+G10,IF(D20=3,E11+G11,IF(D20=4,E12+G12,IF(D20=5,E13+G13,0))))) -> 0 | F20: + | H20: + | I20: =IF(D20=1,I9,IF(D20=2,I10,IF(D20=3,I11,IF(D20=4,I12,IF(D20=5,I13,0))))) -> 0
C21: totaal A | E21: =E18+E19+E20 -> 0 | I21: =I18+I19+I20 -> 0 | K21: ="spaarsaldo eind "&lesurenberekening!E5-1&"/"&lesurenberekening!G5-1 -> spaarsaldo eind 2022/2023 | M21: =INDIRECT("formatieoverzicht!U"&(4+N3)) -> 0 | P21: Vul alle kolommen handmatig in. Denk om de dubbele punt achter de
B22: B hele vakantieweken | P22: uren. Wanneer is afgesproken een aantal dagen door te werken in één
G23: 1e maandag | K23: * Sparen tot 57 jr. : max. 3 jaar; vanaf 57 jr.: max. 5 jaar | P23: of meer vakantieweken, vul je in F het totaal van de arbeidsuren in.
C24: herfstvakantie | D24: =lesurenberekening!D25 -> 1 | E24: =E17*D24 -> 0 | G24: =lesurenberekening!E25 -> 2023-10-16 | I24: =I17*D24 -> 0 | K24: H ingeroosterde arbeidsuren | M24: wtf 1,0: | N24: =jaartaak -> 1659 | O24: in zelfde verhouding ingeroosterd als een voltijder
C25: kerstvakantie | D25: =lesurenberekening!D26 -> 2 | E25: =E17*D25 -> 0 | G25: =lesurenberekening!E26 -> 2023-12-25 | I25: =I17*D25 -> 0 | P25: Wanneer je hier bij meerdere teamleden hetzelfde moet invullen, kun je
C26: voorjaarsvakantie | D26: =lesurenberekening!D27 -> 1 | E26: =E17*D26 -> 0 | G26: =lesurenberekening!E27 -> 2024-02-19 | I26: =I17*D26 -> 0 | K26: bruto arbeidsduur (wtf x 1659) | M26: =ROUND(K5*jaartaak,0) -> 0 | P26: dat op meerdere teamlidbladen tegelijk in één keer invullen.
C27: meivakantie | D27: =lesurenberekening!D28 -> 2 | E27: =E17*D27 -> 0 | G27: =lesurenberekening!E28 -> 2024-04-29 | I27: =I17*D27 -> 0 | K27: opgenomen verlof d.i. | L27: _ | M27: =M16 -> 0 | P27: Meer informatie op de website: Vragen-> handig invullen
C28: =lesurenberekening!C29 -> 0 | D28: =lesurenberekening!D29 -> 0 | E28: =E17*D28 -> 0 | G28: =lesurenberekening!E29 -> 00:00:00 | I28: =I17*D28 -> 0 | K28: netto arbeidsduur | M28: =M26-M27 -> 0
C29: zomervakantie | D29: =lesurenberekening!D30 -> 6 | E29: =E17*D29 -> 0 | G29: =lesurenberekening!E30 -> 2024-07-15 | I29: =I17*D29 -> 0 | K29: ingeroosterd: (A + F) - (B t/m E) | M29: =ROUND(((I21+I73)-(I30+I43+I55+I64))*24,0) -> 0 | O29: =ROUND(O31*M28,0) -> 0 | P29: G
C30: totaal B | E30: =SUM(E24:E29) -> 0 | I30: =SUM(I24:I29) -> 0 | K30: =IF(lesurenberekening!E117="ja","verschil","") -> verschil | M30: =IF(lesurenberekening!E117="ja",(M29-M28),0) -> 0 | N30: =IF(lesurenberekening!E117="ja",(O30-M30),0) -> 0 | O30: =IF(O29<>0,O29-M28,0) -> 0 | P30: Het aantal lesuren dat een verlof d.i. bevat is gebaseerd op artikel
B31: C hele vakantie- of studiedagen | K31: =IF(lesurenberekening!E117="ja","inroosteringspercentage", "") -> inroosteringspercentage | M31: =ROUND(IF(lesurenberekening!E117="ja",IF(M28>0,M29/M28*100,0),0),1) -> 0 | N31: =IF(lesurenberekening!E117="ja","%","") -> % | O31: =lesurenberekening!E112*100&" %" -> 0 % | P31: 8A.6 lid 6 (CAO-PO 2022). Het budget prof. blijft dus ongewijzigd.
B32: =lesurenberekening!B34 ->  | C32: =IF(lesurenberekening!C34="","",lesurenberekening!C34) ->  | D32: =lesurenberekening!D34 -> v | E32: =(INDIRECT("E"&8+F32)+INDIRECT("G"&8+F32)) -> 0 | F32: =WEEKDAY(G32,2) -> 6 | G32: =lesurenberekening!E34 -> 00:00:00 | I32: =IF(D32="v",INDIRECT("I"&8+F32),0) -> 0
B33: =lesurenberekening!B35 ->  | C33: =IF(lesurenberekening!C35="","",lesurenberekening!C35) ->  | D33: =lesurenberekening!D35 -> v | E33: =(INDIRECT("E"&8+F33)+INDIRECT("G"&8+F33)) -> 0 | F33: =WEEKDAY(G33,2) -> 6 | G33: =lesurenberekening!E35 -> 00:00:00 | I33: =IF(D33="v",INDIRECT("I"&8+F33),0) -> 0 | K33: I ingeroosterde lesuren | M33: wtf 1,0: | N33: =MaxLestaak -> 940 | P33: H + I
B34: =lesurenberekening!B36 ->  | C34: =IF(lesurenberekening!C36="","",lesurenberekening!C36) ->  | D34: =lesurenberekening!D36 -> v | E34: =(INDIRECT("E"&8+F34)+INDIRECT("G"&8+F34)) -> 0 | F34: 6 | G34: =lesurenberekening!E36 -> 00:00:00 | I34: =IF(D34="v",INDIRECT("I"&8+F34),0) -> 0 | P34: De weergave van het inroosterverschil en het inroosterpercentage kan
B35: =lesurenberekening!B37 ->  | C35: =IF(lesurenberekening!C37="","",lesurenberekening!C37) ->  | D35: =lesurenberekening!D37 -> v | E35: 0 | F35: 6 | G35: =lesurenberekening!E37 -> 00:00:00 | I35: 0 | K35: maximale lestaak vlg. wtf | M35: =ROUND(K5*MaxLestaak,0) -> 0 | P35: in rubriek G op het eerste werkblad Lesurenberekening aan of uit
B36: =lesurenberekening!B38 ->  | C36: =IF(lesurenberekening!C38="","",lesurenberekening!C38) ->  | D36: =lesurenberekening!D38 -> v | E36: 0 | F36: 6 | G36: =lesurenberekening!E38 -> 00:00:00 | I36: 0 | K36: lesuren opgenomen verlof d.i. | L36: _ | M36: =N17 -> 0 | P36: worden gezet.
B37: =lesurenberekening!B39 ->  | C37: =IF(lesurenberekening!C39="","",lesurenberekening!C39) ->  | D37: =lesurenberekening!D39 -> v | E37: 0 | F37: 6 | G37: =lesurenberekening!E39 -> 00:00:00 | I37: 0 | K37: netto lestaak | M37: =M35-M36 -> 0
B38: =lesurenberekening!B40 ->  | C38: =IF(lesurenberekening!C40="","",lesurenberekening!C40) ->  | D38: =lesurenberekening!D40 -> v | E38: 0 | F38: 6 | G38: =lesurenberekening!E40 -> 00:00:00 | I38: 0 | K38: ingeroosterd: (A + F) - (B t/m E) | L38: _ | M38: =ROUND(((E21+E73)-(E30+E43+E55+E64))*24,0) -> 0 | P38: Wanneer in rubriek G (instellingen) op het eerste werkblad Lesuren-
B39: =lesurenberekening!B41 ->  | C39: =IF(lesurenberekening!C41="","",lesurenberekening!C41) ->  | D39: =lesurenberekening!D41 -> v | E39: 0 | F39: 6 | G39: =lesurenberekening!E41 -> 00:00:00 | I39: 0 | K39: =IF(lesurenberekening!E117="ja","verschil","") -> verschil | M39: =IF(lesurenberekening!E118="ja",M38-M37,"") -> 0 | P39: berekening het plaats- en tijdgebonden inroosterpercentage van de
B40: =lesurenberekening!B42 ->  | C40: =IF(lesurenberekening!C42="","",lesurenberekening!C42) ->  | D40: =lesurenberekening!D42 -> v | E40: 0 | F40: 6 | G40: =lesurenberekening!E42 -> 00:00:00 | I40: 0 | K40: =IF(lesurenberekening!E118="ja"," inroosteringspercentage","") -> inroosteringspercentage | M40: =ROUND(IF(lesurenberekening!E118="ja",IF(M37>0,M38/M37*100,0),0),1) -> 0 | N40: =IF(lesurenberekening!E118="ja","%","") -> % | P40: voltijders is ingevuld, wordt naast rubriek H ter vergelijking het daaraan
B41: =lesurenberekening!B43 ->  | C41: =IF(lesurenberekening!C43="","",lesurenberekening!C43) ->  | D41: =lesurenberekening!D43 -> v | E41: 0 | F41: 6 | G41: =lesurenberekening!E43 -> 00:00:00 | I41: 0 | P41: evenredig aantal in te roosteren arbeidsuren getoond.
B42: =lesurenberekening!B44 ->  | C42: =IF(lesurenberekening!C44="","",lesurenberekening!C44) ->  | D42: =lesurenberekening!D44 -> v | E42: 0 | F42: 6 | G42: =lesurenberekening!E44 -> 00:00:00 | I42: 0 | K42: J opbouw ingeroosterde jaartaak
C43: totaal C | E43: =SUM(E32:E42) -> 0 | I43: =SUM(I32:I42) -> 0 | N43: =IF(M53>0,"na verlof-", "") ->  | P43: J
B44: D overige dagdelen en uren | N44: =IF(M53>0,"opname", "") ->  | P44: overige & ambulante (functie)taken
B45: =IF(G45="","",G45) -> 00:00:00 | C45: =lesurenberekening!C48 -> 0 | D45: =IF(G$7=1,lesurenberekening!G48,IF(G$7=2,lesurenberekening!I48,IF(G$7=3,lesurenberekening!K48,0))) -> 0 | E45: =IF((INDIRECT("E"&8+F45)+INDIRECT("G"&8+F45))<>0,D45,0) -> 0 | F45: =WEEKDAY(G45,2) -> 6 | G45: =lesurenberekening!E48 -> 00:00:00 | I45: =IF(AND(INDIRECT("I"&8+F45)<>0,E45<>0),lesurenberekening!O48,0) -> 0 | K45: budget duurzame inzetbaarheid | M45: =M19 -> 0 | N45: =IF(M53>0,ROUND((N51/M51)*M45,0),M45) -> 0 | O45: =N45 -> 0 | P45: Wanneer er sprake is van ambulante uren, zal het aantal uren dat over-
B46: =IF(G46="","",G46) -> 00:00:00 | C46: =lesurenberekening!C49 -> 0 | D46: =IF(G$7=1,lesurenberekening!G49,IF(G$7=2,lesurenberekening!I49,IF(G$7=3,lesurenberekening!K49,0))) -> 0 | E46: =IF((INDIRECT("E"&8+F46)+INDIRECT("G"&8+F46))<>0,D46,0) -> 0 | F46: =WEEKDAY(G46,2) -> 6 | G46: =lesurenberekening!E49 -> 00:00:00 | I46: =IF(AND(INDIRECT("I"&8+F46)<>0,E46<>0),lesurenberekening!O49,0) -> 0 | K46: budget professionalisering | M46: =ROUND(K5*professionalisering,0) -> 0 | N46: =IF(M53>0,ROUND((N51/M51)*M46,0),M46) -> 0 | O46: =N46 -> 0 | P46: blijft voor de overige taken groter zijn. Onderaan rubriek K kan
B47: =IF(G47="","",G47) -> 00:00:00 | C47: =lesurenberekening!C50 -> 0 | D47: =IF(G$7=1,lesurenberekening!G50,IF(G$7=2,lesurenberekening!I50,IF(G$7=3,lesurenberekening!K50,0))) -> 0 | E47: =IF((INDIRECT("E"&8+F47)+INDIRECT("G"&8+F47))<>0,D47,0) -> 0 | F47: 6 | G47: =lesurenberekening!E50 -> 00:00:00 | I47: =IF(AND(INDIRECT("I"&8+F47)<>0,E47<>0),lesurenberekening!O50,0) -> 0 | K47: ingeroosterde lestaak | M47: =M38 -> 0 | O47: =M47 -> 0 | P47: het aantal uren voor de ambulante taken worden ingevuld; de over-
B48: 00:00:00 | C48: =lesurenberekening!C51 -> 0 | D48: =IF(G$7=1,lesurenberekening!G51,IF(G$7=2,lesurenberekening!I51,IF(G$7=3,lesurenberekening!K51,0))) -> 0 | E48: 0 | F48: 6 | G48: =lesurenberekening!E51 -> 00:00:00 | I48: =IF(AND(INDIRECT("I"&8+F48)<>0,E48<>0),lesurenberekening!O51,0) -> 0 | K48: voor- en nawerk* | M48: =IF(N48=0,ROUND(nawerk*M47,0),ROUND(N48*M47,0)) -> 0 | O48: =M48 -> 0 | P48: blijvende uren gaan dan naar de overige taken (zie rubriek C, pag. 2.).
B49: 00:00:00 | C49: =lesurenberekening!C52 -> 0 | D49: =IF(G$7=1,lesurenberekening!G52,IF(G$7=2,lesurenberekening!I52,IF(G$7=3,lesurenberekening!K52,0))) -> 0 | E49: 0 | F49: 6 | G49: =lesurenberekening!E52 -> 00:00:00 | I49: =IF(AND(INDIRECT("I"&8+F49)<>0,E49<>0),lesurenberekening!O52,0) -> 0 | K49: =IF(COUNTIF(D9:F13,"A")>0,"overige/amb. taken","overige taken") -> overige taken | M49: =M51-(M45+M46+M47+M48) -> 0 | N49: =IF(M53>0,ROUND((N51/M51)*M49,0),M49) -> 0 | O49: 100
B50: =IF(G50="","",G50) -> 00:00:00 | C50: =lesurenberekening!C53 -> 0 | D50: =IF(G$7=1,lesurenberekening!G53,IF(G$7=2,lesurenberekening!I53,IF(G$7=3,lesurenberekening!K53,0))) -> 0 | E50: =IF((INDIRECT("E"&8+F50)+INDIRECT("G"&8+F50))<>0,D50,0) -> 0 | F50: 6 | G50: =lesurenberekening!E53 -> 00:00:00 | I50: =IF(AND(INDIRECT("I"&8+F50)<>0,E50<>0),lesurenberekening!O53,0) -> 0 | P50: verlofopname
B51: =IF(G51="","",G51) -> 00:00:00 | C51: =lesurenberekening!C54 -> 0 | D51: =IF(G$7=1,lesurenberekening!G54,IF(G$7=2,lesurenberekening!I54,IF(G$7=3,lesurenberekening!K54,0))) -> 0 | E51: 0 | F51: 6 | G51: =lesurenberekening!E54 -> 00:00:00 | I51: =IF(AND(INDIRECT("I"&8+F51)<>0,E51<>0),lesurenberekening!O54,0) -> 0 | K51: netto arbeidsduur | M51: =M28 -> 0 | N51: =IF(M53>0,(M51-M53),0) -> 0 | P51: Dit vakje mag slechts in bepaalde gevallen worden ingevuld. Klik op de
B52: =IF(G52="","",G52) -> 00:00:00 | C52: =lesurenberekening!C55 -> 0 | D52: =IF(G$7=1,lesurenberekening!G55,IF(G$7=2,lesurenberekening!I55,IF(G$7=3,lesurenberekening!K55,0))) -> 0 | E52: 0 | F52: 6 | G52: =lesurenberekening!E55 -> 00:00:00 | I52: =IF(AND(INDIRECT("I"&8+F52)<>0,E52<>0),lesurenberekening!O55,0) -> 0 | P52: icoon of houd de muisaanwijzer boven de tooltip voor meer informatie.
B53: =IF(G53="","",G53) -> 00:00:00 | C53: =lesurenberekening!C56 -> 0 | D53: =IF(G$7=1,lesurenberekening!G56,IF(G$7=2,lesurenberekening!I56,IF(G$7=3,lesurenberekening!K56,0))) -> 0 | E53: 0 | F53: 6 | G53: =lesurenberekening!E56 -> 00:00:00 | I53: =IF(AND(INDIRECT("I"&8+F53)<>0,E53<>0),lesurenberekening!O56,0) -> 0 | K53: opname overig verlof dit schooljaar:
B54: 00:00:00 | C54: =lesurenberekening!C57 -> 0 | D54: =IF(G$7=1,lesurenberekening!G57,IF(G$7=2,lesurenberekening!I57,IF(G$7=3,lesurenberekening!K57,0))) -> 0 | E54: 0 | F54: 6 | G54: =lesurenberekening!E57 -> 00:00:00 | I54: =IF(AND(INDIRECT("I"&8+F54)<>0,E54<>0),lesurenberekening!O57,0) -> 0 | K54: *afgesproken reguliere opslagfactor: | M54: =nawerk -> 0 | P54: voor- en nawerk
C55: totaal D | E55: =SUM(E45:E54) -> 0 | I55: =SUM(I45:I54) -> 0 | K55: K d.i. + prof. + overige taken zie pagina 2 | P55: In dit vakje kan een afwijkende individuele opslagfactor worden inge-
B56: E uitgeroosterd | G56: datum | P56: vuld. Dit kan een grótere factor zijn bij beginnnende leerkrachten, of
K57: budget duurzame inzetbaarheid | N57: % | P57: juist een kleinere bij OOP'ers met lesondersteunende taken indien dat
K58: beschikbaar | M58: =N45 -> 0 | N58: ingevuld | P58: is afgesproken.
K59: ingevuld | L59: _ | M59: =M104 -> 0 | N59: =IF(M58>0,M59/M58*100,0) -> 0
K60: =IF(M60<0,"teveel ingepland","nog beschikbaar") -> nog beschikbaar | M60: =N105 -> 0 | P60: K
P61: Hier zie je in hoeverre de uren van deze drie taakonderdelen al met
K62: budget professionalisering | P62: activiteiten zijn gevuld op de tweede pagina van dit teamlidblad.
K63: beschikbaar | M63: =N46 -> 0 | P63: Dit is ook te zien geheel rechts op het Formatieoverzicht.
C64: totaal E | E64: =SUM(E57:E63) -> 0 | I64: =SUM(I57:I63) -> 0 | K64: ingevuld | L64: _ | M64: =M123 -> 0 | N64: =IF(M63>0,M64/M63*100,0) -> 0
B65: F ingeroosterd | G65: datum | K65: =IF(M65<0,"teveel ingepland","nog beschikbaar") -> nog beschikbaar | M65: =N124 -> 0 | P65: ambulante functietaken
P66: Bij (deels) ambulante teamleden moeten de overblijvende uren verdeeld
K67: =K49 -> overige taken | P67: worden over de ambulante functietaken en de overige taken.
K68: beschikbaar | M68: =N49-M72 -> 0 | P68: Vul, indien van toepassing, hier de uren voor de ambulante taken in, óf
K69: ingevuld | L69: _ | M69: =M157 -> 0 | N69: =IF(M68>0,M69/M68*100,0) -> 0 | P69: vul de verdeling op pag. 2 in rubriek C in (dus niet in beide tegelijk!).
K70: =IF(M70<0,"teveel ingepland","nog beschikbaar") -> nog beschikbaar | M70: =N158 -> 0
K72: ambulante functietaken: | P72: opmerkingenvak
C73: totaal F | E73: =SUM(E66:E72) -> 0 | I73: =SUM(I66:I72) -> 0 | P73: Druk op Alt+Enter voor een nieuwe regel.
B74: opmerkingen | P74: Dubbelklik op het vak wanneer niet de hele tekst zichtbaar is. Alleen het
P75: zichtbare deel wordt afgedrukt.
G81: 2e pagina | P81: Teamlidblad 2e pagina
B83: OVERZICHT GEPLANDE TAKEN EN ACTIVITEITEN DUURZAME INZETBAARHEID, PROFESSIONALISERING EN OVERIGE TAKEN | P83: Overzicht uren d.i., professionalisering en overige taken
P84: Op deze pagina worden de geplande activiteiten en uren ingevuld.
C85: schooljaar | E85: =E4 -> 2023 | F85: / | G85: =G4 -> 2024 | H85: naam: | K85: =K3 -> 0 | P85: Een regel moet aan de linkerkant geselecteerd worden om in te vullen.
P86: De uren worden hier als gewone hele getallen ingevoerd zonder
P87: dubbele punt.
B88: A | C88: duurzame inzetbaarheid | K88: beschikbaar: | M88: uren | N88: =N45 -> 0
B89: 1 | P89: invoerformulier voor de activiteiten
B90: 2 | P90: Voor het maken van overzichten is het noodzakelijk dat activiteiten
B91: 3 | P91: uniform gespeld worden. Bovendien worden de overzichten gemaakt
B92: 4 | P92: op basis van de drie lijsten (zie de drie tabs onderaan het scherm).
B93: 5 | P93: Voer activiteiten daarom altijd zoveel mogelijk in via het activiteiten-
B94: 6 | P94: invoerformulier. Je roept dit formulier op door op een willekeurige plek
B95: 7 | P95: op de nummerrij te klikken.
B96: 8
B97: 9 | P97: HET ACTIVITEITEN INVOERFORMULIER
B98: 10
B99: 11 | P99: Onderstaande informatie vind je ook door op de informatie-icoontjes op
B100: 12 | P100: het invoerformulier te klikken.
B101: 13
B102: 14 | P102: Lijstitem aan teamblad toevoegen
B103: 15 | P103: > Roep het formulier op door op de nummerrij te klikken en selecteer in
K104: totaal : | M104: =SUM(M89:M103) -> 0 | P104: het vak Lijstkeuze de betreffende lijst.
K105: nog beschikbaar: | N105: =N88-M104 -> 0 | P105: > Klik op het pijltje aan het eind van de lege regel; de lijst verschijnt.
P106: > Selecteer een activiteit en klik in het vak Teamblad A, B of C de
B107: B | C107: professionalisering | K107: beschikbaar: | N107: =N46 -> 0 | P107: rubriek waaraan je de activiteit wilt toevoegen.
B108: 1 | P108: > Klik tenslotte op de knop Toevoegen aan teamlidblad.
B109: 2
B110: 3 | P110: Uren wijzigen
B111: 4 | P111: De eventueel vermelde uren kunnen voordat de activiteit aan het team-
B112: 5 | P112: lidblad wordt toegevoegd worden gewijzigd. Er moeten altijd uren zijn
B113: 6 | P113: ingevuld.
B114: 7
B115: 8 | P115: Nieuwe items aan een lijst én het teamlidblad toevoegen
B116: 9 | P116: Nieuwe activiteiten kunnen gelijktijdig aan een lijst én aan een rubriek
B117: 10 | P117: op het teamlidblad worden toegevoegd:
B118: 11 | P118: > Selecteer in het vak Lijstkeuze een lijst en vul op de lege regel een
B119: 12 | P119: activiteit in.
B120: 13 | P120: > Klik vervolgens op Toevoegen aan lijst.
B121: 14 | P121: > Selecteer daarna in het vak daaronder de betreffende rubriek en
B122: 15 | P122: tenslotte op Toevoegen aan teamlidblad.
K123: totaal : | M123: =SUM(M108:M122) -> 0
K124: nog beschikbaar: | N124: =N107-M123 -> 0 | P124: De lijsten kunnen ook direct op de lijst zelf worden ingevuld. Aangeleg-
P125: de lijsten kunnen bij het ingebruiknemen van een nieuwe planner uit de
B126: C | C126: =K49 -> overige taken | K126: beschikbaar: | N126: =M68 -> 0 | P126: oude planner met enkele muisklikken geïmporteerd worden.
B127: 1
B128: 2 | P128: sortering
B129: 3 | P129: Bij gebruik van het invoerformulier worden de items automatisch
B130: 4 | P130: gesorteerd. Sorteer bij rechtstreeks invullen door op de sorteerpijlen
B131: 5 | P131: bovenaan de pagina te klikken.
B132: 6
B133: 7 | P133: overzicht per activiteit
B134: 8 | P134: Met het invoerformulier kan ook een overzicht worden gemaakt van de
B135: 9 | P135: teamleden die eenzelfde activiteit hebben:
B136: 10 | P136: > Kies een lijst en een activiteit.
B137: 11 | P137: > Klik nu op de knop Teamoverzicht.
B138: 12 | P138: > Het overzicht wordt onderaan de gekozen lijst getoond.
B139: 13
B140: 14 | P140: overzicht alle activiteiten en alle teamleden
B141: 15 | P141: Op het werkblad act.overzicht kun je een totaaloverzicht maken van alle
B142: 16 | P142: activiteiten en teamleden. Een lege lijst kun je aan het begin van het
B143: 17 | P143: werkverdelingstraject als intekenlijst voor de overige taken gebruiken.
B144: 18
B145: 19 | P145: Let op:
B146: 20 | P146: De op deze pagina vermelde activiteiten en uren zijn een specificatie
B147: 21 | P147: van de op de eerste pagina berekende uren voor deze drie taak-
B148: 22 | P148: onderdelen. Er mogen dus niet méér uren worden ingepland dan er
B149: 23 | P149: beschikbaar zijn. Het aantal teveel ingeplande uren wordt in het rood
B150: 24 | P150: afgedrukt.
B151: 25
B152: 26
B153: 27
B154: 28
B155: 29
B156: 30
K157: totaal : | M157: =SUM(M127:M156) -> 0
K158: nog beschikbaar: | N158: =N126-M157 -> 0

Sheet 3 (hidden)
B2: TAAKBEREKENING OP/OOP met lesondersteunende taken | K2: © taakberekeningPO.nl | P2: toelichting teamlidblad OP en OOP met lesondersteunende taken
C3: =lesurenberekening!I5 -> 0 | H3: naam: | K3: =INDIRECT("formatieoverzicht!C"&(4+N3)) -> 0 | N3: =MID(CELL("bestandsnaam",A1),SEARCH("]",CELL("bestandsnaam",A1),1)+1,99) -> 3
E4: =lesurenberekening!E5 -> 2023 | F4: / | G4: =lesurenberekening!G5 -> 2024 | H4: aanstelling: | K4: =INDIRECT("formatieoverzicht!D"&(4+N3)) -> 0
H5: wtf: | K5: =INDIRECT("formatieoverzicht!E"&(4+N3)) -> 0 | P5: Klik op dit icoon voor meer informatie
B6: OVERZICHT IN- EN UITGEROOSTERDE LES- EN ARBEIDSUREN | K6: OVERZICHT JAARTAAK
B7: A jaartotaal les- en arbeidsuren | E7: lestijd bouw: | G7: =INDIRECT("formatieoverzicht!"&"AF"&N3+4) -> 0 | I7: arbeidsuren | K7: G budget duurzame inzetbaarheid | P7: Dit teamlidblad is voor het OP en OOP met lesondersteunende taken, | S7: ='3'!S6 -> 0
E8: o | G8: m | P8: zoals een klassen- of onderwijsassistent.
C9: maandag | D9: =IF(INDIRECT("formatieoverzicht!V"&(N3+4))=2,"A","") ->  | E9: =IF(AND(INDIRECT("formatieoverzicht!V"&(N3+4))=1,INDIRECT("formatieoverzicht!AF"&(N3+4))=1),lesurenberekening!E11,IF(AND(INDIRECT("formatieoverzicht!V"&(N3+4))=1,INDIRECT("formatieoverzicht!AF"&(N3+4))=2),lesurenberekening!I11,IF(AND(INDIRECT("formatieoverzicht!V"&(N3+4))=1,INDIRECT("formatieoverzicht!AF"&(N3+4))=3),lesurenberekening!M11,IF(AND(INDIRECT("formatieoverzicht!V"&(N3+4))=3,INDIRECT("formatieoverzicht!AF"&(N3+4))=1),lesurenberekening!E11,IF(AND(INDIRECT("formatieoverzicht!V"&(N3+4))=3,INDIRECT("formatieoverzicht!AF"&(N3+4))=2),lesurenberekening!I11,IF(AND(INDIRECT("formatieoverzicht!V"&(N3+4))=3,INDIRECT("formatieoverzicht!AF"&(N3+4))=3),lesurenberekening!M11,0)))))) -> 0 | F9: =IF(INDIRECT("formatieoverzicht!W"&(N3+4))=2,"A","") ->  | G9: =IF(AND(INDIRECT("formatieoverzicht!W"&(N3+4))=1,INDIRECT("formatieoverzicht!AF"&(N3+4))=1),lesurenberekening!G11,IF(AND(INDIRECT("formatieoverzicht!W"&(N3+4))=1,INDIRECT("formatieoverzicht!AF"&(N3+4))=2),lesurenberekening!K11,IF(AND(INDIRECT("formatieoverzicht!W"&(N3+4))=1,INDIRECT("formatieoverzicht!AF"&(N3+4))=3),lesurenberekening!O11,IF(AND(INDIRECT("formatieoverzicht!W"&(N3+4))=3,INDIRECT("formatieoverzicht!AF"&(N3+4))=1),lesurenberekening!G11,IF(AND(INDIRECT("formatieoverzicht!W"&(N3+4))=3,INDIRECT("formatieoverzicht!AF"&(N3+4))=2),lesurenberekening!K11,IF(AND(INDIRECT("formatieoverzicht!W"&(N3+4))=3,INDIRECT("formatieoverzicht!AF"&(N3+4))=3),lesurenberekening!O11,0)))))) -> 0 | H9: =IF(INDIRECT("formatieoverzicht!V"&(N3+4))>0,lesurenberekening!E98,0) -> 0 | I9: =H9+J9 -> 0 | J9: =IF(INDIRECT("formatieoverzicht!W"&(N3+4))>0,lesurenberekening!G98,0) -> 0 | M9: opbouw | N9: opname
C10: dinsdag | D10: =IF(INDIRECT("formatieoverzicht!X"&(N3+4))=2,"A","") ->  | E10: =IF(AND(INDIRECT("formatieoverzicht!X"&(N3+4))=1,INDIRECT("formatieoverzicht!AF"&(N3+4))=1),lesurenberekening!E12,IF(AND(INDIRECT("formatieoverzicht!X"&(N3+4))=1,INDIRECT("formatieoverzicht!AF"&(N3+4))=2),lesurenberekening!I12,IF(AND(INDIRECT("formatieoverzicht!X"&(N3+4))=1,INDIRECT("formatieoverzicht!AF"&(N3+4))=3),lesurenberekening!M12,IF(AND(INDIRECT("formatieoverzicht!X"&(N3+4))=3,INDIRECT("formatieoverzicht!AF"&(N3+4))=1),lesurenberekening!E12,IF(AND(INDIRECT("formatieoverzicht!X"&(N3+4))=3,INDIRECT("formatieoverzicht!AF"&(N3+4))=2),lesurenberekening!I12,IF(AND(INDIRECT("formatieoverzicht!X"&(N3+4))=3,INDIRECT("formatieoverzicht!AF"&(N3+4))=3),lesurenberekening!M12,0)))))) -> 0 | F10: =IF(INDIRECT("formatieoverzicht!Y"&(N3+4))=2,"A","") ->  | G10: =IF(AND(INDIRECT("formatieoverzicht!Y"&(N3+4))=1,INDIRECT("formatieoverzicht!AF"&(N3+4))=1),lesurenberekening!G12,IF(AND(INDIRECT("formatieoverzicht!Y"&(N3+4))=1,INDIRECT("formatieoverzicht!AF"&(N3+4))=2),lesurenberekening!K12,IF(AND(INDIRECT("formatieoverzicht!Y"&(N3+4))=1,INDIRECT("formatieoverzicht!AF"&(N3+4))=3),lesurenberekening!O12,IF(AND(INDIRECT("formatieoverzicht!Y"&(N3+4))=3,INDIRECT("formatieoverzicht!AF"&(N3+4))=1),lesurenberekening!G12,IF(AND(INDIRECT("formatieoverzicht!Y"&(N3+4))=3,INDIRECT("formatieoverzicht!AF"&(N3+4))=2),lesurenberekening!K12,IF(AND(INDIRECT("formatieoverzicht!Y"&(N3+4))=3,INDIRECT("formatieoverzicht!AF"&(N3+4))=3),lesurenberekening!O12,0)))))) -> 0 | H10: =IF(INDIRECT("formatieoverzicht!X"&(N3+4))>0,lesurenberekening!E99,0) -> 0 | I10: =H10+J10 -> 0 | J10: =IF(INDIRECT("formatieoverzicht!Y"&(N3+4))>0,lesurenberekening!G99,0) -> 0 | K10: basisbudget | M10: =INDIRECT("formatieoverzicht!J"&(4+N3)) -> 0 | N10: =INDIRECT("formatieoverzicht!Q"&(4+N3)) -> 0 | P10: A tm D
C11: woensdag | D11: =IF(INDIRECT("formatieoverzicht!Z"&(N3+4))=2,"A","") ->  | E11: =IF(AND(INDIRECT("formatieoverzicht!Z"&(N3+4))=1,INDIRECT("formatieoverzicht!AF"&(N3+4))=1),lesurenberekening!E13,IF(AND(INDIRECT("formatieoverzicht!Z"&(N3+4))=1,INDIRECT("formatieoverzicht!AF"&(N3+4))=2),lesurenberekening!I13,IF(AND(INDIRECT("formatieoverzicht!Z"&(N3+4))=1,INDIRECT("formatieoverzicht!AF"&(N3+4))=3),lesurenberekening!M13,IF(AND(INDIRECT("formatieoverzicht!Z"&(N3+4))=3,INDIRECT("formatieoverzicht!AF"&(N3+4))=1),lesurenberekening!E13,IF(AND(INDIRECT("formatieoverzicht!Z"&(N3+4))=3,INDIRECT("formatieoverzicht!AF"&(N3+4))=2),lesurenberekening!I13,IF(AND(INDIRECT("formatieoverzicht!Z"&(N3+4))=3,INDIRECT("formatieoverzicht!AF"&(N3+4))=3),lesurenberekening!M13,0)))))) -> 0 | F11: =IF(INDIRECT("formatieoverzicht!AA"&(N3+4))=2,"A","") ->  | G11: =IF(AND(INDIRECT("formatieoverzicht!AA"&(N3+4))=1,INDIRECT("formatieoverzicht!AF"&(N3+4))=1),lesurenberekening!G13,IF(AND(INDIRECT("formatieoverzicht!AA"&(N3+4))=1,INDIRECT("formatieoverzicht!AF"&(N3+4))=2),lesurenberekening!K13,IF(AND(INDIRECT("formatieoverzicht!AA"&(N3+4))=1,INDIRECT("formatieoverzicht!AF"&(N3+4))=3),lesurenberekening!O13,IF(AND(INDIRECT("formatieoverzicht!AA"&(N3+4))=3,INDIRECT("formatieoverzicht!AF"&(N3+4))=1),lesurenberekening!G13,IF(AND(INDIRECT("formatieoverzicht!AA"&(N3+4))=3,INDIRECT("formatieoverzicht!AF"&(N3+4))=2),lesurenberekening!K13,IF(AND(INDIRECT("formatieoverzicht!AA"&(N3+4))=3,INDIRECT("formatieoverzicht!AF"&(N3+4))=3),lesurenberekening!O13,0)))))) -> 0 | H11: =IF(INDIRECT("formatieoverzicht!Z"&(N3+4))>0,lesurenberekening!E100,0) -> 0 | I11: =H11+J11 -> 0 | J11: =IF(INDIRECT("formatieoverzicht!AA"&(N3+4))>0,lesurenberekening!G100,0) -> 0 | K11: bijzonder budget | M11: =INDIRECT("formatieoverzicht!K"&(4+N3)) -> 0 | N11: =INDIRECT("formatieoverzicht!R"&(4+N3)) -> 0 | P11: In deze rubrieken is alles automatisch berekend.
C12: donderdag | D12: =IF(INDIRECT("formatieoverzicht!AB"&(N3+4))=2,"A","") ->  | E12: =IF(AND(INDIRECT("formatieoverzicht!AB"&(N3+4))=1,INDIRECT("formatieoverzicht!AF"&(N3+4))=1),lesurenberekening!E14,IF(AND(INDIRECT("formatieoverzicht!AB"&(N3+4))=1,INDIRECT("formatieoverzicht!AF"&(N3+4))=2),lesurenberekening!I14,IF(AND(INDIRECT("formatieoverzicht!AB"&(N3+4))=1,INDIRECT("formatieoverzicht!AF"&(N3+4))=3),lesurenberekening!M14,IF(AND(INDIRECT("formatieoverzicht!AB"&(N3+4))=3,INDIRECT("formatieoverzicht!AF"&(N3+4))=1),lesurenberekening!E14,IF(AND(INDIRECT("formatieoverzicht!AB"&(N3+4))=3,INDIRECT("formatieoverzicht!AF"&(N3+4))=2),lesurenberekening!I14,IF(AND(INDIRECT("formatieoverzicht!AB"&(N3+4))=3,INDIRECT("formatieoverzicht!AF"&(N3+4))=3),lesurenberekening!M14,0)))))) -> 0 | F12: =IF(INDIRECT("formatieoverzicht!AC"&(N3+4))=2,"A","") ->  | G12: =IF(AND(INDIRECT("formatieoverzicht!AC"&(N3+4))=1,INDIRECT("formatieoverzicht!AF"&(N3+4))=1),lesurenberekening!G14,IF(AND(INDIRECT("formatieoverzicht!AC"&(N3+4))=1,INDIRECT("formatieoverzicht!AF"&(N3+4))=2),lesurenberekening!K14,IF(AND(INDIRECT("formatieoverzicht!AC"&(N3+4))=1,INDIRECT("formatieoverzicht!AF"&(N3+4))=3),lesurenberekening!O14,IF(AND(INDIRECT("formatieoverzicht!AC"&(N3+4))=3,INDIRECT("formatieoverzicht!AF"&(N3+4))=1),lesurenberekening!G14,IF(AND(INDIRECT("formatieoverzicht!AC"&(N3+4))=3,INDIRECT("formatieoverzicht!AF"&(N3+4))=2),lesurenberekening!K14,IF(AND(INDIRECT("formatieoverzicht!AC"&(N3+4))=3,INDIRECT("formatieoverzicht!AF"&(N3+4))=3),lesurenberekening!O14,0)))))) -> 0 | H12: =IF(INDIRECT("formatieoverzicht!AB"&(N3+4))>0,lesurenberekening!E101,0) -> 0 | I12: =H12+J12 -> 0 | J12: =IF(INDIRECT("formatieoverzicht!AC"&(N3+4))>0,lesurenberekening!G101,0) -> 0 | K12: overgangsbudget | M12: =INDIRECT("formatieoverzicht!L"&(4+N3)) -> 0 | N12: =INDIRECT("formatieoverzicht!S"&(4+N3)) -> 0
C13: vrijdag | D13: =IF(INDIRECT("formatieoverzicht!AD"&(N3+4))=2,"A","") ->  | E13: =IF(AND(INDIRECT("formatieoverzicht!AD"&(N3+4))=1,INDIRECT("formatieoverzicht!AF"&(N3+4))=1),lesurenberekening!E15,IF(AND(INDIRECT("formatieoverzicht!AD"&(N3+4))=1,INDIRECT("formatieoverzicht!AF"&(N3+4))=2),lesurenberekening!I15,IF(AND(INDIRECT("formatieoverzicht!AD"&(N3+4))=1,INDIRECT("formatieoverzicht!AF"&(N3+4))=3),lesurenberekening!M15,IF(AND(INDIRECT("formatieoverzicht!AD"&(N3+4))=3,INDIRECT("formatieoverzicht!AF"&(N3+4))=1),lesurenberekening!E15,IF(AND(INDIRECT("formatieoverzicht!AD"&(N3+4))=3,INDIRECT("formatieoverzicht!AF"&(N3+4))=2),lesurenberekening!I15,IF(AND(INDIRECT("formatieoverzicht!AD"&(N3+4))=3,INDIRECT("formatieoverzicht!AF"&(N3+4))=3),lesurenberekening!M15,0)))))) -> 0 | F13: =IF(INDIRECT("formatieoverzicht!AE"&(N3+4))=2,"A","") ->  | G13: =IF(AND(INDIRECT("formatieoverzicht!AE"&(N3+4))=1,INDIRECT("formatieoverzicht!AF"&(N3+4))=1),lesurenberekening!G15,IF(AND(INDIRECT("formatieoverzicht!AE"&(N3+4))=1,INDIRECT("formatieoverzicht!AF"&(N3+4))=2),lesurenberekening!K15,IF(AND(INDIRECT("formatieoverzicht!AE"&(N3+4))=1,INDIRECT("formatieoverzicht!AF"&(N3+4))=3),lesurenberekening!O15,IF(AND(INDIRECT("formatieoverzicht!AE"&(N3+4))=3,INDIRECT("formatieoverzicht!AF"&(N3+4))=1),lesurenberekening!G15,IF(AND(INDIRECT("formatieoverzicht!AE"&(N3+4))=3,INDIRECT("formatieoverzicht!AF"&(N3+4))=2),lesurenberekening!K15,IF(AND(INDIRECT("formatieoverzicht!AE"&(N3+4))=3,INDIRECT("formatieoverzicht!AF"&(N3+4))=3),lesurenberekening!O15,0)))))) -> 0 | H13: =IF(INDIRECT("formatieoverzicht!AD"&(N3+4))>0,lesurenberekening!E102,0) -> 0 | I13: =H13+J13 -> 0 | J13: =IF(INDIRECT("formatieoverzicht!AE"&(N3+4))>0,lesurenberekening!G102,0) -> 0 | K13: ingezet uit spaarsaldo | L13: + | M13: =INDIRECT("formatieoverzicht!M"&(4+N3)) -> 0 | P13: In rubriek A staat voor ambulante dagdelen een A.
M14: =M10+M11+M12+M13 -> 0 | N14: =SUM(N10:N13) -> 0 | P14: Indien noodzakelijk, kunnen in rubriek A de les- en arbeidsuren hand-
C15: ingeroosterd per week | E15: =E9+G9+E10+G10+E11+G11+E12+G12+E13+G13 -> 0 | I15: =SUM(I9:I13) -> 0 | P15: matig worden aangepast.
C16: eventuele correctie (zie invoerformulier) | E16: =INDIRECT("formatieoverzicht!AG"&(N3+4)) -> 0 | F16: _ | H16: _ | I16: =INDIRECT("formatieoverzicht!AJ"&(N3+4)) -> 0 | K16: opgenomen verlof d.i. | M16: =INDIRECT("formatieoverzicht!O"&(4+N3)) -> 0
C17: netto ingeroosterd per week | E17: =E15-E16 -> 0 | I17: =I15-I16 -> 0 | K17: waarvan lesuren | N17: =ROUND(MaxLestaak/1576*M16,0) -> 0 | P17: E + F
C18: x 52 = | E18: =52*E17 -> 0 | I18: =52*I17 -> 0 | K18: sparen* | L18: _ | M18: =INDIRECT("formatieoverzicht!P"&(4+N3)) -> 0 | P18: Hier kunnen de dagen en uren worden ingevuld waarop het teamlid
B19: =WEEKDAY(CONCATENATE(C19,G4)) -> 1900-01-01 | C19: 29 september | D19: =IF(MOD(G4,4)=0,WEEKDAY(CONCATENATE(C19,G4),2),0) -> 7 | E19: =IF(D19=1,E9+G9,IF(D19=2,E10+G10,IF(D19=3,E11+G11,IF(D19=4,E12+G12,IF(D19=5,E13+G13,0))))) -> 0 | G19: (schrikkeljaar) | I19: =IF(D19=1,I9,IF(D19=2,I10,IF(D19=3,I11,IF(D19=4,I12,IF(D19=5,I13,0))))) -> 0 | K19: (resterend) inzetbaar | M19: =INDIRECT("formatieoverzicht!T"&(4+N3)) -> 0 | P19: individueel extra wordt uit- of ingeroosterd.
B20: =WEEKDAY(CONCATENATE(C20,G4)) -> 1900-01-02 | C20: 30 september | D20: =WEEKDAY(CONCATENATE(C20,G4),2) -> 1 | E20: =IF(D20=1,E9+G9,IF(D20=2,E10+G10,IF(D20=3,E11+G11,IF(D20=4,E12+G12,IF(D20=5,E13+G13,0))))) -> 0 | F20: + | H20: + | I20: =IF(D20=1,I9,IF(D20=2,I10,IF(D20=3,I11,IF(D20=4,I12,IF(D20=5,I13,0))))) -> 0
C21: totaal A | E21: =E18+E19+E20 -> 0 | I21: =I18+I19+I20 -> 0 | K21: ="spaarsaldo eind "&lesurenberekening!E5-1&"/"&lesurenberekening!G5-1 -> spaarsaldo eind 2022/2023 | M21: =INDIRECT("formatieoverzicht!U"&(4+N3)) -> 0 | P21: Vul alle kolommen handmatig in. Denk om de dubbele punt achter de
B22: B hele vakantieweken | P22: uren. Wanneer is afgesproken een aantal dagen door te werken in één
G23: 1e maandag | K23: * Sparen tot 57 jr. : max. 3 jaar; vanaf 57 jr.: max. 5 jaar | P23: of meer vakantieweken, vul je in F het totaal van de arbeidsuren in.
C24: herfstvakantie | D24: =lesurenberekening!D25 -> 1 | E24: =E17*D24 -> 0 | G24: =lesurenberekening!E25 -> 2023-10-16 | I24: =I17*D24 -> 0 | K24: H ingeroosterde arbeidsuren | M24: wtf 1,0: | N24: =jaartaak -> 1659 | O24: in zelfde verhouding ingeroosterd als een voltijder
C25: kerstvakantie | D25: =lesurenberekening!D26 -> 2 | E25: =E17*D25 -> 0 | G25: =lesurenberekening!E26 -> 2023-12-25 | I25: =I17*D25 -> 0 | P25: Wanneer je hier bij meerdere teamleden hetzelfde moet invullen, kun je
C26: voorjaarsvakantie | D26: =lesurenberekening!D27 -> 1 | E26: =E17*D26 -> 0 | G26: =lesurenberekening!E27 -> 2024-02-19 | I26: =I17*D26 -> 0 | K26: bruto arbeidsduur (wtf x 1659) | M26: =ROUND(K5*jaartaak,0) -> 0 | P26: dat op meerdere teamlidbladen tegelijk in één keer invullen.
C27: meivakantie | D27: =lesurenberekening!D28 -> 2 | E27: =E17*D27 -> 0 | G27: =lesurenberekening!E28 -> 2024-04-29 | I27: =I17*D27 -> 0 | K27: opgenomen verlof d.i. | L27: _ | M27: =M16 -> 0 | P27: Meer informatie op de website: Vragen-> handig invullen
C28: =lesurenberekening!C29 -> 0 | D28: =lesurenberekening!D29 -> 0 | E28: =E17*D28 -> 0 | G28: =lesurenberekening!E29 -> 00:00:00 | I28: =I17*D28 -> 0 | K28: netto arbeidsduur | M28: =M26-M27 -> 0
C29: zomervakantie | D29: =lesurenberekening!D30 -> 6 | E29: =E17*D29 -> 0 | G29: =lesurenberekening!E30 -> 2024-07-15 | I29: =I17*D29 -> 0 | K29: ingeroosterd: (A + F) - (B t/m E) | M29: =ROUND(((I21+I73)-(I30+I43+I55+I64))*24,0) -> 0 | O29: =ROUND(O31*M28,0) -> 0 | P29: G
C30: totaal B | E30: =SUM(E24:E29) -> 0 | I30: =SUM(I24:I29) -> 0 | K30: =IF(lesurenberekening!E117="ja","verschil","") -> verschil | M30: =IF(lesurenberekening!E117="ja",(M29-M28),0) -> 0 | N30: =IF(lesurenberekening!E117="ja",(O30-M30),0) -> 0 | O30: =IF(O29<>0,O29-M28,0) -> 0 | P30: Het aantal lesuren dat een verlof d.i. bevat is gebaseerd op artikel
B31: C hele vakantie- of studiedagen | K31: =IF(lesurenberekening!E117="ja","inroosteringspercentage", "") -> inroosteringspercentage | M31: =ROUND(IF(lesurenberekening!E117="ja",IF(M28>0,M29/M28*100,0),0),1) -> 0 | N31: =IF(lesurenberekening!E117="ja","%","") -> % | O31: =lesurenberekening!E112*100&" %" -> 0 % | P31: 8A.6 lid 6 (CAO-PO 2022). Het budget prof. blijft dus ongewijzigd.
B32: =lesurenberekening!B34 ->  | C32: =IF(lesurenberekening!C34="","",lesurenberekening!C34) ->  | D32: =lesurenberekening!D34 -> v | E32: =(INDIRECT("E"&8+F32)+INDIRECT("G"&8+F32)) -> 0 | F32: =WEEKDAY(G32,2) -> 6 | G32: =lesurenberekening!E34 -> 00:00:00 | I32: =IF(D32="v",INDIRECT("I"&8+F32),0) -> 0
B33: =lesurenberekening!B35 ->  | C33: =IF(lesurenberekening!C35="","",lesurenberekening!C35) ->  | D33: =lesurenberekening!D35 -> v | E33: =(INDIRECT("E"&8+F33)+INDIRECT("G"&8+F33)) -> 0 | F33: =WEEKDAY(G33,2) -> 6 | G33: =lesurenberekening!E35 -> 00:00:00 | I33: =IF(D33="v",INDIRECT("I"&8+F33),0) -> 0 | K33: I ingeroosterde lesuren | M33: wtf 1,0: | N33: =MaxLestaak -> 940 | P33: H + I
B34: =lesurenberekening!B36 ->  | C34: =IF(lesurenberekening!C36="","",lesurenberekening!C36) ->  | D34: =lesurenberekening!D36 -> v | E34: =(INDIRECT("E"&8+F34)+INDIRECT("G"&8+F34)) -> 0 | F34: 6 | G34: =lesurenberekening!E36 -> 00:00:00 | I34: =IF(D34="v",INDIRECT("I"&8+F34),0) -> 0 | P34: De weergave van het inroosterverschil en het inroosterpercentage kan
B35: =lesurenberekening!B37 ->  | C35: =IF(lesurenberekening!C37="","",lesurenberekening!C37) ->  | D35: =lesurenberekening!D37 -> v | E35: 0 | F35: 6 | G35: =lesurenberekening!E37 -> 00:00:00 | I35: 0 | K35: maximale lestaak vlg. wtf | M35: =ROUND(K5*MaxLestaak,0) -> 0 | P35: in rubriek G op het eerste werkblad Lesurenberekening aan of uit
B36: =lesurenberekening!B38 ->  | C36: =IF(lesurenberekening!C38="","",lesurenberekening!C38) ->  | D36: =lesurenberekening!D38 -> v | E36: 0 | F36: 6 | G36: =lesurenberekening!E38 -> 00:00:00 | I36: 0 | K36: lesuren opgenomen verlof d.i. | L36: _ | M36: =N17 -> 0 | P36: worden gezet.
B37: =lesurenberekening!B39 ->  | C37: =IF(lesurenberekening!C39="","",lesurenberekening!C39) ->  | D37: =lesurenberekening!D39 -> v | E37: 0 | F37: 6 | G37: =lesurenberekening!E39 -> 00:00:00 | I37: 0 | K37: netto lestaak | M37: =M35-M36 -> 0
B38: =lesurenberekening!B40 ->  | C38: =IF(lesurenberekening!C40="","",lesurenberekening!C40) ->  | D38: =lesurenberekening!D40 -> v | E38: 0 | F38: 6 | G38: =lesurenberekening!E40 -> 00:00:00 | I38: 0 | K38: ingeroosterd: (A + F) - (B t/m E) | L38: _ | M38: =ROUND(((E21+E73)-(E30+E43+E55+E64))*24,0) -> 0 | P38: Wanneer in rubriek G (instellingen) op het eerste werkblad Lesuren-
B39: =lesurenberekening!B41 ->  | C39: =IF(lesurenberekening!C41="","",lesurenberekening!C41) ->  | D39: =lesurenberekening!D41 -> v | E39: 0 | F39: 6 | G39: =lesurenberekening!E41 -> 00:00:00 | I39: 0 | K39: =IF(lesurenberekening!E117="ja","verschil","") -> verschil | M39: =IF(lesurenberekening!E118="ja",M38-M37,"") -> 0 | P39: berekening het plaats- en tijdgebonden inroosterpercentage van de
B40: =lesurenberekening!B42 ->  | C40: =IF(lesurenberekening!C42="","",lesurenberekening!C42) ->  | D40: =lesurenberekening!D42 -> v | E40: 0 | F40: 6 | G40: =lesurenberekening!E42 -> 00:00:00 | I40: 0 | K40: =IF(lesurenberekening!E118="ja"," inroosteringspercentage","") -> inroosteringspercentage | M40: =ROUND(IF(lesurenberekening!E118="ja",IF(M37>0,M38/M37*100,0),0),1) -> 0 | N40: =IF(lesurenberekening!E118="ja","%","") -> % | P40: voltijders is ingevuld, wordt naast rubriek H ter vergelijking het daaraan
B41: =lesurenberekening!B43 ->  | C41: =IF(lesurenberekening!C43="","",lesurenberekening!C43) ->  | D41: =lesurenberekening!D43 -> v | E41: 0 | F41: 6 | G41: =lesurenberekening!E43 -> 00:00:00 | I41: 0 | P41: evenredig aantal in te roosteren arbeidsuren getoond.
B42: =lesurenberekening!B44 ->  | C42: =IF(lesurenberekening!C44="","",lesurenberekening!C44) ->  | D42: =lesurenberekening!D44 -> v | E42: 0 | F42: 6 | G42: =lesurenberekening!E44 -> 00:00:00 | I42: 0 | K42: J opbouw ingeroosterde jaartaak
C43: totaal C | E43: =SUM(E32:E42) -> 0 | I43: =SUM(I32:I42) -> 0 | N43: =IF(M53>0,"na verlof-", "") ->  | P43: J
B44: D overige dagdelen en uren | N44: =IF(M53>0,"opname", "") ->  | P44: overige & ambulante (functie)taken
B45: =IF(G45="","",G45) -> 00:00:00 | C45: =lesurenberekening!C48 -> 0 | D45: =IF(G$7=1,lesurenberekening!G48,IF(G$7=2,lesurenberekening!I48,IF(G$7=3,lesurenberekening!K48,0))) -> 0 | E45: =IF((INDIRECT("E"&8+F45)+INDIRECT("G"&8+F45))<>0,D45,0) -> 0 | F45: =WEEKDAY(G45,2) -> 6 | G45: =lesurenberekening!E48 -> 00:00:00 | I45: =IF(AND(INDIRECT("I"&8+F45)<>0,E45<>0),lesurenberekening!O48,0) -> 0 | K45: budget duurzame inzetbaarheid | M45: =M19 -> 0 | N45: =IF(M53>0,ROUND((N51/M51)*M45,0),M45) -> 0 | O45: =N45 -> 0 | P45: Wanneer er sprake is van ambulante uren, zal het aantal uren dat over-
B46: =IF(G46="","",G46) -> 00:00:00 | C46: =lesurenberekening!C49 -> 0 | D46: =IF(G$7=1,lesurenberekening!G49,IF(G$7=2,lesurenberekening!I49,IF(G$7=3,lesurenberekening!K49,0))) -> 0 | E46: =IF((INDIRECT("E"&8+F46)+INDIRECT("G"&8+F46))<>0,D46,0) -> 0 | F46: =WEEKDAY(G46,2) -> 6 | G46: =lesurenberekening!E49 -> 00:00:00 | I46: =IF(AND(INDIRECT("I"&8+F46)<>0,E46<>0),lesurenberekening!O49,0) -> 0 | K46: budget professionalisering | M46: =ROUND(K5*professionalisering,0) -> 0 | N46: =IF(M53>0,ROUND((N51/M51)*M46,0),M46) -> 0 | O46: =N46 -> 0 | P46: blijft voor de overige taken groter zijn. Onderaan rubriek K kan
B47: =IF(G47="","",G47) -> 00:00:00 | C47: =lesurenberekening!C50 -> 0 | D47: =IF(G$7=1,lesurenberekening!G50,IF(G$7=2,lesurenberekening!I50,IF(G$7=3,lesurenberekening!K50,0))) -> 0 | E47: =IF((INDIRECT("E"&8+F47)+INDIRECT("G"&8+F47))<>0,D47,0) -> 0 | F47: 6 | G47: =lesurenberekening!E50 -> 00:00:00 | I47: =IF(AND(INDIRECT("I"&8+F47)<>0,E47<>0),lesurenberekening!O50,0) -> 0 | K47: ingeroosterde lestaak | M47: =M38 -> 0 | O47: =M47 -> 0 | P47: het aantal uren voor de ambulante taken worden ingevuld; de over-
B48: 00:00:00 | C48: =lesurenberekening!C51 -> 0 | D48: =IF(G$7=1,lesurenberekening!G51,IF(G$7=2,lesurenberekening!I51,IF(G$7=3,lesurenberekening!K51,0))) -> 0 | E48: 0 | F48: 6 | G48: =lesurenberekening!E51 -> 00:00:00 | I48: =IF(AND(INDIRECT("I"&8+F48)<>0,E48<>0),lesurenberekening!O51,0) -> 0 | K48: voor- en nawerk* | M48: =IF(N48=0,ROUND(nawerk*M47,0),ROUND(N48*M47,0)) -> 0 | O48: =M48 -> 0 | P48: blijvende uren gaan dan naar de overige taken (zie rubriek C, pag. 2.).
B49: 00:00:00 | C49: =lesurenberekening!C52 -> 0 | D49: =IF(G$7=1,lesurenberekening!G52,IF(G$7=2,lesurenberekening!I52,IF(G$7=3,lesurenberekening!K52,0))) -> 0 | E49: 0 | F49: 6 | G49: =lesurenberekening!E52 -> 00:00:00 | I49: =IF(AND(INDIRECT("I"&8+F49)<>0,E49<>0),lesurenberekening!O52,0) -> 0 | K49: =IF(COUNTIF(D9:F13,"A")>0,"overige/amb. taken","overige taken") -> overige taken | M49: =M51-(M45+M46+M47+M48) -> 0 | N49: =IF(M53>0,ROUND((N51/M51)*M49,0),M49) -> 0 | O49: 100
B50: =IF(G50="","",G50) -> 00:00:00 | C50: =lesurenberekening!C53 -> 0 | D50: =IF(G$7=1,lesurenberekening!G53,IF(G$7=2,lesurenberekening!I53,IF(G$7=3,lesurenberekening!K53,0))) -> 0 | E50: =IF((INDIRECT("E"&8+F50)+INDIRECT("G"&8+F50))<>0,D50,0) -> 0 | F50: 6 | G50: =lesurenberekening!E53 -> 00:00:00 | I50: =IF(AND(INDIRECT("I"&8+F50)<>0,E50<>0),lesurenberekening!O53,0) -> 0 | P50: verlofopname
B51: =IF(G51="","",G51) -> 00:00:00 | C51: =lesurenberekening!C54 -> 0 | D51: =IF(G$7=1,lesurenberekening!G54,IF(G$7=2,lesurenberekening!I54,IF(G$7=3,lesurenberekening!K54,0))) -> 0 | E51: 0 | F51: 6 | G51: =lesurenberekening!E54 -> 00:00:00 | I51: =IF(AND(INDIRECT("I"&8+F51)<>0,E51<>0),lesurenberekening!O54,0) -> 0 | K51: netto arbeidsduur | M51: =M28 -> 0 | N51: =IF(M53>0,(M51-M53),0) -> 0 | P51: Dit vakje mag slechts in bepaalde gevallen worden ingevuld. Klik op de
B52: =IF(G52="","",G52) -> 00:00:00 | C52: =lesurenberekening!C55 -> 0 | D52: =IF(G$7=1,lesurenberekening!G55,IF(G$7=2,lesurenberekening!I55,IF(G$7=3,lesurenberekening!K55,0))) -> 0 | E52: 0 | F52: 6 | G52: =lesurenberekening!E55 -> 00:00:00 | I52: =IF(AND(INDIRECT("I"&8+F52)<>0,E52<>0),lesurenberekening!O55,0) -> 0 | P52: icoon of houd de muisaanwijzer boven de tooltip voor meer informatie.
B53: =IF(G53="","",G53) -> 00:00:00 | C53: =lesurenberekening!C56 -> 0 | D53: =IF(G$7=1,lesurenberekening!G56,IF(G$7=2,lesurenberekening!I56,IF(G$7=3,lesurenberekening!K56,0))) -> 0 | E53: 0 | F53: 6 | G53: =lesurenberekening!E56 -> 00:00:00 | I53: =IF(AND(INDIRECT("I"&8+F53)<>0,E53<>0),lesurenberekening!O56,0) -> 0 | K53: opname overig verlof dit schooljaar:
B54: 00:00:00 | C54: =lesurenberekening!C57 -> 0 | D54: =IF(G$7=1,lesurenberekening!G57,IF(G$7=2,lesurenberekening!I57,IF(G$7=3,lesurenberekening!K57,0))) -> 0 | E54: 0 | F54: 6 | G54: =lesurenberekening!E57 -> 00:00:00 | I54: =IF(AND(INDIRECT("I"&8+F54)<>0,E54<>0),lesurenberekening!O57,0) -> 0 | K54: *afgesproken reguliere opslagfactor: | M54: =nawerk -> 0 | P54: voor- en nawerk
C55: totaal D | E55: =SUM(E45:E54) -> 0 | I55: =SUM(I45:I54) -> 0 | K55: K d.i. + prof. + overige taken zie pagina 2 | P55: In dit vakje kan een afwijkende individuele opslagfactor worden inge-
B56: E uitgeroosterd | G56: datum | P56: vuld. Dit kan een grótere factor zijn bij beginnnende leerkrachten, of
K57: budget duurzame inzetbaarheid | N57: % | P57: juist een kleinere bij OOP'ers met lesondersteunende taken indien dat
K58: beschikbaar | M58: =N45 -> 0 | N58: ingevuld | P58: is afgesproken.
K59: ingevuld | L59: _ | M59: =M104 -> 0 | N59: =IF(M58>0,M59/M58*100,0) -> 0
K60: =IF(M60<0,"teveel ingepland","nog beschikbaar") -> nog beschikbaar | M60: =N105 -> 0 | P60: K
P61: Hier zie je in hoeverre de uren van deze drie taakonderdelen al met
K62: budget professionalisering | P62: activiteiten zijn gevuld op de tweede pagina van dit teamlidblad.
K63: beschikbaar | M63: =N46 -> 0 | P63: Dit is ook te zien geheel rechts op het Formatieoverzicht.
C64: totaal E | E64: =SUM(E57:E63) -> 0 | I64: =SUM(I57:I63) -> 0 | K64: ingevuld | L64: _ | M64: =M123 -> 0 | N64: =IF(M63>0,M64/M63*100,0) -> 0
B65: F ingeroosterd | G65: datum | K65: =IF(M65<0,"teveel ingepland","nog beschikbaar") -> nog beschikbaar | M65: =N124 -> 0 | P65: ambulante functietaken
P66: Bij (deels) ambulante teamleden moeten de overblijvende uren verdeeld
K67: =K49 -> overige taken | P67: worden over de ambulante functietaken en de overige taken.
K68: beschikbaar | M68: =N49-M72 -> 0 | P68: Vul, indien van toepassing, hier de uren voor de ambulante taken in, óf
K69: ingevuld | L69: _ | M69: =M157 -> 0 | N69: =IF(M68>0,M69/M68*100,0) -> 0 | P69: vul de verdeling op pag. 2 in rubriek C in (dus niet in beide tegelijk!).
K70: =IF(M70<0,"teveel ingepland","nog beschikbaar") -> nog beschikbaar | M70: =N158 -> 0
K72: ambulante functietaken: | P72: opmerkingenvak
C73: totaal F | E73: =SUM(E66:E72) -> 0 | I73: =SUM(I66:I72) -> 0 | P73: Druk op Alt+Enter voor een nieuwe regel.
B74: opmerkingen | P74: Dubbelklik op het vak wanneer niet de hele tekst zichtbaar is. Alleen het
P75: zichtbare deel wordt afgedrukt.
G81: 2e pagina | P81: Teamlidblad 2e pagina
B83: OVERZICHT GEPLANDE TAKEN EN ACTIVITEITEN DUURZAME INZETBAARHEID, PROFESSIONALISERING EN OVERIGE TAKEN | P83: Overzicht uren d.i., professionalisering en overige taken
P84: Op deze pagina worden de geplande activiteiten en uren ingevuld.
C85: schooljaar | E85: =E4 -> 2023 | F85: / | G85: =G4 -> 2024 | H85: naam: | K85: =K3 -> 0 | P85: Een regel moet aan de linkerkant geselecteerd worden om in te vullen.
P86: De uren worden hier als gewone hele getallen ingevoerd zonder
P87: dubbele punt.
B88: A | C88: duurzame inzetbaarheid | K88: beschikbaar: | M88: uren | N88: =N45 -> 0
B89: 1 | P89: invoerformulier voor de activiteiten
B90: 2 | P90: Voor het maken van overzichten is het noodzakelijk dat activiteiten
B91: 3 | P91: uniform gespeld worden. Bovendien worden de overzichten gemaakt
B92: 4 | P92: op basis van de drie lijsten (zie de drie tabs onderaan het scherm).
B93: 5 | P93: Voer activiteiten daarom altijd zoveel mogelijk in via het activiteiten-
B94: 6 | P94: invoerformulier. Je roept dit formulier op door op een willekeurige plek
B95: 7 | P95: op de nummerrij te klikken.
B96: 8
B97: 9 | P97: HET ACTIVITEITEN INVOERFORMULIER
B98: 10
B99: 11 | P99: Onderstaande informatie vind je ook door op de informatie-icoontjes op
B100: 12 | P100: het invoerformulier te klikken.
B101: 13
B102: 14 | P102: Lijstitem aan teamblad toevoegen
B103: 15 | P103: > Roep het formulier op door op de nummerrij te klikken en selecteer in
K104: totaal : | M104: =SUM(M89:M103) -> 0 | P104: het vak Lijstkeuze de betreffende lijst.
K105: nog beschikbaar: | N105: =N88-M104 -> 0 | P105: > Klik op het pijltje aan het eind van de lege regel; de lijst verschijnt.
P106: > Selecteer een activiteit en klik in het vak Teamblad A, B of C de
B107: B | C107: professionalisering | K107: beschikbaar: | N107: =N46 -> 0 | P107: rubriek waaraan je de activiteit wilt toevoegen.
B108: 1 | P108: > Klik tenslotte op de knop Toevoegen aan teamlidblad.
B109: 2
B110: 3 | P110: Uren wijzigen
B111: 4 | P111: De eventueel vermelde uren kunnen voordat de activiteit aan het team-
B112: 5 | P112: lidblad wordt toegevoegd worden gewijzigd. Er moeten altijd uren zijn
B113: 6 | P113: ingevuld.
B114: 7
B115: 8 | P115: Nieuwe items aan een lijst én het teamlidblad toevoegen
B116: 9 | P116: Nieuwe activiteiten kunnen gelijktijdig aan een lijst én aan een rubriek
B117: 10 | P117: op het teamlidblad worden toegevoegd:
B118: 11 | P118: > Selecteer in het vak Lijstkeuze een lijst en vul op de lege regel een
B119: 12 | P119: activiteit in.
B120: 13 | P120: > Klik vervolgens op Toevoegen aan lijst.
B121: 14 | P121: > Selecteer daarna in het vak daaronder de betreffende rubriek en
B122: 15 | P122: tenslotte op Toevoegen aan teamlidblad.
K123: totaal : | M123: =SUM(M108:M122) -> 0
K124: nog beschikbaar: | N124: =N107-M123 -> 0 | P124: De lijsten kunnen ook direct op de lijst zelf worden ingevuld. Aangeleg-
P125: de lijsten kunnen bij het ingebruiknemen van een nieuwe planner uit de
B126: C | C126: =K49 -> overige taken | K126: beschikbaar: | N126: =M68 -> 0 | P126: oude planner met enkele muisklikken geïmporteerd worden.
B127: 1
B128: 2 | P128: sortering
B129: 3 | P129: Bij gebruik van het invoerformulier worden de items automatisch
B130: 4 | P130: gesorteerd. Sorteer bij rechtstreeks invullen door op de sorteerpijlen
B131: 5 | P131: bovenaan de pagina te klikken.
B132: 6
B133: 7 | P133: overzicht per activiteit
B134: 8 | P134: Met het invoerformulier kan ook een overzicht worden gemaakt van de
B135: 9 | P135: teamleden die eenzelfde activiteit hebben:
B136: 10 | P136: > Kies een lijst en een activiteit.
B137: 11 | P137: > Klik nu op de knop Teamoverzicht.
B138: 12 | P138: > Het overzicht wordt onderaan de gekozen lijst getoond.
B139: 13
B140: 14 | P140: overzicht alle activiteiten en alle teamleden
B141: 15 | P141: Op het werkblad act.overzicht kun je een totaaloverzicht maken van alle
B142: 16 | P142: activiteiten en teamleden. Een lege lijst kun je aan het begin van het
B143: 17 | P143: werkverdelingstraject als intekenlijst voor de overige taken gebruiken.
B144: 18
B145: 19 | P145: Let op:
B146: 20 | P146: De op deze pagina vermelde activiteiten en uren zijn een specificatie
B147: 21 | P147: van de op de eerste pagina berekende uren voor deze drie taak-
B148: 22 | P148: onderdelen. Er mogen dus niet méér uren worden ingepland dan er
B149: 23 | P149: beschikbaar zijn. Het aantal teveel ingeplande uren wordt in het rood
B150: 24 | P150: afgedrukt.
B151: 25
B152: 26
B153: 27
B154: 28
B155: 29
B156: 30
K157: totaal : | M157: =SUM(M127:M156) -> 0
K158: nog beschikbaar: | N158: =N126-M157 -> 0

Sheet 4 (hidden)
B2: TAAKBEREKENING OP/OOP met lesondersteunende taken | K2: © taakberekeningPO.nl | P2: toelichting teamlidblad OP en OOP met lesondersteunende taken
C3: =lesurenberekening!I5 -> 0 | H3: naam: | K3: =INDIRECT("formatieoverzicht!C"&(4+N3)) -> 0 | N3: =MID(CELL("bestandsnaam",A1),SEARCH("]",CELL("bestandsnaam",A1),1)+1,99) -> 4
E4: =lesurenberekening!E5 -> 2023 | F4: / | G4: =lesurenberekening!G5 -> 2024 | H4: aanstelling: | K4: =INDIRECT("formatieoverzicht!D"&(4+N3)) -> 0
H5: wtf: | K5: =INDIRECT("formatieoverzicht!E"&(4+N3)) -> 0 | P5: Klik op dit icoon voor meer informatie
B6: OVERZICHT IN- EN UITGEROOSTERDE LES- EN ARBEIDSUREN | K6: OVERZICHT JAARTAAK
B7: A jaartotaal les- en arbeidsuren | E7: lestijd bouw: | G7: =INDIRECT("formatieoverzicht!"&"AF"&N3+4) -> 0 | I7: arbeidsuren | K7: G budget duurzame inzetbaarheid | P7: Dit teamlidblad is voor het OP en OOP met lesondersteunende taken, | S7: ='4'!S6 -> 0
E8: o | G8: m | P8: zoals een klassen- of onderwijsassistent.
C9: maandag | D9: =IF(INDIRECT("formatieoverzicht!V"&(N3+4))=2,"A","") ->  | E9: =IF(AND(INDIRECT("formatieoverzicht!V"&(N3+4))=1,INDIRECT("formatieoverzicht!AF"&(N3+4))=1),lesurenberekening!E11,IF(AND(INDIRECT("formatieoverzicht!V"&(N3+4))=1,INDIRECT("formatieoverzicht!AF"&(N3+4))=2),lesurenberekening!I11,IF(AND(INDIRECT("formatieoverzicht!V"&(N3+4))=1,INDIRECT("formatieoverzicht!AF"&(N3+4))=3),lesurenberekening!M11,IF(AND(INDIRECT("formatieoverzicht!V"&(N3+4))=3,INDIRECT("formatieoverzicht!AF"&(N3+4))=1),lesurenberekening!E11,IF(AND(INDIRECT("formatieoverzicht!V"&(N3+4))=3,INDIRECT("formatieoverzicht!AF"&(N3+4))=2),lesurenberekening!I11,IF(AND(INDIRECT("formatieoverzicht!V"&(N3+4))=3,INDIRECT("formatieoverzicht!AF"&(N3+4))=3),lesurenberekening!M11,0)))))) -> 0 | F9: =IF(INDIRECT("formatieoverzicht!W"&(N3+4))=2,"A","") ->  | G9: =IF(AND(INDIRECT("formatieoverzicht!W"&(N3+4))=1,INDIRECT("formatieoverzicht!AF"&(N3+4))=1),lesurenberekening!G11,IF(AND(INDIRECT("formatieoverzicht!W"&(N3+4))=1,INDIRECT("formatieoverzicht!AF"&(N3+4))=2),lesurenberekening!K11,IF(AND(INDIRECT("formatieoverzicht!W"&(N3+4))=1,INDIRECT("formatieoverzicht!AF"&(N3+4))=3),lesurenberekening!O11,IF(AND(INDIRECT("formatieoverzicht!W"&(N3+4))=3,INDIRECT("formatieoverzicht!AF"&(N3+4))=1),lesurenberekening!G11,IF(AND(INDIRECT("formatieoverzicht!W"&(N3+4))=3,INDIRECT("formatieoverzicht!AF"&(N3+4))=2),lesurenberekening!K11,IF(AND(INDIRECT("formatieoverzicht!W"&(N3+4))=3,INDIRECT("formatieoverzicht!AF"&(N3+4))=3),lesurenberekening!O11,0)))))) -> 0 | H9: =IF(INDIRECT("formatieoverzicht!V"&(N3+4))>0,lesurenberekening!E98,0) -> 0 | I9: =H9+J9 -> 0 | J9: =IF(INDIRECT("formatieoverzicht!W"&(N3+4))>0,lesurenberekening!G98,0) -> 0 | M9: opbouw | N9: opname
C10: dinsdag | D10: =IF(INDIRECT("formatieoverzicht!X"&(N3+4))=2,"A","") ->  | E10: =IF(AND(INDIRECT("formatieoverzicht!X"&(N3+4))=1,INDIRECT("formatieoverzicht!AF"&(N3+4))=1),lesurenberekening!E12,IF(AND(INDIRECT("formatieoverzicht!X"&(N3+4))=1,INDIRECT("formatieoverzicht!AF"&(N3+4))=2),lesurenberekening!I12,IF(AND(INDIRECT("formatieoverzicht!X"&(N3+4))=1,INDIRECT("formatieoverzicht!AF"&(N3+4))=3),lesurenberekening!M12,IF(AND(INDIRECT("formatieoverzicht!X"&(N3+4))=3,INDIRECT("formatieoverzicht!AF"&(N3+4))=1),lesurenberekening!E12,IF(AND(INDIRECT("formatieoverzicht!X"&(N3+4))=3,INDIRECT("formatieoverzicht!AF"&(N3+4))=2),lesurenberekening!I12,IF(AND(INDIRECT("formatieoverzicht!X"&(N3+4))=3,INDIRECT("formatieoverzicht!AF"&(N3+4))=3),lesurenberekening!M12,0)))))) -> 0 | F10: =IF(INDIRECT("formatieoverzicht!Y"&(N3+4))=2,"A","") ->  | G10: =IF(AND(INDIRECT("formatieoverzicht!Y"&(N3+4))=1,INDIRECT("formatieoverzicht!AF"&(N3+4))=1),lesurenberekening!G12,IF(AND(INDIRECT("formatieoverzicht!Y"&(N3+4))=1,INDIRECT("formatieoverzicht!AF"&(N3+4))=2),lesurenberekening!K12,IF(AND(INDIRECT("formatieoverzicht!Y"&(N3+4))=1,INDIRECT("formatieoverzicht!AF"&(N3+4))=3),lesurenberekening!O12,IF(AND(INDIRECT("formatieoverzicht!Y"&(N3+4))=3,INDIRECT("formatieoverzicht!AF"&(N3+4))=1),lesurenberekening!G12,IF(AND(INDIRECT("formatieoverzicht!Y"&(N3+4))=3,INDIRECT("formatieoverzicht!AF"&(N3+4))=2),lesurenberekening!K12,IF(AND(INDIRECT("formatieoverzicht!Y"&(N3+4))=3,INDIRECT("formatieoverzicht!AF"&(N3+4))=3),lesurenberekening!O12,0)))))) -> 0 | H10: =IF(INDIRECT("formatieoverzicht!X"&(N3+4))>0,lesurenberekening!E99,0) -> 0 | I10: =H10+J10 -> 0 | J10: =IF(INDIRECT("formatieoverzicht!Y"&(N3+4))>0,lesurenberekening!G99,0) -> 0 | K10: basisbudget | M10: =INDIRECT("formatieoverzicht!J"&(4+N3)) -> 0 | N10: =INDIRECT("formatieoverzicht!Q"&(4+N3)) -> 0 | P10: A tm D
C11: woensdag | D11: =IF(INDIRECT("formatieoverzicht!Z"&(N3+4))=2,"A","") ->  | E11: =IF(AND(INDIRECT("formatieoverzicht!Z"&(N3+4))=1,INDIRECT("formatieoverzicht!AF"&(N3+4))=1),lesurenberekening!E13,IF(AND(INDIRECT("formatieoverzicht!Z"&(N3+4))=1,INDIRECT("formatieoverzicht!AF"&(N3+4))=2),lesurenberekening!I13,IF(AND(INDIRECT("formatieoverzicht!Z"&(N3+4))=1,INDIRECT("formatieoverzicht!AF"&(N3+4))=3),lesurenberekening!M13,IF(AND(INDIRECT("formatieoverzicht!Z"&(N3+4))=3,INDIRECT("formatieoverzicht!AF"&(N3+4))=1),lesurenberekening!E13,IF(AND(INDIRECT("formatieoverzicht!Z"&(N3+4))=3,INDIRECT("formatieoverzicht!AF"&(N3+4))=2),lesurenberekening!I13,IF(AND(INDIRECT("formatieoverzicht!Z"&(N3+4))=3,INDIRECT("formatieoverzicht!AF"&(N3+4))=3),lesurenberekening!M13,0)))))) -> 0 | F11: =IF(INDIRECT("formatieoverzicht!AA"&(N3+4))=2,"A","") ->  | G11: =IF(AND(INDIRECT("formatieoverzicht!AA"&(N3+4))=1,INDIRECT("formatieoverzicht!AF"&(N3+4))=1),lesurenberekening!G13,IF(AND(INDIRECT("formatieoverzicht!AA"&(N3+4))=1,INDIRECT("formatieoverzicht!AF"&(N3+4))=2),lesurenberekening!K13,IF(AND(INDIRECT("formatieoverzicht!AA"&(N3+4))=1,INDIRECT("formatieoverzicht!AF"&(N3+4))=3),lesurenberekening!O13,IF(AND(INDIRECT("formatieoverzicht!AA"&(N3+4))=3,INDIRECT("formatieoverzicht!AF"&(N3+4))=1),lesurenberekening!G13,IF(AND(INDIRECT("formatieoverzicht!AA"&(N3+4))=3,INDIRECT("formatieoverzicht!AF"&(N3+4))=2),lesurenberekening!K13,IF(AND(INDIRECT("formatieoverzicht!AA"&(N3+4))=3,INDIRECT("formatieoverzicht!AF"&(N3+4))=3),lesurenberekening!O13,0)))))) -> 0 | H11: =IF(INDIRECT("formatieoverzicht!Z"&(N3+4))>0,lesurenberekening!E100,0) -> 0 | I11: =H11+J11 -> 0 | J11: =IF(INDIRECT("formatieoverzicht!AA"&(N3+4))>0,lesurenberekening!G100,0) -> 0 | K11: bijzonder budget | M11: =INDIRECT("formatieoverzicht!K"&(4+N3)) -> 0 | N11: =INDIRECT("formatieoverzicht!R"&(4+N3)) -> 0 | P11: In deze rubrieken is alles automatisch berekend.
C12: donderdag | D12: =IF(INDIRECT("formatieoverzicht!AB"&(N3+4))=2,"A","") ->  | E12: =IF(AND(INDIRECT("formatieoverzicht!AB"&(N3+4))=1,INDIRECT("formatieoverzicht!AF"&(N3+4))=1),lesurenberekening!E14,IF(AND(INDIRECT("formatieoverzicht!AB"&(N3+4))=1,INDIRECT("formatieoverzicht!AF"&(N3+4))=2),lesurenberekening!I14,IF(AND(INDIRECT("formatieoverzicht!AB"&(N3+4))=1,INDIRECT("formatieoverzicht!AF"&(N3+4))=3),lesurenberekening!M14,IF(AND(INDIRECT("formatieoverzicht!AB"&(N3+4))=3,INDIRECT("formatieoverzicht!AF"&(N3+4))=1),lesurenberekening!E14,IF(AND(INDIRECT("formatieoverzicht!AB"&(N3+4))=3,INDIRECT("formatieoverzicht!AF"&(N3+4))=2),lesurenberekening!I14,IF(AND(INDIRECT("formatieoverzicht!AB"&(N3+4))=3,INDIRECT("formatieoverzicht!AF"&(N3+4))=3),lesurenberekening!M14,0)))))) -> 0 | F12: =IF(INDIRECT("formatieoverzicht!AC"&(N3+4))=2,"A","") ->  | G12: =IF(AND(INDIRECT("formatieoverzicht!AC"&(N3+4))=1,INDIRECT("formatieoverzicht!AF"&(N3+4))=1),lesurenberekening!G14,IF(AND(INDIRECT("formatieoverzicht!AC"&(N3+4))=1,INDIRECT("formatieoverzicht!AF"&(N3+4))=2),lesurenberekening!K14,IF(AND(INDIRECT("formatieoverzicht!AC"&(N3+4))=1,INDIRECT("formatieoverzicht!AF"&(N3+4))=3),lesurenberekening!O14,IF(AND(INDIRECT("formatieoverzicht!AC"&(N3+4))=3,INDIRECT("formatieoverzicht!AF"&(N3+4))=1),lesurenberekening!G14,IF(AND(INDIRECT("formatieoverzicht!AC"&(N3+4))=3,INDIRECT("formatieoverzicht!AF"&(N3+4))=2),lesurenberekening!K14,IF(AND(INDIRECT("formatieoverzicht!AC"&(N3+4))=3,INDIRECT("formatieoverzicht!AF"&(N3+4))=3),lesurenberekening!O14,0)))))) -> 0 | H12: =IF(INDIRECT("formatieoverzicht!AB"&(N3+4))>0,lesurenberekening!E101,0) -> 0 | I12: =H12+J12 -> 0 | J12: =IF(INDIRECT("formatieoverzicht!AC"&(N3+4))>0,lesurenberekening!G101,0) -> 0 | K12: overgangsbudget | M12: =INDIRECT("formatieoverzicht!L"&(4+N3)) -> 0 | N12: =INDIRECT("formatieoverzicht!S"&(4+N3)) -> 0
C13: vrijdag | D13: =IF(INDIRECT("formatieoverzicht!AD"&(N3+4))=2,"A","") ->  | E13: =IF(AND(INDIRECT("formatieoverzicht!AD"&(N3+4))=1,INDIRECT("formatieoverzicht!AF"&(N3+4))=1),lesurenberekening!E15,IF(AND(INDIRECT("formatieoverzicht!AD"&(N3+4))=1,INDIRECT("formatieoverzicht!AF"&(N3+4))=2),lesurenberekening!I15,IF(AND(INDIRECT("formatieoverzicht!AD"&(N3+4))=1,INDIRECT("formatieoverzicht!AF"&(N3+4))=3),lesurenberekening!M15,IF(AND(INDIRECT("formatieoverzicht!AD"&(N3+4))=3,INDIRECT("formatieoverzicht!AF"&(N3+4))=1),lesurenberekening!E15,IF(AND(INDIRECT("formatieoverzicht!AD"&(N3+4))=3,INDIRECT("formatieoverzicht!AF"&(N3+4))=2),lesurenberekening!I15,IF(AND(INDIRECT("formatieoverzicht!AD"&(N3+4))=3,INDIRECT("formatieoverzicht!AF"&(N3+4))=3),lesurenberekening!M15,0)))))) -> 0 | F13: =IF(INDIRECT("formatieoverzicht!AE"&(N3+4))=2,"A","") ->  | G13: =IF(AND(INDIRECT("formatieoverzicht!AE"&(N3+4))=1,INDIRECT("formatieoverzicht!AF"&(N3+4))=1),lesurenberekening!G15,IF(AND(INDIRECT("formatieoverzicht!AE"&(N3+4))=1,INDIRECT("formatieoverzicht!AF"&(N3+4))=2),lesurenberekening!K15,IF(AND(INDIRECT("formatieoverzicht!AE"&(N3+4))=1,INDIRECT("formatieoverzicht!AF"&(N3+4))=3),lesurenberekening!O15,IF(AND(INDIRECT("formatieoverzicht!AE"&(N3+4))=3,INDIRECT("formatieoverzicht!AF"&(N3+4))=1),lesurenberekening!G15,IF(AND(INDIRECT("formatieoverzicht!AE"&(N3+4))=3,INDIRECT("formatieoverzicht!AF"&(N3+4))=2),lesurenberekening!K15,IF(AND(INDIRECT("formatieoverzicht!AE"&(N3+4))=3,INDIRECT("formatieoverzicht!AF"&(N3+4))=3),lesurenberekening!O15,0)))))) -> 0 | H13: =IF(INDIRECT("formatieoverzicht!AD"&(N3+4))>0,lesurenberekening!E102,0) -> 0 | I13: =H13+J13 -> 0 | J13: =IF(INDIRECT("formatieoverzicht!AE"&(N3+4))>0,lesurenberekening!G102,0) -> 0 | K13: ingezet uit spaarsaldo | L13: + | M13: =INDIRECT("formatieoverzicht!M"&(4+N3)) -> 0 | P13: In rubriek A staat voor ambulante dagdelen een A.
M14: =M10+M11+M12+M13 -> 0 | N14: =SUM(N10:N13) -> 0 | P14: Indien noodzakelijk, kunnen in rubriek A de les- en arbeidsuren hand-
C15: ingeroosterd per week | E15: =E9+G9+E10+G10+E11+G11+E12+G12+E13+G13 -> 0 | I15: =SUM(I9:I13) -> 0 | P15: matig worden aangepast.
C16: eventuele correctie (zie invoerformulier) | E16: =INDIRECT("formatieoverzicht!AG"&(N3+4)) -> 0 | F16: _ | H16: _ | I16: =INDIRECT("formatieoverzicht!AJ"&(N3+4)) -> 0 | K16: opgenomen verlof d.i. | M16: =INDIRECT("formatieoverzicht!O"&(4+N3)) -> 0
C17: netto ingeroosterd per week | E17: =E15-E16 -> 0 | I17: =I15-I16 -> 0 | K17: waarvan lesuren | N17: =ROUND(MaxLestaak/1576*M16,0) -> 0 | P17: E + F
C18: x 52 = | E18: =52*E17 -> 0 | I18: =52*I17 -> 0 | K18: sparen* | L18: _ | M18: =INDIRECT("formatieoverzicht!P"&(4+N3)) -> 0 | P18: Hier kunnen de dagen en uren worden ingevuld waarop het teamlid
B19: =WEEKDAY(CONCATENATE(C19,G4)) -> 1900-01-01 | C19: 29 september | D19: =IF(MOD(G4,4)=0,WEEKDAY(CONCATENATE(C19,G4),2),0) -> 7 | E19: =IF(D19=1,E9+G9,IF(D19=2,E10+G10,IF(D19=3,E11+G11,IF(D19=4,E12+G12,IF(D19=5,E13+G13,0))))) -> 0 | G19: (schrikkeljaar) | I19: =IF(D19=1,I9,IF(D19=2,I10,IF(D19=3,I11,IF(D19=4,I12,IF(D19=5,I13,0))))) -> 0 | K19: (resterend) inzetbaar | M19: =INDIRECT("formatieoverzicht!T"&(4+N3)) -> 0 | P19: individueel extra wordt uit- of ingeroosterd.
B20: =WEEKDAY(CONCATENATE(C20,G4)) -> 1900-01-02 | C20: 30 september | D20: =WEEKDAY(CONCATENATE(C20,G4),2) -> 1 | E20: =IF(D20=1,E9+G9,IF(D20=2,E10+G10,IF(D20=3,E11+G11,IF(D20=4,E12+G12,IF(D20=5,E13+G13,0))))) -> 0 | F20: + | H20: + | I20: =IF(D20=1,I9,IF(D20=2,I10,IF(D20=3,I11,IF(D20=4,I12,IF(D20=5,I13,0))))) -> 0
C21: totaal A | E21: =E18+E19+E20 -> 0 | I21: =I18+I19+I20 -> 0 | K21: ="spaarsaldo eind "&lesurenberekening!E5-1&"/"&lesurenberekening!G5-1 -> spaarsaldo eind 2022/2023 | M21: =INDIRECT("formatieoverzicht!U"&(4+N3)) -> 0 | P21: Vul alle kolommen handmatig in. Denk om de dubbele punt achter de
B22: B hele vakantieweken | P22: uren. Wanneer is afgesproken een aantal dagen door te werken in één
G23: 1e maandag | K23: * Sparen tot 57 jr. : max. 3 jaar; vanaf 57 jr.: max. 5 jaar | P23: of meer vakantieweken, vul je in F het totaal van de arbeidsuren in.
C24: herfstvakantie | D24: =lesurenberekening!D25 -> 1 | E24: =E17*D24 -> 0 | G24: =lesurenberekening!E25 -> 2023-10-16 | I24: =I17*D24 -> 0 | K24: H ingeroosterde arbeidsuren | M24: wtf 1,0: | N24: =jaartaak -> 1659 | O24: in zelfde verhouding ingeroosterd als een voltijder
C25: kerstvakantie | D25: =lesurenberekening!D26 -> 2 | E25: =E17*D25 -> 0 | G25: =lesurenberekening!E26 -> 2023-12-25 | I25: =I17*D25 -> 0 | P25: Wanneer je hier bij meerdere teamleden hetzelfde moet invullen, kun je
C26: voorjaarsvakantie | D26: =lesurenberekening!D27 -> 1 | E26: =E17*D26 -> 0 | G26: =lesurenberekening!E27 -> 2024-02-19 | I26: =I17*D26 -> 0 | K26: bruto arbeidsduur (wtf x 1659) | M26: =ROUND(K5*jaartaak,0) -> 0 | P26: dat op meerdere teamlidbladen tegelijk in één keer invullen.
C27: meivakantie | D27: =lesurenberekening!D28 -> 2 | E27: =E17*D27 -> 0 | G27: =lesurenberekening!E28 -> 2024-04-29 | I27: =I17*D27 -> 0 | K27: opgenomen verlof d.i. | L27: _ | M27: =M16 -> 0 | P27: Meer informatie op de website: Vragen-> handig invullen
C28: =lesurenberekening!C29 -> 0 | D28: =lesurenberekening!D29 -> 0 | E28: =E17*D28 -> 0 | G28: =lesurenberekening!E29 -> 00:00:00 | I28: =I17*D28 -> 0 | K28: netto arbeidsduur | M28: =M26-M27 -> 0
C29: zomervakantie | D29: =lesurenberekening!D30 -> 6 | E29: =E17*D29 -> 0 | G29: =lesurenberekening!E30 -> 2024-07-15 | I29: =I17*D29 -> 0 | K29: ingeroosterd: (A + F) - (B t/m E) | M29: =ROUND(((I21+I73)-(I30+I43+I55+I64))*24,0) -> 0 | O29: =ROUND(O31*M28,0) -> 0 | P29: G
C30: totaal B | E30: =SUM(E24:E29) -> 0 | I30: =SUM(I24:I29) -> 0 | K30: =IF(lesurenberekening!E117="ja","verschil","") -> verschil | M30: =IF(lesurenberekening!E117="ja",(M29-M28),0) -> 0 | N30: =IF(lesurenberekening!E117="ja",(O30-M30),0) -> 0 | O30: =IF(O29<>0,O29-M28,0) -> 0 | P30: Het aantal lesuren dat een verlof d.i. bevat is gebaseerd op artikel
B31: C hele vakantie- of studiedagen | K31: =IF(lesurenberekening!E117="ja","inroosteringspercentage", "") -> inroosteringspercentage | M31: =ROUND(IF(lesurenberekening!E117="ja",IF(M28>0,M29/M28*100,0),0),1) -> 0 | N31: =IF(lesurenberekening!E117="ja","%","") -> % | O31: =lesurenberekening!E112*100&" %" -> 0 % | P31: 8A.6 lid 6 (CAO-PO 2022). Het budget prof. blijft dus ongewijzigd.
B32: =lesurenberekening!B34 ->  | C32: =IF(lesurenberekening!C34="","",lesurenberekening!C34) ->  | D32: =lesurenberekening!D34 -> v | E32: =(INDIRECT("E"&8+F32)+INDIRECT("G"&8+F32)) -> 0 | F32: =WEEKDAY(G32,2) -> 6 | G32: =lesurenberekening!E34 -> 00:00:00 | I32: =IF(D32="v",INDIRECT("I"&8+F32),0) -> 0
B33: =lesurenberekening!B35 ->  | C33: =IF(lesurenberekening!C35="","",lesurenberekening!C35) ->  | D33: =lesurenberekening!D35 -> v | E33: =(INDIRECT("E"&8+F33)+INDIRECT("G"&8+F33)) -> 0 | F33: =WEEKDAY(G33,2) -> 6 | G33: =lesurenberekening!E35 -> 00:00:00 | I33: =IF(D33="v",INDIRECT("I"&8+F33),0) -> 0 | K33: I ingeroosterde lesuren | M33: wtf 1,0: | N33: =MaxLestaak -> 940 | P33: H + I
B34: =lesurenberekening!B36 ->  | C34: =IF(lesurenberekening!C36="","",lesurenberekening!C36) ->  | D34: =lesurenberekening!D36 -> v | E34: =(INDIRECT("E"&8+F34)+INDIRECT("G"&8+F34)) -> 0 | F34: 6 | G34: =lesurenberekening!E36 -> 00:00:00 | I34: =IF(D34="v",INDIRECT("I"&8+F34),0) -> 0 | P34: De weergave van het inroosterverschil en het inroosterpercentage kan
B35: =lesurenberekening!B37 ->  | C35: =IF(lesurenberekening!C37="","",lesurenberekening!C37) ->  | D35: =lesurenberekening!D37 -> v | E35: 0 | F35: 6 | G35: =lesurenberekening!E37 -> 00:00:00 | I35: 0 | K35: maximale lestaak vlg. wtf | M35: =ROUND(K5*MaxLestaak,0) -> 0 | P35: in rubriek G op het eerste werkblad Lesurenberekening aan of uit
B36: =lesurenberekening!B38 ->  | C36: =IF(lesurenberekening!C38="","",lesurenberekening!C38) ->  | D36: =lesurenberekening!D38 -> v | E36: 0 | F36: 6 | G36: =lesurenberekening!E38 -> 00:00:00 | I36: 0 | K36: lesuren opgenomen verlof d.i. | L36: _ | M36: =N17 -> 0 | P36: worden gezet.
B37: =lesurenberekening!B39 ->  | C37: =IF(lesurenberekening!C39="","",lesurenberekening!C39) ->  | D37: =lesurenberekening!D39 -> v | E37: 0 | F37: 6 | G37: =lesurenberekening!E39 -> 00:00:00 | I37: 0 | K37: netto lestaak | M37: =M35-M36 -> 0
B38: =lesurenberekening!B40 ->  | C38: =IF(lesurenberekening!C40="","",lesurenberekening!C40) ->  | D38: =lesurenberekening!D40 -> v | E38: 0 | F38: 6 | G38: =lesurenberekening!E40 -> 00:00:00 | I38: 0 | K38: ingeroosterd: (A + F) - (B t/m E) | L38: _ | M38: =ROUND(((E21+E73)-(E30+E43+E55+E64))*24,0) -> 0 | P38: Wanneer in rubriek G (instellingen) op het eerste werkblad Lesuren-
B39: =lesurenberekening!B41 ->  | C39: =IF(lesurenberekening!C41="","",lesurenberekening!C41) ->  | D39: =lesurenberekening!D41 -> v | E39: 0 | F39: 6 | G39: =lesurenberekening!E41 -> 00:00:00 | I39: 0 | K39: =IF(lesurenberekening!E117="ja","verschil","") -> verschil | M39: =IF(lesurenberekening!E118="ja",M38-M37,"") -> 0 | P39: berekening het plaats- en tijdgebonden inroosterpercentage van de
B40: =lesurenberekening!B42 ->  | C40: =IF(lesurenberekening!C42="","",lesurenberekening!C42) ->  | D40: =lesurenberekening!D42 -> v | E40: 0 | F40: 6 | G40: =lesurenberekening!E42 -> 00:00:00 | I40: 0 | K40: =IF(lesurenberekening!E118="ja"," inroosteringspercentage","") -> inroosteringspercentage | M40: =ROUND(IF(lesurenberekening!E118="ja",IF(M37>0,M38/M37*100,0),0),1) -> 0 | N40: =IF(lesurenberekening!E118="ja","%","") -> % | P40: voltijders is ingevuld, wordt naast rubriek H ter vergelijking het daaraan
B41: =lesurenberekening!B43 ->  | C41: =IF(lesurenberekening!C43="","",lesurenberekening!C43) ->  | D41: =lesurenberekening!D43 -> v | E41: 0 | F41: 6 | G41: =lesurenberekening!E43 -> 00:00:00 | I41: 0 | P41: evenredig aantal in te roosteren arbeidsuren getoond.
B42: =lesurenberekening!B44 ->  | C42: =IF(lesurenberekening!C44="","",lesurenberekening!C44) ->  | D42: =lesurenberekening!D44 -> v | E42: 0 | F42: 6 | G42: =lesurenberekening!E44 -> 00:00:00 | I42: 0 | K42: J opbouw ingeroosterde jaartaak
C43: totaal C | E43: =SUM(E32:E42) -> 0 | I43: =SUM(I32:I42) -> 0 | N43: =IF(M53>0,"na verlof-", "") ->  | P43: J
B44: D overige dagdelen en uren | N44: =IF(M53>0,"opname", "") ->  | P44: overige & ambulante (functie)taken
B45: =IF(G45="","",G45) -> 00:00:00 | C45: =lesurenberekening!C48 -> 0 | D45: =IF(G$7=1,lesurenberekening!G48,IF(G$7=2,lesurenberekening!I48,IF(G$7=3,lesurenberekening!K48,0))) -> 0 | E45: =IF((INDIRECT("E"&8+F45)+INDIRECT("G"&8+F45))<>0,D45,0) -> 0 | F45: =WEEKDAY(G45,2) -> 6 | G45: =lesurenberekening!E48 -> 00:00:00 | I45: =IF(AND(INDIRECT("I"&8+F45)<>0,E45<>0),lesurenberekening!O48,0) -> 0 | K45: budget duurzame inzetbaarheid | M45: =M19 -> 0 | N45: =IF(M53>0,ROUND((N51/M51)*M45,0),M45) -> 0 | O45: =N45 -> 0 | P45: Wanneer er sprake is van ambulante uren, zal het aantal uren dat over-
B46: =IF(G46="","",G46) -> 00:00:00 | C46: =lesurenberekening!C49 -> 0 | D46: =IF(G$7=1,lesurenberekening!G49,IF(G$7=2,lesurenberekening!I49,IF(G$7=3,lesurenberekening!K49,0))) -> 0 | E46: =IF((INDIRECT("E"&8+F46)+INDIRECT("G"&8+F46))<>0,D46,0) -> 0 | F46: =WEEKDAY(G46,2) -> 6 | G46: =lesurenberekening!E49 -> 00:00:00 | I46: =IF(AND(INDIRECT("I"&8+F46)<>0,E46<>0),lesurenberekening!O49,0) -> 0 | K46: budget professionalisering | M46: =ROUND(K5*professionalisering,0) -> 0 | N46: =IF(M53>0,ROUND((N51/M51)*M46,0),M46) -> 0 | O46: =N46 -> 0 | P46: blijft voor de overige taken groter zijn. Onderaan rubriek K kan
B47: =IF(G47="","",G47) -> 00:00:00 | C47: =lesurenberekening!C50 -> 0 | D47: =IF(G$7=1,lesurenberekening!G50,IF(G$7=2,lesurenberekening!I50,IF(G$7=3,lesurenberekening!K50,0))) -> 0 | E47: =IF((INDIRECT("E"&8+F47)+INDIRECT("G"&8+F47))<>0,D47,0) -> 0 | F47: 6 | G47: =lesurenberekening!E50 -> 00:00:00 | I47: =IF(AND(INDIRECT("I"&8+F47)<>0,E47<>0),lesurenberekening!O50,0) -> 0 | K47: ingeroosterde lestaak | M47: =M38 -> 0 | O47: =M47 -> 0 | P47: het aantal uren voor de ambulante taken worden ingevuld; de over-
B48: 00:00:00 | C48: =lesurenberekening!C51 -> 0 | D48: =IF(G$7=1,lesurenberekening!G51,IF(G$7=2,lesurenberekening!I51,IF(G$7=3,lesurenberekening!K51,0))) -> 0 | E48: 0 | F48: 6 | G48: =lesurenberekening!E51 -> 00:00:00 | I48: =IF(AND(INDIRECT("I"&8+F48)<>0,E48<>0),lesurenberekening!O51,0) -> 0 | K48: voor- en nawerk* | M48: =IF(N48=0,ROUND(nawerk*M47,0),ROUND(N48*M47,0)) -> 0 | O48: =M48 -> 0 | P48: blijvende uren gaan dan naar de overige taken (zie rubriek C, pag. 2.).
B49: 00:00:00 | C49: =lesurenberekening!C52 -> 0 | D49: =IF(G$7=1,lesurenberekening!G52,IF(G$7=2,lesurenberekening!I52,IF(G$7=3,lesurenberekening!K52,0))) -> 0 | E49: 0 | F49: 6 | G49: =lesurenberekening!E52 -> 00:00:00 | I49: =IF(AND(INDIRECT("I"&8+F49)<>0,E49<>0),lesurenberekening!O52,0) -> 0 | K49: =IF(COUNTIF(D9:F13,"A")>0,"overige/amb. taken","overige taken") -> overige taken | M49: =M51-(M45+M46+M47+M48) -> 0 | N49: =IF(M53>0,ROUND((N51/M51)*M49,0),M49) -> 0 | O49: 100
B50: =IF(G50="","",G50) -> 00:00:00 | C50: =lesurenberekening!C53 -> 0 | D50: =IF(G$7=1,lesurenberekening!G53,IF(G$7=2,lesurenberekening!I53,IF(G$7=3,lesurenberekening!K53,0))) -> 0 | E50: =IF((INDIRECT("E"&8+F50)+INDIRECT("G"&8+F50))<>0,D50,0) -> 0 | F50: 6 | G50: =lesurenberekening!E53 -> 00:00:00 | I50: =IF(AND(INDIRECT("I"&8+F50)<>0,E50<>0),lesurenberekening!O53,0) -> 0 | P50: verlofopname
B51: =IF(G51="","",G51) -> 00:00:00 | C51: =lesurenberekening!C54 -> 0 | D51: =IF(G$7=1,lesurenberekening!G54,IF(G$7=2,lesurenberekening!I54,IF(G$7=3,lesurenberekening!K54,0))) -> 0 | E51: 0 | F51: 6 | G51: =lesurenberekening!E54 -> 00:00:00 | I51: =IF(AND(INDIRECT("I"&8+F51)<>0,E51<>0),lesurenberekening!O54,0) -> 0 | K51: netto arbeidsduur | M51: =M28 -> 0 | N51: =IF(M53>0,(M51-M53),0) -> 0 | P51: Dit vakje mag slechts in bepaalde gevallen worden ingevuld. Klik op de
B52: =IF(G52="","",G52) -> 00:00:00 | C52: =lesurenberekening!C55 -> 0 | D52: =IF(G$7=1,lesurenberekening!G55,IF(G$7=2,lesurenberekening!I55,IF(G$7=3,lesurenberekening!K55,0))) -> 0 | E52: 0 | F52: 6 | G52: =lesurenberekening!E55 -> 00:00:00 | I52: =IF(AND(INDIRECT("I"&8+F52)<>0,E52<>0),lesurenberekening!O55,0) -> 0 | P52: icoon of houd de muisaanwijzer boven de tooltip voor meer informatie.
B53: =IF(G53="","",G53) -> 00:00:00 | C53: =lesurenberekening!C56 -> 0 | D53: =IF(G$7=1,lesurenberekening!G56,IF(G$7=2,lesurenberekening!I56,IF(G$7=3,lesurenberekening!K56,0))) -> 0 | E53: 0 | F53: 6 | G53: =lesurenberekening!E56 -> 00:00:00 | I53: =IF(AND(INDIRECT("I"&8+F53)<>0,E53<>0),lesurenberekening!O56,0) -> 0 | K53: opname overig verlof dit schooljaar:
B54: 00:00:00 | C54: =lesurenberekening!C57 -> 0 | D54: =IF(G$7=1,lesurenberekening!G57,IF(G$7=2,lesurenberekening!I57,IF(G$7=3,lesurenberekening!K57,0))) -> 0 | E54: 0 | F54: 6 | G54: =lesurenberekening!E57 -> 00:00:00 | I54: =IF(AND(INDIRECT("I"&8+F54)<>0,E54<>0),lesurenberekening!O57,0) -> 0 | K54: *afgesproken reguliere opslagfactor: | M54: =nawerk -> 0 | P54: voor- en nawerk
C55: totaal D | E55: =SUM(E45:E54) -> 0 | I55: =SUM(I45:I54) -> 0 | K55: K d.i. + prof. + overige taken zie pagina 2 | P55: In dit vakje kan een afwijkende individuele opslagfactor worden inge-
B56: E uitgeroosterd | G56: datum | P56: vuld. Dit kan een grótere factor zijn bij beginnnende leerkrachten, of
K57: budget duurzame inzetbaarheid | N57: % | P57: juist een kleinere bij OOP'ers met lesondersteunende taken indien dat
K58: beschikbaar | M58: =N45 -> 0 | N58: ingevuld | P58: is afgesproken.
K59: ingevuld | L59: _ | M59: =M104 -> 0 | N59: =IF(M58>0,M59/M58*100,0) -> 0
K60: =IF(M60<0,"teveel ingepland","nog beschikbaar") -> nog beschikbaar | M60: =N105 -> 0 | P60: K
P61: Hier zie je in hoeverre de uren van deze drie taakonderdelen al met
K62: budget professionalisering | P62: activiteiten zijn gevuld op de tweede pagina van dit teamlidblad.
K63: beschikbaar | M63: =N46 -> 0 | P63: Dit is ook te zien geheel rechts op het Formatieoverzicht.
C64: totaal E | E64: =SUM(E57:E63) -> 0 | I64: =SUM(I57:I63) -> 0 | K64: ingevuld | L64: _ | M64: =M123 -> 0 | N64: =IF(M63>0,M64/M63*100,0) -> 0
B65: F ingeroosterd | G65: datum | K65: =IF(M65<0,"teveel ingepland","nog beschikbaar") -> nog beschikbaar | M65: =N124 -> 0 | P65: ambulante functietaken
P66: Bij (deels) ambulante teamleden moeten de overblijvende uren verdeeld
K67: =K49 -> overige taken | P67: worden over de ambulante functietaken en de overige taken.
K68: beschikbaar | M68: =N49-M72 -> 0 | P68: Vul, indien van toepassing, hier de uren voor de ambulante taken in, óf
K69: ingevuld | L69: _ | M69: =M157 -> 0 | N69: =IF(M68>0,M69/M68*100,0) -> 0 | P69: vul de verdeling op pag. 2 in rubriek C in (dus niet in beide tegelijk!).
K70: =IF(M70<0,"teveel ingepland","nog beschikbaar") -> nog beschikbaar | M70: =N158 -> 0
K72: ambulante functietaken: | P72: opmerkingenvak
C73: totaal F | E73: =SUM(E66:E72) -> 0 | I73: =SUM(I66:I72) -> 0 | P73: Druk op Alt+Enter voor een nieuwe regel.
B74: opmerkingen | P74: Dubbelklik op het vak wanneer niet de hele tekst zichtbaar is. Alleen het
P75: zichtbare deel wordt afgedrukt.
G81: 2e pagina | P81: Teamlidblad 2e pagina
B83: OVERZICHT GEPLANDE TAKEN EN ACTIVITEITEN DUURZAME INZETBAARHEID, PROFESSIONALISERING EN OVERIGE TAKEN | P83: Overzicht uren d.i., professionalisering en overige taken
P84: Op deze pagina worden de geplande activiteiten en uren ingevuld.
C85: schooljaar | E85: =E4 -> 2023 | F85: / | G85: =G4 -> 2024 | H85: naam: | K85: =K3 -> 0 | P85: Een regel moet aan de linkerkant geselecteerd worden om in te vullen.
P86: De uren worden hier als gewone hele getallen ingevoerd zonder
P87: dubbele punt.
B88: A | C88: duurzame inzetbaarheid | K88: beschikbaar: | M88: uren | N88: =N45 -> 0
B89: 1 | P89: invoerformulier voor de activiteiten
B90: 2 | P90: Voor het maken van overzichten is het noodzakelijk dat activiteiten
B91: 3 | P91: uniform gespeld worden. Bovendien worden de overzichten gemaakt
B92: 4 | P92: op basis van de drie lijsten (zie de drie tabs onderaan het scherm).
B93: 5 | P93: Voer activiteiten daarom altijd zoveel mogelijk in via het activiteiten-
B94: 6 | P94: invoerformulier. Je roept dit formulier op door op een willekeurige plek
B95: 7 | P95: op de nummerrij te klikken.
B96: 8
B97: 9 | P97: HET ACTIVITEITEN INVOERFORMULIER
B98: 10
B99: 11 | P99: Onderstaande informatie vind je ook door op de informatie-icoontjes op
B100: 12 | P100: het invoerformulier te klikken.
B101: 13
B102: 14 | P102: Lijstitem aan teamblad toevoegen
B103: 15 | P103: > Roep het formulier op door op de nummerrij te klikken en selecteer in
K104: totaal : | M104: =SUM(M89:M103) -> 0 | P104: het vak Lijstkeuze de betreffende lijst.
K105: nog beschikbaar: | N105: =N88-M104 -> 0 | P105: > Klik op het pijltje aan het eind van de lege regel; de lijst verschijnt.
P106: > Selecteer een activiteit en klik in het vak Teamblad A, B of C de
B107: B | C107: professionalisering | K107: beschikbaar: | N107: =N46 -> 0 | P107: rubriek waaraan je de activiteit wilt toevoegen.
B108: 1 | P108: > Klik tenslotte op de knop Toevoegen aan teamlidblad.
B109: 2
B110: 3 | P110: Uren wijzigen
B111: 4 | P111: De eventueel vermelde uren kunnen voordat de activiteit aan het team-
B112: 5 | P112: lidblad wordt toegevoegd worden gewijzigd. Er moeten altijd uren zijn
B113: 6 | P113: ingevuld.
B114: 7
B115: 8 | P115: Nieuwe items aan een lijst én het teamlidblad toevoegen
B116: 9 | P116: Nieuwe activiteiten kunnen gelijktijdig aan een lijst én aan een rubriek
B117: 10 | P117: op het teamlidblad worden toegevoegd:
B118: 11 | P118: > Selecteer in het vak Lijstkeuze een lijst en vul op de lege regel een
B119: 12 | P119: activiteit in.
B120: 13 | P120: > Klik vervolgens op Toevoegen aan lijst.
B121: 14 | P121: > Selecteer daarna in het vak daaronder de betreffende rubriek en
B122: 15 | P122: tenslotte op Toevoegen aan teamlidblad.
K123: totaal : | M123: =SUM(M108:M122) -> 0
K124: nog beschikbaar: | N124: =N107-M123 -> 0 | P124: De lijsten kunnen ook direct op de lijst zelf worden ingevuld. Aangeleg-
P125: de lijsten kunnen bij het ingebruiknemen van een nieuwe planner uit de
B126: C | C126: =K49 -> overige taken | K126: beschikbaar: | N126: =M68 -> 0 | P126: oude planner met enkele muisklikken geïmporteerd worden.
B127: 1
B128: 2 | P128: sortering
B129: 3 | P129: Bij gebruik van het invoerformulier worden de items automatisch
B130: 4 | P130: gesorteerd. Sorteer bij rechtstreeks invullen door op de sorteerpijlen
B131: 5 | P131: bovenaan de pagina te klikken.
B132: 6
B133: 7 | P133: overzicht per activiteit
B134: 8 | P134: Met het invoerformulier kan ook een overzicht worden gemaakt van de
B135: 9 | P135: teamleden die eenzelfde activiteit hebben:
B136: 10 | P136: > Kies een lijst en een activiteit.
B137: 11 | P137: > Klik nu op de knop Teamoverzicht.
B138: 12 | P138: > Het overzicht wordt onderaan de gekozen lijst getoond.
B139: 13
B140: 14 | P140: overzicht alle activiteiten en alle teamleden
B141: 15 | P141: Op het werkblad act.overzicht kun je een totaaloverzicht maken van alle
B142: 16 | P142: activiteiten en teamleden. Een lege lijst kun je aan het begin van het
B143: 17 | P143: werkverdelingstraject als intekenlijst voor de overige taken gebruiken.
B144: 18
B145: 19 | P145: Let op:
B146: 20 | P146: De op deze pagina vermelde activiteiten en uren zijn een specificatie
B147: 21 | P147: van de op de eerste pagina berekende uren voor deze drie taak-
B148: 22 | P148: onderdelen. Er mogen dus niet méér uren worden ingepland dan er
B149: 23 | P149: beschikbaar zijn. Het aantal teveel ingeplande uren wordt in het rood
B150: 24 | P150: afgedrukt.
B151: 25
B152: 26
B153: 27
B154: 28
B155: 29
B156: 30
K157: totaal : | M157: =SUM(M127:M156) -> 0
K158: nog beschikbaar: | N158: =N126-M157 -> 0

Sheet 5 (hidden)
B2: TAAKBEREKENING OP/OOP met lesondersteunende taken | K2: © taakberekeningPO.nl | P2: toelichting teamlidblad OP en OOP met lesondersteunende taken
C3: =lesurenberekening!I5 -> 0 | H3: naam: | K3: =INDIRECT("formatieoverzicht!C"&(4+N3)) -> 0 | N3: =MID(CELL("bestandsnaam",A1),SEARCH("]",CELL("bestandsnaam",A1),1)+1,99) -> 5
E4: =lesurenberekening!E5 -> 2023 | F4: / | G4: =lesurenberekening!G5 -> 2024 | H4: aanstelling: | K4: =INDIRECT("formatieoverzicht!D"&(4+N3)) -> 0
H5: wtf: | K5: =INDIRECT("formatieoverzicht!E"&(4+N3)) -> 0 | P5: Klik op dit icoon voor meer informatie
B6: OVERZICHT IN- EN UITGEROOSTERDE LES- EN ARBEIDSUREN | K6: OVERZICHT JAARTAAK
B7: A jaartotaal les- en arbeidsuren | E7: lestijd bouw: | G7: =INDIRECT("formatieoverzicht!"&"AF"&N3+4) -> 0 | I7: arbeidsuren | K7: G budget duurzame inzetbaarheid | P7: Dit teamlidblad is voor het OP en OOP met lesondersteunende taken, | S7: ='5'!S6 -> 0
E8: o | G8: m | P8: zoals een klassen- of onderwijsassistent.
C9: maandag | D9: =IF(INDIRECT("formatieoverzicht!V"&(N3+4))=2,"A","") ->  | E9: =IF(AND(INDIRECT("formatieoverzicht!V"&(N3+4))=1,INDIRECT("formatieoverzicht!AF"&(N3+4))=1),lesurenberekening!E11,IF(AND(INDIRECT("formatieoverzicht!V"&(N3+4))=1,INDIRECT("formatieoverzicht!AF"&(N3+4))=2),lesurenberekening!I11,IF(AND(INDIRECT("formatieoverzicht!V"&(N3+4))=1,INDIRECT("formatieoverzicht!AF"&(N3+4))=3),lesurenberekening!M11,IF(AND(INDIRECT("formatieoverzicht!V"&(N3+4))=3,INDIRECT("formatieoverzicht!AF"&(N3+4))=1),lesurenberekening!E11,IF(AND(INDIRECT("formatieoverzicht!V"&(N3+4))=3,INDIRECT("formatieoverzicht!AF"&(N3+4))=2),lesurenberekening!I11,IF(AND(INDIRECT("formatieoverzicht!V"&(N3+4))=3,INDIRECT("formatieoverzicht!AF"&(N3+4))=3),lesurenberekening!M11,0)))))) -> 0 | F9: =IF(INDIRECT("formatieoverzicht!W"&(N3+4))=2,"A","") ->  | G9: =IF(AND(INDIRECT("formatieoverzicht!W"&(N3+4))=1,INDIRECT("formatieoverzicht!AF"&(N3+4))=1),lesurenberekening!G11,IF(AND(INDIRECT("formatieoverzicht!W"&(N3+4))=1,INDIRECT("formatieoverzicht!AF"&(N3+4))=2),lesurenberekening!K11,IF(AND(INDIRECT("formatieoverzicht!W"&(N3+4))=1,INDIRECT("formatieoverzicht!AF"&(N3+4))=3),lesurenberekening!O11,IF(AND(INDIRECT("formatieoverzicht!W"&(N3+4))=3,INDIRECT("formatieoverzicht!AF"&(N3+4))=1),lesurenberekening!G11,IF(AND(INDIRECT("formatieoverzicht!W"&(N3+4))=3,INDIRECT("formatieoverzicht!AF"&(N3+4))=2),lesurenberekening!K11,IF(AND(INDIRECT("formatieoverzicht!W"&(N3+4))=3,INDIRECT("formatieoverzicht!AF"&(N3+4))=3),lesurenberekening!O11,0)))))) -> 0 | H9: =IF(INDIRECT("formatieoverzicht!V"&(N3+4))>0,lesurenberekening!E98,0) -> 0 | I9: =H9+J9 -> 0 | J9: =IF(INDIRECT("formatieoverzicht!W"&(N3+4))>0,lesurenberekening!G98,0) -> 0 | M9: opbouw | N9: opname
C10: dinsdag | D10: =IF(INDIRECT("formatieoverzicht!X"&(N3+4))=2,"A","") ->  | E10: =IF(AND(INDIRECT("formatieoverzicht!X"&(N3+4))=1,INDIRECT("formatieoverzicht!AF"&(N3+4))=1),lesurenberekening!E12,IF(AND(INDIRECT("formatieoverzicht!X"&(N3+4))=1,INDIRECT("formatieoverzicht!AF"&(N3+4))=2),lesurenberekening!I12,IF(AND(INDIRECT("formatieoverzicht!X"&(N3+4))=1,INDIRECT("formatieoverzicht!AF"&(N3+4))=3),lesurenberekening!M12,IF(AND(INDIRECT("formatieoverzicht!X"&(N3+4))=3,INDIRECT("formatieoverzicht!AF"&(N3+4))=1),lesurenberekening!E12,IF(AND(INDIRECT("formatieoverzicht!X"&(N3+4))=3,INDIRECT("formatieoverzicht!AF"&(N3+4))=2),lesurenberekening!I12,IF(AND(INDIRECT("formatieoverzicht!X"&(N3+4))=3,INDIRECT("formatieoverzicht!AF"&(N3+4))=3),lesurenberekening!M12,0)))))) -> 0 | F10: =IF(INDIRECT("formatieoverzicht!Y"&(N3+4))=2,"A","") ->  | G10: =IF(AND(INDIRECT("formatieoverzicht!Y"&(N3+4))=1,INDIRECT("formatieoverzicht!AF"&(N3+4))=1),lesurenberekening!G12,IF(AND(INDIRECT("formatieoverzicht!Y"&(N3+4))=1,INDIRECT("formatieoverzicht!AF"&(N3+4))=2),lesurenberekening!K12,IF(AND(INDIRECT("formatieoverzicht!Y"&(N3+4))=1,INDIRECT("formatieoverzicht!AF"&(N3+4))=3),lesurenberekening!O12,IF(AND(INDIRECT("formatieoverzicht!Y"&(N3+4))=3,INDIRECT("formatieoverzicht!AF"&(N3+4))=1),lesurenberekening!G12,IF(AND(INDIRECT("formatieoverzicht!Y"&(N3+4))=3,INDIRECT("formatieoverzicht!AF"&(N3+4))=2),lesurenberekening!K12,IF(AND(INDIRECT("formatieoverzicht!Y"&(N3+4))=3,INDIRECT("formatieoverzicht!AF"&(N3+4))=3),lesurenberekening!O12,0)))))) -> 0 | H10: =IF(INDIRECT("formatieoverzicht!X"&(N3+4))>0,lesurenberekening!E99,0) -> 0 | I10: =H10+J10 -> 0 | J10: =IF(INDIRECT("formatieoverzicht!Y"&(N3+4))>0,lesurenberekening!G99,0) -> 0 | K10: basisbudget | M10: =INDIRECT("formatieoverzicht!J"&(4+N3)) -> 0 | N10: =INDIRECT("formatieoverzicht!Q"&(4+N3)) -> 0 | P10: A tm D
C11: woensdag | D11: =IF(INDIRECT("formatieoverzicht!Z"&(N3+4))=2,"A","") ->  | E11: =IF(AND(INDIRECT("formatieoverzicht!Z"&(N3+4))=1,INDIRECT("formatieoverzicht!AF"&(N3+4))=1),lesurenberekening!E13,IF(AND(INDIRECT("formatieoverzicht!Z"&(N3+4))=1,INDIRECT("formatieoverzicht!AF"&(N3+4))=2),lesurenberekening!I13,IF(AND(INDIRECT("formatieoverzicht!Z"&(N3+4))=1,INDIRECT("formatieoverzicht!AF"&(N3+4))=3),lesurenberekening!M13,IF(AND(INDIRECT("formatieoverzicht!Z"&(N3+4))=3,INDIRECT("formatieoverzicht!AF"&(N3+4))=1),lesurenberekening!E13,IF(AND(INDIRECT("formatieoverzicht!Z"&(N3+4))=3,INDIRECT("formatieoverzicht!AF"&(N3+4))=2),lesurenberekening!I13,IF(AND(INDIRECT("formatieoverzicht!Z"&(N3+4))=3,INDIRECT("formatieoverzicht!AF"&(N3+4))=3),lesurenberekening!M13,0)))))) -> 0 | F11: =IF(INDIRECT("formatieoverzicht!AA"&(N3+4))=2,"A","") ->  | G11: =IF(AND(INDIRECT("formatieoverzicht!AA"&(N3+4))=1,INDIRECT("formatieoverzicht!AF"&(N3+4))=1),lesurenberekening!G13,IF(AND(INDIRECT("formatieoverzicht!AA"&(N3+4))=1,INDIRECT("formatieoverzicht!AF"&(N3+4))=2),lesurenberekening!K13,IF(AND(INDIRECT("formatieoverzicht!AA"&(N3+4))=1,INDIRECT("formatieoverzicht!AF"&(N3+4))=3),lesurenberekening!O13,IF(AND(INDIRECT("formatieoverzicht!AA"&(N3+4))=3,INDIRECT("formatieoverzicht!AF"&(N3+4))=1),lesurenberekening!G13,IF(AND(INDIRECT("formatieoverzicht!AA"&(N3+4))=3,INDIRECT("formatieoverzicht!AF"&(N3+4))=2),lesurenberekening!K13,IF(AND(INDIRECT("formatieoverzicht!AA"&(N3+4))=3,INDIRECT("formatieoverzicht!AF"&(N3+4))=3),lesurenberekening!O13,0)))))) -> 0 | H11: =IF(INDIRECT("formatieoverzicht!Z"&(N3+4))>0,lesurenberekening!E100,0) -> 0 | I11: =H11+J11 -> 0 | J11: =IF(INDIRECT("formatieoverzicht!AA"&(N3+4))>0,lesurenberekening!G100,0) -> 0 | K11: bijzonder budget | M11: =INDIRECT("formatieoverzicht!K"&(4+N3)) -> 0 | N11: =INDIRECT("formatieoverzicht!R"&(4+N3)) -> 0 | P11: In deze rubrieken is alles automatisch berekend.
C12: donderdag | D12: =IF(INDIRECT("formatieoverzicht!AB"&(N3+4))=2,"A","") ->  | E12: =IF(AND(INDIRECT("formatieoverzicht!AB"&(N3+4))=1,INDIRECT("formatieoverzicht!AF"&(N3+4))=1),lesurenberekening!E14,IF(AND(INDIRECT("formatieoverzicht!AB"&(N3+4))=1,INDIRECT("formatieoverzicht!AF"&(N3+4))=2),lesurenberekening!I14,IF(AND(INDIRECT("formatieoverzicht!AB"&(N3+4))=1,INDIRECT("formatieoverzicht!AF"&(N3+4))=3),lesurenberekening!M14,IF(AND(INDIRECT("formatieoverzicht!AB"&(N3+4))=3,INDIRECT("formatieoverzicht!AF"&(N3+4))=1),lesurenberekening!E14,IF(AND(INDIRECT("formatieoverzicht!AB"&(N3+4))=3,INDIRECT("formatieoverzicht!AF"&(N3+4))=2),lesurenberekening!I14,IF(AND(INDIRECT("formatieoverzicht!AB"&(N3+4))=3,INDIRECT("formatieoverzicht!AF"&(N3+4))=3),lesurenberekening!M14,0)))))) -> 0 | F12: =IF(INDIRECT("formatieoverzicht!AC"&(N3+4))=2,"A","") ->  | G12: =IF(AND(INDIRECT("formatieoverzicht!AC"&(N3+4))=1,INDIRECT("formatieoverzicht!AF"&(N3+4))=1),lesurenberekening!G14,IF(AND(INDIRECT("formatieoverzicht!AC"&(N3+4))=1,INDIRECT("formatieoverzicht!AF"&(N3+4))=2),lesurenberekening!K14,IF(AND(INDIRECT("formatieoverzicht!AC"&(N3+4))=1,INDIRECT("formatieoverzicht!AF"&(N3+4))=3),lesurenberekening!O14,IF(AND(INDIRECT("formatieoverzicht!AC"&(N3+4))=3,INDIRECT("formatieoverzicht!AF"&(N3+4))=1),lesurenberekening!G14,IF(AND(INDIRECT("formatieoverzicht!AC"&(N3+4))=3,INDIRECT("formatieoverzicht!AF"&(N3+4))=2),lesurenberekening!K14,IF(AND(INDIRECT("formatieoverzicht!AC"&(N3+4))=3,INDIRECT("formatieoverzicht!AF"&(N3+4))=3),lesurenberekening!O14,0)))))) -> 0 | H12: =IF(INDIRECT("formatieoverzicht!AB"&(N3+4))>0,lesurenberekening!E101,0) -> 0 | I12: =H12+J12 -> 0 | J12: =IF(INDIRECT("formatieoverzicht!AC"&(N3+4))>0,lesurenberekening!G101,0) -> 0 | K12: overgangsbudget | M12: =INDIRECT("formatieoverzicht!L"&(4+N3)) -> 0 | N12: =INDIRECT("formatieoverzicht!S"&(4+N3)) -> 0
C13: vrijdag | D13: =IF(INDIRECT("formatieoverzicht!AD"&(N3+4))=2,"A","") ->  | E13: =IF(AND(INDIRECT("formatieoverzicht!AD"&(N3+4))=1,INDIRECT("formatieoverzicht!AF"&(N3+4))=1),lesurenberekening!E15,IF(AND(INDIRECT("formatieoverzicht!AD"&(N3+4))=1,INDIRECT("formatieoverzicht!AF"&(N3+4))=2),lesurenberekening!I15,IF(AND(INDIRECT("formatieoverzicht!AD"&(N3+4))=1,INDIRECT("formatieoverzicht!AF"&(N3+4))=3),lesurenberekening!M15,IF(AND(INDIRECT("formatieoverzicht!AD"&(N3+4))=3,INDIRECT("formatieoverzicht!AF"&(N3+4))=1),lesurenberekening!E15,IF(AND(INDIRECT("formatieoverzicht!AD"&(N3+4))=3,INDIRECT("formatieoverzicht!AF"&(N3+4))=2),lesurenberekening!I15,IF(AND(INDIRECT("formatieoverzicht!AD"&(N3+4))=3,INDIRECT("formatieoverzicht!AF"&(N3+4))=3),lesurenberekening!M15,0)))))) -> 0 | F13: =IF(INDIRECT("formatieoverzicht!AE"&(N3+4))=2,"A","") ->  | G13: =IF(AND(INDIRECT("formatieoverzicht!AE"&(N3+4))=1,INDIRECT("formatieoverzicht!AF"&(N3+4))=1),lesurenberekening!G15,IF(AND(INDIRECT("formatieoverzicht!AE"&(N3+4))=1,INDIRECT("formatieoverzicht!AF"&(N3+4))=2),lesurenberekening!K15,IF(AND(INDIRECT("formatieoverzicht!AE"&(N3+4))=1,INDIRECT("formatieoverzicht!AF"&(N3+4))=3),lesurenberekening!O15,IF(AND(INDIRECT("formatieoverzicht!AE"&(N3+4))=3,INDIRECT("formatieoverzicht!AF"&(N3+4))=1),lesurenberekening!G15,IF(AND(INDIRECT("formatieoverzicht!AE"&(N3+4))=3,INDIRECT("formatieoverzicht!AF"&(N3+4))=2),lesurenberekening!K15,IF(AND(INDIRECT("formatieoverzicht!AE"&(N3+4))=3,INDIRECT("formatieoverzicht!AF"&(N3+4))=3),lesurenberekening!O15,0)))))) -> 0 | H13: =IF(INDIRECT("formatieoverzicht!AD"&(N3+4))>0,lesurenberekening!E102,0) -> 0 | I13: =H13+J13 -> 0 | J13: =IF(INDIRECT("formatieoverzicht!AE"&(N3+4))>0,lesurenberekening!G102,0) -> 0 | K13: ingezet uit spaarsaldo | L13: + | M13: =INDIRECT("formatieoverzicht!M"&(4+N3)) -> 0 | P13: In rubriek A staat voor ambulante dagdelen een A.
M14: =M10+M11+M12+M13 -> 0 | N14: =SUM(N10:N13) -> 0 | P14: Indien noodzakelijk, kunnen in rubriek A de les- en arbeidsuren hand-
C15: ingeroosterd per week | E15: =E9+G9+E10+G10+E11+G11+E12+G12+E13+G13 -> 0 | I15: =SUM(I9:I13) -> 0 | P15: matig worden aangepast.
C16: eventuele correctie (zie invoerformulier) | E16: =INDIRECT("formatieoverzicht!AG"&(N3+4)) -> 0 | F16: _ | H16: _ | I16: =INDIRECT("formatieoverzicht!AJ"&(N3+4)) -> 0 | K16: opgenomen verlof d.i. | M16: =INDIRECT("formatieoverzicht!O"&(4+N3)) -> 0
C17: netto ingeroosterd per week | E17: =E15-E16 -> 0 | I17: =I15-I16 -> 0 | K17: waarvan lesuren | N17: =ROUND(MaxLestaak/1576*M16,0) -> 0 | P17: E + F
C18: x 52 = | E18: =52*E17 -> 0 | I18: =52*I17 -> 0 | K18: sparen* | L18: _ | M18: =INDIRECT("formatieoverzicht!P"&(4+N3)) -> 0 | P18: Hier kunnen de dagen en uren worden ingevuld waarop het teamlid
B19: =WEEKDAY(CONCATENATE(C19,G4)) -> 1900-01-01 | C19: 29 september | D19: =IF(MOD(G4,4)=0,WEEKDAY(CONCATENATE(C19,G4),2),0) -> 7 | E19: =IF(D19=1,E9+G9,IF(D19=2,E10+G10,IF(D19=3,E11+G11,IF(D19=4,E12+G12,IF(D19=5,E13+G13,0))))) -> 0 | G19: (schrikkeljaar) | I19: =IF(D19=1,I9,IF(D19=2,I10,IF(D19=3,I11,IF(D19=4,I12,IF(D19=5,I13,0))))) -> 0 | K19: (resterend) inzetbaar | M19: =INDIRECT("formatieoverzicht!T"&(4+N3)) -> 0 | P19: individueel extra wordt uit- of ingeroosterd.
B20: =WEEKDAY(CONCATENATE(C20,G4)) -> 1900-01-02 | C20: 30 september | D20: =WEEKDAY(CONCATENATE(C20,G4),2) -> 1 | E20: =IF(D20=1,E9+G9,IF(D20=2,E10+G10,IF(D20=3,E11+G11,IF(D20=4,E12+G12,IF(D20=5,E13+G13,0))))) -> 0 | F20: + | H20: + | I20: =IF(D20=1,I9,IF(D20=2,I10,IF(D20=3,I11,IF(D20=4,I12,IF(D20=5,I13,0))))) -> 0
C21: totaal A | E21: =E18+E19+E20 -> 0 | I21: =I18+I19+I20 -> 0 | K21: ="spaarsaldo eind "&lesurenberekening!E5-1&"/"&lesurenberekening!G5-1 -> spaarsaldo eind 2022/2023 | M21: =INDIRECT("formatieoverzicht!U"&(4+N3)) -> 0 | P21: Vul alle kolommen handmatig in. Denk om de dubbele punt achter de
B22: B hele vakantieweken | P22: uren. Wanneer is afgesproken een aantal dagen door te werken in één
G23: 1e maandag | K23: * Sparen tot 57 jr. : max. 3 jaar; vanaf 57 jr.: max. 5 jaar | P23: of meer vakantieweken, vul je in F het totaal van de arbeidsuren in.
C24: herfstvakantie | D24: =lesurenberekening!D25 -> 1 | E24: =E17*D24 -> 0 | G24: =lesurenberekening!E25 -> 2023-10-16 | I24: =I17*D24 -> 0 | K24: H ingeroosterde arbeidsuren | M24: wtf 1,0: | N24: =jaartaak -> 1659 | O24: in zelfde verhouding ingeroosterd als een voltijder
C25: kerstvakantie | D25: =lesurenberekening!D26 -> 2 | E25: =E17*D25 -> 0 | G25: =lesurenberekening!E26 -> 2023-12-25 | I25: =I17*D25 -> 0 | P25: Wanneer je hier bij meerdere teamleden hetzelfde moet invullen, kun je
C26: voorjaarsvakantie | D26: =lesurenberekening!D27 -> 1 | E26: =E17*D26 -> 0 | G26: =lesurenberekening!E27 -> 2024-02-19 | I26: =I17*D26 -> 0 | K26: bruto arbeidsduur (wtf x 1659) | M26: =ROUND(K5*jaartaak,0) -> 0 | P26: dat op meerdere teamlidbladen tegelijk in één keer invullen.
C27: meivakantie | D27: =lesurenberekening!D28 -> 2 | E27: =E17*D27 -> 0 | G27: =lesurenberekening!E28 -> 2024-04-29 | I27: =I17*D27 -> 0 | K27: opgenomen verlof d.i. | L27: _ | M27: =M16 -> 0 | P27: Meer informatie op de website: Vragen-> handig invullen
C28: =lesurenberekening!C29 -> 0 | D28: =lesurenberekening!D29 -> 0 | E28: =E17*D28 -> 0 | G28: =lesurenberekening!E29 -> 00:00:00 | I28: =I17*D28 -> 0 | K28: netto arbeidsduur | M28: =M26-M27 -> 0
C29: zomervakantie | D29: =lesurenberekening!D30 -> 6 | E29: =E17*D29 -> 0 | G29: =lesurenberekening!E30 -> 2024-07-15 | I29: =I17*D29 -> 0 | K29: ingeroosterd: (A + F) - (B t/m E) | M29: =ROUND(((I21+I73)-(I30+I43+I55+I64))*24,0) -> 0 | O29: =ROUND(O31*M28,0) -> 0 | P29: G
C30: totaal B | E30: =SUM(E24:E29) -> 0 | I30: =SUM(I24:I29) -> 0 | K30: =IF(lesurenberekening!E117="ja","verschil","") -> verschil | M30: =IF(lesurenberekening!E117="ja",(M29-M28),0) -> 0 | N30: =IF(lesurenberekening!E117="ja",(O30-M30),0) -> 0 | O30: =IF(O29<>0,O29-M28,0) -> 0 | P30: Het aantal lesuren dat een verlof d.i. bevat is gebaseerd op artikel
B31: C hele vakantie- of studiedagen | K31: =IF(lesurenberekening!E117="ja","inroosteringspercentage", "") -> inroosteringspercentage | M31: =ROUND(IF(lesurenberekening!E117="ja",IF(M28>0,M29/M28*100,0),0),1) -> 0 | N31: =IF(lesurenberekening!E117="ja","%","") -> % | O31: =lesurenberekening!E112*100&" %" -> 0 % | P31: 8A.6 lid 6 (CAO-PO 2022). Het budget prof. blijft dus ongewijzigd.
B32: =lesurenberekening!B34 ->  | C32: =IF(lesurenberekening!C34="","",lesurenberekening!C34) ->  | D32: =lesurenberekening!D34 -> v | E32: =(INDIRECT("E"&8+F32)+INDIRECT("G"&8+F32)) -> 0 | F32: =WEEKDAY(G32,2) -> 6 | G32: =lesurenberekening!E34 -> 00:00:00 | I32: =IF(D32="v",INDIRECT("I"&8+F32),0) -> 0
B33: =lesurenberekening!B35 ->  | C33: =IF(lesurenberekening!C35="","",lesurenberekening!C35) ->  | D33: =lesurenberekening!D35 -> v | E33: =(INDIRECT("E"&8+F33)+INDIRECT("G"&8+F33)) -> 0 | F33: =WEEKDAY(G33,2) -> 6 | G33: =lesurenberekening!E35 -> 00:00:00 | I33: =IF(D33="v",INDIRECT("I"&8+F33),0) -> 0 | K33: I ingeroosterde lesuren | M33: wtf 1,0: | N33: =MaxLestaak -> 940 | P33: H + I
B34: =lesurenberekening!B36 ->  | C34: =IF(lesurenberekening!C36="","",lesurenberekening!C36) ->  | D34: =lesurenberekening!D36 -> v | E34: =(INDIRECT("E"&8+F34)+INDIRECT("G"&8+F34)) -> 0 | F34: 6 | G34: =lesurenberekening!E36 -> 00:00:00 | I34: =IF(D34="v",INDIRECT("I"&8+F34),0) -> 0 | P34: De weergave van het inroosterverschil en het inroosterpercentage kan
B35: =lesurenberekening!B37 ->  | C35: =IF(lesurenberekening!C37="","",lesurenberekening!C37) ->  | D35: =lesurenberekening!D37 -> v | E35: 0 | F35: 6 | G35: =lesurenberekening!E37 -> 00:00:00 | I35: 0 | K35: maximale lestaak vlg. wtf | M35: =ROUND(K5*MaxLestaak,0) -> 0 | P35: in rubriek G op het eerste werkblad Lesurenberekening aan of uit
B36: =lesurenberekening!B38 ->  | C36: =IF(lesurenberekening!C38="","",lesurenberekening!C38) ->  | D36: =lesurenberekening!D38 -> v | E36: 0 | F36: 6 | G36: =lesurenberekening!E38 -> 00:00:00 | I36: 0 | K36: lesuren opgenomen verlof d.i. | L36: _ | M36: =N17 -> 0 | P36: worden gezet.
B37: =lesurenberekening!B39 ->  | C37: =IF(lesurenberekening!C39="","",lesurenberekening!C39) ->  | D37: =lesurenberekening!D39 -> v | E37: 0 | F37: 6 | G37: =lesurenberekening!E39 -> 00:00:00 | I37: 0 | K37: netto lestaak | M37: =M35-M36 -> 0
B38: =lesurenberekening!B40 ->  | C38: =IF(lesurenberekening!C40="","",lesurenberekening!C40) ->  | D38: =lesurenberekening!D40 -> v | E38: 0 | F38: 6 | G38: =lesurenberekening!E40 -> 00:00:00 | I38: 0 | K38: ingeroosterd: (A + F) - (B t/m E) | L38: _ | M38: =ROUND(((E21+E73)-(E30+E43+E55+E64))*24,0) -> 0 | P38: Wanneer in rubriek G (instellingen) op het eerste werkblad Lesuren-
B39: =lesurenberekening!B41 ->  | C39: =IF(lesurenberekening!C41="","",lesurenberekening!C41) ->  | D39: =lesurenberekening!D41 -> v | E39: 0 | F39: 6 | G39: =lesurenberekening!E41 -> 00:00:00 | I39: 0 | K39: =IF(lesurenberekening!E117="ja","verschil","") -> verschil | M39: =IF(lesurenberekening!E118="ja",M38-M37,"") -> 0 | P39: berekening het plaats- en tijdgebonden inroosterpercentage van de
B40: =lesurenberekening!B42 ->  | C40: =IF(lesurenberekening!C42="","",lesurenberekening!C42) ->  | D40: =lesurenberekening!D42 -> v | E40: 0 | F40: 6 | G40: =lesurenberekening!E42 -> 00:00:00 | I40: 0 | K40: =IF(lesurenberekening!E118="ja"," inroosteringspercentage","") -> inroosteringspercentage | M40: =ROUND(IF(lesurenberekening!E118="ja",IF(M37>0,M38/M37*100,0),0),1) -> 0 | N40: =IF(lesurenberekening!E118="ja","%","") -> % | P40: voltijders is ingevuld, wordt naast rubriek H ter vergelijking het daaraan
B41: =lesurenberekening!B43 ->  | C41: =IF(lesurenberekening!C43="","",lesurenberekening!C43) ->  | D41: =lesurenberekening!D43 -> v | E41: 0 | F41: 6 | G41: =lesurenberekening!E43 -> 00:00:00 | I41: 0 | P41: evenredig aantal in te roosteren arbeidsuren getoond.
B42: =lesurenberekening!B44 ->  | C42: =IF(lesurenberekening!C44="","",lesurenberekening!C44) ->  | D42: =lesurenberekening!D44 -> v | E42: 0 | F42: 6 | G42: =lesurenberekening!E44 -> 00:00:00 | I42: 0 | K42: J opbouw ingeroosterde jaartaak
C43: totaal C | E43: =SUM(E32:E42) -> 0 | I43: =SUM(I32:I42) -> 0 | N43: =IF(M53>0,"na verlof-", "") ->  | P43: J
B44: D overige dagdelen en uren | N44: =IF(M53>0,"opname", "") ->  | P44: overige & ambulante (functie)taken
B45: =IF(G45="","",G45) -> 00:00:00 | C45: =lesurenberekening!C48 -> 0 | D45: =IF(G$7=1,lesurenberekening!G48,IF(G$7=2,lesurenberekening!I48,IF(G$7=3,lesurenberekening!K48,0))) -> 0 | E45: =IF((INDIRECT("E"&8+F45)+INDIRECT("G"&8+F45))<>0,D45,0) -> 0 | F45: =WEEKDAY(G45,2) -> 6 | G45: =lesurenberekening!E48 -> 00:00:00 | I45: =IF(AND(INDIRECT("I"&8+F45)<>0,E45<>0),lesurenberekening!O48,0) -> 0 | K45: budget duurzame inzetbaarheid | M45: =M19 -> 0 | N45: =IF(M53>0,ROUND((N51/M51)*M45,0),M45) -> 0 | O45: =N45 -> 0 | P45: Wanneer er sprake is van ambulante uren, zal het aantal uren dat over-
B46: =IF(G46="","",G46) -> 00:00:00 | C46: =lesurenberekening!C49 -> 0 | D46: =IF(G$7=1,lesurenberekening!G49,IF(G$7=2,lesurenberekening!I49,IF(G$7=3,lesurenberekening!K49,0))) -> 0 | E46: =IF((INDIRECT("E"&8+F46)+INDIRECT("G"&8+F46))<>0,D46,0) -> 0 | F46: =WEEKDAY(G46,2) -> 6 | G46: =lesurenberekening!E49 -> 00:00:00 | I46: =IF(AND(INDIRECT("I"&8+F46)<>0,E46<>0),lesurenberekening!O49,0) -> 0 | K46: budget professionalisering | M46: =ROUND(K5*professionalisering,0) -> 0 | N46: =IF(M53>0,ROUND((N51/M51)*M46,0),M46) -> 0 | O46: =N46 -> 0 | P46: blijft voor de overige taken groter zijn. Onderaan rubriek K kan
B47: =IF(G47="","",G47) -> 00:00:00 | C47: =lesurenberekening!C50 -> 0 | D47: =IF(G$7=1,lesurenberekening!G50,IF(G$7=2,lesurenberekening!I50,IF(G$7=3,lesurenberekening!K50,0))) -> 0 | E47: =IF((INDIRECT("E"&8+F47)+INDIRECT("G"&8+F47))<>0,D47,0) -> 0 | F47: 6 | G47: =lesurenberekening!E50 -> 00:00:00 | I47: =IF(AND(INDIRECT("I"&8+F47)<>0,E47<>0),lesurenberekening!O50,0) -> 0 | K47: ingeroosterde lestaak | M47: =M38 -> 0 | O47: =M47 -> 0 | P47: het aantal uren voor de ambulante taken worden ingevuld; de over-
B48: 00:00:00 | C48: =lesurenberekening!C51 -> 0 | D48: =IF(G$7=1,lesurenberekening!G51,IF(G$7=2,lesurenberekening!I51,IF(G$7=3,lesurenberekening!K51,0))) -> 0 | E48: 0 | F48: 6 | G48: =lesurenberekening!E51 -> 00:00:00 | I48: =IF(AND(INDIRECT("I"&8+F48)<>0,E48<>0),lesurenberekening!O51,0) -> 0 | K48: voor- en nawerk* | M48: =IF(N48=0,ROUND(nawerk*M47,0),ROUND(N48*M47,0)) -> 0 | O48: =M48 -> 0 | P48: blijvende uren gaan dan naar de overige taken (zie rubriek C, pag. 2.).
B49: 00:00:00 | C49: =lesurenberekening!C52 -> 0 | D49: =IF(G$7=1,lesurenberekening!G52,IF(G$7=2,lesurenberekening!I52,IF(G$7=3,lesurenberekening!K52,0))) -> 0 | E49: 0 | F49: 6 | G49: =lesurenberekening!E52 -> 00:00:00 | I49: =IF(AND(INDIRECT("I"&8+F49)<>0,E49<>0),lesurenberekening!O52,0) -> 0 | K49: =IF(COUNTIF(D9:F13,"A")>0,"overige/amb. taken","overige taken") -> overige taken | M49: =M51-(M45+M46+M47+M48) -> 0 | N49: =IF(M53>0,ROUND((N51/M51)*M49,0),M49) -> 0 | O49: 100
B50: =IF(G50="","",G50) -> 00:00:00 | C50: =lesurenberekening!C53 -> 0 | D50: =IF(G$7=1,lesurenberekening!G53,IF(G$7=2,lesurenberekening!I53,IF(G$7=3,lesurenberekening!K53,0))) -> 0 | E50: =IF((INDIRECT("E"&8+F50)+INDIRECT("G"&8+F50))<>0,D50,0) -> 0 | F50: 6 | G50: =lesurenberekening!E53 -> 00:00:00 | I50: =IF(AND(INDIRECT("I"&8+F50)<>0,E50<>0),lesurenberekening!O53,0) -> 0 | P50: verlofopname
B51: =IF(G51="","",G51) -> 00:00:00 | C51: =lesurenberekening!C54 -> 0 | D51: =IF(G$7=1,lesurenberekening!G54,IF(G$7=2,lesurenberekening!I54,IF(G$7=3,lesurenberekening!K54,0))) -> 0 | E51: 0 | F51: 6 | G51: =lesurenberekening!E54 -> 00:00:00 | I51: =IF(AND(INDIRECT("I"&8+F51)<>0,E51<>0),lesurenberekening!O54,0) -> 0 | K51: netto arbeidsduur | M51: =M28 -> 0 | N51: =IF(M53>0,(M51-M53),0) -> 0 | P51: Dit vakje mag slechts in bepaalde gevallen worden ingevuld. Klik op de
B52: =IF(G52="","",G52) -> 00:00:00 | C52: =lesurenberekening!C55 -> 0 | D52: =IF(G$7=1,lesurenberekening!G55,IF(G$7=2,lesurenberekening!I55,IF(G$7=3,lesurenberekening!K55,0))) -> 0 | E52: 0 | F52: 6 | G52: =lesurenberekening!E55 -> 00:00:00 | I52: =IF(AND(INDIRECT("I"&8+F52)<>0,E52<>0),lesurenberekening!O55,0) -> 0 | P52: icoon of houd de muisaanwijzer boven de tooltip voor meer informatie.
B53: =IF(G53="","",G53) -> 00:00:00 | C53: =lesurenberekening!C56 -> 0 | D53: =IF(G$7=1,lesurenberekening!G56,IF(G$7=2,lesurenberekening!I56,IF(G$7=3,lesurenberekening!K56,0))) -> 0 | E53: 0 | F53: 6 | G53: =lesurenberekening!E56 -> 00:00:00 | I53: =IF(AND(INDIRECT("I"&8+F53)<>0,E53<>0),lesurenberekening!O56,0) -> 0 | K53: opname overig verlof dit schooljaar:
B54: 00:00:00 | C54: =lesurenberekening!C57 -> 0 | D54: =IF(G$7=1,lesurenberekening!G57,IF(G$7=2,lesurenberekening!I57,IF(G$7=3,lesurenberekening!K57,0))) -> 0 | E54: 0 | F54: 6 | G54: =lesurenberekening!E57 -> 00:00:00 | I54: =IF(AND(INDIRECT("I"&8+F54)<>0,E54<>0),lesurenberekening!O57,0) -> 0 | K54: *afgesproken reguliere opslagfactor: | M54: =nawerk -> 0 | P54: voor- en nawerk
C55: totaal D | E55: =SUM(E45:E54) -> 0 | I55: =SUM(I45:I54) -> 0 | K55: K d.i. + prof. + overige taken zie pagina 2 | P55: In dit vakje kan een afwijkende individuele opslagfactor worden inge-
B56: E uitgeroosterd | G56: datum | P56: vuld. Dit kan een grótere factor zijn bij beginnnende leerkrachten, of
K57: budget duurzame inzetbaarheid | N57: % | P57: juist een kleinere bij OOP'ers met lesondersteunende taken indien dat
K58: beschikbaar | M58: =N45 -> 0 | N58: ingevuld | P58: is afgesproken.
K59: ingevuld | L59: _ | M59: =M104 -> 0 | N59: =IF(M58>0,M59/M58*100,0) -> 0
K60: =IF(M60<0,"teveel ingepland","nog beschikbaar") -> nog beschikbaar | M60: =N105 -> 0 | P60: K
P61: Hier zie je in hoeverre de uren van deze drie taakonderdelen al met
K62: budget professionalisering | P62: activiteiten zijn gevuld op de tweede pagina van dit teamlidblad.
K63: beschikbaar | M63: =N46 -> 0 | P63: Dit is ook te zien geheel rechts op het Formatieoverzicht.
C64: totaal E | E64: =SUM(E57:E63) -> 0 | I64: =SUM(I57:I63) -> 0 | K64: ingevuld | L64: _ | M64: =M123 -> 0 | N64: =IF(M63>0,M64/M63*100,0) -> 0
B65: F ingeroosterd | G65: datum | K65: =IF(M65<0,"teveel ingepland","nog beschikbaar") -> nog beschikbaar | M65: =N124 -> 0 | P65: ambulante functietaken
P66: Bij (deels) ambulante teamleden moeten de overblijvende uren verdeeld
K67: =K49 -> overige taken | P67: worden over de ambulante functietaken en de overige taken.
K68: beschikbaar | M68: =N49-M72 -> 0 | P68: Vul, indien van toepassing, hier de uren voor de ambulante taken in, óf
K69: ingevuld | L69: _ | M69: =M157 -> 0 | N69: =IF(M68>0,M69/M68*100,0) -> 0 | P69: vul de verdeling op pag. 2 in rubriek C in (dus niet in beide tegelijk!).
K70: =IF(M70<0,"teveel ingepland","nog beschikbaar") -> nog beschikbaar | M70: =N158 -> 0
K72: ambulante functietaken: | P72: opmerkingenvak
C73: totaal F | E73: =SUM(E66:E72) -> 0 | I73: =SUM(I66:I72) -> 0 | P73: Druk op Alt+Enter voor een nieuwe regel.
B74: opmerkingen | P74: Dubbelklik op het vak wanneer niet de hele tekst zichtbaar is. Alleen het
P75: zichtbare deel wordt afgedrukt.
G81: 2e pagina | P81: Teamlidblad 2e pagina
B83: OVERZICHT GEPLANDE TAKEN EN ACTIVITEITEN DUURZAME INZETBAARHEID, PROFESSIONALISERING EN OVERIGE TAKEN | P83: Overzicht uren d.i., professionalisering en overige taken
P84: Op deze pagina worden de geplande activiteiten en uren ingevuld.
C85: schooljaar | E85: =E4 -> 2023 | F85: / | G85: =G4 -> 2024 | H85: naam: | K85: =K3 -> 0 | P85: Een regel moet aan de linkerkant geselecteerd worden om in te vullen.
P86: De uren worden hier als gewone hele getallen ingevoerd zonder
P87: dubbele punt.
B88: A | C88: duurzame inzetbaarheid | K88: beschikbaar: | M88: uren | N88: =N45 -> 0
B89: 1 | P89: invoerformulier voor de activiteiten
B90: 2 | P90: Voor het maken van overzichten is het noodzakelijk dat activiteiten
B91: 3 | P91: uniform gespeld worden. Bovendien worden de overzichten gemaakt
B92: 4 | P92: op basis van de drie lijsten (zie de drie tabs onderaan het scherm).
B93: 5 | P93: Voer activiteiten daarom altijd zoveel mogelijk in via het activiteiten-
B94: 6 | P94: invoerformulier. Je roept dit formulier op door op een willekeurige plek
B95: 7 | P95: op de nummerrij te klikken.
B96: 8
B97: 9 | P97: HET ACTIVITEITEN INVOERFORMULIER
B98: 10
B99: 11 | P99: Onderstaande informatie vind je ook door op de informatie-icoontjes op
B100: 12 | P100: het invoerformulier te klikken.
B101: 13
B102: 14 | P102: Lijstitem aan teamblad toevoegen
B103: 15 | P103: > Roep het formulier op door op de nummerrij te klikken en selecteer in
K104: totaal : | M104: =SUM(M89:M103) -> 0 | P104: het vak Lijstkeuze de betreffende lijst.
K105: nog beschikbaar: | N105: =N88-M104 -> 0 | P105: > Klik op het pijltje aan het eind van de lege regel; de lijst verschijnt.
P106: > Selecteer een activiteit en klik in het vak Teamblad A, B of C de
B107: B | C107: professionalisering | K107: beschikbaar: | N107: =N46 -> 0 | P107: rubriek waaraan je de activiteit wilt toevoegen.
B108: 1 | P108: > Klik tenslotte op de knop Toevoegen aan teamlidblad.
B109: 2
B110: 3 | P110: Uren wijzigen
B111: 4 | P111: De eventueel vermelde uren kunnen voordat de activiteit aan het team-
B112: 5 | P112: lidblad wordt toegevoegd worden gewijzigd. Er moeten altijd uren zijn
B113: 6 | P113: ingevuld.
B114: 7
B115: 8 | P115: Nieuwe items aan een lijst én het teamlidblad toevoegen
B116: 9 | P116: Nieuwe activiteiten kunnen gelijktijdig aan een lijst én aan een rubriek
B117: 10 | P117: op het teamlidblad worden toegevoegd:
B118: 11 | P118: > Selecteer in het vak Lijstkeuze een lijst en vul op de lege regel een
B119: 12 | P119: activiteit in.
B120: 13 | P120: > Klik vervolgens op Toevoegen aan lijst.
B121: 14 | P121: > Selecteer daarna in het vak daaronder de betreffende rubriek en
B122: 15 | P122: tenslotte op Toevoegen aan teamlidblad.
K123: totaal : | M123: =SUM(M108:M122) -> 0
K124: nog beschikbaar: | N124: =N107-M123 -> 0 | P124: De lijsten kunnen ook direct op de lijst zelf worden ingevuld. Aangeleg-
P125: de lijsten kunnen bij het ingebruiknemen van een nieuwe planner uit de
B126: C | C126: =K49 -> overige taken | K126: beschikbaar: | N126: =M68 -> 0 | P126: oude planner met enkele muisklikken geïmporteerd worden.
B127: 1
B128: 2 | P128: sortering
B129: 3 | P129: Bij gebruik van het invoerformulier worden de items automatisch
B130: 4 | P130: gesorteerd. Sorteer bij rechtstreeks invullen door op de sorteerpijlen
B131: 5 | P131: bovenaan de pagina te klikken.
B132: 6
B133: 7 | P133: overzicht per activiteit
B134: 8 | P134: Met het invoerformulier kan ook een overzicht worden gemaakt van de
B135: 9 | P135: teamleden die eenzelfde activiteit hebben:
B136: 10 | P136: > Kies een lijst en een activiteit.
B137: 11 | P137: > Klik nu op de knop Teamoverzicht.
B138: 12 | P138: > Het overzicht wordt onderaan de gekozen lijst getoond.
B139: 13
B140: 14 | P140: overzicht alle activiteiten en alle teamleden
B141: 15 | P141: Op het werkblad act.overzicht kun je een totaaloverzicht maken van alle
B142: 16 | P142: activiteiten en teamleden. Een lege lijst kun je aan het begin van het
B143: 17 | P143: werkverdelingstraject als intekenlijst voor de overige taken gebruiken.
B144: 18
B145: 19 | P145: Let op:
B146: 20 | P146: De op deze pagina vermelde activiteiten en uren zijn een specificatie
B147: 21 | P147: van de op de eerste pagina berekende uren voor deze drie taak-
B148: 22 | P148: onderdelen. Er mogen dus niet méér uren worden ingepland dan er
B149: 23 | P149: beschikbaar zijn. Het aantal teveel ingeplande uren wordt in het rood
B150: 24 | P150: afgedrukt.
B151: 25
B152: 26
B153: 27
B154: 28
B155: 29
B156: 30
K157: totaal : | M157: =SUM(M127:M156) -> 0
K158: nog beschikbaar: | N158: =N126-M157 -> 0

Sheet 6 (hidden)
B2: TAAKBEREKENING OP/OOP met lesondersteunende taken | K2: © taakberekeningPO.nl | P2: toelichting teamlidblad OP en OOP met lesondersteunende taken
C3: =lesurenberekening!I5 -> 0 | H3: naam: | K3: =INDIRECT("formatieoverzicht!C"&(4+N3)) -> 0 | N3: =MID(CELL("bestandsnaam",A1),SEARCH("]",CELL("bestandsnaam",A1),1)+1,99) -> 6
E4: =lesurenberekening!E5 -> 2023 | F4: / | G4: =lesurenberekening!G5 -> 2024 | H4: aanstelling: | K4: =INDIRECT("formatieoverzicht!D"&(4+N3)) -> 0
H5: wtf: | K5: =INDIRECT("formatieoverzicht!E"&(4+N3)) -> 0 | P5: Klik op dit icoon voor meer informatie
B6: OVERZICHT IN- EN UITGEROOSTERDE LES- EN ARBEIDSUREN | K6: OVERZICHT JAARTAAK
B7: A jaartotaal les- en arbeidsuren | E7: lestijd bouw: | G7: =INDIRECT("formatieoverzicht!"&"AF"&N3+4) -> 0 | I7: arbeidsuren | K7: G budget duurzame inzetbaarheid | P7: Dit teamlidblad is voor het OP en OOP met lesondersteunende taken, | S7: ='6'!S6 -> 0
E8: o | G8: m | P8: zoals een klassen- of onderwijsassistent.
C9: maandag | D9: =IF(INDIRECT("formatieoverzicht!V"&(N3+4))=2,"A","") ->  | E9: =IF(AND(INDIRECT("formatieoverzicht!V"&(N3+4))=1,INDIRECT("formatieoverzicht!AF"&(N3+4))=1),lesurenberekening!E11,IF(AND(INDIRECT("formatieoverzicht!V"&(N3+4))=1,INDIRECT("formatieoverzicht!AF"&(N3+4))=2),lesurenberekening!I11,IF(AND(INDIRECT("formatieoverzicht!V"&(N3+4))=1,INDIRECT("formatieoverzicht!AF"&(N3+4))=3),lesurenberekening!M11,IF(AND(INDIRECT("formatieoverzicht!V"&(N3+4))=3,INDIRECT("formatieoverzicht!AF"&(N3+4))=1),lesurenberekening!E11,IF(AND(INDIRECT("formatieoverzicht!V"&(N3+4))=3,INDIRECT("formatieoverzicht!AF"&(N3+4))=2),lesurenberekening!I11,IF(AND(INDIRECT("formatieoverzicht!V"&(N3+4))=3,INDIRECT("formatieoverzicht!AF"&(N3+4))=3),lesurenberekening!M11,0)))))) -> 0 | F9: =IF(INDIRECT("formatieoverzicht!W"&(N3+4))=2,"A","") ->  | G9: =IF(AND(INDIRECT("formatieoverzicht!W"&(N3+4))=1,INDIRECT("formatieoverzicht!AF"&(N3+4))=1),lesurenberekening!G11,IF(AND(INDIRECT("formatieoverzicht!W"&(N3+4))=1,INDIRECT("formatieoverzicht!AF"&(N3+4))=2),lesurenberekening!K11,IF(AND(INDIRECT("formatieoverzicht!W"&(N3+4))=1,INDIRECT("formatieoverzicht!AF"&(N3+4))=3),lesurenberekening!O11,IF(AND(INDIRECT("formatieoverzicht!W"&(N3+4))=3,INDIRECT("formatieoverzicht!AF"&(N3+4))=1),lesurenberekening!G11,IF(AND(INDIRECT("formatieoverzicht!W"&(N3+4))=3,INDIRECT("formatieoverzicht!AF"&(N3+4))=2),lesurenberekening!K11,IF(AND(INDIRECT("formatieoverzicht!W"&(N3+4))=3,INDIRECT("formatieoverzicht!AF"&(N3+4))=3),lesurenberekening!O11,0)))))) -> 0 | H9: =IF(INDIRECT("formatieoverzicht!V"&(N3+4))>0,lesurenberekening!E98,0) -> 0 | I9: =H9+J9 -> 0 | J9: =IF(INDIRECT("formatieoverzicht!W"&(N3+4))>0,lesurenberekening!G98,0) -> 0 | M9: opbouw | N9: opname
C10: dinsdag | D10: =IF(INDIRECT("formatieoverzicht!X"&(N3+4))=2,"A","") ->  | E10: =IF(AND(INDIRECT("formatieoverzicht!X"&(N3+4))=1,INDIRECT("formatieoverzicht!AF"&(N3+4))=1),lesurenberekening!E12,IF(AND(INDIRECT("formatieoverzicht!X"&(N3+4))=1,INDIRECT("formatieoverzicht!AF"&(N3+4))=2),lesurenberekening!I12,IF(AND(INDIRECT("formatieoverzicht!X"&(N3+4))=1,INDIRECT("formatieoverzicht!AF"&(N3+4))=3),lesurenberekening!M12,IF(AND(INDIRECT("formatieoverzicht!X"&(N3+4))=3,INDIRECT("formatieoverzicht!AF"&(N3+4))=1),lesurenberekening!E12,IF(AND(INDIRECT("formatieoverzicht!X"&(N3+4))=3,INDIRECT("formatieoverzicht!AF"&(N3+4))=2),lesurenberekening!I12,IF(AND(INDIRECT("formatieoverzicht!X"&(N3+4))=3,INDIRECT("formatieoverzicht!AF"&(N3+4))=3),lesurenberekening!M12,0)))))) -> 0 | F10: =IF(INDIRECT("formatieoverzicht!Y"&(N3+4))=2,"A","") ->  | G10: =IF(AND(INDIRECT("formatieoverzicht!Y"&(N3+4))=1,INDIRECT("formatieoverzicht!AF"&(N3+4))=1),lesurenberekening!G12,IF(AND(INDIRECT("formatieoverzicht!Y"&(N3+4))=1,INDIRECT("formatieoverzicht!AF"&(N3+4))=2),lesurenberekening!K12,IF(AND(INDIRECT("formatieoverzicht!Y"&(N3+4))=1,INDIRECT("formatieoverzicht!AF"&(N3+4))=3),lesurenberekening!O12,IF(AND(INDIRECT("formatieoverzicht!Y"&(N3+4))=3,INDIRECT("formatieoverzicht!AF"&(N3+4))=1),lesurenberekening!G12,IF(AND(INDIRECT("formatieoverzicht!Y"&(N3+4))=3,INDIRECT("formatieoverzicht!AF"&(N3+4))=2),lesurenberekening!K12,IF(AND(INDIRECT("formatieoverzicht!Y"&(N3+4))=3,INDIRECT("formatieoverzicht!AF"&(N3+4))=3),lesurenberekening!O12,0)))))) -> 0 | H10: =IF(INDIRECT("formatieoverzicht!X"&(N3+4))>0,lesurenberekening!E99,0) -> 0 | I10: =H10+J10 -> 0 | J10: =IF(INDIRECT("formatieoverzicht!Y"&(N3+4))>0,lesurenberekening!G99,0) -> 0 | K10: basisbudget | M10: =INDIRECT("formatieoverzicht!J"&(4+N3)) -> 0 | N10: =INDIRECT("formatieoverzicht!Q"&(4+N3)) -> 0 | P10: A tm D
C11: woensdag | D11: =IF(INDIRECT("formatieoverzicht!Z"&(N3+4))=2,"A","") ->  | E11: =IF(AND(INDIRECT("formatieoverzicht!Z"&(N3+4))=1,INDIRECT("formatieoverzicht!AF"&(N3+4))=1),lesurenberekening!E13,IF(AND(INDIRECT("formatieoverzicht!Z"&(N3+4))=1,INDIRECT("formatieoverzicht!AF"&(N3+4))=2),lesurenberekening!I13,IF(AND(INDIRECT("formatieoverzicht!Z"&(N3+4))=1,INDIRECT("formatieoverzicht!AF"&(N3+4))=3),lesurenberekening!M13,IF(AND(INDIRECT("formatieoverzicht!Z"&(N3+4))=3,INDIRECT("formatieoverzicht!AF"&(N3+4))=1),lesurenberekening!E13,IF(AND(INDIRECT("formatieoverzicht!Z"&(N3+4))=3,INDIRECT("formatieoverzicht!AF"&(N3+4))=2),lesurenberekening!I13,IF(AND(INDIRECT("formatieoverzicht!Z"&(N3+4))=3,INDIRECT("formatieoverzicht!AF"&(N3+4))=3),lesurenberekening!M13,0)))))) -> 0 | F11: =IF(INDIRECT("formatieoverzicht!AA"&(N3+4))=2,"A","") ->  | G11: =IF(AND(INDIRECT("formatieoverzicht!AA"&(N3+4))=1,INDIRECT("formatieoverzicht!AF"&(N3+4))=1),lesurenberekening!G13,IF(AND(INDIRECT("formatieoverzicht!AA"&(N3+4))=1,INDIRECT("formatieoverzicht!AF"&(N3+4))=2),lesurenberekening!K13,IF(AND(INDIRECT("formatieoverzicht!AA"&(N3+4))=1,INDIRECT("formatieoverzicht!AF"&(N3+4))=3),lesurenberekening!O13,IF(AND(INDIRECT("formatieoverzicht!AA"&(N3+4))=3,INDIRECT("formatieoverzicht!AF"&(N3+4))=1),lesurenberekening!G13,IF(AND(INDIRECT("formatieoverzicht!AA"&(N3+4))=3,INDIRECT("formatieoverzicht!AF"&(N3+4))=2),lesurenberekening!K13,IF(AND(INDIRECT("formatieoverzicht!AA"&(N3+4))=3,INDIRECT("formatieoverzicht!AF"&(N3+4))=3),lesurenberekening!O13,0)))))) -> 0 | H11: =IF(INDIRECT("formatieoverzicht!Z"&(N3+4))>0,lesurenberekening!E100,0) -> 0 | I11: =H11+J11 -> 0 | J11: =IF(INDIRECT("formatieoverzicht!AA"&(N3+4))>0,lesurenberekening!G100,0) -> 0 | K11: bijzonder budget | M11: =INDIRECT("formatieoverzicht!K"&(4+N3)) -> 0 | N11: =INDIRECT("formatieoverzicht!R"&(4+N3)) -> 0 | P11: In deze rubrieken is alles automatisch berekend.
C12: donderdag | D12: =IF(INDIRECT("formatieoverzicht!AB"&(N3+4))=2,"A","") ->  | E12: =IF(AND(INDIRECT("formatieoverzicht!AB"&(N3+4))=1,INDIRECT("formatieoverzicht!AF"&(N3+4))=1),lesurenberekening!E14,IF(AND(INDIRECT("formatieoverzicht!AB"&(N3+4))=1,INDIRECT("formatieoverzicht!AF"&(N3+4))=2),lesurenberekening!I14,IF(AND(INDIRECT("formatieoverzicht!AB"&(N3+4))=1,INDIRECT("formatieoverzicht!AF"&(N3+4))=3),lesurenberekening!M14,IF(AND(INDIRECT("formatieoverzicht!AB"&(N3+4))=3,INDIRECT("formatieoverzicht!AF"&(N3+4))=1),lesurenberekening!E14,IF(AND(INDIRECT("formatieoverzicht!AB"&(N3+4))=3,INDIRECT("formatieoverzicht!AF"&(N3+4))=2),lesurenberekening!I14,IF(AND(INDIRECT("formatieoverzicht!AB"&(N3+4))=3,INDIRECT("formatieoverzicht!AF"&(N3+4))=3),lesurenberekening!M14,0)))))) -> 0 | F12: =IF(INDIRECT("formatieoverzicht!AC"&(N3+4))=2,"A","") ->  | G12: =IF(AND(INDIRECT("formatieoverzicht!AC"&(N3+4))=1,INDIRECT("formatieoverzicht!AF"&(N3+4))=1),lesurenberekening!G14,IF(AND(INDIRECT("formatieoverzicht!AC"&(N3+4))=1,INDIRECT("formatieoverzicht!AF"&(N3+4))=2),lesurenberekening!K14,IF(AND(INDIRECT("formatieoverzicht!AC"&(N3+4))=1,INDIRECT("formatieoverzicht!AF"&(N3+4))=3),lesurenberekening!O14,IF(AND(INDIRECT("formatieoverzicht!AC"&(N3+4))=3,INDIRECT("formatieoverzicht!AF"&(N3+4))=1),lesurenberekening!G14,IF(AND(INDIRECT("formatieoverzicht!AC"&(N3+4))=3,INDIRECT("formatieoverzicht!AF"&(N3+4))=2),lesurenberekening!K14,IF(AND(INDIRECT("formatieoverzicht!AC"&(N3+4))=3,INDIRECT("formatieoverzicht!AF"&(N3+4))=3),lesurenberekening!O14,0)))))) -> 0 | H12: =IF(INDIRECT("formatieoverzicht!AB"&(N3+4))>0,lesurenberekening!E101,0) -> 0 | I12: =H12+J12 -> 0 | J12: =IF(INDIRECT("formatieoverzicht!AC"&(N3+4))>0,lesurenberekening!G101,0) -> 0 | K12: overgangsbudget | M12: =INDIRECT("formatieoverzicht!L"&(4+N3)) -> 0 | N12: =INDIRECT("formatieoverzicht!S"&(4+N3)) -> 0
C13: vrijdag | D13: =IF(INDIRECT("formatieoverzicht!AD"&(N3+4))=2,"A","") ->  | E13: =IF(AND(INDIRECT("formatieoverzicht!AD"&(N3+4))=1,INDIRECT("formatieoverzicht!AF"&(N3+4))=1),lesurenberekening!E15,IF(AND(INDIRECT("formatieoverzicht!AD"&(N3+4))=1,INDIRECT("formatieoverzicht!AF"&(N3+4))=2),lesurenberekening!I15,IF(AND(INDIRECT("formatieoverzicht!AD"&(N3+4))=1,INDIRECT("formatieoverzicht!AF"&(N3+4))=3),lesurenberekening!M15,IF(AND(INDIRECT("formatieoverzicht!AD"&(N3+4))=3,INDIRECT("formatieoverzicht!AF"&(N3+4))=1),lesurenberekening!E15,IF(AND(INDIRECT("formatieoverzicht!AD"&(N3+4))=3,INDIRECT("formatieoverzicht!AF"&(N3+4))=2),lesurenberekening!I15,IF(AND(INDIRECT("formatieoverzicht!AD"&(N3+4))=3,INDIRECT("formatieoverzicht!AF"&(N3+4))=3),lesurenberekening!M15,0)))))) -> 0 | F13: =IF(INDIRECT("formatieoverzicht!AE"&(N3+4))=2,"A","") ->  | G13: =IF(AND(INDIRECT("formatieoverzicht!AE"&(N3+4))=1,INDIRECT("formatieoverzicht!AF"&(N3+4))=1),lesurenberekening!G15,IF(AND(INDIRECT("formatieoverzicht!AE"&(N3+4))=1,INDIRECT("formatieoverzicht!AF"&(N3+4))=2),lesurenberekening!K15,IF(AND(INDIRECT("formatieoverzicht!AE"&(N3+4))=1,INDIRECT("formatieoverzicht!AF"&(N3+4))=3),lesurenberekening!O15,IF(AND(INDIRECT("formatieoverzicht!AE"&(N3+4))=3,INDIRECT("formatieoverzicht!AF"&(N3+4))=1),lesurenberekening!G15,IF(AND(INDIRECT("formatieoverzicht!AE"&(N3+4))=3,INDIRECT("formatieoverzicht!AF"&(N3+4))=2),lesurenberekening!K15,IF(AND(INDIRECT("formatieoverzicht!AE"&(N3+4))=3,INDIRECT("formatieoverzicht!AF"&(N3+4))=3),lesurenberekening!O15,0)))))) -> 0 | H13: =IF(INDIRECT("formatieoverzicht!AD"&(N3+4))>0,lesurenberekening!E102,0) -> 0 | I13: =H13+J13 -> 0 | J13: =IF(INDIRECT("formatieoverzicht!AE"&(N3+4))>0,lesurenberekening!G102,0) -> 0 | K13: ingezet uit spaarsaldo | L13: + | M13: =INDIRECT("formatieoverzicht!M"&(4+N3)) -> 0 | P13: In rubriek A staat voor ambulante dagdelen een A.
M14: =M10+M11+M12+M13 -> 0 | N14: =SUM(N10:N13) -> 0 | P14: Indien noodzakelijk, kunnen in rubriek A de les- en arbeidsuren hand-
C15: ingeroosterd per week | E15: =E9+G9+E10+G10+E11+G11+E12+G12+E13+G13 -> 0 | I15: =SUM(I9:I13) -> 0 | P15: matig worden aangepast.
C16: eventuele correctie (zie invoerformulier) | E16: =INDIRECT("formatieoverzicht!AG"&(N3+4)) -> 0 | F16: _ | H16: _ | I16: =INDIRECT("formatieoverzicht!AJ"&(N3+4)) -> 0 | K16: opgenomen verlof d.i. | M16: =INDIRECT("formatieoverzicht!O"&(4+N3)) -> 0
C17: netto ingeroosterd per week | E17: =E15-E16 -> 0 | I17: =I15-I16 -> 0 | K17: waarvan lesuren | N17: =ROUND(MaxLestaak/1576*M16,0) -> 0 | P17: E + F
C18: x 52 = | E18: =52*E17 -> 0 | I18: =52*I17 -> 0 | K18: sparen* | L18: _ | M18: =INDIRECT("formatieoverzicht!P"&(4+N3)) -> 0 | P18: Hier kunnen de dagen en uren worden ingevuld waarop het teamlid
B19: =WEEKDAY(CONCATENATE(C19,G4)) -> 1900-01-01 | C19: 29 september | D19: =IF(MOD(G4,4)=0,WEEKDAY(CONCATENATE(C19,G4),2),0) -> 7 | E19: =IF(D19=1,E9+G9,IF(D19=2,E10+G10,IF(D19=3,E11+G11,IF(D19=4,E12+G12,IF(D19=5,E13+G13,0))))) -> 0 | G19: (schrikkeljaar) | I19: =IF(D19=1,I9,IF(D19=2,I10,IF(D19=3,I11,IF(D19=4,I12,IF(D19=5,I13,0))))) -> 0 | K19: (resterend) inzetbaar | M19: =INDIRECT("formatieoverzicht!T"&(4+N3)) -> 0 | P19: individueel extra wordt uit- of ingeroosterd.
B20: =WEEKDAY(CONCATENATE(C20,G4)) -> 1900-01-02 | C20: 30 september | D20: =WEEKDAY(CONCATENATE(C20,G4),2) -> 1 | E20: =IF(D20=1,E9+G9,IF(D20=2,E10+G10,IF(D20=3,E11+G11,IF(D20=4,E12+G12,IF(D20=5,E13+G13,0))))) -> 0 | F20: + | H20: + | I20: =IF(D20=1,I9,IF(D20=2,I10,IF(D20=3,I11,IF(D20=4,I12,IF(D20=5,I13,0))))) -> 0
C21: totaal A | E21: =E18+E19+E20 -> 0 | I21: =I18+I19+I20 -> 0 | K21: ="spaarsaldo eind "&lesurenberekening!E5-1&"/"&lesurenberekening!G5-1 -> spaarsaldo eind 2022/2023 | M21: =INDIRECT("formatieoverzicht!U"&(4+N3)) -> 0 | P21: Vul alle kolommen handmatig in. Denk om de dubbele punt achter de
B22: B hele vakantieweken | P22: uren. Wanneer is afgesproken een aantal dagen door te werken in één
G23: 1e maandag | K23: * Sparen tot 57 jr. : max. 3 jaar; vanaf 57 jr.: max. 5 jaar | P23: of meer vakantieweken, vul je in F het totaal van de arbeidsuren in.
C24: herfstvakantie | D24: =lesurenberekening!D25 -> 1 | E24: =E17*D24 -> 0 | G24: =lesurenberekening!E25 -> 2023-10-16 | I24: =I17*D24 -> 0 | K24: H ingeroosterde arbeidsuren | M24: wtf 1,0: | N24: =jaartaak -> 1659 | O24: in zelfde verhouding ingeroosterd als een voltijder
C25: kerstvakantie | D25: =lesurenberekening!D26 -> 2 | E25: =E17*D25 -> 0 | G25: =lesurenberekening!E26 -> 2023-12-25 | I25: =I17*D25 -> 0 | P25: Wanneer je hier bij meerdere teamleden hetzelfde moet invullen, kun je
C26: voorjaarsvakantie | D26: =lesurenberekening!D27 -> 1 | E26: =E17*D26 -> 0 | G26: =lesurenberekening!E27 -> 2024-02-19 | I26: =I17*D26 -> 0 | K26: bruto arbeidsduur (wtf x 1659) | M26: =ROUND(K5*jaartaak,0) -> 0 | P26: dat op meerdere teamlidbladen tegelijk in één keer invullen.
C27: meivakantie | D27: =lesurenberekening!D28 -> 2 | E27: =E17*D27 -> 0 | G27: =lesurenberekening!E28 -> 2024-04-29 | I27: =I17*D27 -> 0 | K27: opgenomen verlof d.i. | L27: _ | M27: =M16 -> 0 | P27: Meer informatie op de website: Vragen-> handig invullen
C28: =lesurenberekening!C29 -> 0 | D28: =lesurenberekening!D29 -> 0 | E28: =E17*D28 -> 0 | G28: =lesurenberekening!E29 -> 00:00:00 | I28: =I17*D28 -> 0 | K28: netto arbeidsduur | M28: =M26-M27 -> 0
C29: zomervakantie | D29: =lesurenberekening!D30 -> 6 | E29: =E17*D29 -> 0 | G29: =lesurenberekening!E30 -> 2024-07-15 | I29: =I17*D29 -> 0 | K29: ingeroosterd: (A + F) - (B t/m E) | M29: =ROUND(((I21+I73)-(I30+I43+I55+I64))*24,0) -> 0 | O29: =ROUND(O31*M28,0) -> 0 | P29: G
C30: totaal B | E30: =SUM(E24:E29) -> 0 | I30: =SUM(I24:I29) -> 0 | K30: =IF(lesurenberekening!E117="ja","verschil","") -> verschil | M30: =IF(lesurenberekening!E117="ja",(M29-M28),0) -> 0 | N30: =IF(lesurenberekening!E117="ja",(O30-M30),0) -> 0 | O30: =IF(O29<>0,O29-M28,0) -> 0 | P30: Het aantal lesuren dat een verlof d.i. bevat is gebaseerd op artikel
B31: C hele vakantie- of studiedagen | K31: =IF(lesurenberekening!E117="ja","inroosteringspercentage", "") -> inroosteringspercentage | M31: =ROUND(IF(lesurenberekening!E117="ja",IF(M28>0,M29/M28*100,0),0),1) -> 0 | N31: =IF(lesurenberekening!E117="ja","%","") -> % | O31: =lesurenberekening!E112*100&" %" -> 0 % | P31: 8A.6 lid 6 (CAO-PO 2022). Het budget prof. blijft dus ongewijzigd.
B32: =lesurenberekening!B34 ->  | C32: =IF(lesurenberekening!C34="","",lesurenberekening!C34) ->  | D32: =lesurenberekening!D34 -> v | E32: =(INDIRECT("E"&8+F32)+INDIRECT("G"&8+F32)) -> 0 | F32: =WEEKDAY(G32,2) -> 6 | G32: =lesurenberekening!E34 -> 00:00:00 | I32: =IF(D32="v",INDIRECT("I"&8+F32),0) -> 0
B33: =lesurenberekening!B35 ->  | C33: =IF(lesurenberekening!C35="","",lesurenberekening!C35) ->  | D33: =lesurenberekening!D35 -> v | E33: =(INDIRECT("E"&8+F33)+INDIRECT("G"&8+F33)) -> 0 | F33: =WEEKDAY(G33,2) -> 6 | G33: =lesurenberekening!E35 -> 00:00:00 | I33: =IF(D33="v",INDIRECT("I"&8+F33),0) -> 0 | K33: I ingeroosterde lesuren | M33: wtf 1,0: | N33: =MaxLestaak -> 940 | P33: H + I
B34: =lesurenberekening!B36 ->  | C34: =IF(lesurenberekening!C36="","",lesurenberekening!C36) ->  | D34: =lesurenberekening!D36 -> v | E34: =(INDIRECT("E"&8+F34)+INDIRECT("G"&8+F34)) -> 0 | F34: 6 | G34: =lesurenberekening!E36 -> 00:00:00 | I34: =IF(D34="v",INDIRECT("I"&8+F34),0) -> 0 | P34: De weergave van het inroosterverschil en het inroosterpercentage kan
B35: =lesurenberekening!B37 ->  | C35: =IF(lesurenberekening!C37="","",lesurenberekening!C37) ->  | D35: =lesurenberekening!D37 -> v | E35: 0 | F35: 6 | G35: =lesurenberekening!E37 -> 00:00:00 | I35: 0 | K35: maximale lestaak vlg. wtf | M35: =ROUND(K5*MaxLestaak,0) -> 0 | P35: in rubriek G op het eerste werkblad Lesurenberekening aan of uit
B36: =lesurenberekening!B38 ->  | C36: =IF(lesurenberekening!C38="","",lesurenberekening!C38) ->  | D36: =lesurenberekening!D38 -> v | E36: 0 | F36: 6 | G36: =lesurenberekening!E38 -> 00:00:00 | I36: 0 | K36: lesuren opgenomen verlof d.i. | L36: _ | M36: =N17 -> 0 | P36: worden gezet.
B37: =lesurenberekening!B39 ->  | C37: =IF(lesurenberekening!C39="","",lesurenberekening!C39) ->  | D37: =lesurenberekening!D39 -> v | E37: 0 | F37: 6 | G37: =lesurenberekening!E39 -> 00:00:00 | I37: 0 | K37: netto lestaak | M37: =M35-M36 -> 0
B38: =lesurenberekening!B40 ->  | C38: =IF(lesurenberekening!C40="","",lesurenberekening!C40) ->  | D38: =lesurenberekening!D40 -> v | E38: 0 | F38: 6 | G38: =lesurenberekening!E40 -> 00:00:00 | I38: 0 | K38: ingeroosterd: (A + F) - (B t/m E) | L38: _ | M38: =ROUND(((E21+E73)-(E30+E43+E55+E64))*24,0) -> 0 | P38: Wanneer in rubriek G (instellingen) op het eerste werkblad Lesuren-
B39: =lesurenberekening!B41 ->  | C39: =IF(lesurenberekening!C41="","",lesurenberekening!C41) ->  | D39: =lesurenberekening!D41 -> v | E39: 0 | F39: 6 | G39: =lesurenberekening!E41 -> 00:00:00 | I39: 0 | K39: =IF(lesurenberekening!E117="ja","verschil","") -> verschil | M39: =IF(lesurenberekening!E118="ja",M38-M37,"") -> 0 | P39: berekening het plaats- en tijdgebonden inroosterpercentage van de
B40: =lesurenberekening!B42 ->  | C40: =IF(lesurenberekening!C42="","",lesurenberekening!C42) ->  | D40: =lesurenberekening!D42 -> v | E40: 0 | F40: 6 | G40: =lesurenberekening!E42 -> 00:00:00 | I40: 0 | K40: =IF(lesurenberekening!E118="ja"," inroosteringspercentage","") -> inroosteringspercentage | M40: =ROUND(IF(lesurenberekening!E118="ja",IF(M37>0,M38/M37*100,0),0),1) -> 0 | N40: =IF(lesurenberekening!E118="ja","%","") -> % | P40: voltijders is ingevuld, wordt naast rubriek H ter vergelijking het daaraan
B41: =lesurenberekening!B43 ->  | C41: =IF(lesurenberekening!C43="","",lesurenberekening!C43) ->  | D41: =lesurenberekening!D43 -> v | E41: 0 | F41: 6 | G41: =lesurenberekening!E43 -> 00:00:00 | I41: 0 | P41: evenredig aantal in te roosteren arbeidsuren getoond.
B42: =lesurenberekening!B44 ->  | C42: =IF(lesurenberekening!C44="","",lesurenberekening!C44) ->  | D42: =lesurenberekening!D44 -> v | E42: 0 | F42: 6 | G42: =lesurenberekening!E44 -> 00:00:00 | I42: 0 | K42: J opbouw ingeroosterde jaartaak
C43: totaal C | E43: =SUM(E32:E42) -> 0 | I43: =SUM(I32:I42) -> 0 | N43: =IF(M53>0,"na verlof-", "") ->  | P43: J
B44: D overige dagdelen en uren | N44: =IF(M53>0,"opname", "") ->  | P44: overige & ambulante (functie)taken
B45: =IF(G45="","",G45) -> 00:00:00 | C45: =lesurenberekening!C48 -> 0 | D45: =IF(G$7=1,lesurenberekening!G48,IF(G$7=2,lesurenberekening!I48,IF(G$7=3,lesurenberekening!K48,0))) -> 0 | E45: =IF((INDIRECT("E"&8+F45)+INDIRECT("G"&8+F45))<>0,D45,0) -> 0 | F45: =WEEKDAY(G45,2) -> 6 | G45: =lesurenberekening!E48 -> 00:00:00 | I45: =IF(AND(INDIRECT("I"&8+F45)<>0,E45<>0),lesurenberekening!O48,0) -> 0 | K45: budget duurzame inzetbaarheid | M45: =M19 -> 0 | N45: =IF(M53>0,ROUND((N51/M51)*M45,0),M45) -> 0 | O45: =N45 -> 0 | P45: Wanneer er sprake is van ambulante uren, zal het aantal uren dat over-
B46: =IF(G46="","",G46) -> 00:00:00 | C46: =lesurenberekening!C49 -> 0 | D46: =IF(G$7=1,lesurenberekening!G49,IF(G$7=2,lesurenberekening!I49,IF(G$7=3,lesurenberekening!K49,0))) -> 0 | E46: =IF((INDIRECT("E"&8+F46)+INDIRECT("G"&8+F46))<>0,D46,0) -> 0 | F46: =WEEKDAY(G46,2) -> 6 | G46: =lesurenberekening!E49 -> 00:00:00 | I46: =IF(AND(INDIRECT("I"&8+F46)<>0,E46<>0),lesurenberekening!O49,0) -> 0 | K46: budget professionalisering | M46: =ROUND(K5*professionalisering,0) -> 0 | N46: =IF(M53>0,ROUND((N51/M51)*M46,0),M46) -> 0 | O46: =N46 -> 0 | P46: blijft voor de overige taken groter zijn. Onderaan rubriek K kan
B47: =IF(G47="","",G47) -> 00:00:00 | C47: =lesurenberekening!C50 -> 0 | D47: =IF(G$7=1,lesurenberekening!G50,IF(G$7=2,lesurenberekening!I50,IF(G$7=3,lesurenberekening!K50,0))) -> 0 | E47: =IF((INDIRECT("E"&8+F47)+INDIRECT("G"&8+F47))<>0,D47,0) -> 0 | F47: 6 | G47: =lesurenberekening!E50 -> 00:00:00 | I47: =IF(AND(INDIRECT("I"&8+F47)<>0,E47<>0),lesurenberekening!O50,0) -> 0 | K47: ingeroosterde lestaak | M47: =M38 -> 0 | O47: =M47 -> 0 | P47: het aantal uren voor de ambulante taken worden ingevuld; de over-
B48: 00:00:00 | C48: =lesurenberekening!C51 -> 0 | D48: =IF(G$7=1,lesurenberekening!G51,IF(G$7=2,lesurenberekening!I51,IF(G$7=3,lesurenberekening!K51,0))) -> 0 | E48: 0 | F48: 6 | G48: =lesurenberekening!E51 -> 00:00:00 | I48: =IF(AND(INDIRECT("I"&8+F48)<>0,E48<>0),lesurenberekening!O51,0) -> 0 | K48: voor- en nawerk* | M48: =IF(N48=0,ROUND(nawerk*M47,0),ROUND(N48*M47,0)) -> 0 | O48: =M48 -> 0 | P48: blijvende uren gaan dan naar de overige taken (zie rubriek C, pag. 2.).
B49: 00:00:00 | C49: =lesurenberekening!C52 -> 0 | D49: =IF(G$7=1,lesurenberekening!G52,IF(G$7=2,lesurenberekening!I52,IF(G$7=3,lesurenberekening!K52,0))) -> 0 | E49: 0 | F49: 6 | G49: =lesurenberekening!E52 -> 00:00:00 | I49: =IF(AND(INDIRECT("I"&8+F49)<>0,E49<>0),lesurenberekening!O52,0) -> 0 | K49: =IF(COUNTIF(D9:F13,"A")>0,"overige/amb. taken","overige taken") -> overige taken | M49: =M51-(M45+M46+M47+M48) -> 0 | N49: =IF(M53>0,ROUND((N51/M51)*M49,0),M49) -> 0 | O49: 100
B50: =IF(G50="","",G50) -> 00:00:00 | C50: =lesurenberekening!C53 -> 0 | D50: =IF(G$7=1,lesurenberekening!G53,IF(G$7=2,lesurenberekening!I53,IF(G$7=3,lesurenberekening!K53,0))) -> 0 | E50: =IF((INDIRECT("E"&8+F50)+INDIRECT("G"&8+F50))<>0,D50,0) -> 0 | F50: 6 | G50: =lesurenberekening!E53 -> 00:00:00 | I50: =IF(AND(INDIRECT("I"&8+F50)<>0,E50<>0),lesurenberekening!O53,0) -> 0 | P50: verlofopname
B51: =IF(G51="","",G51) -> 00:00:00 | C51: =lesurenberekening!C54 -> 0 | D51: =IF(G$7=1,lesurenberekening!G54,IF(G$7=2,lesurenberekening!I54,IF(G$7=3,lesurenberekening!K54,0))) -> 0 | E51: 0 | F51: 6 | G51: =lesurenberekening!E54 -> 00:00:00 | I51: =IF(AND(INDIRECT("I"&8+F51)<>0,E51<>0),lesurenberekening!O54,0) -> 0 | K51: netto arbeidsduur | M51: =M28 -> 0 | N51: =IF(M53>0,(M51-M53),0) -> 0 | P51: Dit vakje mag slechts in bepaalde gevallen worden ingevuld. Klik op de
B52: =IF(G52="","",G52) -> 00:00:00 | C52: =lesurenberekening!C55 -> 0 | D52: =IF(G$7=1,lesurenberekening!G55,IF(G$7=2,lesurenberekening!I55,IF(G$7=3,lesurenberekening!K55,0))) -> 0 | E52: 0 | F52: 6 | G52: =lesurenberekening!E55 -> 00:00:00 | I52: =IF(AND(INDIRECT("I"&8+F52)<>0,E52<>0),lesurenberekening!O55,0) -> 0 | P52: icoon of houd de muisaanwijzer boven de tooltip voor meer informatie.
B53: =IF(G53="","",G53) -> 00:00:00 | C53: =lesurenberekening!C56 -> 0 | D53: =IF(G$7=1,lesurenberekening!G56,IF(G$7=2,lesurenberekening!I56,IF(G$7=3,lesurenberekening!K56,0))) -> 0 | E53: 0 | F53: 6 | G53: =lesurenberekening!E56 -> 00:00:00 | I53: =IF(AND(INDIRECT("I"&8+F53)<>0,E53<>0),lesurenberekening!O56,0) -> 0 | K53: opname overig verlof dit schooljaar:
B54: 00:00:00 | C54: =lesurenberekening!C57 -> 0 | D54: =IF(G$7=1,lesurenberekening!G57,IF(G$7=2,lesurenberekening!I57,IF(G$7=3,lesurenberekening!K57,0))) -> 0 | E54: 0 | F54: 6 | G54: =lesurenberekening!E57 -> 00:00:00 | I54: =IF(AND(INDIRECT("I"&8+F54)<>0,E54<>0),lesurenberekening!O57,0) -> 0 | K54: *afgesproken reguliere opslagfactor: | M54: =nawerk -> 0 | P54: voor- en nawerk
C55: totaal D | E55: =SUM(E45:E54) -> 0 | I55: =SUM(I45:I54) -> 0 | K55: K d.i. + prof. + overige taken zie pagina 2 | P55: In dit vakje kan een afwijkende individuele opslagfactor worden inge-
B56: E uitgeroosterd | G56: datum | P56: vuld. Dit kan een grótere factor zijn bij beginnnende leerkrachten, of
K57: budget duurzame inzetbaarheid | N57: % | P57: juist een kleinere bij OOP'ers met lesondersteunende taken indien dat
K58: beschikbaar | M58: =N45 -> 0 | N58: ingevuld | P58: is afgesproken.
K59: ingevuld | L59: _ | M59: =M104 -> 0 | N59: =IF(M58>0,M59/M58*100,0) -> 0
K60: =IF(M60<0,"teveel ingepland","nog beschikbaar") -> nog beschikbaar | M60: =N105 -> 0 | P60: K
P61: Hier zie je in hoeverre de uren van deze drie taakonderdelen al met
K62: budget professionalisering | P62: activiteiten zijn gevuld op de tweede pagina van dit teamlidblad.
K63: beschikbaar | M63: =N46 -> 0 | P63: Dit is ook te zien geheel rechts op het Formatieoverzicht.
C64: totaal E | E64: =SUM(E57:E63) -> 0 | I64: =SUM(I57:I63) -> 0 | K64: ingevuld | L64: _ | M64: =M123 -> 0 | N64: =IF(M63>0,M64/M63*100,0) -> 0
B65: F ingeroosterd | G65: datum | K65: =IF(M65<0,"teveel ingepland","nog beschikbaar") -> nog beschikbaar | M65: =N124 -> 0 | P65: ambulante functietaken
P66: Bij (deels) ambulante teamleden moeten de overblijvende uren verdeeld
K67: =K49 -> overige taken | P67: worden over de ambulante functietaken en de overige taken.
K68: beschikbaar | M68: =N49-M72 -> 0 | P68: Vul, indien van toepassing, hier de uren voor de ambulante taken in, óf
K69: ingevuld | L69: _ | M69: =M157 -> 0 | N69: =IF(M68>0,M69/M68*100,0) -> 0 | P69: vul de verdeling op pag. 2 in rubriek C in (dus niet in beide tegelijk!).
K70: =IF(M70<0,"teveel ingepland","nog beschikbaar") -> nog beschikbaar | M70: =N158 -> 0
K72: ambulante functietaken: | P72: opmerkingenvak
C73: totaal F | E73: =SUM(E66:E72) -> 0 | I73: =SUM(I66:I72) -> 0 | P73: Druk op Alt+Enter voor een nieuwe regel.
B74: opmerkingen | P74: Dubbelklik op het vak wanneer niet de hele tekst zichtbaar is. Alleen het
P75: zichtbare deel wordt afgedrukt.
G81: 2e pagina | P81: Teamlidblad 2e pagina
B83: OVERZICHT GEPLANDE TAKEN EN ACTIVITEITEN DUURZAME INZETBAARHEID, PROFESSIONALISERING EN OVERIGE TAKEN | P83: Overzicht uren d.i., professionalisering en overige taken
P84: Op deze pagina worden de geplande activiteiten en uren ingevuld.
C85: schooljaar | E85: =E4 -> 2023 | F85: / | G85: =G4 -> 2024 | H85: naam: | K85: =K3 -> 0 | P85: Een regel moet aan de linkerkant geselecteerd worden om in te vullen.
P86: De uren worden hier als gewone hele getallen ingevoerd zonder
P87: dubbele punt.
B88: A | C88: duurzame inzetbaarheid | K88: beschikbaar: | M88: uren | N88: =N45 -> 0
B89: 1 | P89: invoerformulier voor de activiteiten
B90: 2 | P90: Voor het maken van overzichten is het noodzakelijk dat activiteiten
B91: 3 | P91: uniform gespeld worden. Bovendien worden de overzichten gemaakt
B92: 4 | P92: op basis van de drie lijsten (zie de drie tabs onderaan het scherm).
B93: 5 | P93: Voer activiteiten daarom altijd zoveel mogelijk in via het activiteiten-
B94: 6 | P94: invoerformulier. Je roept dit formulier op door op een willekeurige plek
B95: 7 | P95: op de nummerrij te klikken.
B96: 8
B97: 9 | P97: HET ACTIVITEITEN INVOERFORMULIER
B98: 10
B99: 11 | P99: Onderstaande informatie vind je ook door op de informatie-icoontjes op
B100: 12 | P100: het invoerformulier te klikken.
B101: 13
B102: 14 | P102: Lijstitem aan teamblad toevoegen
B103: 15 | P103: > Roep het formulier op door op de nummerrij te klikken en selecteer in
K104: totaal : | M104: =SUM(M89:M103) -> 0 | P104: het vak Lijstkeuze de betreffende lijst.
K105: nog beschikbaar: | N105: =N88-M104 -> 0 | P105: > Klik op het pijltje aan het eind van de lege regel; de lijst verschijnt.
P106: > Selecteer een activiteit en klik in het vak Teamblad A, B of C de
B107: B | C107: professionalisering | K107: beschikbaar: | N107: =N46 -> 0 | P107: rubriek waaraan je de activiteit wilt toevoegen.
B108: 1 | P108: > Klik tenslotte op de knop Toevoegen aan teamlidblad.
B109: 2
B110: 3 | P110: Uren wijzigen
B111: 4 | P111: De eventueel vermelde uren kunnen voordat de activiteit aan het team-
B112: 5 | P112: lidblad wordt toegevoegd worden gewijzigd. Er moeten altijd uren zijn
B113: 6 | P113: ingevuld.
B114: 7
B115: 8 | P115: Nieuwe items aan een lijst én het teamlidblad toevoegen
B116: 9 | P116: Nieuwe activiteiten kunnen gelijktijdig aan een lijst én aan een rubriek
B117: 10 | P117: op het teamlidblad worden toegevoegd:
B118: 11 | P118: > Selecteer in het vak Lijstkeuze een lijst en vul op de lege regel een
B119: 12 | P119: activiteit in.
B120: 13 | P120: > Klik vervolgens op Toevoegen aan lijst.
B121: 14 | P121: > Selecteer daarna in het vak daaronder de betreffende rubriek en
B122: 15 | P122: tenslotte op Toevoegen aan teamlidblad.
K123: totaal : | M123: =SUM(M108:M122) -> 0
K124: nog beschikbaar: | N124: =N107-M123 -> 0 | P124: De lijsten kunnen ook direct op de lijst zelf worden ingevuld. Aangeleg-
P125: de lijsten kunnen bij het ingebruiknemen van een nieuwe planner uit de
B126: C | C126: =K49 -> overige taken | K126: beschikbaar: | N126: =M68 -> 0 | P126: oude planner met enkele muisklikken geïmporteerd worden.
B127: 1
B128: 2 | P128: sortering
B129: 3 | P129: Bij gebruik van het invoerformulier worden de items automatisch
B130: 4 | P130: gesorteerd. Sorteer bij rechtstreeks invullen door op de sorteerpijlen
B131: 5 | P131: bovenaan de pagina te klikken.
B132: 6
B133: 7 | P133: overzicht per activiteit
B134: 8 | P134: Met het invoerformulier kan ook een overzicht worden gemaakt van de
B135: 9 | P135: teamleden die eenzelfde activiteit hebben:
B136: 10 | P136: > Kies een lijst en een activiteit.
B137: 11 | P137: > Klik nu op de knop Teamoverzicht.
B138: 12 | P138: > Het overzicht wordt onderaan de gekozen lijst getoond.
B139: 13
B140: 14 | P140: overzicht alle activiteiten en alle teamleden
B141: 15 | P141: Op het werkblad act.overzicht kun je een totaaloverzicht maken van alle
B142: 16 | P142: activiteiten en teamleden. Een lege lijst kun je aan het begin van het
B143: 17 | P143: werkverdelingstraject als intekenlijst voor de overige taken gebruiken.
B144: 18
B145: 19 | P145: Let op:
B146: 20 | P146: De op deze pagina vermelde activiteiten en uren zijn een specificatie
B147: 21 | P147: van de op de eerste pagina berekende uren voor deze drie taak-
B148: 22 | P148: onderdelen. Er mogen dus niet méér uren worden ingepland dan er
B149: 23 | P149: beschikbaar zijn. Het aantal teveel ingeplande uren wordt in het rood
B150: 24 | P150: afgedrukt.
B151: 25
B152: 26
B153: 27
B154: 28
B155: 29
B156: 30
K157: totaal : | M157: =SUM(M127:M156) -> 0
K158: nog beschikbaar: | N158: =N126-M157 -> 0

Sheet 7 (hidden)
B2: TAAKBEREKENING OP/OOP met lesondersteunende taken | K2: © taakberekeningPO.nl | P2: toelichting teamlidblad OP en OOP met lesondersteunende taken
C3: =lesurenberekening!I5 -> 0 | H3: naam: | K3: =INDIRECT("formatieoverzicht!C"&(4+N3)) -> 0 | N3: =MID(CELL("bestandsnaam",A1),SEARCH("]",CELL("bestandsnaam",A1),1)+1,99) -> 7
E4: =lesurenberekening!E5 -> 2023 | F4: / | G4: =lesurenberekening!G5 -> 2024 | H4: aanstelling: | K4: =INDIRECT("formatieoverzicht!D"&(4+N3)) -> 0
H5: wtf: | K5: =INDIRECT("formatieoverzicht!E"&(4+N3)) -> 0 | P5: Klik op dit icoon voor meer informatie
B6: OVERZICHT IN- EN UITGEROOSTERDE LES- EN ARBEIDSUREN | K6: OVERZICHT JAARTAAK
B7: A jaartotaal les- en arbeidsuren | E7: lestijd bouw: | G7: =INDIRECT("formatieoverzicht!"&"AF"&N3+4) -> 0 | I7: arbeidsuren | K7: G budget duurzame inzetbaarheid | P7: Dit teamlidblad is voor het OP en OOP met lesondersteunende taken, | S7: ='7'!S6 -> 0
E8: o | G8: m | P8: zoals een klassen- of onderwijsassistent.
C9: maandag | D9: =IF(INDIRECT("formatieoverzicht!V"&(N3+4))=2,"A","") ->  | E9: =IF(AND(INDIRECT("formatieoverzicht!V"&(N3+4))=1,INDIRECT("formatieoverzicht!AF"&(N3+4))=1),lesurenberekening!E11,IF(AND(INDIRECT("formatieoverzicht!V"&(N3+4))=1,INDIRECT("formatieoverzicht!AF"&(N3+4))=2),lesurenberekening!I11,IF(AND(INDIRECT("formatieoverzicht!V"&(N3+4))=1,INDIRECT("formatieoverzicht!AF"&(N3+4))=3),lesurenberekening!M11,IF(AND(INDIRECT("formatieoverzicht!V"&(N3+4))=3,INDIRECT("formatieoverzicht!AF"&(N3+4))=1),lesurenberekening!E11,IF(AND(INDIRECT("formatieoverzicht!V"&(N3+4))=3,INDIRECT("formatieoverzicht!AF"&(N3+4))=2),lesurenberekening!I11,IF(AND(INDIRECT("formatieoverzicht!V"&(N3+4))=3,INDIRECT("formatieoverzicht!AF"&(N3+4))=3),lesurenberekening!M11,0)))))) -> 0 | F9: =IF(INDIRECT("formatieoverzicht!W"&(N3+4))=2,"A","") ->  | G9: =IF(AND(INDIRECT("formatieoverzicht!W"&(N3+4))=1,INDIRECT("formatieoverzicht!AF"&(N3+4))=1),lesurenberekening!G11,IF(AND(INDIRECT("formatieoverzicht!W"&(N3+4))=1,INDIRECT("formatieoverzicht!AF"&(N3+4))=2),lesurenberekening!K11,IF(AND(INDIRECT("formatieoverzicht!W"&(N3+4))=1,INDIRECT("formatieoverzicht!AF"&(N3+4))=3),lesurenberekening!O11,IF(AND(INDIRECT("formatieoverzicht!W"&(N3+4))=3,INDIRECT("formatieoverzicht!AF"&(N3+4))=1),lesurenberekening!G11,IF(AND(INDIRECT("formatieoverzicht!W"&(N3+4))=3,INDIRECT("formatieoverzicht!AF"&(N3+4))=2),lesurenberekening!K11,IF(AND(INDIRECT("formatieoverzicht!W"&(N3+4))=3,INDIRECT("formatieoverzicht!AF"&(N3+4))=3),lesurenberekening!O11,0)))))) -> 0 | H9: =IF(INDIRECT("formatieoverzicht!V"&(N3+4))>0,lesurenberekening!E98,0) -> 0 | I9: =H9+J9 -> 0 | J9: =IF(INDIRECT("formatieoverzicht!W"&(N3+4))>0,lesurenberekening!G98,0) -> 0 | M9: opbouw | N9: opname
C10: dinsdag | D10: =IF(INDIRECT("formatieoverzicht!X"&(N3+4))=2,"A","") ->  | E10: =IF(AND(INDIRECT("formatieoverzicht!X"&(N3+4))=1,INDIRECT("formatieoverzicht!AF"&(N3+4))=1),lesurenberekening!E12,IF(AND(INDIRECT("formatieoverzicht!X"&(N3+4))=1,INDIRECT("formatieoverzicht!AF"&(N3+4))=2),lesurenberekening!I12,IF(AND(INDIRECT("formatieoverzicht!X"&(N3+4))=1,INDIRECT("formatieoverzicht!AF"&(N3+4))=3),lesurenberekening!M12,IF(AND(INDIRECT("formatieoverzicht!X"&(N3+4))=3,INDIRECT("formatieoverzicht!AF"&(N3+4))=1),lesurenberekening!E12,IF(AND(INDIRECT("formatieoverzicht!X"&(N3+4))=3,INDIRECT("formatieoverzicht!AF"&(N3+4))=2),lesurenberekening!I12,IF(AND(INDIRECT("formatieoverzicht!X"&(N3+4))=3,INDIRECT("formatieoverzicht!AF"&(N3+4))=3),lesurenberekening!M12,0)))))) -> 0 | F10: =IF(INDIRECT("formatieoverzicht!Y"&(N3+4))=2,"A","") ->  | G10: =IF(AND(INDIRECT("formatieoverzicht!Y"&(N3+4))=1,INDIRECT("formatieoverzicht!AF"&(N3+4))=1),lesurenberekening!G12,IF(AND(INDIRECT("formatieoverzicht!Y"&(N3+4))=1,INDIRECT("formatieoverzicht!AF"&(N3+4))=2),lesurenberekening!K12,IF(AND(INDIRECT("formatieoverzicht!Y"&(N3+4))=1,INDIRECT("formatieoverzicht!AF"&(N3+4))=3),lesurenberekening!O12,IF(AND(INDIRECT("formatieoverzicht!Y"&(N3+4))=3,INDIRECT("formatieoverzicht!AF"&(N3+4))=1),lesurenberekening!G12,IF(AND(INDIRECT("formatieoverzicht!Y"&(N3+4))=3,INDIRECT("formatieoverzicht!AF"&(N3+4))=2),lesurenberekening!K12,IF(AND(INDIRECT("formatieoverzicht!Y"&(N3+4))=3,INDIRECT("formatieoverzicht!AF"&(N3+4))=3),lesurenberekening!O12,0)))))) -> 0 | H10: =IF(INDIRECT("formatieoverzicht!X"&(N3+4))>0,lesurenberekening!E99,0) -> 0 | I10: =H10+J10 -> 0 | J10: =IF(INDIRECT("formatieoverzicht!Y"&(N3+4))>0,lesurenberekening!G99,0) -> 0 | K10: basisbudget | M10: =INDIRECT("formatieoverzicht!J"&(4+N3)) -> 0 | N10: =INDIRECT("formatieoverzicht!Q"&(4+N3)) -> 0 | P10: A tm D
C11: woensdag | D11: =IF(INDIRECT("formatieoverzicht!Z"&(N3+4))=2,"A","") ->  | E11: =IF(AND(INDIRECT("formatieoverzicht!Z"&(N3+4))=1,INDIRECT("formatieoverzicht!AF"&(N3+4))=1),lesurenberekening!E13,IF(AND(INDIRECT("formatieoverzicht!Z"&(N3+4))=1,INDIRECT("formatieoverzicht!AF"&(N3+4))=2),lesurenberekening!I13,IF(AND(INDIRECT("formatieoverzicht!Z"&(N3+4))=1,INDIRECT("formatieoverzicht!AF"&(N3+4))=3),lesurenberekening!M13,IF(AND(INDIRECT("formatieoverzicht!Z"&(N3+4))=3,INDIRECT("formatieoverzicht!AF"&(N3+4))=1),lesurenberekening!E13,IF(AND(INDIRECT("formatieoverzicht!Z"&(N3+4))=3,INDIRECT("formatieoverzicht!AF"&(N3+4))=2),lesurenberekening!I13,IF(AND(INDIRECT("formatieoverzicht!Z"&(N3+4))=3,INDIRECT("formatieoverzicht!AF"&(N3+4))=3),lesurenberekening!M13,0)))))) -> 0 | F11: =IF(INDIRECT("formatieoverzicht!AA"&(N3+4))=2,"A","") ->  | G11: =IF(AND(INDIRECT("formatieoverzicht!AA"&(N3+4))=1,INDIRECT("formatieoverzicht!AF"&(N3+4))=1),lesurenberekening!G13,IF(AND(INDIRECT("formatieoverzicht!AA"&(N3+4))=1,INDIRECT("formatieoverzicht!AF"&(N3+4))=2),lesurenberekening!K13,IF(AND(INDIRECT("formatieoverzicht!AA"&(N3+4))=1,INDIRECT("formatieoverzicht!AF"&(N3+4))=3),lesurenberekening!O13,IF(AND(INDIRECT("formatieoverzicht!AA"&(N3+4))=3,INDIRECT("formatieoverzicht!AF"&(N3+4))=1),lesurenberekening!G13,IF(AND(INDIRECT("formatieoverzicht!AA"&(N3+4))=3,INDIRECT("formatieoverzicht!AF"&(N3+4))=2),lesurenberekening!K13,IF(AND(INDIRECT("formatieoverzicht!AA"&(N3+4))=3,INDIRECT("formatieoverzicht!AF"&(N3+4))=3),lesurenberekening!O13,0)))))) -> 0 | H11: =IF(INDIRECT("formatieoverzicht!Z"&(N3+4))>0,lesurenberekening!E100,0) -> 0 | I11: =H11+J11 -> 0 | J11: =IF(INDIRECT("formatieoverzicht!AA"&(N3+4))>0,lesurenberekening!G100,0) -> 0 | K11: bijzonder budget | M11: =INDIRECT("formatieoverzicht!K"&(4+N3)) -> 0 | N11: =INDIRECT("formatieoverzicht!R"&(4+N3)) -> 0 | P11: In deze rubrieken is alles automatisch berekend.
C12: donderdag | D12: =IF(INDIRECT("formatieoverzicht!AB"&(N3+4))=2,"A","") ->  | E12: =IF(AND(INDIRECT("formatieoverzicht!AB"&(N3+4))=1,INDIRECT("formatieoverzicht!AF"&(N3+4))=1),lesurenberekening!E14,IF(AND(INDIRECT("formatieoverzicht!AB"&(N3+4))=1,INDIRECT("formatieoverzicht!AF"&(N3+4))=2),lesurenberekening!I14,IF(AND(INDIRECT("formatieoverzicht!AB"&(N3+4))=1,INDIRECT("formatieoverzicht!AF"&(N3+4))=3),lesurenberekening!M14,IF(AND(INDIRECT("formatieoverzicht!AB"&(N3+4))=3,INDIRECT("formatieoverzicht!AF"&(N3+4))=1),lesurenberekening!E14,IF(AND(INDIRECT("formatieoverzicht!AB"&(N3+4))=3,INDIRECT("formatieoverzicht!AF"&(N3+4))=2),lesurenberekening!I14,IF(AND(INDIRECT("formatieoverzicht!AB"&(N3+4))=3,INDIRECT("formatieoverzicht!AF"&(N3+4))=3),lesurenberekening!M14,0)))))) -> 0 | F12: =IF(INDIRECT("formatieoverzicht!AC"&(N3+4))=2,"A","") ->  | G12: =IF(AND(INDIRECT("formatieoverzicht!AC"&(N3+4))=1,INDIRECT("formatieoverzicht!AF"&(N3+4))=1),lesurenberekening!G14,IF(AND(INDIRECT("formatieoverzicht!AC"&(N3+4))=1,INDIRECT("formatieoverzicht!AF"&(N3+4))=2),lesurenberekening!K14,IF(AND(INDIRECT("formatieoverzicht!AC"&(N3+4))=1,INDIRECT("formatieoverzicht!AF"&(N3+4))=3),lesurenberekening!O14,IF(AND(INDIRECT("formatieoverzicht!AC"&(N3+4))=3,INDIRECT("formatieoverzicht!AF"&(N3+4))=1),lesurenberekening!G14,IF(AND(INDIRECT("formatieoverzicht!AC"&(N3+4))=3,INDIRECT("formatieoverzicht!AF"&(N3+4))=2),lesurenberekening!K14,IF(AND(INDIRECT("formatieoverzicht!AC"&(N3+4))=3,INDIRECT("formatieoverzicht!AF"&(N3+4))=3),lesurenberekening!O14,0)))))) -> 0 | H12: =IF(INDIRECT("formatieoverzicht!AB"&(N3+4))>0,lesurenberekening!E101,0) -> 0 | I12: =H12+J12 -> 0 | J12: =IF(INDIRECT("formatieoverzicht!AC"&(N3+4))>0,lesurenberekening!G101,0) -> 0 | K12: overgangsbudget | M12: =INDIRECT("formatieoverzicht!L"&(4+N3)) -> 0 | N12: =INDIRECT("formatieoverzicht!S"&(4+N3)) -> 0
C13: vrijdag | D13: =IF(INDIRECT("formatieoverzicht!AD"&(N3+4))=2,"A","") ->  | E13: =IF(AND(INDIRECT("formatieoverzicht!AD"&(N3+4))=1,INDIRECT("formatieoverzicht!AF"&(N3+4))=1),lesurenberekening!E15,IF(AND(INDIRECT("formatieoverzicht!AD"&(N3+4))=1,INDIRECT("formatieoverzicht!AF"&(N3+4))=2),lesurenberekening!I15,IF(AND(INDIRECT("formatieoverzicht!AD"&(N3+4))=1,INDIRECT("formatieoverzicht!AF"&(N3+4))=3),lesurenberekening!M15,IF(AND(INDIRECT("formatieoverzicht!AD"&(N3+4))=3,INDIRECT("formatieoverzicht!AF"&(N3+4))=1),lesurenberekening!E15,IF(AND(INDIRECT("formatieoverzicht!AD"&(N3+4))=3,INDIRECT("formatieoverzicht!AF"&(N3+4))=2),lesurenberekening!I15,IF(AND(INDIRECT("formatieoverzicht!AD"&(N3+4))=3,INDIRECT("formatieoverzicht!AF"&(N3+4))=3),lesurenberekening!M15,0)))))) -> 0 | F13: =IF(INDIRECT("formatieoverzicht!AE"&(N3+4))=2,"A","") ->  | G13: =IF(AND(INDIRECT("formatieoverzicht!AE"&(N3+4))=1,INDIRECT("formatieoverzicht!AF"&(N3+4))=1),lesurenberekening!G15,IF(AND(INDIRECT("formatieoverzicht!AE"&(N3+4))=1,INDIRECT("formatieoverzicht!AF"&(N3+4))=2),lesurenberekening!K15,IF(AND(INDIRECT("formatieoverzicht!AE"&(N3+4))=1,INDIRECT("formatieoverzicht!AF"&(N3+4))=3),lesurenberekening!O15,IF(AND(INDIRECT("formatieoverzicht!AE"&(N3+4))=3,INDIRECT("formatieoverzicht!AF"&(N3+4))=1),lesurenberekening!G15,IF(AND(INDIRECT("formatieoverzicht!AE"&(N3+4))=3,INDIRECT("formatieoverzicht!AF"&(N3+4))=2),lesurenberekening!K15,IF(AND(INDIRECT("formatieoverzicht!AE"&(N3+4))=3,INDIRECT("formatieoverzicht!AF"&(N3+4))=3),lesurenberekening!O15,0)))))) -> 0 | H13: =IF(INDIRECT("formatieoverzicht!AD"&(N3+4))>0,lesurenberekening!E102,0) -> 0 | I13: =H13+J13 -> 0 | J13: =IF(INDIRECT("formatieoverzicht!AE"&(N3+4))>0,lesurenberekening!G102,0) -> 0 | K13: ingezet uit spaarsaldo | L13: + | M13: =INDIRECT("formatieoverzicht!M"&(4+N3)) -> 0 | P13: In rubriek A staat voor ambulante dagdelen een A.
M14: =M10+M11+M12+M13 -> 0 | N14: =SUM(N10:N13) -> 0 | P14: Indien noodzakelijk, kunnen in rubriek A de les- en arbeidsuren hand-
C15: ingeroosterd per week | E15: =E9+G9+E10+G10+E11+G11+E12+G12+E13+G13 -> 0 | I15: =SUM(I9:I13) -> 0 | P15: matig worden aangepast.
C16: eventuele correctie (zie invoerformulier) | E16: =INDIRECT("formatieoverzicht!AG"&(N3+4)) -> 0 | F16: _ | H16: _ | I16: =INDIRECT("formatieoverzicht!AJ"&(N3+4)) -> 0 | K16: opgenomen verlof d.i. | M16: =INDIRECT("formatieoverzicht!O"&(4+N3)) -> 0
C17: netto ingeroosterd per week | E17: =E15-E16 -> 0 | I17: =I15-I16 -> 0 | K17: waarvan lesuren | N17: =ROUND(MaxLestaak/1576*M16,0) -> 0 | P17: E + F
C18: x 52 = | E18: =52*E17 -> 0 | I18: =52*I17 -> 0 | K18: sparen* | L18: _ | M18: =INDIRECT("formatieoverzicht!P"&(4+N3)) -> 0 | P18: Hier kunnen de dagen en uren worden ingevuld waarop het teamlid
B19: =WEEKDAY(CONCATENATE(C19,G4)) -> 1900-01-01 | C19: 29 september | D19: =IF(MOD(G4,4)=0,WEEKDAY(CONCATENATE(C19,G4),2),0) -> 7 | E19: =IF(D19=1,E9+G9,IF(D19=2,E10+G10,IF(D19=3,E11+G11,IF(D19=4,E12+G12,IF(D19=5,E13+G13,0))))) -> 0 | G19: (schrikkeljaar) | I19: =IF(D19=1,I9,IF(D19=2,I10,IF(D19=3,I11,IF(D19=4,I12,IF(D19=5,I13,0))))) -> 0 | K19: (resterend) inzetbaar | M19: =INDIRECT("formatieoverzicht!T"&(4+N3)) -> 0 | P19: individueel extra wordt uit- of ingeroosterd.
B20: =WEEKDAY(CONCATENATE(C20,G4)) -> 1900-01-02 | C20: 30 september | D20: =WEEKDAY(CONCATENATE(C20,G4),2) -> 1 | E20: =IF(D20=1,E9+G9,IF(D20=2,E10+G10,IF(D20=3,E11+G11,IF(D20=4,E12+G12,IF(D20=5,E13+G13,0))))) -> 0 | F20: + | H20: + | I20: =IF(D20=1,I9,IF(D20=2,I10,IF(D20=3,I11,IF(D20=4,I12,IF(D20=5,I13,0))))) -> 0
C21: totaal A | E21: =E18+E19+E20 -> 0 | I21: =I18+I19+I20 -> 0 | K21: ="spaarsaldo eind "&lesurenberekening!E5-1&"/"&lesurenberekening!G5-1 -> spaarsaldo eind 2022/2023 | M21: =INDIRECT("formatieoverzicht!U"&(4+N3)) -> 0 | P21: Vul alle kolommen handmatig in. Denk om de dubbele punt achter de
B22: B hele vakantieweken | P22: uren. Wanneer is afgesproken een aantal dagen door te werken in één
G23: 1e maandag | K23: * Sparen tot 57 jr. : max. 3 jaar; vanaf 57 jr.: max. 5 jaar | P23: of meer vakantieweken, vul je in F het totaal van de arbeidsuren in.
C24: herfstvakantie | D24: =lesurenberekening!D25 -> 1 | E24: =E17*D24 -> 0 | G24: =lesurenberekening!E25 -> 2023-10-16 | I24: =I17*D24 -> 0 | K24: H ingeroosterde arbeidsuren | M24: wtf 1,0: | N24: =jaartaak -> 1659 | O24: in zelfde verhouding ingeroosterd als een voltijder
C25: kerstvakantie | D25: =lesurenberekening!D26 -> 2 | E25: =E17*D25 -> 0 | G25: =lesurenberekening!E26 -> 2023-12-25 | I25: =I17*D25 -> 0 | P25: Wanneer je hier bij meerdere teamleden hetzelfde moet invullen, kun je
C26: voorjaarsvakantie | D26: =lesurenberekening!D27 -> 1 | E26: =E17*D26 -> 0 | G26: =lesurenberekening!E27 -> 2024-02-19 | I26: =I17*D26 -> 0 | K26: bruto arbeidsduur (wtf x 1659) | M26: =ROUND(K5*jaartaak,0) -> 0 | P26: dat op meerdere teamlidbladen tegelijk in één keer invullen.
C27: meivakantie | D27: =lesurenberekening!D28 -> 2 | E27: =E17*D27 -> 0 | G27: =lesurenberekening!E28 -> 2024-04-29 | I27: =I17*D27 -> 0 | K27: opgenomen verlof d.i. | L27: _ | M27: =M16 -> 0 | P27: Meer informatie op de website: Vragen-> handig invullen
C28: =lesurenberekening!C29 -> 0 | D28: =lesurenberekening!D29 -> 0 | E28: =E17*D28 -> 0 | G28: =lesurenberekening!E29 -> 00:00:00 | I28: =I17*D28 -> 0 | K28: netto arbeidsduur | M28: =M26-M27 -> 0
C29: zomervakantie | D29: =lesurenberekening!D30 -> 6 | E29: =E17*D29 -> 0 | G29: =lesurenberekening!E30 -> 2024-07-15 | I29: =I17*D29 -> 0 | K29: ingeroosterd: (A + F) - (B t/m E) | M29: =ROUND(((I21+I73)-(I30+I43+I55+I64))*24,0) -> 0 | O29: =ROUND(O31*M28,0) -> 0 | P29: G
C30: totaal B | E30: =SUM(E24:E29) -> 0 | I30: =SUM(I24:I29) -> 0 | K30: =IF(lesurenberekening!E117="ja","verschil","") -> verschil | M30: =IF(lesurenberekening!E117="ja",(M29-M28),0) -> 0 | N30: =IF(lesurenberekening!E117="ja",(O30-M30),0) -> 0 | O30: =IF(O29<>0,O29-M28,0) -> 0 | P30: Het aantal lesuren dat een verlof d.i. bevat is gebaseerd op artikel
B31: C hele vakantie- of studiedagen | K31: =IF(lesurenberekening!E117="ja","inroosteringspercentage", "") -> inroosteringspercentage | M31: =ROUND(IF(lesurenberekening!E117="ja",IF(M28>0,M29/M28*100,0),0),1) -> 0 | N31: =IF(lesurenberekening!E117="ja","%","") -> % | O31: =lesurenberekening!E112*100&" %" -> 0 % | P31: 8A.6 lid 6 (CAO-PO 2022). Het budget prof. blijft dus ongewijzigd.
B32: =lesurenberekening!B34 ->  | C32: =IF(lesurenberekening!C34="","",lesurenberekening!C34) ->  | D32: =lesurenberekening!D34 -> v | E32: =(INDIRECT("E"&8+F32)+INDIRECT("G"&8+F32)) -> 0 | F32: =WEEKDAY(G32,2) -> 6 | G32: =lesurenberekening!E34 -> 00:00:00 | I32: =IF(D32="v",INDIRECT("I"&8+F32),0) -> 0
B33: =lesurenberekening!B35 ->  | C33: =IF(lesurenberekening!C35="","",lesurenberekening!C35) ->  | D33: =lesurenberekening!D35 -> v | E33: =(INDIRECT("E"&8+F33)+INDIRECT("G"&8+F33)) -> 0 | F33: =WEEKDAY(G33,2) -> 6 | G33: =lesurenberekening!E35 -> 00:00:00 | I33: =IF(D33="v",INDIRECT("I"&8+F33),0) -> 0 | K33: I ingeroosterde lesuren | M33: wtf 1,0: | N33: =MaxLestaak -> 940 | P33: H + I
B34: =lesurenberekening!B36 ->  | C34: =IF(lesurenberekening!C36="","",lesurenberekening!C36) ->  | D34: =lesurenberekening!D36 -> v | E34: =(INDIRECT("E"&8+F34)+INDIRECT("G"&8+F34)) -> 0 | F34: 6 | G34: =lesurenberekening!E36 -> 00:00:00 | I34: =IF(D34="v",INDIRECT("I"&8+F34),0) -> 0 | P34: De weergave van het inroosterverschil en het inroosterpercentage kan
B35: =lesurenberekening!B37 ->  | C35: =IF(lesurenberekening!C37="","",lesurenberekening!C37) ->  | D35: =lesurenberekening!D37 -> v | E35: 0 | F35: 6 | G35: =lesurenberekening!E37 -> 00:00:00 | I35: 0 | K35: maximale lestaak vlg. wtf | M35: =ROUND(K5*MaxLestaak,0) -> 0 | P35: in rubriek G op het eerste werkblad Lesurenberekening aan of uit
B36: =lesurenberekening!B38 ->  | C36: =IF(lesurenberekening!C38="","",lesurenberekening!C38) ->  | D36: =lesurenberekening!D38 -> v | E36: 0 | F36: 6 | G36: =lesurenberekening!E38 -> 00:00:00 | I36: 0 | K36: lesuren opgenomen verlof d.i. | L36: _ | M36: =N17 -> 0 | P36: worden gezet.
B37: =lesurenberekening!B39 ->  | C37: =IF(lesurenberekening!C39="","",lesurenberekening!C39) ->  | D37: =lesurenberekening!D39 -> v | E37: 0 | F37: 6 | G37: =lesurenberekening!E39 -> 00:00:00 | I37: 0 | K37: netto lestaak | M37: =M35-M36 -> 0
B38: =lesurenberekening!B40 ->  | C38: =IF(lesurenberekening!C40="","",lesurenberekening!C40) ->  | D38: =lesurenberekening!D40 -> v | E38: 0 | F38: 6 | G38: =lesurenberekening!E40 -> 00:00:00 | I38: 0 | K38: ingeroosterd: (A + F) - (B t/m E) | L38: _ | M38: =ROUND(((E21+E73)-(E30+E43+E55+E64))*24,0) -> 0 | P38: Wanneer in rubriek G (instellingen) op het eerste werkblad Lesuren-
B39: =lesurenberekening!B41 ->  | C39: =IF(lesurenberekening!C41="","",lesurenberekening!C41) ->  | D39: =lesurenberekening!D41 -> v | E39: 0 | F39: 6 | G39: =lesurenberekening!E41 -> 00:00:00 | I39: 0 | K39: =IF(lesurenberekening!E117="ja","verschil","") -> verschil | M39: =IF(lesurenberekening!E118="ja",M38-M37,"") -> 0 | P39: berekening het plaats- en tijdgebonden inroosterpercentage van de
B40: =lesurenberekening!B42 ->  | C40: =IF(lesurenberekening!C42="","",lesurenberekening!C42) ->  | D40: =lesurenberekening!D42 -> v | E40: 0 | F40: 6 | G40: =lesurenberekening!E42 -> 00:00:00 | I40: 0 | K40: =IF(lesurenberekening!E118="ja"," inroosteringspercentage","") -> inroosteringspercentage | M40: =ROUND(IF(lesurenberekening!E118="ja",IF(M37>0,M38/M37*100,0),0),1) -> 0 | N40: =IF(lesurenberekening!E118="ja","%","") -> % | P40: voltijders is ingevuld, wordt naast rubriek H ter vergelijking het daaraan
B41: =lesurenberekening!B43 ->  | C41: =IF(lesurenberekening!C43="","",lesurenberekening!C43) ->  | D41: =lesurenberekening!D43 -> v | E41: 0 | F41: 6 | G41: =lesurenberekening!E43 -> 00:00:00 | I41: 0 | P41: evenredig aantal in te roosteren arbeidsuren getoond.
B42: =lesurenberekening!B44 ->  | C42: =IF(lesurenberekening!C44="","",lesurenberekening!C44) ->  | D42: =lesurenberekening!D44 -> v | E42: 0 | F42: 6 | G42: =lesurenberekening!E44 -> 00:00:00 | I42: 0 | K42: J opbouw ingeroosterde jaartaak
C43: totaal C | E43: =SUM(E32:E42) -> 0 | I43: =SUM(I32:I42) -> 0 | N43: =IF(M53>0,"na verlof-", "") ->  | P43: J
B44: D overige dagdelen en uren | N44: =IF(M53>0,"opname", "") ->  | P44: overige & ambulante (functie)taken
B45: =IF(G45="","",G45) -> 00:00:00 | C45: =lesurenberekening!C48 -> 0 | D45: =IF(G$7=1,lesurenberekening!G48,IF(G$7=2,lesurenberekening!I48,IF(G$7=3,lesurenberekening!K48,0))) -> 0 | E45: =IF((INDIRECT("E"&8+F45)+INDIRECT("G"&8+F45))<>0,D45,0) -> 0 | F45: =WEEKDAY(G45,2) -> 6 | G45: =lesurenberekening!E48 -> 00:00:00 | I45: =IF(AND(INDIRECT("I"&8+F45)<>0,E45<>0),lesurenberekening!O48,0) -> 0 | K45: budget duurzame inzetbaarheid | M45: =M19 -> 0 | N45: =IF(M53>0,ROUND((N51/M51)*M45,0),M45) -> 0 | O45: =N45 -> 0 | P45: Wanneer er sprake is van ambulante uren, zal het aantal uren dat over-
B46: =IF(G46="","",G46) -> 00:00:00 | C46: =lesurenberekening!C49 -> 0 | D46: =IF(G$7=1,lesurenberekening!G49,IF(G$7=2,lesurenberekening!I49,IF(G$7=3,lesurenberekening!K49,0))) -> 0 | E46: =IF((INDIRECT("E"&8+F46)+INDIRECT("G"&8+F46))<>0,D46,0) -> 0 | F46: =WEEKDAY(G46,2) -> 6 | G46: =lesurenberekening!E49 -> 00:00:00 | I46: =IF(AND(INDIRECT("I"&8+F46)<>0,E46<>0),lesurenberekening!O49,0) -> 0 | K46: budget professionalisering | M46: =ROUND(K5*professionalisering,0) -> 0 | N46: =IF(M53>0,ROUND((N51/M51)*M46,0),M46) -> 0 | O46: =N46 -> 0 | P46: blijft voor de overige taken groter zijn. Onderaan rubriek K kan
B47: =IF(G47="","",G47) -> 00:00:00 | C47: =lesurenberekening!C50 -> 0 | D47: =IF(G$7=1,lesurenberekening!G50,IF(G$7=2,lesurenberekening!I50,IF(G$7=3,lesurenberekening!K50,0))) -> 0 | E47: =IF((INDIRECT("E"&8+F47)+INDIRECT("G"&8+F47))<>0,D47,0) -> 0 | F47: 6 | G47: =lesurenberekening!E50 -> 00:00:00 | I47: =IF(AND(INDIRECT("I"&8+F47)<>0,E47<>0),lesurenberekening!O50,0) -> 0 | K47: ingeroosterde lestaak | M47: =M38 -> 0 | O47: =M47 -> 0 | P47: het aantal uren voor de ambulante taken worden ingevuld; de over-
B48: 00:00:00 | C48: =lesurenberekening!C51 -> 0 | D48: =IF(G$7=1,lesurenberekening!G51,IF(G$7=2,lesurenberekening!I51,IF(G$7=3,lesurenberekening!K51,0))) -> 0 | E48: 0 | F48: 6 | G48: =lesurenberekening!E51 -> 00:00:00 | I48: =IF(AND(INDIRECT("I"&8+F48)<>0,E48<>0),lesurenberekening!O51,0) -> 0 | K48: voor- en nawerk* | M48: =IF(N48=0,ROUND(nawerk*M47,0),ROUND(N48*M47,0)) -> 0 | O48: =M48 -> 0 | P48: blijvende uren gaan dan naar de overige taken (zie rubriek C, pag. 2.).
B49: 00:00:00 | C49: =lesurenberekening!C52 -> 0 | D49: =IF(G$7=1,lesurenberekening!G52,IF(G$7=2,lesurenberekening!I52,IF(G$7=3,lesurenberekening!K52,0))) -> 0 | E49: 0 | F49: 6 | G49: =lesurenberekening!E52 -> 00:00:00 | I49: =IF(AND(INDIRECT("I"&8+F49)<>0,E49<>0),lesurenberekening!O52,0) -> 0 | K49: =IF(COUNTIF(D9:F13,"A")>0,"overige/amb. taken","overige taken") -> overige taken | M49: =M51-(M45+M46+M47+M48) -> 0 | N49: =IF(M53>0,ROUND((N51/M51)*M49,0),M49) -> 0 | O49: 100
B50: =IF(G50="","",G50) -> 00:00:00 | C50: =lesurenberekening!C53 -> 0 | D50: =IF(G$7=1,lesurenberekening!G53,IF(G$7=2,lesurenberekening!I53,IF(G$7=3,lesurenberekening!K53,0))) -> 0 | E50: =IF((INDIRECT("E"&8+F50)+INDIRECT("G"&8+F50))<>0,D50,0) -> 0 | F50: 6 | G50: =lesurenberekening!E53 -> 00:00:00 | I50: =IF(AND(INDIRECT("I"&8+F50)<>0,E50<>0),lesurenberekening!O53,0) -> 0 | P50: verlofopname
B51: =IF(G51="","",G51) -> 00:00:00 | C51: =lesurenberekening!C54 -> 0 | D51: =IF(G$7=1,lesurenberekening!G54,IF(G$7=2,lesurenberekening!I54,IF(G$7=3,lesurenberekening!K54,0))) -> 0 | E51: 0 | F51: 6 | G51: =lesurenberekening!E54 -> 00:00:00 | I51: =IF(AND(INDIRECT("I"&8+F51)<>0,E51<>0),lesurenberekening!O54,0) -> 0 | K51: netto arbeidsduur | M51: =M28 -> 0 | N51: =IF(M53>0,(M51-M53),0) -> 0 | P51: Dit vakje mag slechts in bepaalde gevallen worden ingevuld. Klik op de
B52: =IF(G52="","",G52) -> 00:00:00 | C52: =lesurenberekening!C55 -> 0 | D52: =IF(G$7=1,lesurenberekening!G55,IF(G$7=2,lesurenberekening!I55,IF(G$7=3,lesurenberekening!K55,0))) -> 0 | E52: 0 | F52: 6 | G52: =lesurenberekening!E55 -> 00:00:00 | I52: =IF(AND(INDIRECT("I"&8+F52)<>0,E52<>0),lesurenberekening!O55,0) -> 0 | P52: icoon of houd de muisaanwijzer boven de tooltip voor meer informatie.
B53: =IF(G53="","",G53) -> 00:00:00 | C53: =lesurenberekening!C56 -> 0 | D53: =IF(G$7=1,lesurenberekening!G56,IF(G$7=2,lesurenberekening!I56,IF(G$7=3,lesurenberekening!K56,0))) -> 0 | E53: 0 | F53: 6 | G53: =lesurenberekening!E56 -> 00:00:00 | I53: =IF(AND(INDIRECT("I"&8+F53)<>0,E53<>0),lesurenberekening!O56,0) -> 0 | K53: opname overig verlof dit schooljaar:
B54: 00:00:00 | C54: =lesurenberekening!C57 -> 0 | D54: =IF(G$7=1,lesurenberekening!G57,IF(G$7=2,lesurenberekening!I57,IF(G$7=3,lesurenberekening!K57,0))) -> 0 | E54: 0 | F54: 6 | G54: =lesurenberekening!E57 -> 00:00:00 | I54: =IF(AND(INDIRECT("I"&8+F54)<>0,E54<>0),lesurenberekening!O57,0) -> 0 | K54: *afgesproken reguliere opslagfactor: | M54: =nawerk -> 0 | P54: voor- en nawerk
C55: totaal D | E55: =SUM(E45:E54) -> 0 | I55: =SUM(I45:I54) -> 0 | K55: K d.i. + prof. + overige taken zie pagina 2 | P55: In dit vakje kan een afwijkende individuele opslagfactor worden inge-
B56: E uitgeroosterd | G56: datum | P56: vuld. Dit kan een grótere factor zijn bij beginnnende leerkrachten, of
K57: budget duurzame inzetbaarheid | N57: % | P57: juist een kleinere bij OOP'ers met lesondersteunende taken indien dat
K58: beschikbaar | M58: =N45 -> 0 | N58: ingevuld | P58: is afgesproken.
K59: ingevuld | L59: _ | M59: =M104 -> 0 | N59: =IF(M58>0,M59/M58*100,0) -> 0
K60: =IF(M60<0,"teveel ingepland","nog beschikbaar") -> nog beschikbaar | M60: =N105 -> 0 | P60: K
P61: Hier zie je in hoeverre de uren van deze drie taakonderdelen al met
K62: budget professionalisering | P62: activiteiten zijn gevuld op de tweede pagina van dit teamlidblad.
K63: beschikbaar | M63: =N46 -> 0 | P63: Dit is ook te zien geheel rechts op het Formatieoverzicht.
C64: totaal E | E64: =SUM(E57:E63) -> 0 | I64: =SUM(I57:I63) -> 0 | K64: ingevuld | L64: _ | M64: =M123 -> 0 | N64: =IF(M63>0,M64/M63*100,0) -> 0
B65: F ingeroosterd | G65: datum | K65: =IF(M65<0,"teveel ingepland","nog beschikbaar") -> nog beschikbaar | M65: =N124 -> 0 | P65: ambulante functietaken
P66: Bij (deels) ambulante teamleden moeten de overblijvende uren verdeeld
K67: =K49 -> overige taken | P67: worden over de ambulante functietaken en de overige taken.
K68: beschikbaar | M68: =N49-M72 -> 0 | P68: Vul, indien van toepassing, hier de uren voor de ambulante taken in, óf
K69: ingevuld | L69: _ | M69: =M157 -> 0 | N69: =IF(M68>0,M69/M68*100,0) -> 0 | P69: vul de verdeling op pag. 2 in rubriek C in (dus niet in beide tegelijk!).
K70: =IF(M70<0,"teveel ingepland","nog beschikbaar") -> nog beschikbaar | M70: =N158 -> 0
K72: ambulante functietaken: | P72: opmerkingenvak
C73: totaal F | E73: =SUM(E66:E72) -> 0 | I73: =SUM(I66:I72) -> 0 | P73: Druk op Alt+Enter voor een nieuwe regel.
B74: opmerkingen | P74: Dubbelklik op het vak wanneer niet de hele tekst zichtbaar is. Alleen het
P75: zichtbare deel wordt afgedrukt.
G81: 2e pagina | P81: Teamlidblad 2e pagina
B83: OVERZICHT GEPLANDE TAKEN EN ACTIVITEITEN DUURZAME INZETBAARHEID, PROFESSIONALISERING EN OVERIGE TAKEN | P83: Overzicht uren d.i., professionalisering en overige taken
P84: Op deze pagina worden de geplande activiteiten en uren ingevuld.
C85: schooljaar | E85: =E4 -> 2023 | F85: / | G85: =G4 -> 2024 | H85: naam: | K85: =K3 -> 0 | P85: Een regel moet aan de linkerkant geselecteerd worden om in te vullen.
P86: De uren worden hier als gewone hele getallen ingevoerd zonder
P87: dubbele punt.
B88: A | C88: duurzame inzetbaarheid | K88: beschikbaar: | M88: uren | N88: =N45 -> 0
B89: 1 | P89: invoerformulier voor de activiteiten
B90: 2 | P90: Voor het maken van overzichten is het noodzakelijk dat activiteiten
B91: 3 | P91: uniform gespeld worden. Bovendien worden de overzichten gemaakt
B92: 4 | P92: op basis van de drie lijsten (zie de drie tabs onderaan het scherm).
B93: 5 | P93: Voer activiteiten daarom altijd zoveel mogelijk in via het activiteiten-
B94: 6 | P94: invoerformulier. Je roept dit formulier op door op een willekeurige plek
B95: 7 | P95: op de nummerrij te klikken.
B96: 8
B97: 9 | P97: HET ACTIVITEITEN INVOERFORMULIER
B98: 10
B99: 11 | P99: Onderstaande informatie vind je ook door op de informatie-icoontjes op
B100: 12 | P100: het invoerformulier te klikken.
B101: 13
B102: 14 | P102: Lijstitem aan teamblad toevoegen
B103: 15 | P103: > Roep het formulier op door op de nummerrij te klikken en selecteer in
K104: totaal : | M104: =SUM(M89:M103) -> 0 | P104: het vak Lijstkeuze de betreffende lijst.
K105: nog beschikbaar: | N105: =N88-M104 -> 0 | P105: > Klik op het pijltje aan het eind van de lege regel; de lijst verschijnt.
P106: > Selecteer een activiteit en klik in het vak Teamblad A, B of C de
B107: B | C107: professionalisering | K107: beschikbaar: | N107: =N46 -> 0 | P107: rubriek waaraan je de activiteit wilt toevoegen.
B108: 1 | P108: > Klik tenslotte op de knop Toevoegen aan teamlidblad.
B109: 2
B110: 3 | P110: Uren wijzigen
B111: 4 | P111: De eventueel vermelde uren kunnen voordat de activiteit aan het team-
B112: 5 | P112: lidblad wordt toegevoegd worden gewijzigd. Er moeten altijd uren zijn
B113: 6 | P113: ingevuld.
B114: 7
B115: 8 | P115: Nieuwe items aan een lijst én het teamlidblad toevoegen
B116: 9 | P116: Nieuwe activiteiten kunnen gelijktijdig aan een lijst én aan een rubriek
B117: 10 | P117: op het teamlidblad worden toegevoegd:
B118: 11 | P118: > Selecteer in het vak Lijstkeuze een lijst en vul op de lege regel een
B119: 12 | P119: activiteit in.
B120: 13 | P120: > Klik vervolgens op Toevoegen aan lijst.
B121: 14 | P121: > Selecteer daarna in het vak daaronder de betreffende rubriek en
B122: 15 | P122: tenslotte op Toevoegen aan teamlidblad.
K123: totaal : | M123: =SUM(M108:M122) -> 0
K124: nog beschikbaar: | N124: =N107-M123 -> 0 | P124: De lijsten kunnen ook direct op de lijst zelf worden ingevuld. Aangeleg-
P125: de lijsten kunnen bij het ingebruiknemen van een nieuwe planner uit de
B126: C | C126: =K49 -> overige taken | K126: beschikbaar: | N126: =M68 -> 0 | P126: oude planner met enkele muisklikken geïmporteerd worden.
B127: 1
B128: 2 | P128: sortering
B129: 3 | P129: Bij gebruik van het invoerformulier worden de items automatisch
B130: 4 | P130: gesorteerd. Sorteer bij rechtstreeks invullen door op de sorteerpijlen
B131: 5 | P131: bovenaan de pagina te klikken.
B132: 6
B133: 7 | P133: overzicht per activiteit
B134: 8 | P134: Met het invoerformulier kan ook een overzicht worden gemaakt van de
B135: 9 | P135: teamleden die eenzelfde activiteit hebben:
B136: 10 | P136: > Kies een lijst en een activiteit.
B137: 11 | P137: > Klik nu op de knop Teamoverzicht.
B138: 12 | P138: > Het overzicht wordt onderaan de gekozen lijst getoond.
B139: 13
B140: 14 | P140: overzicht alle activiteiten en alle teamleden
B141: 15 | P141: Op het werkblad act.overzicht kun je een totaaloverzicht maken van alle
B142: 16 | P142: activiteiten en teamleden. Een lege lijst kun je aan het begin van het
B143: 17 | P143: werkverdelingstraject als intekenlijst voor de overige taken gebruiken.
B144: 18
B145: 19 | P145: Let op:
B146: 20 | P146: De op deze pagina vermelde activiteiten en uren zijn een specificatie
B147: 21 | P147: van de op de eerste pagina berekende uren voor deze drie taak-
B148: 22 | P148: onderdelen. Er mogen dus niet méér uren worden ingepland dan er
B149: 23 | P149: beschikbaar zijn. Het aantal teveel ingeplande uren wordt in het rood
B150: 24 | P150: afgedrukt.
B151: 25
B152: 26
B153: 27
B154: 28
B155: 29
B156: 30
K157: totaal : | M157: =SUM(M127:M156) -> 0
K158: nog beschikbaar: | N158: =N126-M157 -> 0

Sheet 8 (hidden)
B2: TAAKBEREKENING OP/OOP met lesondersteunende taken | K2: © taakberekeningPO.nl | P2: toelichting teamlidblad OP en OOP met lesondersteunende taken
C3: =lesurenberekening!I5 -> 0 | H3: naam: | K3: =INDIRECT("formatieoverzicht!C"&(4+N3)) -> 0 | N3: =MID(CELL("bestandsnaam",A1),SEARCH("]",CELL("bestandsnaam",A1),1)+1,99) -> 8
E4: =lesurenberekening!E5 -> 2023 | F4: / | G4: =lesurenberekening!G5 -> 2024 | H4: aanstelling: | K4: =INDIRECT("formatieoverzicht!D"&(4+N3)) -> 0
H5: wtf: | K5: =INDIRECT("formatieoverzicht!E"&(4+N3)) -> 0 | P5: Klik op dit icoon voor meer informatie
B6: OVERZICHT IN- EN UITGEROOSTERDE LES- EN ARBEIDSUREN | K6: OVERZICHT JAARTAAK
B7: A jaartotaal les- en arbeidsuren | E7: lestijd bouw: | G7: =INDIRECT("formatieoverzicht!"&"AF"&N3+4) -> 0 | I7: arbeidsuren | K7: G budget duurzame inzetbaarheid | P7: Dit teamlidblad is voor het OP en OOP met lesondersteunende taken, | S7: ='8'!S6 -> 0
E8: o | G8: m | P8: zoals een klassen- of onderwijsassistent.
C9: maandag | D9: =IF(INDIRECT("formatieoverzicht!V"&(N3+4))=2,"A","") ->  | E9: =IF(AND(INDIRECT("formatieoverzicht!V"&(N3+4))=1,INDIRECT("formatieoverzicht!AF"&(N3+4))=1),lesurenberekening!E11,IF(AND(INDIRECT("formatieoverzicht!V"&(N3+4))=1,INDIRECT("formatieoverzicht!AF"&(N3+4))=2),lesurenberekening!I11,IF(AND(INDIRECT("formatieoverzicht!V"&(N3+4))=1,INDIRECT("formatieoverzicht!AF"&(N3+4))=3),lesurenberekening!M11,IF(AND(INDIRECT("formatieoverzicht!V"&(N3+4))=3,INDIRECT("formatieoverzicht!AF"&(N3+4))=1),lesurenberekening!E11,IF(AND(INDIRECT("formatieoverzicht!V"&(N3+4))=3,INDIRECT("formatieoverzicht!AF"&(N3+4))=2),lesurenberekening!I11,IF(AND(INDIRECT("formatieoverzicht!V"&(N3+4))=3,INDIRECT("formatieoverzicht!AF"&(N3+4))=3),lesurenberekening!M11,0)))))) -> 0 | F9: =IF(INDIRECT("formatieoverzicht!W"&(N3+4))=2,"A","") ->  | G9: =IF(AND(INDIRECT("formatieoverzicht!W"&(N3+4))=1,INDIRECT("formatieoverzicht!AF"&(N3+4))=1),lesurenberekening!G11,IF(AND(INDIRECT("formatieoverzicht!W"&(N3+4))=1,INDIRECT("formatieoverzicht!AF"&(N3+4))=2),lesurenberekening!K11,IF(AND(INDIRECT("formatieoverzicht!W"&(N3+4))=1,INDIRECT("formatieoverzicht!AF"&(N3+4))=3),lesurenberekening!O11,IF(AND(INDIRECT("formatieoverzicht!W"&(N3+4))=3,INDIRECT("formatieoverzicht!AF"&(N3+4))=1),lesurenberekening!G11,IF(AND(INDIRECT("formatieoverzicht!W"&(N3+4))=3,INDIRECT("formatieoverzicht!AF"&(N3+4))=2),lesurenberekening!K11,IF(AND(INDIRECT("formatieoverzicht!W"&(N3+4))=3,INDIRECT("formatieoverzicht!AF"&(N3+4))=3),lesurenberekening!O11,0)))))) -> 0 | H9: =IF(INDIRECT("formatieoverzicht!V"&(N3+4))>0,lesurenberekening!E98,0) -> 0 | I9: =H9+J9 -> 0 | J9: =IF(INDIRECT("formatieoverzicht!W"&(N3+4))>0,lesurenberekening!G98,0) -> 0 | M9: opbouw | N9: opname
C10: dinsdag | D10: =IF(INDIRECT("formatieoverzicht!X"&(N3+4))=2,"A","") ->  | E10: =IF(AND(INDIRECT("formatieoverzicht!X"&(N3+4))=1,INDIRECT("formatieoverzicht!AF"&(N3+4))=1),lesurenberekening!E12,IF(AND(INDIRECT("formatieoverzicht!X"&(N3+4))=1,INDIRECT("formatieoverzicht!AF"&(N3+4))=2),lesurenberekening!I12,IF(AND(INDIRECT("formatieoverzicht!X"&(N3+4))=1,INDIRECT("formatieoverzicht!AF"&(N3+4))=3),lesurenberekening!M12,IF(AND(INDIRECT("formatieoverzicht!X"&(N3+4))=3,INDIRECT("formatieoverzicht!AF"&(N3+4))=1),lesurenberekening!E12,IF(AND(INDIRECT("formatieoverzicht!X"&(N3+4))=3,INDIRECT("formatieoverzicht!AF"&(N3+4))=2),lesurenberekening!I12,IF(AND(INDIRECT("formatieoverzicht!X"&(N3+4))=3,INDIRECT("formatieoverzicht!AF"&(N3+4))=3),lesurenberekening!M12,0)))))) -> 0 | F10: =IF(INDIRECT("formatieoverzicht!Y"&(N3+4))=2,"A","") ->  | G10: =IF(AND(INDIRECT("formatieoverzicht!Y"&(N3+4))=1,INDIRECT("formatieoverzicht!AF"&(N3+4))=1),lesurenberekening!G12,IF(AND(INDIRECT("formatieoverzicht!Y"&(N3+4))=1,INDIRECT("formatieoverzicht!AF"&(N3+4))=2),lesurenberekening!K12,IF(AND(INDIRECT("formatieoverzicht!Y"&(N3+4))=1,INDIRECT("formatieoverzicht!AF"&(N3+4))=3),lesurenberekening!O12,IF(AND(INDIRECT("formatieoverzicht!Y"&(N3+4))=3,INDIRECT("formatieoverzicht!AF"&(N3+4))=1),lesurenberekening!G12,IF(AND(INDIRECT("formatieoverzicht!Y"&(N3+4))=3,INDIRECT("formatieoverzicht!AF"&(N3+4))=2),lesurenberekening!K12,IF(AND(INDIRECT("formatieoverzicht!Y"&(N3+4))=3,INDIRECT("formatieoverzicht!AF"&(N3+4))=3),lesurenberekening!O12,0)))))) -> 0 | H10: =IF(INDIRECT("formatieoverzicht!X"&(N3+4))>0,lesurenberekening!E99,0) -> 0 | I10: =H10+J10 -> 0 | J10: =IF(INDIRECT("formatieoverzicht!Y"&(N3+4))>0,lesurenberekening!G99,0) -> 0 | K10: basisbudget | M10: =INDIRECT("formatieoverzicht!J"&(4+N3)) -> 0 | N10: =INDIRECT("formatieoverzicht!Q"&(4+N3)) -> 0 | P10: A tm D
C11: woensdag | D11: =IF(INDIRECT("formatieoverzicht!Z"&(N3+4))=2,"A","") ->  | E11: =IF(AND(INDIRECT("formatieoverzicht!Z"&(N3+4))=1,INDIRECT("formatieoverzicht!AF"&(N3+4))=1),lesurenberekening!E13,IF(AND(INDIRECT("formatieoverzicht!Z"&(N3+4))=1,INDIRECT("formatieoverzicht!AF"&(N3+4))=2),lesurenberekening!I13,IF(AND(INDIRECT("formatieoverzicht!Z"&(N3+4))=1,INDIRECT("formatieoverzicht!AF"&(N3+4))=3),lesurenberekening!M13,IF(AND(INDIRECT("formatieoverzicht!Z"&(N3+4))=3,INDIRECT("formatieoverzicht!AF"&(N3+4))=1),lesurenberekening!E13,IF(AND(INDIRECT("formatieoverzicht!Z"&(N3+4))=3,INDIRECT("formatieoverzicht!AF"&(N3+4))=2),lesurenberekening!I13,IF(AND(INDIRECT("formatieoverzicht!Z"&(N3+4))=3,INDIRECT("formatieoverzicht!AF"&(N3+4))=3),lesurenberekening!M13,0)))))) -> 0 | F11: =IF(INDIRECT("formatieoverzicht!AA"&(N3+4))=2,"A","") ->  | G11: =IF(AND(INDIRECT("formatieoverzicht!AA"&(N3+4))=1,INDIRECT("formatieoverzicht!AF"&(N3+4))=1),lesurenberekening!G13,IF(AND(INDIRECT("formatieoverzicht!AA"&(N3+4))=1,INDIRECT("formatieoverzicht!AF"&(N3+4))=2),lesurenberekening!K13,IF(AND(INDIRECT("formatieoverzicht!AA"&(N3+4))=1,INDIRECT("formatieoverzicht!AF"&(N3+4))=3),lesurenberekening!O13,IF(AND(INDIRECT("formatieoverzicht!AA"&(N3+4))=3,INDIRECT("formatieoverzicht!AF"&(N3+4))=1),lesurenberekening!G13,IF(AND(INDIRECT("formatieoverzicht!AA"&(N3+4))=3,INDIRECT("formatieoverzicht!AF"&(N3+4))=2),lesurenberekening!K13,IF(AND(INDIRECT("formatieoverzicht!AA"&(N3+4))=3,INDIRECT("formatieoverzicht!AF"&(N3+4))=3),lesurenberekening!O13,0)))))) -> 0 | H11: =IF(INDIRECT("formatieoverzicht!Z"&(N3+4))>0,lesurenberekening!E100,0) -> 0 | I11: =H11+J11 -> 0 | J11: =IF(INDIRECT("formatieoverzicht!AA"&(N3+4))>0,lesurenberekening!G100,0) -> 0 | K11: bijzonder budget | M11: =INDIRECT("formatieoverzicht!K"&(4+N3)) -> 0 | N11: =INDIRECT("formatieoverzicht!R"&(4+N3)) -> 0 | P11: In deze rubrieken is alles automatisch berekend.
C12: donderdag | D12: =IF(INDIRECT("formatieoverzicht!AB"&(N3+4))=2,"A","") ->  | E12: =IF(AND(INDIRECT("formatieoverzicht!AB"&(N3+4))=1,INDIRECT("formatieoverzicht!AF"&(N3+4))=1),lesurenberekening!E14,IF(AND(INDIRECT("formatieoverzicht!AB"&(N3+4))=1,INDIRECT("formatieoverzicht!AF"&(N3+4))=2),lesurenberekening!I14,IF(AND(INDIRECT("formatieoverzicht!AB"&(N3+4))=1,INDIRECT("formatieoverzicht!AF"&(N3+4))=3),lesurenberekening!M14,IF(AND(INDIRECT("formatieoverzicht!AB"&(N3+4))=3,INDIRECT("formatieoverzicht!AF"&(N3+4))=1),lesurenberekening!E14,IF(AND(INDIRECT("formatieoverzicht!AB"&(N3+4))=3,INDIRECT("formatieoverzicht!AF"&(N3+4))=2),lesurenberekening!I14,IF(AND(INDIRECT("formatieoverzicht!AB"&(N3+4))=3,INDIRECT("formatieoverzicht!AF"&(N3+4))=3),lesurenberekening!M14,0)))))) -> 0 | F12: =IF(INDIRECT("formatieoverzicht!AC"&(N3+4))=2,"A","") ->  | G12: =IF(AND(INDIRECT("formatieoverzicht!AC"&(N3+4))=1,INDIRECT("formatieoverzicht!AF"&(N3+4))=1),lesurenberekening!G14,IF(AND(INDIRECT("formatieoverzicht!AC"&(N3+4))=1,INDIRECT("formatieoverzicht!AF"&(N3+4))=2),lesurenberekening!K14,IF(AND(INDIRECT("formatieoverzicht!AC"&(N3+4))=1,INDIRECT("formatieoverzicht!AF"&(N3+4))=3),lesurenberekening!O14,IF(AND(INDIRECT("formatieoverzicht!AC"&(N3+4))=3,INDIRECT("formatieoverzicht!AF"&(N3+4))=1),lesurenberekening!G14,IF(AND(INDIRECT("formatieoverzicht!AC"&(N3+4))=3,INDIRECT("formatieoverzicht!AF"&(N3+4))=2),lesurenberekening!K14,IF(AND(INDIRECT("formatieoverzicht!AC"&(N3+4))=3,INDIRECT("formatieoverzicht!AF"&(N3+4))=3),lesurenberekening!O14,0)))))) -> 0 | H12: =IF(INDIRECT("formatieoverzicht!AB"&(N3+4))>0,lesurenberekening!E101,0) -> 0 | I12: =H12+J12 -> 0 | J12: =IF(INDIRECT("formatieoverzicht!AC"&(N3+4))>0,lesurenberekening!G101,0) -> 0 | K12: overgangsbudget | M12: =INDIRECT("formatieoverzicht!L"&(4+N3)) -> 0 | N12: =INDIRECT("formatieoverzicht!S"&(4+N3)) -> 0
C13: vrijdag | D13: =IF(INDIRECT("formatieoverzicht!AD"&(N3+4))=2,"A","") ->  | E13: =IF(AND(INDIRECT("formatieoverzicht!AD"&(N3+4))=1,INDIRECT("formatieoverzicht!AF"&(N3+4))=1),lesurenberekening!E15,IF(AND(INDIRECT("formatieoverzicht!AD"&(N3+4))=1,INDIRECT("formatieoverzicht!AF"&(N3+4))=2),lesurenberekening!I15,IF(AND(INDIRECT("formatieoverzicht!AD"&(N3+4))=1,INDIRECT("formatieoverzicht!AF"&(N3+4))=3),lesurenberekening!M15,IF(AND(INDIRECT("formatieoverzicht!AD"&(N3+4))=3,INDIRECT("formatieoverzicht!AF"&(N3+4))=1),lesurenberekening!E15,IF(AND(INDIRECT("formatieoverzicht!AD"&(N3+4))=3,INDIRECT("formatieoverzicht!AF"&(N3+4))=2),lesurenberekening!I15,IF(AND(INDIRECT("formatieoverzicht!AD"&(N3+4))=3,INDIRECT("formatieoverzicht!AF"&(N3+4))=3),lesurenberekening!M15,0)))))) -> 0 | F13: =IF(INDIRECT("formatieoverzicht!AE"&(N3+4))=2,"A","") ->  | G13: =IF(AND(INDIRECT("formatieoverzicht!AE"&(N3+4))=1,INDIRECT("formatieoverzicht!AF"&(N3+4))=1),lesurenberekening!G15,IF(AND(INDIRECT("formatieoverzicht!AE"&(N3+4))=1,INDIRECT("formatieoverzicht!AF"&(N3+4))=2),lesurenberekening!K15,IF(AND(INDIRECT("formatieoverzicht!AE"&(N3+4))=1,INDIRECT("formatieoverzicht!AF"&(N3+4))=3),lesurenberekening!O15,IF(AND(INDIRECT("formatieoverzicht!AE"&(N3+4))=3,INDIRECT("formatieoverzicht!AF"&(N3+4))=1),lesurenberekening!G15,IF(AND(INDIRECT("formatieoverzicht!AE"&(N3+4))=3,INDIRECT("formatieoverzicht!AF"&(N3+4))=2),lesurenberekening!K15,IF(AND(INDIRECT("formatieoverzicht!AE"&(N3+4))=3,INDIRECT("formatieoverzicht!AF"&(N3+4))=3),lesurenberekening!O15,0)))))) -> 0 | H13: =IF(INDIRECT("formatieoverzicht!AD"&(N3+4))>0,lesurenberekening!E102,0) -> 0 | I13: =H13+J13 -> 0 | J13: =IF(INDIRECT("formatieoverzicht!AE"&(N3+4))>0,lesurenberekening!G102,0) -> 0 | K13: ingezet uit spaarsaldo | L13: + | M13: =INDIRECT("formatieoverzicht!M"&(4+N3)) -> 0 | P13: In rubriek A staat voor ambulante dagdelen een A.
M14: =M10+M11+M12+M13 -> 0 | N14: =SUM(N10:N13) -> 0 | P14: Indien noodzakelijk, kunnen in rubriek A de les- en arbeidsuren hand-
C15: ingeroosterd per week | E15: =E9+G9+E10+G10+E11+G11+E12+G12+E13+G13 -> 0 | I15: =SUM(I9:I13) -> 0 | P15: matig worden aangepast.
C16: eventuele correctie (zie invoerformulier) | E16: =INDIRECT("formatieoverzicht!AG"&(N3+4)) -> 0 | F16: _ | H16: _ | I16: =INDIRECT("formatieoverzicht!AJ"&(N3+4)) -> 0 | K16: opgenomen verlof d.i. | M16: =INDIRECT("formatieoverzicht!O"&(4+N3)) -> 0
C17: netto ingeroosterd per week | E17: =E15-E16 -> 0 | I17: =I15-I16 -> 0 | K17: waarvan lesuren | N17: =ROUND(MaxLestaak/1576*M16,0) -> 0 | P17: E + F
C18: x 52 = | E18: =52*E17 -> 0 | I18: =52*I17 -> 0 | K18: sparen* | L18: _ | M18: =INDIRECT("formatieoverzicht!P"&(4+N3)) -> 0 | P18: Hier kunnen de dagen en uren worden ingevuld waarop het teamlid
B19: =WEEKDAY(CONCATENATE(C19,G4)) -> 1900-01-01 | C19: 29 september | D19: =IF(MOD(G4,4)=0,WEEKDAY(CONCATENATE(C19,G4),2),0) -> 7 | E19: =IF(D19=1,E9+G9,IF(D19=2,E10+G10,IF(D19=3,E11+G11,IF(D19=4,E12+G12,IF(D19=5,E13+G13,0))))) -> 0 | G19: (schrikkeljaar) | I19: =IF(D19=1,I9,IF(D19=2,I10,IF(D19=3,I11,IF(D19=4,I12,IF(D19=5,I13,0))))) -> 0 | K19: (resterend) inzetbaar | M19: =INDIRECT("formatieoverzicht!T"&(4+N3)) -> 0 | P19: individueel extra wordt uit- of ingeroosterd.
B20: =WEEKDAY(CONCATENATE(C20,G4)) -> 1900-01-02 | C20: 30 september | D20: =WEEKDAY(CONCATENATE(C20,G4),2) -> 1 | E20: =IF(D20=1,E9+G9,IF(D20=2,E10+G10,IF(D20=3,E11+G11,IF(D20=4,E12+G12,IF(D20=5,E13+G13,0))))) -> 0 | F20: + | H20: + | I20: =IF(D20=1,I9,IF(D20=2,I10,IF(D20=3,I11,IF(D20=4,I12,IF(D20=5,I13,0))))) -> 0
C21: totaal A | E21: =E18+E19+E20 -> 0 | I21: =I18+I19+I20 -> 0 | K21: ="spaarsaldo eind "&lesurenberekening!E5-1&"/"&lesurenberekening!G5-1 -> spaarsaldo eind 2022/2023 | M21: =INDIRECT("formatieoverzicht!U"&(4+N3)) -> 0 | P21: Vul alle kolommen handmatig in. Denk om de dubbele punt achter de
B22: B hele vakantieweken | P22: uren. Wanneer is afgesproken een aantal dagen door te werken in één
G23: 1e maandag | K23: * Sparen tot 57 jr. : max. 3 jaar; vanaf 57 jr.: max. 5 jaar | P23: of meer vakantieweken, vul je in F het totaal van de arbeidsuren in.
C24: herfstvakantie | D24: =lesurenberekening!D25 -> 1 | E24: =E17*D24 -> 0 | G24: =lesurenberekening!E25 -> 2023-10-16 | I24: =I17*D24 -> 0 | K24: H ingeroosterde arbeidsuren | M24: wtf 1,0: | N24: =jaartaak -> 1659 | O24: in zelfde verhouding ingeroosterd als een voltijder
C25: kerstvakantie | D25: =lesurenberekening!D26 -> 2 | E25: =E17*D25 -> 0 | G25: =lesurenberekening!E26 -> 2023-12-25 | I25: =I17*D25 -> 0 | P25: Wanneer je hier bij meerdere teamleden hetzelfde moet invullen, kun je
C26: voorjaarsvakantie | D26: =lesurenberekening!D27 -> 1 | E26: =E17*D26 -> 0 | G26: =lesurenberekening!E27 -> 2024-02-19 | I26: =I17*D26 -> 0 | K26: bruto arbeidsduur (wtf x 1659) | M26: =ROUND(K5*jaartaak,0) -> 0 | P26: dat op meerdere teamlidbladen tegelijk in één keer invullen.
C27: meivakantie | D27: =lesurenberekening!D28 -> 2 | E27: =E17*D27 -> 0 | G27: =lesurenberekening!E28 -> 2024-04-29 | I27: =I17*D27 -> 0 | K27: opgenomen verlof d.i. | L27: _ | M27: =M16 -> 0 | P27: Meer informatie op de website: Vragen-> handig invullen
C28: =lesurenberekening!C29 -> 0 | D28: =lesurenberekening!D29 -> 0 | E28: =E17*D28 -> 0 | G28: =lesurenberekening!E29 -> 00:00:00 | I28: =I17*D28 -> 0 | K28: netto arbeidsduur | M28: =M26-M27 -> 0
C29: zomervakantie | D29: =lesurenberekening!D30 -> 6 | E29: =E17*D29 -> 0 | G29: =lesurenberekening!E30 -> 2024-07-15 | I29: =I17*D29 -> 0 | K29: ingeroosterd: (A + F) - (B t/m E) | M29: =ROUND(((I21+I73)-(I30+I43+I55+I64))*24,0) -> 0 | O29: =ROUND(O31*M28,0) -> 0 | P29: G
C30: totaal B | E30: =SUM(E24:E29) -> 0 | I30: =SUM(I24:I29) -> 0 | K30: =IF(lesurenberekening!E117="ja","verschil","") -> verschil | M30: =IF(lesurenberekening!E117="ja",(M29-M28),0) -> 0 | N30: =IF(lesurenberekening!E117="ja",(O30-M30),0) -> 0 | O30: =IF(O29<>0,O29-M28,0) -> 0 | P30: Het aantal lesuren dat een verlof d.i. bevat is gebaseerd op artikel
B31: C hele vakantie- of studiedagen | K31: =IF(lesurenberekening!E117="ja","inroosteringspercentage", "") -> inroosteringspercentage | M31: =ROUND(IF(lesurenberekening!E117="ja",IF(M28>0,M29/M28*100,0),0),1) -> 0 | N31: =IF(lesurenberekening!E117="ja","%","") -> % | O31: =lesurenberekening!E112*100&" %" -> 0 % | P31: 8A.6 lid 6 (CAO-PO 2022). Het budget prof. blijft dus ongewijzigd.
B32: =lesurenberekening!B34 ->  | C32: =IF(lesurenberekening!C34="","",lesurenberekening!C34) ->  | D32: =lesurenberekening!D34 -> v | E32: =(INDIRECT("E"&8+F32)+INDIRECT("G"&8+F32)) -> 0 | F32: =WEEKDAY(G32,2) -> 6 | G32: =lesurenberekening!E34 -> 00:00:00 | I32: =IF(D32="v",INDIRECT("I"&8+F32),0) -> 0
B33: =lesurenberekening!B35 ->  | C33: =IF(lesurenberekening!C35="","",lesurenberekening!C35) ->  | D33: =lesurenberekening!D35 -> v | E33: =(INDIRECT("E"&8+F33)+INDIRECT("G"&8+F33)) -> 0 | F33: =WEEKDAY(G33,2) -> 6 | G33: =lesurenberekening!E35 -> 00:00:00 | I33: =IF(D33="v",INDIRECT("I"&8+F33),0) -> 0 | K33: I ingeroosterde lesuren | M33: wtf 1,0: | N33: =MaxLestaak -> 940 | P33: H + I
B34: =lesurenberekening!B36 ->  | C34: =IF(lesurenberekening!C36="","",lesurenberekening!C36) ->  | D34: =lesurenberekening!D36 -> v | E34: =(INDIRECT("E"&8+F34)+INDIRECT("G"&8+F34)) -> 0 | F34: 6 | G34: =lesurenberekening!E36 -> 00:00:00 | I34: =IF(D34="v",INDIRECT("I"&8+F34),0) -> 0 | P34: De weergave van het inroosterverschil en het inroosterpercentage kan
B35: =lesurenberekening!B37 ->  | C35: =IF(lesurenberekening!C37="","",lesurenberekening!C37) ->  | D35: =lesurenberekening!D37 -> v | E35: 0 | F35: 6 | G35: =lesurenberekening!E37 -> 00:00:00 | I35: 0 | K35: maximale lestaak vlg. wtf | M35: =ROUND(K5*MaxLestaak,0) -> 0 | P35: in rubriek G op het eerste werkblad Lesurenberekening aan of uit
B36: =lesurenberekening!B38 ->  | C36: =IF(lesurenberekening!C38="","",lesurenberekening!C38) ->  | D36: =lesurenberekening!D38 -> v | E36: 0 | F36: 6 | G36: =lesurenberekening!E38 -> 00:00:00 | I36: 0 | K36: lesuren opgenomen verlof d.i. | L36: _ | M36: =N17 -> 0 | P36: worden gezet.
B37: =lesurenberekening!B39 ->  | C37: =IF(lesurenberekening!C39="","",lesurenberekening!C39) ->  | D37: =lesurenberekening!D39 -> v | E37: 0 | F37: 6 | G37: =lesurenberekening!E39 -> 00:00:00 | I37: 0 | K37: netto lestaak | M37: =M35-M36 -> 0
B38: =lesurenberekening!B40 ->  | C38: =IF(lesurenberekening!C40="","",lesurenberekening!C40) ->  | D38: =lesurenberekening!D40 -> v | E38: 0 | F38: 6 | G38: =lesurenberekening!E40 -> 00:00:00 | I38: 0 | K38: ingeroosterd: (A + F) - (B t/m E) | L38: _ | M38: =ROUND(((E21+E73)-(E30+E43+E55+E64))*24,0) -> 0 | P38: Wanneer in rubriek G (instellingen) op het eerste werkblad Lesuren-
